Workbook

Sheet Inputs & Results
B2: Model Information
B3: DESCRIPTION
B4: Drug Therapy Added to Lifestyle Intervention for Prediabetes
B6: STRATEGIES
B7: Lifestyle Tx - Standard of care
B8: Base case of only lifestyle intervention
B9: Metformin Tx
B10: Generic Metformin
B11: Tirzepatide Tx
B12: GLP-1 receptor agonist Tirzepatide
B13: Semaglutide Tx
B14: GLP-1 receptor agonist Semaglutide
B16: Green cells are editable
B17: Gray cells - no impact on calculation
B18: INPUTS | F18: MODEL RESULTS
B19: Description | C19: Value | D19: Reference in TreeAge | F19: WTP: | G19: 23500
B20: Parameter Variables | F20: Strategy | G20: Cost | H20: Eff | I20: Payoff 3 - Life expectancy
B21: Quality of Life in state NGT by Neumann et al. (2014) in "Health-related quality of life for pre-diabetic states and type 2 diabetes mellitus: a cross-sectional study in Västerbotten Sweden" PMID: 25342083. | C21: 0.768 | D21: vQoLNGT | F21: Metformin Tx | G21: ='2. Strategy Calcs'!K130 -> 118078.4447 | H21: ='2. Strategy Calcs'!M130 -> 22.15864156 | I21: ='2. Strategy Calcs'!O130 -> 29.06469101
B22: Quality of life in state IFG by Neumann et al. (2014) in "Health-related quality of life for pre-diabetic states and type 2 diabetes mellitus: a cross-sectional study in Västerbotten Sweden" PMID: 25342083. | C22: 0.759 | D22: vQoLIFG | F22: Lifestyle Tx - Standard of care | G22: ='1. Strategy Calcs'!K130 -> 122169.8793 | H22: ='1. Strategy Calcs'!M130 -> 22.13723614 | I22: ='1. Strategy Calcs'!O130 -> 29.04542443
B23: Quality of life in state IGT by Neumann et al. (2014) in "Health-related quality of life for pre-diabetic states and type 2 diabetes mellitus: a cross-sectional study in Västerbotten Sweden" PMID: 25342083. | C23: 0.746 | D23: vQoLIGT | F23: Tirzepatide Tx | G23: ='3. Strategy Calcs'!K130 -> 138800.7983 | H23: ='3. Strategy Calcs'!M130 -> 22.35403711 | I23: ='3. Strategy Calcs'!O130 -> 29.26089283
B24: Quality of life in state combined by Neumann et al. (2014) in "Health-related quality of life for pre-diabetic states and type 2 diabetes mellitus: a cross-sectional study in Västerbotten Sweden" PMID: 25342083. | C24: 0.745 | D24: vQoLCombined | F24: Semaglutide Tx | G24: ='4. Strategy Calcs'!K130 -> 158810.9664 | H24: ='4. Strategy Calcs'!M130 -> 22.34247745 | I24: ='4. Strategy Calcs'!O130 -> 29.2501834
B25: Quality of life in state T2D by Neumann et al. (2014) in "Health-related quality of life for pre-diabetic states and type 2 diabetes mellitus: a cross-sectional study in Västerbotten Sweden" PMID: 25342083. | C25: 0.738 | D25: vQoLT2D
B26: Quality of life in state Death. | C26: 0 | D26: vQoLDeath
B27: Annual cost in state NGT, based on Neumann et al. (2011) from Liebl et al. (2007) in "Kosten in der Früh- und Spätphase des Diabetes mellitus" PMID: 22099547. | C27: 3380.85 | D27: cNGT | F27: Category | G27: Strategy | H27: Cost | I27: Incr. Cost | J27: Eff | K27: Incr. Eff | L27: ICER | M27: NMB | N27: CE
B28: Annual cost in state T2D, based on Neumann et al. (2011) from Liebl et al. (2007) in "Kosten in der Früh- und Spätphase des Diabetes mellitus" PMID: 22099547. | C28: 8295.71 | D28: cT2D | F28: Undominated | G28: Metformin Tx | H28: 118078.4447 | J28: 22.15864156 | M28: =J28*WTP - H28 -> 402649.632 | N28: 5328.776333
B29: Annual cost in state IGT, based on assumption, that they estimate to 46% of T2D costs by Neumann (2011) Estimating the cost-effectiveness of lifestyle intervention programmes to prevent diabetes based on an example from Germany: Markov modelling | C29: 3816.03 | D29: cIGT | F29: Undominated | G29: Tirzepatide Tx | H29: 138800.7983 | I29: 20722.3536 | J29: 22.35403711 | K29: 0.1953955457 | L29: 106053.3572 | M29: =J29*WTP - H29 -> 386519.0737 | N29: 6209.20497
B30: Annual cost in state IFG, based on assumption, that they estimate to 46% of T2D costs by Neumann (2011) Estimating the cost-effectiveness of lifestyle intervention programmes to prevent diabetes based on an example from Germany: Markov modelling | C30: 3816.03 | D30: cIFG | F30: Abs. dominated | G30: Lifestyle Tx - Standard of care | H30: 122169.8793 | J30: 22.13723614 | M30: =J30*WTP - H30 -> 398055.1699 | N30: 5518.750334
B31: Annual cost in state Combined, based on assumption, that they estimate to 46% of T2D costs (estimation by Palmer et al) by Neumann (2011) Estimating the cost-effectiveness of lifestyle intervention programmes to prevent diabetes based on an example from Germany: Markov modelling | C31: 3816.03 | D31: cCombined | F31: Abs. dominated | G31: Semaglutide Tx | H31: 158810.9664 | J31: 22.34247745 | M31: =J31*WTP - H31 -> 366237.2536 | N31: 7108.028497
B32: Transition prob from Combined to IFG. 10 year probability by Neumann et al. (2013) in "Risk equations for the development of worsened glucose status and type 2 diabetes mellitus in a Swedish intervention program" PMID: 24502249. | C32: 0.012569 | D32: pCombinedToIFG
B33: Transition prob from Combined to IGT. 10 year probability by Neumann et al. (2013) in "Risk equations for the development of worsened glucose status and type 2 diabetes mellitus in a Swedish intervention program" PMID: 24502249. | C33: 0.008752 | D33: pCombinedToIGT
B34: Transition prob from IFG to Combined. 10 year probability by Neumann et al. (2013) in "Risk equations for the development of worsened glucose status and type 2 diabetes mellitus in a Swedish intervention program" PMID: 24502249. | C34: 0.006301 | D34: pIFGToCombined
B35: Transition prob from IFG to IGT. 10 year probability by Neumann et al. (2013) in "Risk equations for the development of worsened glucose status and type 2 diabetes mellitus in a Swedish intervention program" PMID: 24502249. | C35: 0.004419 | D35: pIFGToIGT
B36: Transition prob from IGT to Combined. 10 year probability by Neumann et al. (2013) in "Risk equations for the development of worsened glucose status and type 2 diabetes mellitus in a Swedish intervention program" PMID: 24502249. | C36: 0.008204 | D36: pIGTToCombined
B37: Transition prob from IGT to IFG. 10 year probability by Neumann et al. (2013) in "Risk equations for the development of worsened glucose status and type 2 diabetes mellitus in a Swedish intervention program" PMID: 24502249. | C37: 0.063178 | D37: pIGTToIFG
B38: Transition prob from NGT to T2D. Based on Neumann et al. (2013) in "Risk equations for the development of worsened glucose status and type 2 diabetes mellitus in a Swedish intervention program" PMID: 24502249. | C38: 0.003139 | D38: pNGTToT2D
B39: Riskfactor age. Age in years. | C39: 50 | D39: rAge
B40: Riskfactor blood pressure. 0 = SYS < 140 & DIA < 90; 1 = SYS > 140 & DIA > 90 | C40: 0 | D40: rBloodPressure
B41: Riskfactor BMI. 1 = <25, 2 = >25 &<30, 3 = >30 | C41: 1 | D41: rBMI
B42: Riskfactor education. 1 = >12 years education, 2 = 10-12 years, 3 = <10 years | C42: 2 | D42: rEducation
B43: Riskfactor five a day. 1 = yes, 2 = no | C43: 2 | D43: rFiveADay
B44: Riskfactor gender. 1 = male, 2 = female | C44: 1 | D44: rGender
B45: Risk factor heredity. 1 = no heredity, 2 = yes | C45: 1 | D45: rHeredity
B46: Riskfactor marital status. 1 = married, 2 = single | C46: 1 | D46: rMaritalStatus
B47: Risk factor physical activity. 0 = activ, 1 = decently active, 2 = sitting | C47: 1 | D47: rPhysicalActivity
B48: Riskfactor smoking. 1 = never, 2 = in the past , 3 = currently | C48: 1 | D48: rSmoking
B49: Riskfactor snus. 1 = no use, 2 = <4 doses/week , 3 = > 4 doses/week | C49: 1 | D49: rSnus
B50: Riskfactor triglyceride. 0 = <1,69mmol/l , 1 = >1,69mmol/l | C50: 0 | D50: rTriglyceride
B51: Annual cost of Tirzepatide intervention with 15mg application dosag eper week. Taken from shop-Apotheke.de in August 2024. | C51: 4146 | D51: cTirzepatideTx
B52: Annual cost of Semaglutide intervention with 2,4mg application dosage per week. Taken from shop-Apotheke.de in August 2024. | C52: 6615.6 | D52: cSemaglutideTx
B53: Annual cost of Lifestyle intervention adapted from Neumann (2011) Estimating the cost-effectiveness of lifestyle intervention programmes to prevent diabetes based on an example from Germany: Markov modelling | C53: 376.95 | D53: cLifestyleTx
B54: Annual cost of Metformin intervention with 2x 850mg per day. Taken from shop-Apotheke.de in August 2024. | C54: 69.92 | D54: cMetforminTx
B55: T2D remission probability under Tirzepatide taken from D. Vasdeki (2022) in "Remission as an Emerging Therapeutic Target in Type 2 Diabetes in the Era of New Glucose-Lowering Agents: Benefits, Challenges, and Treatment Approaches". | C55: 0.1387854834 | D55: vRemissionTirzepatide
B56: T2D remission probability under Semaglutide taken from D. Vasdeki (2022) in "Remission as an Emerging Therapeutic Target in Type 2 Diabetes in the Era of New Glucose-Lowering Agents: Benefits, Challenges, and Treatment Approaches". | C56: 0.1227108948 | D56: vRemissionSemaglutide
B57: Transition prob from T2D to NGT. 10 year probability by Neumann et al. (2013) in "Risk equations for the development of worsened glucose status and type 2 diabetes mellitus in a Swedish intervention program" PMID: 24502249. | C57: 0.023253 | D57: pT2DToNGTDefault
B58: Risk factor perceived health. 1 = very good, pretty good , 2 = somewhat good, pretty bad, bad | C58: 1 | D58: rPerceivedHealth
B59: Parameter distributions
C60: 8.5 | D60: distProfiles

Sheet 1. Strategy Calcs
B1: Strategy | C1: 1 | D1: Lifestyle Tx - Standard of care
B2: States | C2: All
S3: NGT - State 1.1 | AJ3: T2D - State 1.2 | BA3: IFG - State 1.3 | BR3: IGT - State 1.4 | CI3: Combined - State 1.5 | CZ3: Death - State 1.6
D4: Cohort State Proportions | S4: Cohort % | AA4: Payoff 1 - Total direct treatment costs | AD4: Payoff 2 - Quality adjusted life-years | AG4: Payoff 3 - Life expectancy | AJ4: Cohort % | AR4: Payoff 1 - Total direct treatment costs | AU4: Payoff 2 - Quality adjusted life-years | AX4: Payoff 3 - Life expectancy | BA4: Cohort % | BI4: Payoff 1 - Total direct treatment costs | BL4: Payoff 2 - Quality adjusted life-years | BO4: Payoff 3 - Life expectancy | BR4: Cohort % | BZ4: Payoff 1 - Total direct treatment costs | CC4: Payoff 2 - Quality adjusted life-years | CF4: Payoff 3 - Life expectancy | CI4: Cohort % | CQ4: Payoff 1 - Total direct treatment costs | CT4: Payoff 2 - Quality adjusted life-years | CW4: Payoff 3 - Life expectancy | CZ4: Cohort % | DB4: Payoff 2 - Quality adjusted life-years
B5: Cycle | D5: NGT | E5: T2D | F5: IFG | G5: IGT | H5: Combined | I5: Death | J5: Payoff 1 - Total direct treatment costs | L5: Payoff 2 - Quality adjusted life-years | N5: Payoff 3 - Life expectancy | Q5: Checksum of Cohort % | S5: 1.1 State | T5: 1.1.1 Transition | U5: 1.1.1.1 Transition | V5: 1.1.1.2 Transition | W5: 1.1.1.3 Transition | X5: 1.1.1.4 Transition | Y5: 1.1.1.5 Transition | Z5: 1.1.2 Transition | AA5: 1.1 State before WCC | AB5: 1.1 State after WCC | AC5: State/Trans | AD5: 1.1 State before WCC | AE5: 1.1 State after WCC | AF5: State/Trans | AG5: 1.1 State before WCC | AH5: 1.1 State after WCC | AI5: State/Trans | AJ5: 1.2 State | AK5: 1.2.1 Transition | AL5: 1.2.1.1 Transition | AM5: 1.2.1.2 Transition | AN5: 1.2.1.3 Transition | AO5: 1.2.1.4 Transition | AP5: 1.2.1.5 Transition | AQ5: 1.2.2 Transition | AR5: 1.2 State before WCC | AS5: 1.2 State after WCC | AT5: State/Trans | AU5: 1.2 State before WCC | AV5: 1.2 State after WCC | AW5: State/Trans | AX5: 1.2 State before WCC | AY5: 1.2 State after WCC | AZ5: State/Trans | BA5: 1.3 State | BB5: 1.3.1 Transition | BC5: 1.3.1.1 Transition | BD5: 1.3.1.2 Transition | BE5: 1.3.1.3 Transition | BF5: 1.3.1.4 Transition | BG5: 1.3.1.5 Transition | BH5: 1.3.2 Transition | BI5: 1.3 State before WCC | BJ5: 1.3 State after WCC | BK5: State/Trans | BL5: 1.3 State before WCC | BM5: 1.3 State after WCC | BN5: State/Trans | BO5: 1.3 State before WCC | BP5: 1.3 State after WCC | BQ5: State/Trans | BR5: 1.4 State | BS5: 1.4.1 Transition | BT5: 1.4.1.1 Transition | BU5: 1.4.1.2 Transition | BV5: 1.4.1.3 Transition | BW5: 1.4.1.4 Transition | BX5: 1.4.1.5 Transition | BY5: 1.4.2 Transition | BZ5: 1.4 State before WCC | CA5: 1.4 State after WCC | CB5: State/Trans | CC5: 1.4 State before WCC | CD5: 1.4 State after WCC | CE5: State/Trans | CF5: 1.4 State before WCC | CG5: 1.4 State after WCC | CH5: State/Trans | CI5: 1.5 State | CJ5: 1.5.1 Transition | CK5: 1.5.1.1 Transition | CL5: 1.5.1.2 Transition | CM5: 1.5.1.3 Transition | CN5: 1.5.1.4 Transition | CO5: 1.5.1.5 Transition | CP5: 1.5.2 Transition | CQ5: 1.5 State before WCC | CR5: 1.5 State after WCC | CS5: State/Trans | CT5: 1.5 State before WCC | CU5: 1.5 State after WCC | CV5: State/Trans | CW5: 1.5 State before WCC | CX5: 1.5 State after WCC | CY5: State/Trans | CZ5: 1.6 State | DA5: 1.6.1 Transition | DB5: 1.6 State before WCC | DC5: 1.6 State after WCC | DD5: State/Trans | DF5: HazardRatioIGTToDeath | DG5: HazardRatioT2DToDeath | DH5: pCombinedToDeath | DI5: pIFGToDeath | DJ5: pIFGToNGT | DK5: pIGTToDeath | DL5: pIGTToNGT | DM5: pNGTToCombined | DN5: pNGTToDeath | DO5: pNGTToIFG | DP5: pNGTToIGT | DQ5: pT2DToDeath
J6: WCC Disc | K6: Cum Disc | L6: WCC Disc | M6: Cum Disc | N6: WCC Disc | O6: Cum Disc | S6: NGT | T6: Alive | U6: Stay in NGT | V6: IFG | W6: To Combined | X6: T2D | Y6: IGT | Z6: Death | AA6: NGT | AB6: NGT | AC6: State Total | AD6: NGT | AE6: NGT | AF6: State Total | AG6: NGT | AH6: NGT | AI6: State Total | AJ6: T2D | AK6: Alive | AL6: Stay in T2D | AM6: IFG | AN6: To Combined | AO6: NGT | AP6: IGT | AQ6: Death | AR6: T2D | AS6: T2D | AT6: State Total | AU6: T2D | AV6: T2D | AW6: State Total | AX6: T2D | AY6: T2D | AZ6: State Total | BA6: IFG | BB6: Alive | BC6: Stay in IFG | BD6: To Combined | BE6: T2D | BF6: NGT | BG6: IGT | BH6: Death | BI6: IFG | BJ6: IFG | BK6: State Total | BL6: IFG | BM6: IFG | BN6: State Total | BO6: IFG | BP6: IFG | BQ6: State Total | BR6: IGT | BS6: Alive | BT6: Stay in IGT | BU6: IFG | BV6: To Combined | BW6: NGT | BX6: T2D | BY6: Death | BZ6: IGT | CA6: IGT | CB6: State Total | CC6: IGT | CD6: IGT | CE6: State Total | CF6: IGT | CG6: IGT | CH6: State Total | CI6: Combined | CJ6: Alive | CK6: Stay in Combined | CL6: IFG | CM6: T2D | CN6: NGT | CO6: IGT | CP6: Death | CQ6: Combined | CR6: Combined | CS6: State Total | CT6: Combined | CU6: Combined | CV6: State Total | CW6: Combined | CX6: Combined | CY6: State Total | CZ6: Death | DA6: Stay in Death | DB6: Death | DC6: Death | DD6: State Total
B8: 0 | D8: =0.8807 -> 0.8807 | E8: =0.018 -> 0.018 | F8: =0.0671 -> 0.0671 | G8: =0.0275 -> 0.0275 | H8: =0.0067 -> 0.0067 | I8: =0 -> 0 | J8: ='1. Strategy Calcs'!AC8 + '1. Strategy Calcs'!AT8 + '1. Strategy Calcs'!BK8 + '1. Strategy Calcs'!CB8 + '1. Strategy Calcs'!CS8 -> 3626.923716 | K8: =J8 -> 3626.923716 | L8: ='1. Strategy Calcs'!AF8 + '1. Strategy Calcs'!AW8 + '1. Strategy Calcs'!BN8 + '1. Strategy Calcs'!CE8 + '1. Strategy Calcs'!CV8 + '1. Strategy Calcs'!DD8 -> 0.7644235616 | M8: =L8 -> 0.7644235616 | N8: ='1. Strategy Calcs'!AI8 + '1. Strategy Calcs'!AZ8 + '1. Strategy Calcs'!BQ8 + '1. Strategy Calcs'!CH8 + '1. Strategy Calcs'!CY8 -> 0.9981131607 | O8: =N8 -> 0.9981131607 | Q8: =SUM(D8:I8) -> 1 | S8: ='1. Strategy Calcs'!D8 -> 0.8807 | T8: =S8*(1-(INDEX(pNGTToDeath_1,cycle+1))) -> 0.877706542 | U8: =T8*(1-(INDEX(pNGTToIFG_1,cycle+1))-(INDEX(pNGTToCombined_1,cycle+1))-(pNGTToT2D)-(INDEX(pNGTToIGT_1,cycle+1))) -> 0.8534467761 | V8: =T8*(INDEX(pNGTToIFG_1,cycle+1)) -> 0.01643317539 | W8: =T8*(INDEX(pNGTToCombined_1,cycle+1)) -> 0.001639562016 | X8: =T8*(pNGTToT2D) -> 0.002755120835 | Y8: =T8*(INDEX(pNGTToIGT_1,cycle+1)) -> 0.00343190765 | Z8: =S8*(INDEX(pNGTToDeath_1,cycle+1)) -> 0.002993457995 | AA8: =(S8*(cNGT))*'Time Discounting'!C5 -> 2977.514595 | AB8: =(AA8 + AA9)/2 -> 2945.144627 | AC8: =SUM(AB8:AB8) -> 2945.144627 | AD8: =(S8*(vQoLNGT))*'Time Discounting'!E5 -> 0.6763776 | AE8: =(AD8 + AD9)/2 -> 0.6690243795 | AF8: =SUM(AE8:AE8) -> 0.6690243795 | AG8: =(S8*(1))*'Time Discounting'!G5 -> 0.8807 | AH8: =(AG8 + AG9)/2 -> 0.8711254942 | AI8: =SUM(AH8:AH8) -> 0.8711254942 | AJ8: ='1. Strategy Calcs'!E8 -> 0.018 | AK8: =AJ8*(1-(INDEX(pT2DToDeath_1,cycle+1))) -> 0.01787735014 | AL8: =AK8*(1-((1-EXP((-(-LN(1-(1/(1+EXP((-1)*((((-0.34)+(0.57*rBMI))-(0.68*rBloodPressure))-(0.385*rSmoking))))))))/10)))-((1-EXP((-(-LN(1-(1/(1+EXP((-1)*(((((-6.8)+(1.22*rGender))+(1.49*rPhysicalActivity))+(0.63*rEducation))-(1.07*rPerceivedHealth))))))))/10)))-(pT2DToNGTDefault)-((1-EXP((-(-LN(1-(1/(1+EXP((-1)*(((-3.37)+(1.42*rHeredity))+(1.13*rPerceivedHealth))))))))/10)))) -> 0.01571273679 | AM8: =AK8*((1-EXP((-(-LN(1-(1/(1+EXP((-1)*((((-0.34)+(0.57*rBMI))-(0.68*rBloodPressure))-(0.385*rSmoking))))))))/10))) -> 0.001072461645 | AN8: =AK8*((1-EXP((-(-LN(1-(1/(1+EXP((-1)*(((((-6.8)+(1.22*rGender))+(1.49*rPhysicalActivity))+(0.63*rEducation))-(1.07*rPerceivedHealth))))))))/10))) -> 3.578992054e-05 | AO8: =AK8*(pT2DToNGTDefault) -> 0.0004157020227 | AP8: =AK8*((1-EXP((-(-LN(1-(1/(1+EXP((-1)*(((-3.37)+(1.42*rHeredity))+(1.13*rPerceivedHealth))))))))/10))) -> 0.0006406597609 | AQ8: =AJ8*(INDEX(pT2DToDeath_1,cycle+1)) -> 0.000122649863 | AR8: =(AJ8*((cT2D+cLifestyleTx)))*'Time Discounting'!C5 -> 156.10788 | AS8: =(AR8 + AR9)/2 -> 289.0880412 | AT8: =SUM(AS8:AS8) -> 289.0880412 | AU8: =(AJ8*(vQoLT2D))*'Time Discounting'!E5 -> 0.013284 | AV8: =(AU8 + AU9)/2 -> 0.02459994678 | AW8: =SUM(AV8:AV8) -> 0.02459994678 | AX8: =(AJ8*(1))*'Time Discounting'!G5 -> 0.018 | AY8: =(AX8 + AX9)/2 -> 0.03333326122 | AZ8: =SUM(AY8:AY8) -> 0.03333326122 | BA8: ='1. Strategy Calcs'!F8 -> 0.0671 | BB8: =BA8*(1-(INDEX(pIFGToDeath_1,cycle+1))) -> 0.06666443239 | BC8: =BB8*(1-(pIFGToCombined)-(((1-EXP((-(-LN(1-(1/(1+EXP((-1)*(((((((((-6.98)+(0.44*rGender))+(0.05*(rAge+cycle)))+(0.48*rHeredity))+(0.36*rMaritalStatus))+(0.51*rFiveADay))+(0.3*rTriglyceride))+(0.61*rBloodPressure))+(0.57*rBMI))))))))/10))*(InterpolateTable(tFactorsIntervention,2,1))))-(INDEX(pIFGToNGT_1,cycle+1))-(pIFGToIGT)) -> 0.05829220699 | BD8: =BB8*(pIFGToCombined) -> 0.0004200525885 | BE8: =BB8*(((1-EXP((-(-LN(1-(1/(1+EXP((-1)*(((((((((-6.98)+(0.44*rGender))+(0.05*(rAge+cycle)))+(0.48*rHeredity))+(0.36*rMaritalStatus))+(0.51*rFiveADay))+(0.3*rTriglyceride))+(0.61*rBloodPressure))+(0.57*rBMI))))))))/10))*(InterpolateTable(tFactorsIntervention,2,1)))) -> 0.001203810232 | BF8: =BB8*(INDEX(pIFGToNGT_1,cycle+1)) -> 0.00645377245 | BG8: =BB8*(pIFGToIGT) -> 0.0002945901267 | BH8: =BA8*(INDEX(pIFGToDeath_1,cycle+1)) -> 0.0004355676143 | BI8: =(BA8*((cLifestyleTx+cIFG)))*'Time Discounting'!C5 -> 281.348958 | BJ8: =(BI8 + BI9)/2 -> 303.3780923 | BK8: =SUM(BJ8:BJ8) -> 303.3780923 | BL8: =(BA8*(vQoLIFG))*'Time Discounting'!E5 -> 0.0509289 | BM8: =(BL8 + BL9)/2 -> 0.05491654433 | BN8: =SUM(BM8:BM8) -> 0.05491654433 | BO8: =(BA8*(1))*'Time Discounting'!G5 -> 0.0671 | BP8: =(BO8 + BO9)/2 -> 0.07235381334 | BQ8: =SUM(BP8:BP8) -> 0.07235381334 | BR8: ='1. Strategy Calcs'!G8 -> 0.0275 | BS8: =BR8*(1-(INDEX(pIGTToDeath_1,cycle+1))) -> 0.02732148868 | BT8: =BS8*(1-(pIGTToIFG)-(pIGTToCombined)-(INDEX(pIGTToNGT_1,cycle+1))-(((1-EXP((-(-LN(1-(1/(1+EXP((-1)*(((((((-6.54)+(0.75*rGender))+(0.07*(rAge+cycle)))+(0.87*rFiveADay))+(0.56*rTriglyceride))+(0.35*rBloodPressure))+(0.35*rBMI))))))))/10))*(InterpolateTable(tFactorsIntervention,2,1))))) -> 0.02282183452 | BU8: =BS8*(pIGTToIFG) -> 0.001726117012 | BV8: =BS8*(pIGTToCombined) -> 0.0002241454932 | BW8: =BS8*(INDEX(pIGTToNGT_1,cycle+1)) -> 0.0009631012275 | BX8: =BS8*(((1-EXP((-(-LN(1-(1/(1+EXP((-1)*(((((((-6.54)+(0.75*rGender))+(0.07*(rAge+cycle)))+(0.87*rFiveADay))+(0.56*rTriglyceride))+(0.35*rBloodPressure))+(0.35*rBMI))))))))/10))*(InterpolateTable(tFactorsIntervention,2,1)))) -> 0.001586290426 | BY8: =BR8*(INDEX(pIGTToDeath_1,cycle+1)) -> 0.0001785113173 | BZ8: =(BR8*((cLifestyleTx+cIGT)))*'Time Discounting'!C5 -> 115.30695 | CA8: =(BZ8 + BZ9)/2 -> 57.653475 | CB8: =SUM(CA8:CA8) -> 57.653475 | CC8: =(BR8*(vQoLIGT))*'Time Discounting'!E5 -> 0.020515 | CD8: =(CC8 + CC9)/2 -> 0.0102575 | CE8: =SUM(CD8:CD8) -> 0.0102575 | CF8: =(BR8*(1))*'Time Discounting'!G5 -> 0.0275 | CG8: =(CF8 + CF9)/2 -> 0.01375 | CH8: =SUM(CG8:CG8) -> 0.01375 | CI8: ='1. Strategy Calcs'!H8 -> 0.0067 | CJ8: =CI8*(1-(INDEX(pCombinedToDeath_1,cycle+1))) -> 0.006656508152 | CK8: =CJ8*(1-(pCombinedToIFG)-(((1-EXP((-(-LN(1-(1/(1+EXP((-1)*((((((-0.55)-(0.61*rGender))+(0.71*rBMI))+(0.87*rHeredity))-(1.06*rFiveADay))+(0.42*rSmoking))))))))/10))*(InterpolateTable(tFactorsIntervention,2,1))))-((1-EXP((-(-LN(1-(1/(1+EXP((-1)*(((((-0.61)+(0.81*rGender))+(1.15*rSnus))-(1.24*rSmoking))-(0.77*rBMI))))))))/10)))-(pCombinedToIGT)) -> 0.006081633836 | CL8: =CJ8*(pCombinedToIFG) -> 8.366565096e-05 | CM8: =CJ8*(((1-EXP((-(-LN(1-(1/(1+EXP((-1)*((((((-0.55)-(0.61*rGender))+(0.71*rBMI))+(0.87*rHeredity))-(1.06*rFiveADay))+(0.42*rSmoking))))))))/10))*(InterpolateTable(tFactorsIntervention,2,1)))) -> 0.0001613143304 | CN8: =CJ8*((1-EXP((-(-LN(1-(1/(1+EXP((-1)*(((((-0.61)+(0.81*rGender))+(1.15*rSnus))-(1.24*rSmoking))-(0.77*rBMI))))))))/10))) -> 0.0002716365755 | CO8: =CJ8*(pCombinedToIGT) -> 5.825775934e-05 | CP8: =CI8*(INDEX(pCombinedToDeath_1,cycle+1)) -> 4.349184822e-05 | CQ8: =(CI8*((cLifestyleTx+cCombined)))*'Time Discounting'!C5 -> 28.092966 | CR8: =(CQ8 + CQ9)/2 -> 31.65948094 | CS8: =SUM(CR8:CR8) -> 31.65948094 | CT8: =(CI8*(vQoLCombined))*'Time Discounting'!E5 -> 0.0049915 | CU8: =(CT8 + CT9)/2 -> 0.005625190985 | CV8: =SUM(CU8:CU8) -> 0.005625190985 | CW8: =(CI8*(1))*'Time Discounting'!G5 -> 0.0067 | CX8: =(CW8 + CW9)/2 -> 0.007550591927 | CY8: =SUM(CX8:CX8) -> 0.007550591927 | CZ8: ='1. Strategy Calcs'!I8 -> 0 | DA8: =CZ8*(1) -> 0 | DB8: =(CZ8*(vQoLDeath))*'Time Discounting'!E5 -> 0 | DC8: =(DB8 + DB9)/2 -> 0 | DD8: =SUM(DC8:DC8) -> 0 | DF8: =IF(cycle<50,(((-0.0002)*((rAge+cycle)^2))+(0.0019*(rAge+cycle)))+2.3148,1.14) -> 1.9098 | DG8: =IF(cycle<50,(((-0.0002)*((rAge+cycle)^2))+(0.0019*(rAge+cycle)))+2.4097,1.19) -> 2.0047 | DH8: =IF(rGender=1,INDEX(HazardRatioIGTToDeath_1,cycle+1)*(InterpolateTable(tMortalityWithoutDiabetes,rAge+cycle,1)),INDEX(HazardRatioIGTToDeath_1,cycle+1)*(InterpolateTable(tMortalityWithoutDiabetes,rAge+cycle,2))) -> 0.00649132063 | DI8: 0.00649132063 | DJ8: =1-EXP((-(-LN(1-(1/(1+EXP((-1)*((((((2.84-(0.43*rHeredity))-(0.02*(rAge+cycle)))-(0.23*rEducation))-(0.25*rBloodPressure))-(0.38*rBMI))-(0.26*rTriglyceride))))))))/10) -> 0.09680983126 | DK8: =IF(rGender=1,INDEX(HazardRatioIGTToDeath_1,cycle+1)*(InterpolateTable(tMortalityWithoutDiabetes,rAge+cycle,1)),INDEX(HazardRatioIGTToDeath_1,cycle+1)*(InterpolateTable(tMortalityWithoutDiabetes,rAge+cycle,2))) -> 0.00649132063 | DL8: =1-EXP((-(-LN(1-(1/(1+EXP((-1)*((((((3.06+(0.72*rGender))-(0.07*(rAge+cycle)))-(0.23*rEducation))-(0.37*rBMI))-(0.29*rPerceivedHealth))-(0.49*rTriglyceride))))))))/10) -> 0.03525068632 | DM8: =1-EXP((-(-LN(1-(1/(1+EXP((-1)*((((((((((-6.2)+(0.16*rGender))+(0.04*(rAge+cycle)))-(0.24*rSnus))+(0.32*rHeredity))+(0.15*rPhysicalActivity))+(0.2*rTriglyceride))+(0.6*rBloodPressure))+(0.5*rBMI))-(0.33*rFiveADay))))))))/10) -> 0.001868007058 | DN8: =IF(rGender=1,InterpolateTable(tMortalityWithoutDiabetes,rAge+cycle,1),InterpolateTable(tMortalityWithoutDiabetes,rAge+cycle,2)) -> 0.0033989531 | DO8: =1-EXP((-(-LN(1-(1/(1+EXP((-1)*((((((((((-3.07)+(0.29*rGender))+(0.01*(rAge+cycle)))+(0.11*rEducation))+(0.19*rHeredity))-(0.09*rSnus))+(0.15*rTriglyceride))+(0.12*rBloodPressure))+(0.16*rBMI))+(0.23*rSmoking))))))))/10) -> 0.0187228585 | DP8: =1-EXP((-(-LN(1-(1/(1+EXP((-1)*((((((((((-7.29)+(0.51*rGender))+(0.06*(rAge+cycle)))+(0.09*rEducation))+(0.14*rPhysicalActivity))+(0.15*rHeredity))+(0.41*rTriglyceride))+(0.34*rBloodPressure))+(0.21*rBMI))-(0.12*rSmoking))))))))/10) -> 0.003910085531 | DQ8: =IF(rGender=1,INDEX(HazardRatioT2DToDeath_1,cycle+1)*(InterpolateTable(tMortalityWithoutDiabetes,rAge+cycle,1)),INDEX(HazardRatioT2DToDeath_1,cycle+1)*(InterpolateTable(tMortalityWithoutDiabetes,rAge+cycle,2))) -> 0.00681388128
B9: 1 | D9: ='1. Strategy Calcs'!S9 -> 0.8615509884 | E9: ='1. Strategy Calcs'!AJ9 -> 0.04866652243 | F9: ='1. Strategy Calcs'!BA9 -> 0.07760762669 | G9: ='1. Strategy Calcs'!BR9 -> 0 | H9: ='1. Strategy Calcs'!CI9 -> 0.008401183853 | I9: ='1. Strategy Calcs'!CZ9 -> 0.003773678638 | J9: ='1. Strategy Calcs'!AC9 + '1. Strategy Calcs'!AT9 + '1. Strategy Calcs'!BK9 + '1. Strategy Calcs'!CB9 + '1. Strategy Calcs'!CS9 -> 3702.836399 | K9: =K8 + J9 -> 7329.760115 | L9: ='1. Strategy Calcs'!AF9 + '1. Strategy Calcs'!AW9 + '1. Strategy Calcs'!BN9 + '1. Strategy Calcs'!CE9 + '1. Strategy Calcs'!CV9 + '1. Strategy Calcs'!DD9 -> 0.7610277944 | M9: =M8 + L9 -> 1.525451356 | N9: ='1. Strategy Calcs'!AI9 + '1. Strategy Calcs'!AZ9 + '1. Strategy Calcs'!BQ9 + '1. Strategy Calcs'!CH9 + '1. Strategy Calcs'!CY9 -> 0.9941336816 | O9: =O8 + N9 -> 1.992246842 | Q9: 1 | S9: =0 + U8 + '1. Strategy Calcs'!AO8 + '1. Strategy Calcs'!BF8 + '1. Strategy Calcs'!BW8 + '1. Strategy Calcs'!CN8 -> 0.8615509884 | T9: 0.8583341033 | U9: 0.8341965533 | V9: 0.01621610864 | W9: 0.001668113662 | X9: 0.00269431075 | Y9: 0.003559016959 | Z9: 0.003216885117 | AA9: =(S9*(cNGT))*'Time Discounting'!C6 -> 2912.774659 | AB9: 2881.469163 | AC9: 2881.469163 | AD9: =(S9*(vQoLNGT))*'Time Discounting'!E6 -> 0.6616711591 | AE9: 0.654559746 | AF9: 0.654559746 | AG9: =(S9*(1))*'Time Discounting'!G6 -> 0.8615509884 | AH9: 0.8522913359 | AI9: 0.8522913359 | AJ9: =0 + '1. Strategy Calcs'!X8 + '1. Strategy Calcs'!Y8 + AL8 + AP8 + '1. Strategy Calcs'!BE8 + '1. Strategy Calcs'!BG8 + '1. Strategy Calcs'!BT8 + '1. Strategy Calcs'!BX8 + '1. Strategy Calcs'!CM8 + '1. Strategy Calcs'!CO8 -> 0.04866652243 | AK9: 0.04830556866 | AL9: 0.04245666611 | AM9: 0.002897849472 | AN9: 9.670630438e-05 | AO9: 0.001123249388 | AP9: 0.001731097385 | AQ9: 0.0003609537739 | AR9: =(AJ9*((cT2D+cLifestyleTx)))*'Time Discounting'!C6 -> 422.0682024 | AS9: 438.7462025 | AT9: 438.7462025 | AU9: =(AJ9*(vQoLT2D))*'Time Discounting'!E6 -> 0.03591589356 | AV9: 0.03733510797 | AW9: 0.03733510797 | AX9: =(AJ9*(1))*'Time Discounting'!G6 -> 0.04866652243 | AY9: 0.05058957719 | AZ9: 0.05058957719 | BA9: =0 + '1. Strategy Calcs'!V8 + '1. Strategy Calcs'!AM8 + BC8 + '1. Strategy Calcs'!BU8 + '1. Strategy Calcs'!CL8 -> 0.07760762669 | BB9: 0.07705951973 | BC9: 0.06740612246 | BD9: 0.0004855520338 | BE9: 0.001455849813 | BF9: 0.007371469408 | BG9: 0.0003405260177 | BH9: 0.000548106957 | BI9: =(BA9*((cLifestyleTx+cIFG)))*'Time Discounting'!C6 -> 325.4072266 | BJ9: 344.3119113 | BK9: 344.3119113 | BL9: =(BA9*(vQoLIFG))*'Time Discounting'!E6 -> 0.05890418866 | BM9: 0.06232625499 | BN9: 0.06232625499 | BO9: =(BA9*(1))*'Time Discounting'!G6 -> 0.07760762669 | BP9: 0.08211627799 | BQ9: 0.08211627799 | BR9: =0 -> 0 | BS9: 0 | BT9: 0 | BU9: 0 | BV9: 0 | BW9: 0 | BX9: 0 | BY9: 0 | BZ9: =(BR9*((cLifestyleTx+cIGT)))*'Time Discounting'!C6 -> 0 | CA9: 0 | CB9: 0 | CC9: =(BR9*(vQoLIGT))*'Time Discounting'!E6 -> 0 | CD9: 0 | CE9: 0 | CF9: =(BR9*(1))*'Time Discounting'!G6 -> 0 | CG9: 0 | CH9: 0 | CI9: =0 + '1. Strategy Calcs'!W8 + '1. Strategy Calcs'!AN8 + '1. Strategy Calcs'!BD8 + '1. Strategy Calcs'!BV8 + CK8 -> 0.008401183853 | CJ9: 0.008341850158 | CK9: 0.007621425079 | CL9: 0.0001048487146 | CM9: 0.0002021570381 | CN9: 0.0003404114527 | CO9: 7.300787258e-05 | CP9: 5.933369584e-05 | CQ9: =(CI9*((cLifestyleTx+cCombined)))*'Time Discounting'!C6 -> 35.22599587 | CR9: 38.3091218 | CS9: 38.3091218 | CT9: =(CI9*(vQoLCombined))*'Time Discounting'!E6 -> 0.006258881971 | CU9: 0.006806685398 | CV9: 0.006806685398 | CW9: =(CI9*(1))*'Time Discounting'!G6 -> 0.008401183853 | CX9: 0.009136490466 | CY9: 0.009136490466 | CZ9: =0 + '1. Strategy Calcs'!Z8 + '1. Strategy Calcs'!AQ8 + '1. Strategy Calcs'!BH8 + '1. Strategy Calcs'!BY8 + '1. Strategy Calcs'!CP8 + DA8 -> 0.003773678638 | DA9: 0.003773678638 | DB9: =(CZ9*(vQoLDeath))*'Time Discounting'!E6 -> 0 | DC9: 0 | DD9: 0 | DF9: 1.8915 | DG9: 1.9864 | DH9: 0.007062539861 | DI9: 0.007062539861 | DJ9: 0.09565942578 | DK9: 0.007062539861 | DL9: 0.03326161498 | DM9: 0.001943431649 | DN9: 0.00373383022 | DO9: 0.01889253681 | DP9: 0.004146423805 | DQ9: 0.007416880349
B10: 2 | D10: ='1. Strategy Calcs'!S10 -> 0.8430316835 | E10: ='1. Strategy Calcs'!AJ10 -> 0.05251263195 | F10: ='1. Strategy Calcs'!BA10 -> 0.08662492929 | G10: ='1. Strategy Calcs'!BR10 -> 0 | H10: ='1. Strategy Calcs'!CI10 -> 0.00987179708 | I10: ='1. Strategy Calcs'!CZ10 -> 0.007958958181 | J10: ='1. Strategy Calcs'!AC10 + '1. Strategy Calcs'!AT10 + '1. Strategy Calcs'!BK10 + '1. Strategy Calcs'!CB10 + '1. Strategy Calcs'!CS10 -> 3716.293212 | K10: 11046.05333 | L10: ='1. Strategy Calcs'!AF10 + '1. Strategy Calcs'!AW10 + '1. Strategy Calcs'!BN10 + '1. Strategy Calcs'!CE10 + '1. Strategy Calcs'!CV10 + '1. Strategy Calcs'!DD10 -> 0.757406269 | M10: 2.282857625 | N10: ='1. Strategy Calcs'!AI10 + '1. Strategy Calcs'!AZ10 + '1. Strategy Calcs'!BQ10 + '1. Strategy Calcs'!CH10 + '1. Strategy Calcs'!CY10 -> 0.9897107363 | O10: 2.981957579 | Q10: 1 | S10: =0 + U9 + '1. Strategy Calcs'!AO9 + '1. Strategy Calcs'!BF9 + '1. Strategy Calcs'!BW9 + '1. Strategy Calcs'!CN9 -> 0.8430316835 | T10: 0.839545646 | U10: 0.8155168723 | V10: 0.01600475681 | W10: 0.001697450344 | X10: 0.002635333783 | Y10: 0.003691232752 | Z10: 0.003486037529 | AA10: =(S10*(cNGT))*'Time Discounting'!C7 -> 2850.163667 | AB10: 2820.108058 | AC10: 2820.108058 | AD10: =(S10*(vQoLNGT))*'Time Discounting'!E7 -> 0.6474483329 | AE10: 0.6406208465 | AF10: 0.6406208465 | AG10: =(S10*(1))*'Time Discounting'!G7 -> 0.8430316835 | AH10: 0.8341417272 | AI10: 0.8341417272 | AJ10: =0 + '1. Strategy Calcs'!X9 + '1. Strategy Calcs'!Y9 + AL9 + AP9 + '1. Strategy Calcs'!BE9 + '1. Strategy Calcs'!BG9 + '1. Strategy Calcs'!BT9 + '1. Strategy Calcs'!BX9 + '1. Strategy Calcs'!CM9 + '1. Strategy Calcs'!CO9 -> 0.05251263195 | AK10: 0.05208535365 | AL10: 0.0457787897 | AM10: 0.003124598649 | AN10: 0.0001042733209 | AO10: 0.001211140728 | AP10: 0.001866551249 | AQ10: 0.0004272782957 | AR10: =(AJ10*((cT2D+cLifestyleTx)))*'Time Discounting'!C7 -> 455.4242026 | AS10: 472.1659994 | AT10: 472.1659994 | AU10: =(AJ10*(vQoLT2D))*'Time Discounting'!E7 -> 0.03875432238 | AV10: 0.04017896557 | AW10: 0.04017896557 | AX10: =(AJ10*(1))*'Time Discounting'!G7 -> 0.05251263195 | AY10: 0.05444304278 | AZ10: 0.05444304278 | BA10: =0 + '1. Strategy Calcs'!V9 + '1. Strategy Calcs'!AM9 + BC9 + '1. Strategy Calcs'!BU9 + '1. Strategy Calcs'!CL9 -> 0.08662492929 | BB10: 0.08595408387 | BC10: 0.07521001855 | BD10: 0.0005415966825 | BE10: 0.001698604955 | BF10: 0.008124032591 | BG10: 0.0003798310966 | BH10: 0.0006708454138 | BI10: =(BA10*((cLifestyleTx+cIFG)))*'Time Discounting'!C7 -> 363.216596 | BJ10: 379.6479673 | BK10: 379.6479673 | BL10: =(BA10*(vQoLIFG))*'Time Discounting'!E7 -> 0.06574832133 | BM10: 0.06872267627 | BN10: 0.06872267627 | BO10: =(BA10*(1))*'Time Discounting'!G7 -> 0.08662492929 | BP10: 0.09054371051 | BQ10: 0.09054371051 | BR10: =0 -> 0 | BS10: 0 | BT10: 0 | BU10: 0 | BV10: 0 | BW10: 0 | BX10: 0 | BY10: 0 | BZ10: =(BR10*((cLifestyleTx+cIGT)))*'Time Discounting'!C7 -> 0 | CA10: 0 | CB10: 0 | CC10: =(BR10*(vQoLIGT))*'Time Discounting'!E7 -> 0 | CD10: 0 | CE10: 0 | CF10: =(BR10*(1))*'Time Discounting'!G7 -> 0 | CG10: 0 | CH10: 0 | CI10: =0 + '1. Strategy Calcs'!W9 + '1. Strategy Calcs'!AN9 + '1. Strategy Calcs'!BD9 + '1. Strategy Calcs'!BV9 + CK9 -> 0.00987179708 | CJ10: 0.00979534738 | CK10: 0.008949394292 | CL10: 0.0001231177212 | CM10: 0.0002373812016 | CN10: 0.000399725285 | CO10: 8.572888027e-05 | CP10: 7.644969931e-05 | CQ10: =(CI10*((cLifestyleTx+cCombined)))*'Time Discounting'!C7 -> 41.39224772 | CR10: 44.37118717 | CS10: 44.37118717 | CT10: =(CI10*(vQoLCombined))*'Time Discounting'!E7 -> 0.007354488824 | CU10: 0.007883780616 | CV10: 0.007883780616 | CW10: =(CI10*(1))*'Time Discounting'!G7 -> 0.00987179708 | CX10: 0.01058225586 | CY10: 0.01058225586 | CZ10: =0 + '1. Strategy Calcs'!Z9 + '1. Strategy Calcs'!AQ9 + '1. Strategy Calcs'!BH9 + '1. Strategy Calcs'!BY9 + '1. Strategy Calcs'!CP9 + DA9 -> 0.007958958181 | DA10: 0.007958958181 | DB10: =(CZ10*(vQoLDeath))*'Time Discounting'!E7 -> 0 | DC10: 0 | DD10: 0 | DF10: 1.8728 | DG10: 1.9677 | DH10: 0.007744253523 | DI10: 0.007744253523 | DJ10: 0.09451595812 | DK10: 0.007744253523 | DL10: 0.03136556267 | DM10: 0.002021867843 | DN10: 0.00413512042 | DO10: 0.01906359336 | DP10: 0.004396702871 | DQ10: 0.00813667645
B11: 3 | D11: ='1. Strategy Calcs'!S11 -> 0.8252517709 | E11: ='1. Strategy Calcs'!AJ11 -> 0.05637345362 | F11: ='1. Strategy Calcs'!BA11 -> 0.09446249173 | G11: ='1. Strategy Calcs'!BR11 -> 0 | H11: ='1. Strategy Calcs'!CI11 -> 0.01129271464 | I11: ='1. Strategy Calcs'!CZ11 -> 0.01261956912 | J11: ='1. Strategy Calcs'!AC11 + '1. Strategy Calcs'!AT11 + '1. Strategy Calcs'!BK11 + '1. Strategy Calcs'!CB11 + '1. Strategy Calcs'!CS11 -> 3727.376756 | K11: 14773.43008 | L11: ='1. Strategy Calcs'!AF11 + '1. Strategy Calcs'!AW11 + '1. Strategy Calcs'!BN11 + '1. Strategy Calcs'!CE11 + '1. Strategy Calcs'!CV11 + '1. Strategy Calcs'!DD11 -> 0.7534528986 | M11: 3.036310524 | N11: ='1. Strategy Calcs'!AI11 + '1. Strategy Calcs'!AZ11 + '1. Strategy Calcs'!BQ11 + '1. Strategy Calcs'!CH11 + '1. Strategy Calcs'!CY11 -> 0.9848418158 | O11: 3.966799394 | Q11: 1 | S11: =0 + U10 + '1. Strategy Calcs'!AO10 + '1. Strategy Calcs'!BF10 + '1. Strategy Calcs'!BW10 + '1. Strategy Calcs'!CN10 -> 0.8252517709 | T11: 0.8215475477 | U11: 0.7976075104 | V11: 0.01580331872 | W11: 0.001728070324 | X11: 0.002578837752 | Y11: 0.00382981059 | Z11: 0.003704223151 | AA11: =(S11*(cNGT))*'Time Discounting'!C8 -> 2790.05245 | AB11: 2761.077868 | AC11: 2761.077868 | AD11: =(S11*(vQoLNGT))*'Time Discounting'!E8 -> 0.63379336 | AE11: 0.6272114416 | AF11: 0.6272114416 | AG11: =(S11*(1))*'Time Discounting'!G8 -> 0.8252517709 | AH11: 0.8166815646 | AI11: 0.8166815646 | AJ11: =0 + '1. Strategy Calcs'!X10 + '1. Strategy Calcs'!Y10 + AL10 + AP10 + '1. Strategy Calcs'!BE10 + '1. Strategy Calcs'!BG10 + '1. Strategy Calcs'!BT10 + '1. Strategy Calcs'!BX10 + '1. Strategy Calcs'!CM10 + '1. Strategy Calcs'!CO10 -> 0.05637345362 | AK11: 0.05588038426 | AL11: 0.04911431295 | AM11: 0.00335226241 | AN11: 0.0001118708588 | AO11: 0.001299386575 | AP11: 0.00200255146 | AQ11: 0.0004930693614 | AR11: =(AJ11*((cT2D+cLifestyleTx)))*'Time Discounting'!C8 -> 488.9077963 | AS11: 505.695405 | AT11: 505.695405 | AU11: =(AJ11*(vQoLT2D))*'Time Discounting'!E8 -> 0.04160360877 | AV11: 0.04303215033 | AW11: 0.04303215033 | AX11: =(AJ11*(1))*'Time Discounting'!G8 -> 0.05637345362 | AY11: 0.05830914678 | AZ11: 0.05830914678 | BA11: =0 + '1. Strategy Calcs'!V10 + '1. Strategy Calcs'!AM10 + BC10 + '1. Strategy Calcs'!BU10 + '1. Strategy Calcs'!CL10 -> 0.09446249173 | BB11: 0.09367651529 | BC11: 0.0819888689 | BD11: 0.0005902557229 | BE11: 0.001935967729 | BF11: 0.008747466417 | BG11: 0.0004139565211 | BH11: 0.0007859764325 | BI11: =(BA11*((cLifestyleTx+cIFG)))*'Time Discounting'!C8 -> 396.0793386 | BJ11: 410.3830932 | BK11: 410.3830932 | BL11: =(BA11*(vQoLIFG))*'Time Discounting'!E8 -> 0.07169703122 | BM11: 0.07428625173 | BN11: 0.07428625173 | BO11: =(BA11*(1))*'Time Discounting'!G8 -> 0.09446249173 | BP11: 0.09787384944 | BQ11: 0.09787384944 | BR11: =0 -> 0 | BS11: 0 | BT11: 0 | BU11: 0 | BV11: 0 | BW11: 0 | BX11: 0 | BY11: 0 | BZ11: =(BR11*((cLifestyleTx+cIGT)))*'Time Discounting'!C8 -> 0 | CA11: 0 | CB11: 0 | CC11: =(BR11*(vQoLIGT))*'Time Discounting'!E8 -> 0 | CD11: 0 | CE11: 0 | CF11: =(BR11*(1))*'Time Discounting'!G8 -> 0 | CG11: 0 | CH11: 0 | CI11: =0 + '1. Strategy Calcs'!W10 + '1. Strategy Calcs'!AN10 + '1. Strategy Calcs'!BD10 + '1. Strategy Calcs'!BV10 + CK10 -> 0.01129271464 | CJ11: 0.01119875346 | CK11: 0.01023159837 | CL11: 0.0001407571322 | CM11: 0.0002713914523 | CN11: 0.0004569950144 | CO11: 9.801149025e-05 | CP11: 9.3961184e-05 | CQ11: =(CI11*((cLifestyleTx+cCombined)))*'Time Discounting'!C8 -> 47.35012663 | CR11: 50.22039049 | CS11: 50.22039049 | CT11: =(CI11*(vQoLCombined))*'Time Discounting'!E8 -> 0.008413072407 | CU11: 0.008923054942 | CV11: 0.008923054942 | CW11: =(CI11*(1))*'Time Discounting'!G8 -> 0.01129271464 | CX11: 0.01197725496 | CY11: 0.01197725496 | CZ11: =0 + '1. Strategy Calcs'!Z10 + '1. Strategy Calcs'!AQ10 + '1. Strategy Calcs'!BH10 + '1. Strategy Calcs'!BY10 + '1. Strategy Calcs'!CP10 + DA10 -> 0.01261956912 | DA11: 0.01261956912 | DB11: =(CZ11*(vQoLDeath))*'Time Discounting'!E8 -> 0 | DC11: 0 | DD11: 0 | DF11: 1.8537 | DG11: 1.9486 | DH11: 0.008320513445 | DI11: 0.008320513445 | DJ11: 0.09337950275 | DK11: 0.008320513445 | DL11: 0.02956014156 | DM11: 0.002103433123 | DN11: 0.00448859764 | DO11: 0.01923603662 | DP11: 0.004661702905 | DQ11: 0.008746481361
B12: 4 | D12: ='1. Strategy Calcs'!S12 -> 0.8081113584 | E12: ='1. Strategy Calcs'!AJ12 -> 0.06024483995 | F12: ='1. Strategy Calcs'!BA12 -> 0.1012852072 | G12: ='1. Strategy Calcs'!BR12 -> 0 | H12: ='1. Strategy Calcs'!CI12 -> 0.01266179527 | I12: ='1. Strategy Calcs'!CZ12 -> 0.01769679925 | J12: ='1. Strategy Calcs'!AC12 + '1. Strategy Calcs'!AT12 + '1. Strategy Calcs'!BK12 + '1. Strategy Calcs'!CB12 + '1. Strategy Calcs'!CS12 -> 3735.88627 | K12: 18509.31635 | L12: ='1. Strategy Calcs'!AF12 + '1. Strategy Calcs'!AW12 + '1. Strategy Calcs'!BN12 + '1. Strategy Calcs'!CE12 + '1. Strategy Calcs'!CV12 + '1. Strategy Calcs'!DD12 -> 0.7491164348 | M12: 3.785426958 | N12: ='1. Strategy Calcs'!AI12 + '1. Strategy Calcs'!AZ12 + '1. Strategy Calcs'!BQ12 + '1. Strategy Calcs'!CH12 + '1. Strategy Calcs'!CY12 -> 0.9794610198 | O12: 4.946260414 | Q12: 1 | S12: =0 + U11 + '1. Strategy Calcs'!AO11 + '1. Strategy Calcs'!BF11 + '1. Strategy Calcs'!BW11 + '1. Strategy Calcs'!CN11 -> 0.8081113584 | T12: 0.8040581768 | U12: 0.7801942391 | V12: 0.01560666875 | W12: 0.001759479767 | X12: 0.002523938617 | Y12: 0.003973850607 | Z12: 0.00405318152 | AA12: =(S12*(cNGT))*'Time Discounting'!C9 -> 2732.103286 | AB12: 2703.771358 | AC12: 2703.771358 | AD12: =(S12*(vQoLNGT))*'Time Discounting'!E9 -> 0.6206295232 | AE12: 0.6141935913 | AF12: 0.6141935913 | AG12: =(S12*(1))*'Time Discounting'!G9 -> 0.8081113584 | AH12: 0.7997312387 | AI12: 0.7997312387 | AJ12: =0 + '1. Strategy Calcs'!X11 + '1. Strategy Calcs'!Y11 + AL11 + AP11 + '1. Strategy Calcs'!BE11 + '1. Strategy Calcs'!BG11 + '1. Strategy Calcs'!BT11 + '1. Strategy Calcs'!BX11 + '1. Strategy Calcs'!CM11 + '1. Strategy Calcs'!CO11 -> 0.06024483995 | AK12: 0.05966193272 | AL12: 0.0524379865 | AM12: 0.003579117378 | AN12: 0.0001194414057 | AO12: 0.001387318922 | AP12: 0.00213806852 | AQ12: 0.0005829072256 | AR12: =(AJ12*((cT2D+cLifestyleTx)))*'Time Discounting'!C9 -> 522.4830136 | AS12: 539.1983002 | AT12: 539.1983002 | AU12: =(AJ12*(vQoLT2D))*'Time Discounting'!E9 -> 0.04446069188 | AV12: 0.04588307918 | AW12: 0.04588307918 | AX12: =(AJ12*(1))*'Time Discounting'!G9 -> 0.06024483995 | AY12: 0.06217219402 | AZ12: 0.06217219402 | BA12: =0 + '1. Strategy Calcs'!V11 + '1. Strategy Calcs'!AM11 + BC11 + '1. Strategy Calcs'!BU11 + '1. Strategy Calcs'!CL11 -> 0.1012852072 | BB12: 0.1003534182 | BC12: 0.08785159192 | BD12: 0.0006323268882 | BE12: 0.002168421486 | BF12: 0.009257616165 | BG12: 0.0004434617551 | BH12: 0.000931788943 | BI12: =(BA12*((cLifestyleTx+cIFG)))*'Time Discounting'!C9 -> 424.6868479 | BJ12: 437.0767955 | BK12: 437.0767955 | BL12: =(BA12*(vQoLIFG))*'Time Discounting'!E9 -> 0.07687547224 | BM12: 0.07911826141 | BN12: 0.07911826141 | BO12: =(BA12*(1))*'Time Discounting'!G9 -> 0.1012852072 | BP12: 0.1042401336 | BQ12: 0.1042401336 | BR12: =0 -> 0 | BS12: 0 | BT12: 0 | BU12: 0 | BV12: 0 | BW12: 0 | BX12: 0 | BY12: 0 | BZ12: =(BR12*((cLifestyleTx+cIGT)))*'Time Discounting'!C9 -> 0 | CA12: 0 | CB12: 0 | CC12: =(BR12*(vQoLIGT))*'Time Discounting'!E9 -> 0 | CD12: 0 | CE12: 0 | CF12: =(BR12*(1))*'Time Discounting'!G9 -> 0 | CG12: 0 | CH12: 0 | CI12: =0 + '1. Strategy Calcs'!W11 + '1. Strategy Calcs'!AN11 + '1. Strategy Calcs'!BD11 + '1. Strategy Calcs'!BV11 + CK11 -> 0.01266179527 | CJ12: 0.01254531113 | CK12: 0.01146186362 | CL12: 0.0001576820156 | CM12: 0.0003040240344 | CN12: 0.0005119448929 | CO12: 0.000109796563 | CP12: 0.0001164841458 | CQ12: =(CI12*((cLifestyleTx+cCombined)))*'Time Discounting'!C9 -> 53.09065434 | CR12: 55.83981608 | CS12: 55.83981608 | CT12: =(CI12*(vQoLCombined))*'Time Discounting'!E9 -> 0.009433037478 | CU12: 0.009921502841 | CV12: 0.009921502841 | CW12: =(CI12*(1))*'Time Discounting'!G9 -> 0.01266179527 | CX12: 0.01331745348 | CY12: 0.01331745348 | CZ12: =0 + '1. Strategy Calcs'!Z11 + '1. Strategy Calcs'!AQ11 + '1. Strategy Calcs'!BH11 + '1. Strategy Calcs'!BY11 + '1. Strategy Calcs'!CP11 + DA11 -> 0.01769679925 | DA12: 0.01769679925 | DB12: =(CZ12*(vQoLDeath))*'Time Discounting'!E9 -> 0 | DC12: 0 | DD12: 0 | DF12: 1.8342 | DG12: 1.9291 | DH12: 0.009199654808 | DI12: 0.009199654808 | DJ12: 0.09225013287 | DK12: 0.009199654808 | DL12: 0.02784282761 | DM12: 0.002188249331 | DN12: 0.00501562251 | DO12: 0.01940987506 | DP12: 0.004942242641 | DQ12: 0.009675637384
B13: 5 | D13: ='1. Strategy Calcs'!S13 -> 0.7913511191 | E13: ='1. Strategy Calcs'!AJ13 -> 0.06409954808 | F13: ='1. Strategy Calcs'!BA13 -> 0.1071950601 | G13: ='1. Strategy Calcs'!BR13 -> 0 | H13: ='1. Strategy Calcs'!CI13 -> 0.01397311168 | I13: ='1. Strategy Calcs'!CZ13 -> 0.02338116108 | J13: ='1. Strategy Calcs'!AC13 + '1. Strategy Calcs'!AT13 + '1. Strategy Calcs'!BK13 + '1. Strategy Calcs'!CB13 + '1. Strategy Calcs'!CS13 -> 3741.042499 | K13: 22250.35885 | L13: ='1. Strategy Calcs'!AF13 + '1. Strategy Calcs'!AW13 + '1. Strategy Calcs'!BN13 + '1. Strategy Calcs'!CE13 + '1. Strategy Calcs'!CV13 + '1. Strategy Calcs'!DD13 -> 0.7442407574 | M13: 4.529667716 | N13: ='1. Strategy Calcs'!AI13 + '1. Strategy Calcs'!AZ13 + '1. Strategy Calcs'!BQ13 + '1. Strategy Calcs'!CH13 + '1. Strategy Calcs'!CY13 -> 0.9733647447 | O13: 5.919625159 | Q13: 1 | S13: =0 + U12 + '1. Strategy Calcs'!AO12 + '1. Strategy Calcs'!BF12 + '1. Strategy Calcs'!BW12 + '1. Strategy Calcs'!CN12 -> 0.7913511191 | T13: 0.7868077003 | U13: 0.7630148395 | V13: 0.01540972099 | W13: 0.001791122731 | X13: 0.002469789371 | Y13: 0.004122227682 | Z13: 0.00454341877 | AA13: =(S13*(cNGT))*'Time Discounting'!C10 -> 2675.439431 | AB13: 2647.325752 | AC13: 2647.325752 | AD13: =(S13*(vQoLNGT))*'Time Discounting'!E10 -> 0.6077576595 | AE13: 0.6013713052 | AF13: 0.6013713052 | AG13: =(S13*(1))*'Time Discounting'!G10 -> 0.7913511191 | AH13: 0.7830355537 | AI13: 0.7830355537 | AJ13: =0 + '1. Strategy Calcs'!X12 + '1. Strategy Calcs'!Y12 + AL12 + AP12 + '1. Strategy Calcs'!BE12 + '1. Strategy Calcs'!BG12 + '1. Strategy Calcs'!BT12 + '1. Strategy Calcs'!BX12 + '1. Strategy Calcs'!CM12 + '1. Strategy Calcs'!CO12 -> 0.06409954808 | AK13: 0.063396929 | AL13: 0.05572074445 | AM13: 0.003803179681 | AN13: 0.0001269187566 | AO13: 0.00147416879 | AP13: 0.002271917318 | AQ13: 0.000702619082 | AR13: =(AJ13*((cT2D+cLifestyleTx)))*'Time Discounting'!C10 -> 555.9135867 | AS13: 572.4175841 | AT13: 572.4175841 | AU13: =(AJ13*(vQoLT2D))*'Time Discounting'!E10 -> 0.04730546649 | AV13: 0.04870987414 | AW13: 0.04870987414 | AX13: =(AJ13*(1))*'Time Discounting'!G10 -> 0.06409954808 | AY13: 0.06600253949 | AZ13: 0.06600253949 | BA13: =0 + '1. Strategy Calcs'!V12 + '1. Strategy Calcs'!AM12 + BC12 + '1. Strategy Calcs'!BU12 + '1. Strategy Calcs'!CL12 -> 0.1071950601 | BB13: 0.1060784606 | BC13: 0.09287861561 | BD13: 0.0006684003802 | BE13: 0.002395974382 | BF13: 0.009666709508 | BG13: 0.0004687607174 | BH13: 0.001116599476 | BI13: =(BA13*((cLifestyleTx+cIFG)))*'Time Discounting'!C10 -> 449.466743 | BJ13: 460.0964815 | BK13: 460.0964815 | BL13: =(BA13*(vQoLIFG))*'Time Discounting'!E10 -> 0.08136105059 | BM13: 0.0832852123 | BN13: 0.0832852123 | BO13: =(BA13*(1))*'Time Discounting'!G10 -> 0.1071950601 | BP13: 0.1097301875 | BQ13: 0.1097301875 | BR13: =0 -> 0 | BS13: 0 | BT13: 0 | BU13: 0 | BV13: 0 | BW13: 0 | BX13: 0 | BY13: 0 | BZ13: =(BR13*((cLifestyleTx+cIGT)))*'Time Discounting'!C10 -> 0 | CA13: 0 | CB13: 0 | CC13: =(BR13*(vQoLIGT))*'Time Discounting'!E10 -> 0 | CD13: 0 | CE13: 0 | CF13: =(BR13*(1))*'Time Discounting'!G10 -> 0 | CG13: 0 | CH13: 0 | CI13: =0 + '1. Strategy Calcs'!W12 + '1. Strategy Calcs'!AN12 + '1. Strategy Calcs'!BD12 + '1. Strategy Calcs'!BV12 + CK12 -> 0.01397311168 | CJ13: 0.01382756049 | CK13: 0.01263337441 | CL13: 0.0001737986078 | CM13: 0.000335098164 | CN13: 0.0005642704992 | CO13: 0.0001210188094 | CP13: 0.0001455511958 | CQ13: =(CI13*((cLifestyleTx+cCombined)))*'Time Discounting'!C10 -> 58.58897782 | CR13: 61.20268153 | CS13: 61.20268153 | CT13: =(CI13*(vQoLCombined))*'Time Discounting'!E10 -> 0.0104099682 | CU13: 0.01087436566 | CV13: 0.01087436566 | CW13: =(CI13*(1))*'Time Discounting'!G10 -> 0.01397311168 | CX13: 0.01459646398 | CY13: 0.01459646398 | CZ13: =0 + '1. Strategy Calcs'!Z12 + '1. Strategy Calcs'!AQ12 + '1. Strategy Calcs'!BH12 + '1. Strategy Calcs'!BY12 + '1. Strategy Calcs'!CP12 + DA12 -> 0.02338116108 | DA13: 0.02338116108 | DB13: =(CZ13*(vQoLDeath))*'Time Discounting'!E10 -> 0 | DC13: 0 | DD13: 0 | DF13: 1.8143 | DG13: 1.9092 | DH13: 0.01041651989 | DI13: 0.01041651989 | DJ13: 0.09112792035 | DK13: 0.01041651989 | DL13: 0.02621098224 | DM13: 0.002276442808 | DN13: 0.00574134371 | DO13: 0.01958511715 | DP13: 0.005239180654 | DQ13: 0.01096137341
B14: 6 | D14: ='1. Strategy Calcs'!S14 -> 0.7747199883 | E14: ='1. Strategy Calcs'!AJ14 -> 0.0679055309 | F14: ='1. Strategy Calcs'!BA14 -> 0.1122653149 | G14: ='1. Strategy Calcs'!BR14 -> 0 | H14: ='1. Strategy Calcs'!CI14 -> 0.01521981627 | I14: ='1. Strategy Calcs'!CZ14 -> 0.02988934961 | J14: ='1. Strategy Calcs'!AC14 + '1. Strategy Calcs'!AT14 + '1. Strategy Calcs'!BK14 + '1. Strategy Calcs'!CB14 + '1. Strategy Calcs'!CS14 -> 3742.682461 | K14: 25993.04131 | L14: ='1. Strategy Calcs'!AF14 + '1. Strategy Calcs'!AW14 + '1. Strategy Calcs'!BN14 + '1. Strategy Calcs'!CE14 + '1. Strategy Calcs'!CV14 + '1. Strategy Calcs'!DD14 -> 0.7387886284 | M14: 5.268456344 | N14: ='1. Strategy Calcs'!AI14 + '1. Strategy Calcs'!AZ14 + '1. Strategy Calcs'!BQ14 + '1. Strategy Calcs'!CH14 + '1. Strategy Calcs'!CY14 -> 0.9665049623 | O14: 6.886130121 | Q14: 1 | S14: =0 + U13 + '1. Strategy Calcs'!AO13 + '1. Strategy Calcs'!BF13 + '1. Strategy Calcs'!BW13 + '1. Strategy Calcs'!CN13 -> 0.7747199883 | T14: 0.7697833252 | U14: 0.7460568076 | V14: 0.01521228208 | W14: 0.001822958182 | X14: 0.002416349858 | Y14: 0.004274927508 | Z14: 0.004936663117 | AA14: =(S14*(cNGT))*'Time Discounting'!C11 -> 2619.212073 | AB14: 2591.3211 | AC14: 2591.3211 | AD14: =(S14*(vQoLNGT))*'Time Discounting'!E11 -> 0.594984951 | AE14: 0.5886491874 | AF14: 0.5886491874 | AG14: =(S14*(1))*'Time Discounting'!G11 -> 0.7747199883 | AH14: 0.7664702961 | AI14: 0.7664702961 | AJ14: =0 + '1. Strategy Calcs'!X13 + '1. Strategy Calcs'!Y13 + AL13 + AP13 + '1. Strategy Calcs'!BE13 + '1. Strategy Calcs'!BG13 + '1. Strategy Calcs'!BT13 + '1. Strategy Calcs'!BX13 + '1. Strategy Calcs'!CM13 + '1. Strategy Calcs'!CO13 -> 0.0679055309 | AK14: 0.06708819072 | AL14: 0.0589650633 | AM14: 0.00402461835 | AN14: 0.0001343085523 | AO14: 0.001560001699 | AP14: 0.002404198827 | AQ14: 0.0008173401739 | AR14: =(AJ14*((cT2D+cLifestyleTx)))*'Time Discounting'!C11 -> 588.9215816 | AS14: 605.2322984 | AT14: 605.2322984 | AU14: =(AJ14*(vQoLT2D))*'Time Discounting'!E11 -> 0.0501142818 | AV14: 0.05150224224 | AW14: 0.05150224224 | AX14: =(AJ14*(1))*'Time Discounting'!G11 -> 0.0679055309 | AY14: 0.0697862361 | AZ14: 0.0697862361 | BA14: =0 + '1. Strategy Calcs'!V13 + '1. Strategy Calcs'!AM13 + BC13 + '1. Strategy Calcs'!BU13 + '1. Strategy Calcs'!CL13 -> 0.1122653149 | BB14: 0.1109819304 | BC14: 0.09718272495 | BD14: 0.0006992971438 | BE14: 0.002619669836 | BF14: 0.009989809367 | BG14: 0.0004904291507 | BH14: 0.001283384435 | BI14: =(BA14*((cLifestyleTx+cIFG)))*'Time Discounting'!C11 -> 470.72622 | BJ14: 479.8321598 | BK14: 479.8321598 | BL14: =(BA14*(vQoLIFG))*'Time Discounting'!E11 -> 0.085209374 | BM14: 0.08685770246 | BN14: 0.08685770246 | BO14: =(BA14*(1))*'Time Discounting'!G11 -> 0.1122653149 | BP14: 0.1144370256 | BQ14: 0.1144370256 | BR14: =0 -> 0 | BS14: 0 | BT14: 0 | BU14: 0 | BV14: 0 | BW14: 0 | BX14: 0 | BY14: 0 | BZ14: =(BR14*((cLifestyleTx+cIGT)))*'Time Discounting'!C11 -> 0 | CA14: 0 | CB14: 0 | CC14: =(BR14*(vQoLIGT))*'Time Discounting'!E11 -> 0 | CD14: 0 | CE14: 0 | CF14: =(BR14*(1))*'Time Discounting'!G11 -> 0 | CG14: 0 | CH14: 0 | CI14: =0 + '1. Strategy Calcs'!W13 + '1. Strategy Calcs'!AN13 + '1. Strategy Calcs'!BD13 + '1. Strategy Calcs'!BV13 + CK13 -> 0.01521981627 | CJ14: 0.01504582776 | CK14: 0.01374642877 | CL14: 0.0001891110091 | CM14: 0.0003646217468 | CN14: 0.0006139851458 | CO14: 0.0001316810845 | CP14: 0.000173988514 | CQ14: =(CI14*((cLifestyleTx+cCombined)))*'Time Discounting'!C11 -> 63.81638524 | CR14: 66.29690268 | CS14: 66.29690268 | CT14: =(CI14*(vQoLCombined))*'Time Discounting'!E11 -> 0.01133876312 | CU14: 0.01177949632 | CV14: 0.01177949632 | CW14: =(CI14*(1))*'Time Discounting'!G11 -> 0.01521981627 | CX14: 0.01581140446 | CY14: 0.01581140446 | CZ14: =0 + '1. Strategy Calcs'!Z13 + '1. Strategy Calcs'!AQ13 + '1. Strategy Calcs'!BH13 + '1. Strategy Calcs'!BY13 + '1. Strategy Calcs'!CP13 + DA13 -> 0.02988934961 | DA14: 0.02988934961 | DB14: =(CZ14*(vQoLDeath))*'Time Discounting'!E11 -> 0 | DC14: 0 | DD14: 0 | DF14: 1.794 | DG14: 1.8889 | DH14: 0.01143170922 | DI14: 0.01143170922 | DJ14: 0.09001293567 | DK14: 0.01143170922 | DL14: 0.02466187372 | DM14: 0.002368144545 | DN14: 0.0063721902 | DO14: 0.01976177138 | DP14: 0.005553416614 | DQ14: 0.01203643007
B15: 7 | D15: ='1. Strategy Calcs'!S15 -> 0.7582206038 | E15: ='1. Strategy Calcs'!AJ15 -> 0.07166694131 | F15: ='1. Strategy Calcs'!BA15 -> 0.1166087364 | G15: ='1. Strategy Calcs'!BR15 -> 0 | H15: ='1. Strategy Calcs'!CI15 -> 0.01640299265 | I15: ='1. Strategy Calcs'!CZ15 -> 0.03710072585 | J15: ='1. Strategy Calcs'!AC15 + '1. Strategy Calcs'!AT15 + '1. Strategy Calcs'!BK15 + '1. Strategy Calcs'!CB15 + '1. Strategy Calcs'!CS15 -> 3741.109783 | K15: 29734.1511 | L15: ='1. Strategy Calcs'!AF15 + '1. Strategy Calcs'!AW15 + '1. Strategy Calcs'!BN15 + '1. Strategy Calcs'!CE15 + '1. Strategy Calcs'!CV15 + '1. Strategy Calcs'!DD15 -> 0.7328110365 | M15: 6.001267381 | N15: ='1. Strategy Calcs'!AI15 + '1. Strategy Calcs'!AZ15 + '1. Strategy Calcs'!BQ15 + '1. Strategy Calcs'!CH15 + '1. Strategy Calcs'!CY15 -> 0.9589491856 | O15: 7.845079307 | Q15: 1 | S15: =0 + U14 + '1. Strategy Calcs'!AO14 + '1. Strategy Calcs'!BF14 + '1. Strategy Calcs'!BW14 + '1. Strategy Calcs'!CN14 -> 0.7582206038 | T15: 0.7529101505 | U15: 0.7292475178 | V15: 0.01501291262 | W15: 0.001854786874 | X15: 0.002363384962 | Y15: 0.004431548202 | Z15: 0.005310453345 | AA15: =(S15*(cNGT))*'Time Discounting'!C12 -> 2563.430128 | AB15: 2535.658144 | AC15: 2535.658144 | AD15: =(S15*(vQoLNGT))*'Time Discounting'!E12 -> 0.5823134237 | AE15: 0.5760046895 | AF15: 0.5760046895 | AG15: =(S15*(1))*'Time Discounting'!G12 -> 0.7582206038 | AH15: 0.7500061061 | AI15: 0.7500061061 | AJ15: =0 + '1. Strategy Calcs'!X14 + '1. Strategy Calcs'!Y14 + AL14 + AP14 + '1. Strategy Calcs'!BE14 + '1. Strategy Calcs'!BG14 + '1. Strategy Calcs'!BT14 + '1. Strategy Calcs'!BX14 + '1. Strategy Calcs'!CM14 + '1. Strategy Calcs'!CO14 -> 0.07166694131 | AK15: 0.07072921035 | AL15: 0.06216522342 | AM15: 0.004243042998 | AN15: 0.0001415977647 | AO15: 0.001644666328 | AP15: 0.002534679841 | AQ15: 0.0009377309564 | AR15: =(AJ15*((cT2D+cLifestyleTx)))*'Time Discounting'!C12 -> 621.5430152 | AS15: 637.6360571 | AT15: 637.6360571 | AU15: =(AJ15*(vQoLT2D))*'Time Discounting'!E12 -> 0.05289020268 | AV15: 0.05425964008 | AW15: 0.05425964008 | AX15: =(AJ15*(1))*'Time Discounting'!G12 -> 0.07166694131 | AY15: 0.07352254753 | AZ15: 0.07352254753 | BA15: =0 + '1. Strategy Calcs'!V14 + '1. Strategy Calcs'!AM14 + BC14 + '1. Strategy Calcs'!BU14 + '1. Strategy Calcs'!CL14 -> 0.1166087364 | BB15: 0.1151604671 | BC15: 0.1008475041 | BD15: 0.0007256261033 | BE15: 0.002840072897 | BF15: 0.01023836988 | BG15: 0.0005088941042 | BH15: 0.001448269282 | BI15: =(BA15*((cLifestyleTx+cIFG)))*'Time Discounting'!C12 -> 488.9380995 | BJ15: 496.6916155 | BK15: 496.6916155 | BL15: =(BA15*(vQoLIFG))*'Time Discounting'!E12 -> 0.08850603092 | BM15: 0.0899095479 | BN15: 0.0899095479 | BO15: =(BA15*(1))*'Time Discounting'!G12 -> 0.1166087364 | BP15: 0.1184579024 | BQ15: 0.1184579024 | BR15: =0 -> 0 | BS15: 0 | BT15: 0 | BU15: 0 | BV15: 0 | BW15: 0 | BX15: 0 | BY15: 0 | BZ15: =(BR15*((cLifestyleTx+cIGT)))*'Time Discounting'!C12 -> 0 | CA15: 0 | CB15: 0 | CC15: =(BR15*(vQoLIGT))*'Time Discounting'!E12 -> 0 | CD15: 0 | CE15: 0 | CF15: =(BR15*(1))*'Time Discounting'!G12 -> 0 | CG15: 0 | CH15: 0 | CI15: =0 + '1. Strategy Calcs'!W14 + '1. Strategy Calcs'!AN14 + '1. Strategy Calcs'!BD14 + '1. Strategy Calcs'!BV14 + CK14 -> 0.01640299265 | CJ15: 0.01619926906 | CK15: 0.01480025572 | CL15: 0.0002036086128 | CM15: 0.000392574332 | CN15: 0.0006610543957 | CO15: 0.0001417760028 | CP15: 0.0002037235898 | CQ15: =(CI15*((cLifestyleTx+cCombined)))*'Time Discounting'!C12 -> 68.77742013 | CR15: 71.12396647 | CS15: 71.12396647 | CT15: =(CI15*(vQoLCombined))*'Time Discounting'!E12 -> 0.01222022953 | CU15: 0.01263715902 | CV15: 0.01263715902 | CW15: =(CI15*(1))*'Time Discounting'!G12 -> 0.01640299265 | CX15: 0.01696262956 | CY15: 0.01696262956 | CZ15: =0 + '1. Strategy Calcs'!Z14 + '1. Strategy Calcs'!AQ14 + '1. Strategy Calcs'!BH14 + '1. Strategy Calcs'!BY14 + '1. Strategy Calcs'!CP14 + DA14 -> 0.03710072585 | DA15: 0.03710072585 | DB15: =(CZ15*(vQoLDeath))*'Time Discounting'!E12 -> 0 | DC15: 0 | DD15: 0 | DF15: 1.7733 | DG15: 1.8682 | DH15: 0.01241990374 | DI15: 0.01241990374 | DJ15: 0.08890524792 | DK15: 0.01241990374 | DL15: 0.02319269768 | DM15: 0.002463490329 | DN15: 0.00700383677 | DO15: 0.01993984623 | DP15: 0.005885892492 | DQ15: 0.01308456785
B16: 8 | D16: ='1. Strategy Calcs'!S16 -> 0.7417916084 | E16: ='1. Strategy Calcs'!AJ16 -> 0.07537815376 | F16: ='1. Strategy Calcs'!BA16 -> 0.1203070684 | G16: ='1. Strategy Calcs'!BR16 -> 0 | H16: ='1. Strategy Calcs'!CI16 -> 0.01752226646 | I16: ='1. Strategy Calcs'!CZ16 -> 0.04500090302 | J16: ='1. Strategy Calcs'!AC16 + '1. Strategy Calcs'!AT16 + '1. Strategy Calcs'!BK16 + '1. Strategy Calcs'!CB16 + '1. Strategy Calcs'!CS16 -> 3735.84628 | K16: 33469.99738 | L16: ='1. Strategy Calcs'!AF16 + '1. Strategy Calcs'!AW16 + '1. Strategy Calcs'!BN16 + '1. Strategy Calcs'!CE16 + '1. Strategy Calcs'!CV16 + '1. Strategy Calcs'!DD16 -> 0.7262172798 | M16: 6.72748466 | N16: ='1. Strategy Calcs'!AI16 + '1. Strategy Calcs'!AZ16 + '1. Strategy Calcs'!BQ16 + '1. Strategy Calcs'!CH16 + '1. Strategy Calcs'!CY16 -> 0.9505789417 | O16: 8.795658248 | Q16: 1 | S16: =0 + U15 + '1. Strategy Calcs'!AO15 + '1. Strategy Calcs'!BF15 + '1. Strategy Calcs'!BW15 + '1. Strategy Calcs'!CN15 -> 0.7417916084 | T16: 0.735949729 | U16: 0.712356237 | V16: 0.01480683031 | W16: 0.001885960154 | X16: 0.002310146199 | Y16: 0.004590555391 | Z16: 0.005841879351 | AA16: =(S16*(cNGT))*'Time Discounting'!C13 -> 2507.886159 | AB16: 2479.850224 | AC16: 2479.850224 | AD16: =(S16*(vQoLNGT))*'Time Discounting'!E13 -> 0.5696959553 | AE16: 0.5633272616 | AF16: 0.5633272616 | AG16: =(S16*(1))*'Time Discounting'!G13 -> 0.7417916084 | AH16: 0.7334990385 | AI16: 0.7334990385 | AJ16: =0 + '1. Strategy Calcs'!X15 + '1. Strategy Calcs'!Y15 + AL15 + AP15 + '1. Strategy Calcs'!BE15 + '1. Strategy Calcs'!BG15 + '1. Strategy Calcs'!BT15 + '1. Strategy Calcs'!BX15 + '1. Strategy Calcs'!CM15 + '1. Strategy Calcs'!CO15 -> 0.07537815376 | AK16: 0.07428165897 | AL16: 0.06528753683 | AM16: 0.004456154273 | AN16: 0.0001487096606 | AO16: 0.001727271416 | AP16: 0.002661986789 | AQ16: 0.001096494788 | AR16: =(AJ16*((cT2D+cLifestyleTx)))*'Time Discounting'!C13 -> 653.729099 | AS16: 669.4384908 | AT16: 669.4384908 | AU16: =(AJ16*(vQoLT2D))*'Time Discounting'!E13 -> 0.05562907748 | AV16: 0.05696586816 | AW16: 0.05696586816 | AX16: =(AJ16*(1))*'Time Discounting'!G13 -> 0.07537815376 | AY16: 0.07718952326 | AZ16: 0.07718952326 | BA16: =0 + '1. Strategy Calcs'!V15 + '1. Strategy Calcs'!AM15 + BC15 + '1. Strategy Calcs'!BU15 + '1. Strategy Calcs'!CL15 -> 0.1203070684 | BB16: 0.1186469254 | BC16: 0.1039008942 | BD16: 0.000747594277 | BE16: 0.003056351766 | BF16: 0.01041778435 | BG16: 0.0005243007634 | BH16: 0.001660142958 | BI16: =(BA16*((cLifestyleTx+cIFG)))*'Time Discounting'!C13 -> 504.4451315 | BJ16: 510.8897601 | BK16: 510.8897601 | BL16: =(BA16*(vQoLIFG))*'Time Discounting'!E13 -> 0.09131306489 | BM16: 0.0924796512 | BN16: 0.0924796512 | BO16: =(BA16*(1))*'Time Discounting'!G13 -> 0.1203070684 | BP16: 0.1218440727 | BQ16: 0.1218440727 | BR16: =0 -> 0 | BS16: 0 | BT16: 0 | BU16: 0 | BV16: 0 | BW16: 0 | BX16: 0 | BY16: 0 | BZ16: =(BR16*((cLifestyleTx+cIGT)))*'Time Discounting'!C13 -> 0 | CA16: 0 | CB16: 0 | CC16: =(BR16*(vQoLIGT))*'Time Discounting'!E13 -> 0 | CD16: 0 | CE16: 0 | CF16: =(BR16*(1))*'Time Discounting'!G13 -> 0 | CG16: 0 | CH16: 0 | CI16: =0 + '1. Strategy Calcs'!W15 + '1. Strategy Calcs'!AN15 + '1. Strategy Calcs'!BD15 + '1. Strategy Calcs'!BV15 + CK15 -> 0.01752226646 | CJ16: 0.01728047296 | CK16: 0.01578808388 | CL16: 0.0002171982646 | CM16: 0.0004187763104 | CN16: 0.0007051758055 | CO16: 0.0001512386993 | CP16: 0.0002417935011 | CQ16: =(CI16*((cLifestyleTx+cCombined)))*'Time Discounting'!C13 -> 73.47051282 | CR16: 75.66780523 | CS16: 75.66780523 | CT16: =(CI16*(vQoLCombined))*'Time Discounting'!E13 -> 0.01305408851 | CU16: 0.01344449888 | CV16: 0.01344449888 | CW16: =(CI16*(1))*'Time Discounting'!G13 -> 0.01752226646 | CX16: 0.01804630722 | CY16: 0.01804630722 | CZ16: =0 + '1. Strategy Calcs'!Z15 + '1. Strategy Calcs'!AQ15 + '1. Strategy Calcs'!BH15 + '1. Strategy Calcs'!BY15 + '1. Strategy Calcs'!CP15 + DA15 -> 0.04500090302 | DA16: 0.04500090302 | DB16: =(CZ16*(vQoLDeath))*'Time Discounting'!E13 -> 0 | DC16: 0 | DD16: 0 | DF16: 1.7522 | DG16: 1.8471 | DH16: 0.0137992138 | DI16: 0.0137992138 | DJ16: 0.08780492468 | DK16: 0.0137992138 | DL16: 0.02180059681 | DM16: 0.002562620896 | DN16: 0.00787536457 | DO16: 0.02011935018 | DP16: 0.006237593697 | DQ16: 0.0145465859
B17: 9 | D17: ='1. Strategy Calcs'!S17 -> 0.7252064686 | E17: ='1. Strategy Calcs'!AJ17 -> 0.07900089275 | F17: ='1. Strategy Calcs'!BA17 -> 0.1233810771 | G17: ='1. Strategy Calcs'!BR17 -> 0 | H17: ='1. Strategy Calcs'!CI17 -> 0.01857034797 | I17: ='1. Strategy Calcs'!CZ17 -> 0.05384121362 | J17: ='1. Strategy Calcs'!AC17 + '1. Strategy Calcs'!AT17 + '1. Strategy Calcs'!BK17 + '1. Strategy Calcs'!CB17 + '1. Strategy Calcs'!CS17 -> 3726.508627 | K17: 37196.506 | L17: ='1. Strategy Calcs'!AF17 + '1. Strategy Calcs'!AW17 + '1. Strategy Calcs'!BN17 + '1. Strategy Calcs'!CE17 + '1. Strategy Calcs'!CV17 + '1. Strategy Calcs'!DD17 -> 0.7189362953 | M17: 7.446420956 | N17: ='1. Strategy Calcs'!AI17 + '1. Strategy Calcs'!AZ17 + '1. Strategy Calcs'!BQ17 + '1. Strategy Calcs'!CH17 + '1. Strategy Calcs'!CY17 -> 0.9413013707 | O17: 9.736959619 | Q17: 1 | S17: =0 + U16 + '1. Strategy Calcs'!AO16 + '1. Strategy Calcs'!BF16 + '1. Strategy Calcs'!BW16 + '1. Strategy Calcs'!CN16 -> 0.7252064686 | T17: 0.7188884506 | U17: 0.6953703572 | V17: 0.01459364528 | W17: 0.001916328068 | X17: 0.002256590847 | Y17: 0.004751529261 | Z17: 0.006318017914 | AA17: =(S17*(cNGT))*'Time Discounting'!C14 -> 2451.814289 | AB17: 2423.50876 | AC17: 2423.50876 | AD17: =(S17*(vQoLNGT))*'Time Discounting'!E14 -> 0.5569585679 | AE17: 0.5505286326 | AF17: 0.5505286326 | AG17: =(S17*(1))*'Time Discounting'!G14 -> 0.7252064686 | AH17: 0.716834157 | AI17: 0.716834157 | AJ17: =0 + '1. Strategy Calcs'!X16 + '1. Strategy Calcs'!Y16 + AL16 + AP16 + '1. Strategy Calcs'!BE16 + '1. Strategy Calcs'!BG16 + '1. Strategy Calcs'!BT16 + '1. Strategy Calcs'!BX16 + '1. Strategy Calcs'!CM16 + '1. Strategy Calcs'!CO16 -> 0.07900089275 | AK17: 0.07774440919 | AL17: 0.06833101265 | AM17: 0.004663884545 | AN17: 0.0001556419831 | AO17: 0.001807790747 | AP17: 0.002786079269 | AQ17: 0.001256483558 | AR17: =(AJ17*((cT2D+cLifestyleTx)))*'Time Discounting'!C14 -> 685.1478825 | AS17: 700.4705679 | AT17: 700.4705679 | AU17: =(AJ17*(vQoLT2D))*'Time Discounting'!E14 -> 0.05830265885 | AV17: 0.05960654276 | AW17: 0.05960654276 | AX17: =(AJ17*(1))*'Time Discounting'!G14 -> 0.07900089275 | AY17: 0.08076767312 | AZ17: 0.08076767312 | BA17: =0 + '1. Strategy Calcs'!V16 + '1. Strategy Calcs'!AM16 + BC16 + '1. Strategy Calcs'!BU16 + '1. Strategy Calcs'!CL16 -> 0.1233810771 | BB17: 0.121520749 | BC17: 0.106411821 | BD17: 0.0007657022398 | BE17: 0.003268914508 | BF17: 0.01053731109 | BG17: 0.00053700019 | BH17: 0.001860328051 | BI17: =(BA17*((cLifestyleTx+cIFG)))*'Time Discounting'!C14 -> 517.3343887 | BJ17: 522.6136966 | BK17: 522.6136966 | BL17: =(BA17*(vQoLIFG))*'Time Discounting'!E14 -> 0.09364623752 | BM17: 0.09460188117 | BN17: 0.09460188117 | BO17: =(BA17*(1))*'Time Discounting'!G14 -> 0.1233810771 | BP17: 0.1246401597 | BQ17: 0.1246401597 | BR17: =0 -> 0 | BS17: 0 | BT17: 0 | BU17: 0 | BV17: 0 | BW17: 0 | BX17: 0 | BY17: 0 | BZ17: =(BR17*((cLifestyleTx+cIGT)))*'Time Discounting'!C14 -> 0 | CA17: 0 | CB17: 0 | CC17: =(BR17*(vQoLIGT))*'Time Discounting'!E14 -> 0 | CD17: 0 | CE17: 0 | CF17: =(BR17*(1))*'Time Discounting'!G14 -> 0 | CG17: 0 | CH17: 0 | CI17: =0 + '1. Strategy Calcs'!W16 + '1. Strategy Calcs'!AN16 + '1. Strategy Calcs'!BD16 + '1. Strategy Calcs'!BV16 + CK16 -> 0.01857034797 | CJ17: 0.01829034604 | CK17: 0.01671074155 | CL17: 0.0002298913594 | CM17: 0.0004432496524 | CN17: 0.0007463863712 | CO17: 0.0001600771086 | CP17: 0.0002800019263 | CQ17: =(CI17*((cLifestyleTx+cCombined)))*'Time Discounting'!C14 -> 77.86509764 | CR17: 79.91560296 | CS17: 79.91560296 | CT17: =(CI17*(vQoLCombined))*'Time Discounting'!E14 -> 0.01383490924 | CU17: 0.01419923878 | CV17: 0.01419923878 | CW17: =(CI17*(1))*'Time Discounting'!G14 -> 0.01857034797 | CX17: 0.01905938091 | CY17: 0.01905938091 | CZ17: =0 + '1. Strategy Calcs'!Z16 + '1. Strategy Calcs'!AQ16 + '1. Strategy Calcs'!BH16 + '1. Strategy Calcs'!BY16 + '1. Strategy Calcs'!CP16 + DA16 -> 0.05384121362 | DA17: 0.05384121362 | DB17: =(CZ17*(vQoLDeath))*'Time Discounting'!E14 -> 0 | DC17: 0 | DD17: 0 | DF17: 1.7307 | DG17: 1.8256 | DH17: 0.01507790413 | DI17: 0.01507790413 | DJ17: 0.08671203209 | DK17: 0.01507790413 | DL17: 0.02048267939 | DM17: 0.00266568209 | DN17: 0.00871202642 | DO17: 0.02030029174 | DP17: 0.006609550141 | DQ17: 0.01590467543
B18: 10 | D18: ='1. Strategy Calcs'!S18 -> 0.7084618454 | E18: ='1. Strategy Calcs'!AJ18 -> 0.08253445348 | F18: ='1. Strategy Calcs'!BA18 -> 0.1258992422 | G18: ='1. Strategy Calcs'!BR18 -> 0 | H18: ='1. Strategy Calcs'!CI18 -> 0.01954841384 | I18: ='1. Strategy Calcs'!CZ18 -> 0.06355604507 | J18: ='1. Strategy Calcs'!AC18 + '1. Strategy Calcs'!AT18 + '1. Strategy Calcs'!BK18 + '1. Strategy Calcs'!CB18 + '1. Strategy Calcs'!CS18 -> 3712.776265 | K18: 40909.28227 | L18: ='1. Strategy Calcs'!AF18 + '1. Strategy Calcs'!AW18 + '1. Strategy Calcs'!BN18 + '1. Strategy Calcs'!CE18 + '1. Strategy Calcs'!CV18 + '1. Strategy Calcs'!DD18 -> 0.710912051 | M18: 8.157333007 | N18: ='1. Strategy Calcs'!AI18 + '1. Strategy Calcs'!AZ18 + '1. Strategy Calcs'!BQ18 + '1. Strategy Calcs'!CH18 + '1. Strategy Calcs'!CY18 -> 0.9310431282 | O18: 10.66800275 | Q18: 1 | S18: =0 + U17 + '1. Strategy Calcs'!AO17 + '1. Strategy Calcs'!BF17 + '1. Strategy Calcs'!BW17 + '1. Strategy Calcs'!CN17 -> 0.7084618454 | T18: 0.7015419018 | U18: 0.6781122672 | V18: 0.01436945785 | W18: 0.001945252936 | X18: 0.00220214003 | Y18: 0.004912783736 | Z18: 0.006919943632 | AA18: =(S18*(cNGT))*'Time Discounting'!C15 -> 2395.20323 | AB18: 2366.331769 | AC18: 2366.331769 | AD18: =(S18*(vQoLNGT))*'Time Discounting'!E15 -> 0.5440986973 | AE18: 0.537540204 | AF18: 0.537540204 | AG18: =(S18*(1))*'Time Discounting'!G15 -> 0.7084618454 | AH18: 0.6999221406 | AI18: 0.6999221406 | AJ18: =0 + '1. Strategy Calcs'!X17 + '1. Strategy Calcs'!Y17 + AL17 + AP17 + '1. Strategy Calcs'!BE17 + '1. Strategy Calcs'!BG17 + '1. Strategy Calcs'!BT17 + '1. Strategy Calcs'!BX17 + '1. Strategy Calcs'!CM17 + '1. Strategy Calcs'!CO17 -> 0.08253445348 | AK18: 0.08108038227 | AL18: 0.07126306167 | AM18: 0.00486400946 | AN18: 0.0001623205014 | AO18: 0.001885362129 | AP18: 0.002905628515 | AQ18: 0.001454071211 | AR18: =(AJ18*((cT2D+cLifestyleTx)))*'Time Discounting'!C15 -> 715.7932534 | AS18: 730.5666313 | AT18: 730.5666313 | AU18: =(AJ18*(vQoLT2D))*'Time Discounting'!E15 -> 0.06091042667 | AV18: 0.06216756726 | AW18: 0.06216756726 | AX18: =(AJ18*(1))*'Time Discounting'!G15 -> 0.08253445348 | AY18: 0.08423789602 | AZ18: 0.08423789602 | BA18: =0 + '1. Strategy Calcs'!V17 + '1. Strategy Calcs'!AM17 + BC17 + '1. Strategy Calcs'!BU17 + '1. Strategy Calcs'!CL17 -> 0.1258992422 | BB18: 0.1237978823 | BC18: 0.108393774 | BD18: 0.0007800504563 | BE18: 0.003476598938 | BF18: 0.01060039604 | BG18: 0.0005470628419 | BH18: 0.002101359909 | BI18: =(BA18*((cLifestyleTx+cIFG)))*'Time Discounting'!C15 -> 527.8930046 | BJ18: 532.0222558 | BK18: 532.0222558 | BL18: =(BA18*(vQoLIFG))*'Time Discounting'!E15 -> 0.09555752483 | BM18: 0.09630498884 | BN18: 0.09630498884 | BO18: =(BA18*(1))*'Time Discounting'!G15 -> 0.1258992422 | BP18: 0.1268840433 | BQ18: 0.1268840433 | BR18: =0 -> 0 | BS18: 0 | BT18: 0 | BU18: 0 | BV18: 0 | BW18: 0 | BX18: 0 | BY18: 0 | BZ18: =(BR18*((cLifestyleTx+cIGT)))*'Time Discounting'!C15 -> 0 | CA18: 0 | CB18: 0 | CC18: =(BR18*(vQoLIGT))*'Time Discounting'!E15 -> 0 | CD18: 0 | CE18: 0 | CF18: =(BR18*(1))*'Time Discounting'!G15 -> 0 | CG18: 0 | CH18: 0 | CI18: =0 + '1. Strategy Calcs'!W17 + '1. Strategy Calcs'!AN17 + '1. Strategy Calcs'!BD17 + '1. Strategy Calcs'!BV17 + CK17 -> 0.01954841384 | CJ18: 0.01922213505 | CK18: 0.0175620587 | CL18: 0.0002416030154 | CM18: 0.0004658306987 | CN18: 0.0007844105076 | CO18: 0.0001682321259 | CP18: 0.0003262787957 | CQ18: =(CI18*((cLifestyleTx+cCombined)))*'Time Discounting'!C15 -> 81.96610828 | CR18: 83.8556092 | CS18: 83.8556092 | CT18: =(CI18*(vQoLCombined))*'Time Discounting'!E15 -> 0.01456356831 | CU18: 0.01489929092 | CV18: 0.01489929092 | CW18: =(CI18*(1))*'Time Discounting'!G15 -> 0.01954841384 | CX18: 0.01999904822 | CY18: 0.01999904822 | CZ18: =0 + '1. Strategy Calcs'!Z17 + '1. Strategy Calcs'!AQ17 + '1. Strategy Calcs'!BH17 + '1. Strategy Calcs'!BY17 + '1. Strategy Calcs'!CP17 + DA17 -> 0.06355604507 | DA18: 0.06355604507 | DB18: =(CZ18*(vQoLDeath))*'Time Discounting'!E15 -> 0 | DC18: 0 | DD18: 0 | DF18: 1.7088 | DG18: 1.8037 | DH18: 0.01669080665 | DI18: 0.01669080665 | DJ18: 0.08562663469 | DK18: 0.01669080665 | DL18: 0.01923603662 | DM18: 0.002772825018 | DN18: 0.00976756007 | DO18: 0.02048267939 | DP18: 0.007002837212 | DQ18: 0.0176177481
B19: 11 | D19: ='1. Strategy Calcs'!S19 -> 0.6913824359 | E19: ='1. Strategy Calcs'!AJ19 -> 0.08594133855 | F19: ='1. Strategy Calcs'!BA19 -> 0.1278688443 | G19: ='1. Strategy Calcs'!BR19 -> 0 | H19: ='1. Strategy Calcs'!CI19 -> 0.02044968259 | I19: ='1. Strategy Calcs'!CZ19 -> 0.07435769861 | J19: ='1. Strategy Calcs'!AC19 + '1. Strategy Calcs'!AT19 + '1. Strategy Calcs'!BK19 + '1. Strategy Calcs'!CB19 + '1. Strategy Calcs'!CS19 -> 3694.17122 | K19: 44603.45349 | L19: ='1. Strategy Calcs'!AF19 + '1. Strategy Calcs'!AW19 + '1. Strategy Calcs'!BN19 + '1. Strategy Calcs'!CE19 + '1. Strategy Calcs'!CV19 + '1. Strategy Calcs'!DD19 -> 0.7020624735 | M19: 8.85939548 | N19: ='1. Strategy Calcs'!AI19 + '1. Strategy Calcs'!AZ19 + '1. Strategy Calcs'!BQ19 + '1. Strategy Calcs'!CH19 + '1. Strategy Calcs'!CY19 -> 0.9196965503 | O19: 11.5876993 | Q19: 1 | S19: =0 + U18 + '1. Strategy Calcs'!AO18 + '1. Strategy Calcs'!BF18 + '1. Strategy Calcs'!BW18 + '1. Strategy Calcs'!CN18 -> 0.6913824359 | T19: 0.6838715241 | U19: 0.660545826 | V19: 0.01413324564 | W19: 0.001972426496 | X19: 0.002146672714 | Y19: 0.005073353303 | Z19: 0.007510911772 | AA19: =(S19*(cNGT))*'Time Discounting'!C16 -> 2337.460308 | AB19: 2307.971529 | AC19: 2307.971529 | AD19: =(S19*(vQoLNGT))*'Time Discounting'!E16 -> 0.5309817108 | AE19: 0.5242829863 | AF19: 0.5242829863 | AG19: =(S19*(1))*'Time Discounting'!G16 -> 0.6913824359 | AH19: 0.6826601384 | AI19: 0.6826601384 | AJ19: =0 + '1. Strategy Calcs'!X18 + '1. Strategy Calcs'!Y18 + AL18 + AP18 + '1. Strategy Calcs'!BE18 + '1. Strategy Calcs'!BG18 + '1. Strategy Calcs'!BT18 + '1. Strategy Calcs'!BX18 + '1. Strategy Calcs'!CM18 + '1. Strategy Calcs'!CO18 -> 0.08594133855 | AK19: 0.08427816382 | AL19: 0.07407365156 | AM19: 0.005055844269 | AN19: 0.0001687223645 | AO19: 0.001959720143 | AP19: 0.003020225474 | AQ19: 0.001663174737 | AR19: =(AJ19*((cT2D+cLifestyleTx)))*'Time Discounting'!C16 -> 745.3400092 | AS19: 759.5135838 | AT19: 759.5135838 | AU19: =(AJ19*(vQoLT2D))*'Time Discounting'!E16 -> 0.06342470785 | AV19: 0.06463080817 | AW19: 0.06463080817 | AX19: =(AJ19*(1))*'Time Discounting'!G16 -> 0.08594133855 | AY19: 0.08757562083 | AZ19: 0.08757562083 | BA19: =0 + '1. Strategy Calcs'!V18 + '1. Strategy Calcs'!AM18 + BC18 + '1. Strategy Calcs'!BU18 + '1. Strategy Calcs'!CL18 -> 0.1278688443 | BB19: 0.1255260973 | BC19: 0.1098882729 | BD19: 0.0007909399389 | BE19: 0.003679104271 | BF19: 0.01061308032 | BG19: 0.0005546998238 | BH19: 0.002342747072 | BI19: =(BA19*((cLifestyleTx+cIFG)))*'Time Discounting'!C16 -> 536.151507 | BJ19: 539.2141462 | BK19: 539.2141462 | BL19: =(BA19*(vQoLIFG))*'Time Discounting'!E16 -> 0.09705245286 | BM19: 0.09760684214 | BN19: 0.09760684214 | BO19: =(BA19*(1))*'Time Discounting'!G16 -> 0.1278688443 | BP19: 0.128599265 | BQ19: 0.128599265 | BR19: =0 -> 0 | BS19: 0 | BT19: 0 | BU19: 0 | BV19: 0 | BW19: 0 | BX19: 0 | BY19: 0 | BZ19: =(BR19*((cLifestyleTx+cIGT)))*'Time Discounting'!C16 -> 0 | CA19: 0 | CB19: 0 | CC19: =(BR19*(vQoLIGT))*'Time Discounting'!E16 -> 0 | CD19: 0 | CE19: 0 | CF19: =(BR19*(1))*'Time Discounting'!G16 -> 0 | CG19: 0 | CH19: 0 | CI19: =0 + '1. Strategy Calcs'!W18 + '1. Strategy Calcs'!AN18 + '1. Strategy Calcs'!BD18 + '1. Strategy Calcs'!BV18 + CK18 -> 0.02044968259 | CJ19: 0.02007501405 | CK19: 0.01834128073 | CL19: 0.0002523228516 | CM19: 0.000486499434 | CN19: 0.0008192145108 | CO19: 0.0001756965229 | CP19: 0.0003746685462 | CQ19: =(CI19*((cLifestyleTx+cCombined)))*'Time Discounting'!C16 -> 85.74511012 | CR19: 87.47196155 | CS19: 87.47196155 | CT19: =(CI19*(vQoLCombined))*'Time Discounting'!E16 -> 0.01523501353 | CU19: 0.01554183692 | CV19: 0.01554183692 | CW19: =(CI19*(1))*'Time Discounting'!G16 -> 0.02044968259 | CX19: 0.02086152606 | CY19: 0.02086152606 | CZ19: =0 + '1. Strategy Calcs'!Z18 + '1. Strategy Calcs'!AQ18 + '1. Strategy Calcs'!BH18 + '1. Strategy Calcs'!BY18 + '1. Strategy Calcs'!CP18 + DA18 -> 0.07435769861 | DA19: 0.07435769861 | DB19: =(CZ19*(vQoLDeath))*'Time Discounting'!E16 -> 0 | DC19: 0 | DD19: 0 | DF19: 1.6865 | DG19: 1.7814 | DH19: 0.01832148467 | DI19: 0.01832148467 | DJ19: 0.08454879547 | DK19: 0.01832148467 | DL19: 0.01805775868 | DM19: 0.002884206209 | DN19: 0.0108636138 | DO19: 0.02066652163 | DP19: 0.007418576625 | DQ19: 0.01935244162
B20: 12 | D20: ='1. Strategy Calcs'!S20 -> 0.6739378409 | E20: ='1. Strategy Calcs'!AJ20 -> 0.08920990311 | F20: ='1. Strategy Calcs'!BA20 -> 0.1293296857 | G20: ='1. Strategy Calcs'!BR20 -> 0 | H20: ='1. Strategy Calcs'!CI20 -> 0.02127336953 | I20: ='1. Strategy Calcs'!CZ20 -> 0.08624920074 | J20: ='1. Strategy Calcs'!AC20 + '1. Strategy Calcs'!AT20 + '1. Strategy Calcs'!BK20 + '1. Strategy Calcs'!CB20 + '1. Strategy Calcs'!CS20 -> 3670.786829 | K20: 48274.24032 | L20: ='1. Strategy Calcs'!AF20 + '1. Strategy Calcs'!AW20 + '1. Strategy Calcs'!BN20 + '1. Strategy Calcs'!CE20 + '1. Strategy Calcs'!CV20 + '1. Strategy Calcs'!DD20 -> 0.6924092693 | M20: 9.55180475 | N20: ='1. Strategy Calcs'!AI20 + '1. Strategy Calcs'!AZ20 + '1. Strategy Calcs'!BQ20 + '1. Strategy Calcs'!CH20 + '1. Strategy Calcs'!CY20 -> 0.907290133 | O20: 12.49498943 | Q20: 1 | S20: =0 + U19 + '1. Strategy Calcs'!AO19 + '1. Strategy Calcs'!BF19 + '1. Strategy Calcs'!BW19 + '1. Strategy Calcs'!CN19 -> 0.6739378409 | T20: 0.6658851893 | U20: 0.6426799216 | V20: 0.01388492273 | W20: 0.001997647436 | X20: 0.002090213609 | Y20: 0.005232483965 | Z20: 0.008052651602 | AA20: =(S20*(cNGT))*'Time Discounting'!C17 -> 2278.48275 | AB20: 2248.402265 | AC20: 2248.402265 | AD20: =(S20*(vQoLNGT))*'Time Discounting'!E17 -> 0.5175842618 | AE20: 0.5107511246 | AF20: 0.5107511246 | AG20: =(S20*(1))*'Time Discounting'!G17 -> 0.6739378409 | AH20: 0.6650405268 | AI20: 0.6650405268 | AJ20: =0 + '1. Strategy Calcs'!X19 + '1. Strategy Calcs'!Y19 + AL19 + AP19 + '1. Strategy Calcs'!BE19 + '1. Strategy Calcs'!BG19 + '1. Strategy Calcs'!BT19 + '1. Strategy Calcs'!BX19 + '1. Strategy Calcs'!CM19 + '1. Strategy Calcs'!CO19 -> 0.08920990311 | AK20: 0.08733523713 | AL20: 0.07676057037 | AM20: 0.005239237996 | AN20: 0.0001748425339 | AO20: 0.002030806269 | AP20: 0.003129779957 | AQ20: 0.001874665982 | AR20: =(AJ20*((cT2D+cLifestyleTx)))*'Time Discounting'!C17 -> 773.6871583 | AS20: 787.2488219 | AT20: 787.2488219 | AU20: =(AJ20*(vQoLT2D))*'Time Discounting'!E17 -> 0.06583690849 | AV20: 0.06699093825 | AW20: 0.06699093825 | AX20: =(AJ20*(1))*'Time Discounting'!G17 -> 0.08920990311 | AY20: 0.09077362907 | AZ20: 0.09077362907 | BA20: =0 + '1. Strategy Calcs'!V19 + '1. Strategy Calcs'!AM19 + BC19 + '1. Strategy Calcs'!BU19 + '1. Strategy Calcs'!CL19 -> 0.1293296857 | BB20: 0.126758589 | BC20: 0.1109417241 | BD20: 0.0007987058692 | BE20: 0.003876386329 | BF20: 0.01058162648 | BG20: 0.0005601462047 | BH20: 0.002571096692 | BI20: =(BA20*((cLifestyleTx+cIFG)))*'Time Discounting'!C17 -> 542.2767854 | BJ20: 544.3696453 | BK20: 544.3696453 | BL20: =(BA20*(vQoLIFG))*'Time Discounting'!E17 -> 0.09816123143 | BM20: 0.09854007432 | BN20: 0.09854007432 | BO20: =(BA20*(1))*'Time Discounting'!G17 -> 0.1293296857 | BP20: 0.1298288199 | BQ20: 0.1298288199 | BR20: =0 -> 0 | BS20: 0 | BT20: 0 | BU20: 0 | BV20: 0 | BW20: 0 | BX20: 0 | BY20: 0 | BZ20: =(BR20*((cLifestyleTx+cIGT)))*'Time Discounting'!C17 -> 0 | CA20: 0 | CB20: 0 | CC20: =(BR20*(vQoLIGT))*'Time Discounting'!E17 -> 0 | CD20: 0 | CE20: 0 | CF20: =(BR20*(1))*'Time Discounting'!G17 -> 0 | CG20: 0 | CH20: 0 | CI20: =0 + '1. Strategy Calcs'!W19 + '1. Strategy Calcs'!AN19 + '1. Strategy Calcs'!BD19 + '1. Strategy Calcs'!BV19 + CK19 -> 0.02127336953 | CJ20: 0.02085045123 | CK20: 0.01904974903 | CL20: 0.0002620693216 | CM20: 0.0005052914384 | CN20: 0.0008508582942 | CO20: 0.0001824831492 | CP20: 0.0004229182939 | CQ20: =(CI20*((cLifestyleTx+cCombined)))*'Time Discounting'!C17 -> 89.19881297 | CR20: 90.76609719 | CS20: 90.76609719 | CT20: =(CI20*(vQoLCombined))*'Time Discounting'!E17 -> 0.0158486603 | CU20: 0.01612713211 | CV20: 0.01612713211 | CW20: =(CI20*(1))*'Time Discounting'!G17 -> 0.02127336953 | CX20: 0.0216471572 | CY20: 0.0216471572 | CZ20: =0 + '1. Strategy Calcs'!Z19 + '1. Strategy Calcs'!AQ19 + '1. Strategy Calcs'!BH19 + '1. Strategy Calcs'!BY19 + '1. Strategy Calcs'!CP19 + DA19 -> 0.08624920074 | DA20: 0.08624920074 | DB20: =(CZ20*(vQoLDeath))*'Time Discounting'!E17 -> 0 | DC20: 0 | DD20: 0 | DF20: 1.6638 | DG20: 1.7587 | DH20: 0.01988017429 | DI20: 0.01988017429 | DJ20: 0.08347857579 | DK20: 0.01988017429 | DL20: 0.01694494928 | DM20: 0.002999987787 | DN20: 0.01194865626 | DO20: 0.02085182694 | DP20: 0.007857937147 | DQ20: 0.02101410176
B21: 13 | D21: ='1. Strategy Calcs'!S21 -> 0.6561432126 | E21: ='1. Strategy Calcs'!AJ21 -> 0.09233735502 | F21: ='1. Strategy Calcs'!BA21 -> 0.1303279542 | G21: ='1. Strategy Calcs'!BR21 -> 0 | H21: ='1. Strategy Calcs'!CI21 -> 0.02202094487 | I21: ='1. Strategy Calcs'!CZ21 -> 0.09917053331 | J21: ='1. Strategy Calcs'!AC21 + '1. Strategy Calcs'!AT21 + '1. Strategy Calcs'!BK21 + '1. Strategy Calcs'!CB21 + '1. Strategy Calcs'!CS21 -> 3642.560931 | K21: 51916.80125 | L21: ='1. Strategy Calcs'!AF21 + '1. Strategy Calcs'!AW21 + '1. Strategy Calcs'!BN21 + '1. Strategy Calcs'!CE21 + '1. Strategy Calcs'!CV21 + '1. Strategy Calcs'!DD21 -> 0.6819480865 | M21: 10.23375284 | N21: ='1. Strategy Calcs'!AI21 + '1. Strategy Calcs'!AZ21 + '1. Strategy Calcs'!BQ21 + '1. Strategy Calcs'!CH21 + '1. Strategy Calcs'!CY21 -> 0.8938180562 | O21: 13.38880749 | Q21: 1 | S21: =0 + U20 + '1. Strategy Calcs'!AO20 + '1. Strategy Calcs'!BF20 + '1. Strategy Calcs'!BW20 + '1. Strategy Calcs'!CN20 -> 0.6561432126 | T21: 0.6475148367 | U21: 0.6244503086 | V21: 0.01362280812 | W21: 0.002020464908 | X21: 0.002032549072 | Y21: 0.005388705991 | Z21: 0.008628375926 | AA21: =(S21*(cNGT))*'Time Discounting'!C18 -> 2218.32178 | AB21: 2187.545592 | AC21: 2187.545592 | AD21: =(S21*(vQoLNGT))*'Time Discounting'!E18 -> 0.5039179873 | AE21: 0.4969268127 | AF21: 0.4969268127 | AG21: =(S21*(1))*'Time Discounting'!G18 -> 0.6561432126 | AH21: 0.6470401208 | AI21: 0.6470401208 | AJ21: =0 + '1. Strategy Calcs'!X20 + '1. Strategy Calcs'!Y20 + AL20 + AP20 + '1. Strategy Calcs'!BE20 + '1. Strategy Calcs'!BG20 + '1. Strategy Calcs'!BT20 + '1. Strategy Calcs'!BX20 + '1. Strategy Calcs'!CM20 + '1. Strategy Calcs'!CO20 -> 0.09233735502 | AK21: 0.090229904 | AL21: 0.07930474713 | AM21: 0.005412888967 | AN21: 0.0001806375704 | AO21: 0.002098115958 | AP21: 0.003233514379 | AQ21: 0.002107451018 | AR21: =(AJ21*((cT2D+cLifestyleTx)))*'Time Discounting'!C18 -> 800.8104854 | AS21: 813.6627915 | AT21: 813.6627915 | AU21: =(AJ21*(vQoLT2D))*'Time Discounting'!E18 -> 0.06814496801 | AV21: 0.06923863499 | AW21: 0.06923863499 | AX21: =(AJ21*(1))*'Time Discounting'!G18 -> 0.09233735502 | AY21: 0.0938192886 | AZ21: 0.0938192886 | BA21: =0 + '1. Strategy Calcs'!V20 + '1. Strategy Calcs'!AM20 + BC20 + '1. Strategy Calcs'!BU20 + '1. Strategy Calcs'!CL20 -> 0.1303279542 | BB21: 0.1275160716 | BC21: 0.1115722307 | BD21: 0.0008034787673 | BE21: 0.004067499575 | BF21: 0.01050936907 | BG21: 0.0005634935205 | BH21: 0.002811882531 | BI21: =(BA21*((cLifestyleTx+cIFG)))*'Time Discounting'!C18 -> 546.4625052 | BJ21: 547.6172167 | BK21: 547.6172167 | BL21: =(BA21*(vQoLIFG))*'Time Discounting'!E18 -> 0.0989189172 | BM21: 0.09912793943 | BN21: 0.09912793943 | BO21: =(BA21*(1))*'Time Discounting'!G18 -> 0.1303279542 | BP21: 0.1306033458 | BQ21: 0.1306033458 | BR21: =0 -> 0 | BS21: 0 | BT21: 0 | BU21: 0 | BV21: 0 | BW21: 0 | BX21: 0 | BY21: 0 | BZ21: =(BR21*((cLifestyleTx+cIGT)))*'Time Discounting'!C18 -> 0 | CA21: 0 | CB21: 0 | CC21: =(BR21*(vQoLIGT))*'Time Discounting'!E18 -> 0 | CD21: 0 | CE21: 0 | CF21: =(BR21*(1))*'Time Discounting'!G18 -> 0 | CG21: 0 | CH21: 0 | CI21: =0 + '1. Strategy Calcs'!W20 + '1. Strategy Calcs'!AN20 + '1. Strategy Calcs'!BD20 + '1. Strategy Calcs'!BV20 + CK20 -> 0.02202094487 | CJ21: 0.02154583337 | CK21: 0.01968507605 | CL21: 0.0002708095796 | CM21: 0.0005221433824 | CN21: 0.0008792352174 | CO21: 0.0001885691336 | CP21: 0.0004751115032 | CQ21: =(CI21*((cLifestyleTx+cCombined)))*'Time Discounting'!C18 -> 92.33338142 | CR21: 93.73533034 | CS21: 93.73533034 | CT21: =(CI21*(vQoLCombined))*'Time Discounting'!E18 -> 0.01640560393 | CU21: 0.01665469931 | CV21: 0.01665469931 | CW21: =(CI21*(1))*'Time Discounting'!G18 -> 0.02202094487 | CX21: 0.02235530108 | CY21: 0.02235530108 | CZ21: =0 + '1. Strategy Calcs'!Z20 + '1. Strategy Calcs'!AQ20 + '1. Strategy Calcs'!BH20 + '1. Strategy Calcs'!BY20 + '1. Strategy Calcs'!CP20 + DA20 -> 0.09917053331 | DA21: 0.09917053331 | DB21: =(CZ21*(vQoLDeath))*'Time Discounting'!E18 -> 0 | DC21: 0 | DD21: 0 | DF21: 1.6407 | DG21: 1.7356 | DH21: 0.02157543675 | DI21: 0.02157543675 | DJ21: 0.08241603536 | DK21: 0.02157543675 | DL21: 0.01589473895 | DM21: 0.003120337626 | DN21: 0.01315014125 | DO21: 0.02103860383 | DP21: 0.008322135163 | DQ21: 0.02282338515
B22: 14 | D22: ='1. Strategy Calcs'!S22 -> 0.6379370289 | E22: ='1. Strategy Calcs'!AJ22 -> 0.09530122218 | F22: ='1. Strategy Calcs'!BA22 -> 0.1308787374 | G22: ='1. Strategy Calcs'!BR22 -> 0 | H22: ='1. Strategy Calcs'!CI22 -> 0.0226896573 | I22: ='1. Strategy Calcs'!CZ22 -> 0.1131933543 | J22: ='1. Strategy Calcs'!AC22 + '1. Strategy Calcs'!AT22 + '1. Strategy Calcs'!BK22 + '1. Strategy Calcs'!CB22 + '1. Strategy Calcs'!CS22 -> 3609.088174 | K22: 55525.88942 | L22: ='1. Strategy Calcs'!AF22 + '1. Strategy Calcs'!AW22 + '1. Strategy Calcs'!BN22 + '1. Strategy Calcs'!CE22 + '1. Strategy Calcs'!CV22 + '1. Strategy Calcs'!DD22 -> 0.670616483 | M22: 10.90436932 | N22: ='1. Strategy Calcs'!AI22 + '1. Strategy Calcs'!AZ22 + '1. Strategy Calcs'!BQ22 + '1. Strategy Calcs'!CH22 + '1. Strategy Calcs'!CY22 -> 0.8791980593 | O22: 14.26800555 | Q22: 1 | S22: =0 + U21 + '1. Strategy Calcs'!AO21 + '1. Strategy Calcs'!BF21 + '1. Strategy Calcs'!BW21 + '1. Strategy Calcs'!CN21 -> 0.6379370289 | T22: 0.628686879 | U22: 0.6057877608 | V22: 0.01334504885 | W22: 0.002040358959 | X22: 0.001973448113 | Y22: 0.005540262298 | Z22: 0.009250149819 | AA22: =(S22*(cNGT))*'Time Discounting'!C19 -> 2156.769404 | AB22: 2125.183323 | AC22: 2125.183323 | AD22: =(S22*(vQoLNGT))*'Time Discounting'!E19 -> 0.4899356382 | AE22: 0.4827604869 | AF22: 0.4827604869 | AG22: =(S22*(1))*'Time Discounting'!G19 -> 0.6379370289 | AH22: 0.628594384 | AI22: 0.628594384 | AJ22: =0 + '1. Strategy Calcs'!X21 + '1. Strategy Calcs'!Y21 + AL21 + AP21 + '1. Strategy Calcs'!BE21 + '1. Strategy Calcs'!BG21 + '1. Strategy Calcs'!BT21 + '1. Strategy Calcs'!BX21 + '1. Strategy Calcs'!CM21 + '1. Strategy Calcs'!CO21 -> 0.09530122218 | AK22: 0.09293531037 | AL22: 0.08168257929 | AM22: 0.005575186206 | AN22: 0.0001860537131 | AO22: 0.002161024772 | AP22: 0.003330466387 | AQ22: 0.002365911814 | AR22: =(AJ22*((cT2D+cLifestyleTx)))*'Time Discounting'!C19 -> 826.5150976 | AS22: 838.5370248 | AT22: 838.5370248 | AU22: =(AJ22*(vQoLT2D))*'Time Discounting'!E19 -> 0.07033230197 | AV22: 0.07135530787 | AW22: 0.07135530787 | AX22: =(AJ22*(1))*'Time Discounting'!G19 -> 0.09530122218 | AY22: 0.09668740904 | AZ22: 0.09668740904 | BA22: =0 + '1. Strategy Calcs'!V21 + '1. Strategy Calcs'!AM21 + BC21 + '1. Strategy Calcs'!BU21 + '1. Strategy Calcs'!CL21 -> 0.1308787374 | BB22: 0.1278096886 | BC22: 0.1117896584 | BD22: 0.0008053288481 | BE22: 0.004251156654 | BF22: 0.01039875375 | BG22: 0.0005647910141 | BH22: 0.003069048733 | BI22: =(BA22*((cLifestyleTx+cIFG)))*'Time Discounting'!C19 -> 548.7719282 | BJ22: 549.0018185 | BK22: 549.0018185 | BL22: =(BA22*(vQoLIFG))*'Time Discounting'!E19 -> 0.09933696166 | BM22: 0.09937857568 | BN22: 0.09937857568 | BO22: =(BA22*(1))*'Time Discounting'!G19 -> 0.1308787374 | BP22: 0.1309335648 | BQ22: 0.1309335648 | BR22: =0 -> 0 | BS22: 0 | BT22: 0 | BU22: 0 | BV22: 0 | BW22: 0 | BX22: 0 | BY22: 0 | BZ22: =(BR22*((cLifestyleTx+cIGT)))*'Time Discounting'!C19 -> 0 | CA22: 0 | CB22: 0 | CC22: =(BR22*(vQoLIGT))*'Time Discounting'!E19 -> 0 | CD22: 0 | CE22: 0 | CF22: =(BR22*(1))*'Time Discounting'!G19 -> 0 | CG22: 0 | CH22: 0 | CI22: =0 + '1. Strategy Calcs'!W21 + '1. Strategy Calcs'!AN21 + '1. Strategy Calcs'!BD21 + '1. Strategy Calcs'!BV21 + CK21 -> 0.0226896573 | CJ22: 0.02215759483 | CK22: 0.02024400412 | CL22: 0.0002784988094 | CM22: 0.0005369688568 | CN22: 0.0009041997763 | CO22: 0.00019392327 | CP22: 0.0005320624679 | CQ22: =(CI22*((cLifestyleTx+cCombined)))*'Time Discounting'!C19 -> 95.13727926 | CR22: 96.36600761 | CS22: 96.36600761 | CT22: =(CI22*(vQoLCombined))*'Time Discounting'!E19 -> 0.01690379469 | CU22: 0.0171221126 | CV22: 0.0171221126 | CW22: =(CI22*(1))*'Time Discounting'!G19 -> 0.0226896573 | CX22: 0.02298270147 | CY22: 0.02298270147 | CZ22: =0 + '1. Strategy Calcs'!Z21 + '1. Strategy Calcs'!AQ21 + '1. Strategy Calcs'!BH21 + '1. Strategy Calcs'!BY21 + '1. Strategy Calcs'!CP21 + DA21 -> 0.1131933543 | DA22: 0.1131933543 | DB22: =(CZ22*(vQoLDeath))*'Time Discounting'!E19 -> 0 | DC22: 0 | DD22: 0 | DF22: 1.6172 | DG22: 1.7121 | DH22: 0.02344955946 | DI22: 0.02344955946 | DJ22: 0.08136123218 | DK22: 0.02344955946 | DL22: 0.01490429679 | DM22: 0.003245429525 | DN22: 0.0145000986 | DO22: 0.02122686078 | DP22: 0.008812435066 | DQ22: 0.02482561881
B23: 15 | D23: ='1. Strategy Calcs'!S23 -> 0.6192517391 | E23: ='1. Strategy Calcs'!AJ23 -> 0.09807359589 | F23: ='1. Strategy Calcs'!BA23 -> 0.1309883922 | G23: ='1. Strategy Calcs'!BR23 -> 0 | H23: ='1. Strategy Calcs'!CI23 -> 0.02327574564 | I23: ='1. Strategy Calcs'!CZ23 -> 0.1284105271 | J23: ='1. Strategy Calcs'!AC23 + '1. Strategy Calcs'!AT23 + '1. Strategy Calcs'!BK23 + '1. Strategy Calcs'!CB23 + '1. Strategy Calcs'!CS23 -> 3570.06866 | K23: 59095.95808 | L23: ='1. Strategy Calcs'!AF23 + '1. Strategy Calcs'!AW23 + '1. Strategy Calcs'!BN23 + '1. Strategy Calcs'!CE23 + '1. Strategy Calcs'!CV23 + '1. Strategy Calcs'!DD23 -> 0.6583729218 | M23: 11.56274224 | N23: ='1. Strategy Calcs'!AI23 + '1. Strategy Calcs'!AZ23 + '1. Strategy Calcs'!BQ23 + '1. Strategy Calcs'!CH23 + '1. Strategy Calcs'!CY23 -> 0.863375222 | O23: 15.13138077 | Q23: 1 | S23: =0 + U22 + '1. Strategy Calcs'!AO22 + '1. Strategy Calcs'!BF22 + '1. Strategy Calcs'!BW22 + '1. Strategy Calcs'!CN22 -> 0.6192517391 | T23: 0.6093805058 | U23: 0.5866742575 | V23: 0.01305086236 | W23: 0.002056929393 | X23: 0.001912845408 | Y23: 0.005685611184 | Z23: 0.009871233312 | AA23: =(S23*(cNGT))*'Time Discounting'!C20 -> 2093.597242 | AB23: 2061.175558 | AC23: 2061.175558 | AD23: =(S23*(vQoLNGT))*'Time Discounting'!E20 -> 0.4755853356 | AE23: 0.4682203673 | AF23: 0.4682203673 | AG23: =(S23*(1))*'Time Discounting'!G20 -> 0.6192517391 | AH23: 0.6096619366 | AI23: 0.6096619366 | AJ23: =0 + '1. Strategy Calcs'!X22 + '1. Strategy Calcs'!Y22 + AL22 + AP22 + '1. Strategy Calcs'!BE22 + '1. Strategy Calcs'!BG22 + '1. Strategy Calcs'!BT22 + '1. Strategy Calcs'!BX22 + '1. Strategy Calcs'!CM22 + '1. Strategy Calcs'!CO22 -> 0.09807359589 | AK23: 0.09543434803 | AL23: 0.08387903015 | AM23: 0.005725103393 | AN23: 0.0001910567118 | AO23: 0.002219134895 | AP23: 0.003420022885 | AQ23: 0.002639247853 | AR23: =(AJ23*((cT2D+cLifestyleTx)))*'Time Discounting'!C20 -> 850.5589521 | AS23: 861.6716762 | AT23: 861.6716762 | AU23: =(AJ23*(vQoLT2D))*'Time Discounting'!E20 -> 0.07237831376 | AV23: 0.07332395102 | AW23: 0.07332395102 | AX23: =(AJ23*(1))*'Time Discounting'!G20 -> 0.09807359589 | AY23: 0.09935494718 | AZ23: 0.09935494718 | BA23: =0 + '1. Strategy Calcs'!V22 + '1. Strategy Calcs'!AM22 + BC22 + '1. Strategy Calcs'!BU22 + '1. Strategy Calcs'!CL22 -> 0.1309883922 | BB23: 0.127661532 | BC23: 0.1116135867 | BD23: 0.0008043953134 | BE23: 0.004426377061 | BF23: 0.01025303669 | BG23: 0.0005641363101 | BH23: 0.003326860185 | BI23: =(BA23*((cLifestyleTx+cIFG)))*'Time Discounting'!C20 -> 549.2317089 | BJ23: 548.5740038 | BK23: 548.5740038 | BL23: =(BA23*(vQoLIFG))*'Time Discounting'!E20 -> 0.0994201897 | BM23: 0.099301134 | BN23: 0.099301134 | BO23: =(BA23*(1))*'Time Discounting'!G20 -> 0.1309883922 | BP23: 0.1308315336 | BQ23: 0.1308315336 | BR23: =0 -> 0 | BS23: 0 | BT23: 0 | BU23: 0 | BV23: 0 | BW23: 0 | BX23: 0 | BY23: 0 | BZ23: =(BR23*((cLifestyleTx+cIGT)))*'Time Discounting'!C20 -> 0 | CA23: 0 | CB23: 0 | CC23: =(BR23*(vQoLIGT))*'Time Discounting'!E20 -> 0 | CD23: 0 | CE23: 0 | CF23: =(BR23*(1))*'Time Discounting'!G20 -> 0 | CG23: 0 | CH23: 0 | CI23: =0 + '1. Strategy Calcs'!W22 + '1. Strategy Calcs'!AN22 + '1. Strategy Calcs'!BD22 + '1. Strategy Calcs'!BV22 + CK22 -> 0.02327574564 | CJ23: 0.02268458523 | CK23: 0.02072548218 | CL23: 0.0002851225518 | CM23: 0.0005497399827 | CN23: 0.0009257050256 | CO23: 0.0001985354899 | CP23: 0.0005911604085 | CQ23: =(CI23*((cLifestyleTx+cCombined)))*'Time Discounting'!C20 -> 97.59473595 | CR23: 98.64742123 | CS23: 98.64742123 | CT23: =(CI23*(vQoLCombined))*'Time Discounting'!E20 -> 0.0173404305 | CU23: 0.01752746944 | CV23: 0.01752746944 | CW23: =(CI23*(1))*'Time Discounting'!G20 -> 0.02327574564 | CX23: 0.02352680462 | CY23: 0.02352680462 | CZ23: =0 + '1. Strategy Calcs'!Z22 + '1. Strategy Calcs'!AQ22 + '1. Strategy Calcs'!BH22 + '1. Strategy Calcs'!BY22 + '1. Strategy Calcs'!CP22 + DA22 -> 0.1284105271 | DA23: 0.1284105271 | DB23: =(CZ23*(vQoLDeath))*'Time Discounting'!E20 -> 0 | DC23: 0 | DD23: 0 | DF23: 1.5933 | DG23: 1.6882 | DH23: 0.02539812978 | DI23: 0.02539812978 | DJ23: 0.08031422253 | DK23: 0.02539812978 | DL23: 0.01397084081 | DM23: 0.003375443378 | DN23: 0.0159405823 | DO23: 0.02141660627 | DP23: 0.009330149439 | DQ23: 0.02691089104
B24: 16 | D24: ='1. Strategy Calcs'!S24 -> 0.6000721341 | E24: ='1. Strategy Calcs'!AJ24 -> 0.1006362985 | F24: ='1. Strategy Calcs'!BA24 -> 0.130674675 | G24: ='1. Strategy Calcs'!BR24 -> 0 | H24: ='1. Strategy Calcs'!CI24 -> 0.0237778636 | I24: ='1. Strategy Calcs'!CZ24 -> 0.1448390289 | J24: ='1. Strategy Calcs'!AC24 + '1. Strategy Calcs'!AT24 + '1. Strategy Calcs'!BK24 + '1. Strategy Calcs'!CB24 + '1. Strategy Calcs'!CS24 -> 3525.470821 | K24: 62621.42891 | L24: ='1. Strategy Calcs'!AF24 + '1. Strategy Calcs'!AW24 + '1. Strategy Calcs'!BN24 + '1. Strategy Calcs'!CE24 + '1. Strategy Calcs'!CV24 + '1. Strategy Calcs'!DD24 -> 0.6452242387 | M24: 12.20796648 | N24: ='1. Strategy Calcs'!AI24 + '1. Strategy Calcs'!AZ24 + '1. Strategy Calcs'!BQ24 + '1. Strategy Calcs'!CH24 + '1. Strategy Calcs'!CY24 -> 0.8463581095 | O24: 15.97773888 | Q24: 1 | S24: =0 + U23 + '1. Strategy Calcs'!AO23 + '1. Strategy Calcs'!BF23 + '1. Strategy Calcs'!BW23 + '1. Strategy Calcs'!CN23 -> 0.6000721341 | T24: 0.5896105491 | U24: 0.5671263091 | V24: 0.01274021559 | W24: 0.002069866359 | X24: 0.001850787514 | Y24: 0.005823370549 | Z24: 0.01046158501 | AA24: =(S24*(cNGT))*'Time Discounting'!C21 -> 2028.753874 | AB24: 1995.530337 | AC24: 1995.530337 | AD24: =(S24*(vQoLNGT))*'Time Discounting'!E21 -> 0.460855399 | AE24: 0.4533082801 | AF24: 0.4533082801 | AG24: =(S24*(1))*'Time Discounting'!G21 -> 0.6000721341 | AH24: 0.5902451564 | AI24: 0.5902451564 | AJ24: =0 + '1. Strategy Calcs'!X23 + '1. Strategy Calcs'!Y23 + AL23 + AP23 + '1. Strategy Calcs'!BE23 + '1. Strategy Calcs'!BG23 + '1. Strategy Calcs'!BT23 + '1. Strategy Calcs'!BX23 + '1. Strategy Calcs'!CM23 + '1. Strategy Calcs'!CO23 -> 0.1006362985 | AK24: 0.09771701744 | AL24: 0.08588531091 | AM24: 0.005862040655 | AN24: 0.0001956265477 | AO24: 0.002272213807 | AP24: 0.003501825525 | AQ24: 0.00291928103 | AR24: =(AJ24*((cT2D+cLifestyleTx)))*'Time Discounting'!C21 -> 872.7844003 | AS24: 882.939843 | AT24: 882.939843 | AU24: =(AJ24*(vQoLT2D))*'Time Discounting'!E21 -> 0.07426958827 | AV24: 0.07513376566 | AW24: 0.07513376566 | AX24: =(AJ24*(1))*'Time Discounting'!G21 -> 0.1006362985 | AY24: 0.1018072705 | AZ24: 0.1018072705 | BA24: =0 + '1. Strategy Calcs'!V23 + '1. Strategy Calcs'!AM23 + BC23 + '1. Strategy Calcs'!BU23 + '1. Strategy Calcs'!CL23 -> 0.130674675 | BB24: 0.1271002318 | BC24: 0.1110694303 | BD24: 0.0008008585604 | BE24: 0.004592408368 | BF24: 0.01007587862 | BG24: 0.0005616559242 | BH24: 0.003574443207 | BI24: =(BA24*((cLifestyleTx+cIFG)))*'Time Discounting'!C21 -> 547.9162987 | BJ24: 546.4229698 | BK24: 546.4229698 | BL24: =(BA24*(vQoLIFG))*'Time Discounting'!E21 -> 0.0991820783 | BM24: 0.09891176064 | BN24: 0.09891176064 | BO24: =(BA24*(1))*'Time Discounting'!G21 -> 0.130674675 | BP24: 0.1303185252 | BQ24: 0.1303185252 | BR24: =0 -> 0 | BS24: 0 | BT24: 0 | BU24: 0 | BV24: 0 | BW24: 0 | BX24: 0 | BY24: 0 | BZ24: =(BR24*((cLifestyleTx+cIGT)))*'Time Discounting'!C21 -> 0 | CA24: 0 | CB24: 0 | CC24: =(BR24*(vQoLIGT))*'Time Discounting'!E21 -> 0 | CD24: 0 | CE24: 0 | CF24: =(BR24*(1))*'Time Discounting'!G21 -> 0 | CG24: 0 | CH24: 0 | CI24: =0 + '1. Strategy Calcs'!W23 + '1. Strategy Calcs'!AN23 + '1. Strategy Calcs'!BD23 + '1. Strategy Calcs'!BV23 + CK23 -> 0.0237778636 | CJ24: 0.02312744971 | CK24: 0.02113009967 | CL24: 0.0002906889155 | CM24: 0.0005604723946 | CN24: 0.0009437772924 | CO24: 0.0002024114399 | CP24: 0.0006504138849 | CQ24: =(CI24*((cLifestyleTx+cCombined)))*'Time Discounting'!C21 -> 99.70010652 | CR24: 100.5776711 | CS24: 100.5776711 | CT24: =(CI24*(vQoLCombined))*'Time Discounting'!E21 -> 0.01771450838 | CU24: 0.01787043224 | CV24: 0.01787043224 | CW24: =(CI24*(1))*'Time Discounting'!G21 -> 0.0237778636 | CX24: 0.02398715737 | CY24: 0.02398715737 | CZ24: =0 + '1. Strategy Calcs'!Z23 + '1. Strategy Calcs'!AQ23 + '1. Strategy Calcs'!BH23 + '1. Strategy Calcs'!BY23 + '1. Strategy Calcs'!CP23 + DA23 -> 0.1448390289 | DA24: 0.1448390289 | DB24: =(CZ24*(vQoLDeath))*'Time Discounting'!E21 -> 0 | DC24: 0 | DD24: 0 | DF24: 1.569 | DG24: 1.6639 | DH24: 0.02735375625 | DI24: 0.02735375625 | DJ24: 0.07927506094 | DK24: 0.02735375625 | DL24: 0.01309164702 | DM24: 0.003510565342 | DN24: 0.01743387906 | DO24: 0.02160784879 | DP24: 0.009876639009 | DQ24: 0.02900823137
B25: 17 | D25: ='1. Strategy Calcs'!S25 -> 0.5804181788 | E25: ='1. Strategy Calcs'!AJ25 -> 0.1029782426 | F25: ='1. Strategy Calcs'!BA25 -> 0.1299623755 | G25: ='1. Strategy Calcs'!BR25 -> 0 | H25: ='1. Strategy Calcs'!CI25 -> 0.02419645114 | I25: ='1. Strategy Calcs'!CZ25 -> 0.162444752 | J25: ='1. Strategy Calcs'!AC25 + '1. Strategy Calcs'!AT25 + '1. Strategy Calcs'!BK25 + '1. Strategy Calcs'!CB25 + '1. Strategy Calcs'!CS25 -> 3475.453813 | K25: 66096.88272 | L25: ='1. Strategy Calcs'!AF25 + '1. Strategy Calcs'!AW25 + '1. Strategy Calcs'!BN25 + '1. Strategy Calcs'!CE25 + '1. Strategy Calcs'!CV25 + '1. Strategy Calcs'!DD25 -> 0.6312111617 | M25: 12.83917764 | N25: ='1. Strategy Calcs'!AI25 + '1. Strategy Calcs'!AZ25 + '1. Strategy Calcs'!BQ25 + '1. Strategy Calcs'!CH25 + '1. Strategy Calcs'!CY25 -> 0.8281997871 | O25: 16.80593866 | Q25: 1 | S25: =0 + U24 + '1. Strategy Calcs'!AO24 + '1. Strategy Calcs'!BF24 + '1. Strategy Calcs'!BW24 + '1. Strategy Calcs'!CN24 -> 0.5804181788 | T25: 0.5694181832 | U25: 0.5471858782 | V25: 0.01241365623 | W25: 0.002078938962 | X25: 0.001787403677 | Y25: 0.005952306125 | Z25: 0.01099999554 | AA25: =(S25*(cNGT))*'Time Discounting'!C22 -> 1962.3068 | AB25: 1928.358846 | AC25: 1928.358846 | AD25: =(S25*(vQoLNGT))*'Time Discounting'!E22 -> 0.4457611613 | AE25: 0.4380494827 | AF25: 0.4380494827 | AG25: =(S25*(1))*'Time Discounting'!G22 -> 0.5804181788 | AH25: 0.5703769306 | AI25: 0.5703769306 | AJ25: =0 + '1. Strategy Calcs'!X24 + '1. Strategy Calcs'!Y24 + AL24 + AP24 + '1. Strategy Calcs'!BE24 + '1. Strategy Calcs'!BG24 + '1. Strategy Calcs'!BT24 + '1. Strategy Calcs'!BX24 + '1. Strategy Calcs'!CM24 + '1. Strategy Calcs'!CO24 -> 0.1029782426 | AK25: 0.09977913445 | AL25: 0.08769774405 | AM25: 0.005985746987 | AN25: 0.0001997548443 | AO25: 0.002320164213 | AP25: 0.003575724363 | AQ25: 0.003199108166 | AR25: =(AJ25*((cT2D+cLifestyleTx)))*'Time Discounting'!C22 -> 893.0952856 | AS25: 902.2705932 | AT25: 902.2705932 | AU25: =(AJ25*(vQoLT2D))*'Time Discounting'!E22 -> 0.07599794305 | AV25: 0.07677871585 | AW25: 0.07677871585 | AX25: =(AJ25*(1))*'Time Discounting'!G22 -> 0.1029782426 | AY25: 0.1040362003 | AZ25: 0.1040362003 | BA25: =0 + '1. Strategy Calcs'!V24 + '1. Strategy Calcs'!AM24 + BC24 + '1. Strategy Calcs'!BU24 + '1. Strategy Calcs'!CL24 -> 0.1299623755 | BB25: 0.1261587231 | BC25: 0.1101864656 | BD25: 0.0007949261143 | BE25: 0.004748698055 | BF25: 0.009871137913 | BG25: 0.0005574953974 | BH25: 0.003803652342 | BI25: =(BA25*((cLifestyleTx+cIFG)))*'Time Discounting'!C22 -> 544.929641 | BJ25: 542.6627434 | BK25: 542.6627434 | BL25: =(BA25*(vQoLIFG))*'Time Discounting'!E22 -> 0.09864144297 | BM25: 0.09823109632 | BN25: 0.09823109632 | BO25: =(BA25*(1))*'Time Discounting'!G22 -> 0.1299623755 | BP25: 0.1294217343 | BQ25: 0.1294217343 | BR25: =0 -> 0 | BS25: 0 | BT25: 0 | BU25: 0 | BV25: 0 | BW25: 0 | BX25: 0 | BY25: 0 | BZ25: =(BR25*((cLifestyleTx+cIGT)))*'Time Discounting'!C22 -> 0 | CA25: 0 | CB25: 0 | CC25: =(BR25*(vQoLIGT))*'Time Discounting'!E22 -> 0 | CD25: 0 | CE25: 0 | CF25: =(BR25*(1))*'Time Discounting'!G22 -> 0 | CG25: 0 | CH25: 0 | CI25: =0 + '1. Strategy Calcs'!W24 + '1. Strategy Calcs'!AN24 + '1. Strategy Calcs'!BD24 + '1. Strategy Calcs'!BV24 + CK24 -> 0.02419645114 | CJ25: 0.0234882855 | CK25: 0.02145977269 | CL25: 0.0002952242605 | CM25: 0.0005692169169 | CN25: 0.0009585021596 | CO25: 0.0002055694747 | CP25: 0.0007081656343 | CQ25: =(CI25*((cLifestyleTx+cCombined)))*'Time Discounting'!C22 -> 101.4552357 | CR25: 102.1616301 | CS25: 102.1616301 | CT25: =(CI25*(vQoLCombined))*'Time Discounting'!E22 -> 0.0180263561 | CU25: 0.0181518668 | CV25: 0.0181518668 | CW25: =(CI25*(1))*'Time Discounting'!G22 -> 0.02419645114 | CX25: 0.02436492188 | CY25: 0.02436492188 | CZ25: =0 + '1. Strategy Calcs'!Z24 + '1. Strategy Calcs'!AQ24 + '1. Strategy Calcs'!BH24 + '1. Strategy Calcs'!BY24 + '1. Strategy Calcs'!CP24 + DA24 -> 0.162444752 | DA25: 0.162444752 | DB25: =(CZ25*(vQoLDeath))*'Time Discounting'!E22 -> 0 | DC25: 0 | DD25: 0 | DF25: 1.5443 | DG25: 1.6392 | DH25: 0.02926733471 | DI25: 0.02926733471 | DJ25: 0.07824380011 | DK25: 0.02926733471 | DL25: 0.01226405707 | DM25: 0.003650988014 | DN25: 0.01895184531 | DO25: 0.02180059681 | DP25: 0.01045331235 | DQ25: 0.03106586483
B26: 18 | D26: ='1. Strategy Calcs'!S26 -> 0.5603356825 | E26: ='1. Strategy Calcs'!AJ26 -> 0.1050941581 | F26: ='1. Strategy Calcs'!BA26 -> 0.1288810931 | G26: ='1. Strategy Calcs'!BR26 -> 0 | H26: ='1. Strategy Calcs'!CI26 -> 0.02453339261 | I26: ='1. Strategy Calcs'!CZ26 -> 0.1811556737 | J26: ='1. Strategy Calcs'!AC26 + '1. Strategy Calcs'!AT26 + '1. Strategy Calcs'!BK26 + '1. Strategy Calcs'!CB26 + '1. Strategy Calcs'!CS26 -> 3419.991483 | K26: 69516.8742 | L26: ='1. Strategy Calcs'!AF26 + '1. Strategy Calcs'!AW26 + '1. Strategy Calcs'!BN26 + '1. Strategy Calcs'!CE26 + '1. Strategy Calcs'!CV26 + '1. Strategy Calcs'!DD26 -> 0.6163442497 | M26: 13.45552189 | N26: ='1. Strategy Calcs'!AI26 + '1. Strategy Calcs'!AZ26 + '1. Strategy Calcs'!BQ26 + '1. Strategy Calcs'!CH26 + '1. Strategy Calcs'!CY26 -> 0.8089135633 | O26: 17.61485223 | Q26: 1 | S26: =0 + U25 + '1. Strategy Calcs'!AO25 + '1. Strategy Calcs'!BF25 + '1. Strategy Calcs'!BW25 + '1. Strategy Calcs'!CN25 -> 0.5603356825 | T26: 0.5487793876 | U26: 0.5268323857 | V26: 0.01207032515 | W26: 0.002083666277 | X26: 0.001722618498 | Y26: 0.006070391942 | Z26: 0.01155629493 | AA26: =(S26*(cNGT))*'Time Discounting'!C23 -> 1894.410892 | AB26: 1859.705333 | AC26: 1859.705333 | AD26: =(S26*(vQoLNGT))*'Time Discounting'!E23 -> 0.4303378042 | AE26: 0.4224540266 | AF26: 0.4224540266 | AG26: =(S26*(1))*'Time Discounting'!G23 -> 0.5603356825 | AH26: 0.5500703472 | AI26: 0.5500703472 | AJ26: =0 + '1. Strategy Calcs'!X25 + '1. Strategy Calcs'!Y25 + AL25 + AP25 + '1. Strategy Calcs'!BE25 + '1. Strategy Calcs'!BG25 + '1. Strategy Calcs'!BT25 + '1. Strategy Calcs'!BX25 + '1. Strategy Calcs'!CM25 + '1. Strategy Calcs'!CO25 -> 0.1050941581 | AK26: 0.1015956784 | AL26: 0.08929433845 | AM26: 0.0060947214 | AN26: 0.000203391511 | AO26: 0.00236240431 | AP26: 0.003640822748 | AQ26: 0.003498479636 | AR26: =(AJ26*((cT2D+cLifestyleTx)))*'Time Discounting'!C23 -> 911.4459008 | AS26: 919.5258409 | AT26: 919.5258409 | AU26: =(AJ26*(vQoLT2D))*'Time Discounting'!E23 -> 0.07755948864 | AV26: 0.07824705114 | AW26: 0.07824705114 | AX26: =(AJ26*(1))*'Time Discounting'!G23 -> 0.1050941581 | AY26: 0.1060258146 | AZ26: 0.1060258146 | BA26: =0 + '1. Strategy Calcs'!V25 + '1. Strategy Calcs'!AM25 + BC25 + '1. Strategy Calcs'!BU25 + '1. Strategy Calcs'!CL25 -> 0.1288810931 | BB26: 0.124843017 | BC26: 0.1089705475 | BD26: 0.0007866358501 | BE26: 0.004893713334 | BF26: 0.009640439063 | BG26: 0.0005516812921 | BH26: 0.004038076108 | BI26: =(BA26*((cLifestyleTx+cIFG)))*'Time Discounting'!C23 -> 540.3958458 | BJ26: 537.3626433 | BK26: 537.3626433 | BL26: =(BA26*(vQoLIFG))*'Time Discounting'!E23 -> 0.09782074967 | BM26: 0.09727168893 | BN26: 0.09727168893 | BO26: =(BA26*(1))*'Time Discounting'!G23 -> 0.1288810931 | BP26: 0.1281576929 | BQ26: 0.1281576929 | BR26: =0 -> 0 | BS26: 0 | BT26: 0 | BU26: 0 | BV26: 0 | BW26: 0 | BX26: 0 | BY26: 0 | BZ26: =(BR26*((cLifestyleTx+cIGT)))*'Time Discounting'!C23 -> 0 | CA26: 0 | CB26: 0 | CC26: =(BR26*(vQoLIGT))*'Time Discounting'!E23 -> 0 | CD26: 0 | CE26: 0 | CF26: =(BR26*(1))*'Time Discounting'!G23 -> 0 | CG26: 0 | CH26: 0 | CI26: =0 + '1. Strategy Calcs'!W25 + '1. Strategy Calcs'!AN25 + '1. Strategy Calcs'!BD25 + '1. Strategy Calcs'!BV25 + CK25 -> 0.02453339261 | CJ26: 0.02376471736 | CK26: 0.02171233114 | CL26: 0.0002986987325 | CM26: 0.0005759159878 | CN26: 0.0009697826991 | CO26: 0.0002079888064 | CP26: 0.0007686752508 | CQ26: =(CI26*((cLifestyleTx+cCombined)))*'Time Discounting'!C23 -> 102.8680246 | CR26: 103.3976654 | CS26: 103.3976654 | CT26: =(CI26*(vQoLCombined))*'Time Discounting'!E23 -> 0.0182773775 | CU26: 0.01837148298 | CV26: 0.01837148298 | CW26: =(CI26*(1))*'Time Discounting'!G23 -> 0.02453339261 | CX26: 0.02465970869 | CY26: 0.02465970869 | CZ26: =0 + '1. Strategy Calcs'!Z25 + '1. Strategy Calcs'!AQ25 + '1. Strategy Calcs'!BH25 + '1. Strategy Calcs'!BY25 + '1. Strategy Calcs'!CP25 + DA25 -> 0.1811556737 | DA26: 0.1811556737 | DB26: =(CZ26*(vQoLDeath))*'Time Discounting'!E23 -> 0 | DC26: 0 | DD26: 0 | DF26: 1.5192 | DG26: 1.6141 | DH26: 0.03133179593 | DI26: 0.03133179593 | DJ26: 0.07722049093 | DK26: 0.03133179593 | DL26: 0.01148548471 | DM26: 0.003796910605 | DN26: 0.02062387831 | DO26: 0.02199485882 | DP26: 0.01106162527 | DQ26: 0.03328900198
B27: 19 | D27: ='1. Strategy Calcs'!S27 -> 0.5398050118 | E27: ='1. Strategy Calcs'!AJ27 -> 0.1069574711 | F27: ='1. Strategy Calcs'!BA27 -> 0.1274342927 | G27: ='1. Strategy Calcs'!BR27 -> 0 | H27: ='1. Strategy Calcs'!CI27 -> 0.02478602478 | I27: ='1. Strategy Calcs'!CZ27 -> 0.2010171996 | J27: ='1. Strategy Calcs'!AC27 + '1. Strategy Calcs'!AT27 + '1. Strategy Calcs'!BK27 + '1. Strategy Calcs'!CB27 + '1. Strategy Calcs'!CS27 -> 3359.113961 | K27: 72875.98816 | L27: ='1. Strategy Calcs'!AF27 + '1. Strategy Calcs'!AW27 + '1. Strategy Calcs'!BN27 + '1. Strategy Calcs'!CE27 + '1. Strategy Calcs'!CV27 + '1. Strategy Calcs'!DD27 -> 0.6006447115 | M27: 14.0561666 | N27: ='1. Strategy Calcs'!AI27 + '1. Strategy Calcs'!AZ27 + '1. Strategy Calcs'!BQ27 + '1. Strategy Calcs'!CH27 + '1. Strategy Calcs'!CY27 -> 0.7885266964 | O27: 18.40337892 | Q27: 1 | S27: =0 + U26 + '1. Strategy Calcs'!AO26 + '1. Strategy Calcs'!BF26 + '1. Strategy Calcs'!BW26 + '1. Strategy Calcs'!CN26 -> 0.5398050118 | T27: 0.5277586502 | U27: 0.5061304345 | V27: 0.01171130393 | W27: 0.002083875673 | X27: 0.001656634403 | Y27: 0.006176401676 | Z27: 0.0120463616 | AA27: =(S27*(cNGT))*'Time Discounting'!C24 -> 1824.999774 | AB27: 1789.652183 | AC27: 1789.652183 | AD27: =(S27*(vQoLNGT))*'Time Discounting'!E24 -> 0.4145702491 | AE27: 0.4065406263 | AF27: 0.4065406263 | AG27: =(S27*(1))*'Time Discounting'!G24 -> 0.5398050118 | AH27: 0.5293497739 | AI27: 0.5293497739 | AJ27: =0 + '1. Strategy Calcs'!X26 + '1. Strategy Calcs'!Y26 + AL26 + AP26 + '1. Strategy Calcs'!BE26 + '1. Strategy Calcs'!BG26 + '1. Strategy Calcs'!BT26 + '1. Strategy Calcs'!BX26 + '1. Strategy Calcs'!CM26 + '1. Strategy Calcs'!CO26 -> 0.1069574711 | AK27: 0.1031656777 | AL27: 0.09067424009 | AM27: 0.006188905602 | AN27: 0.0002065346026 | AO27: 0.002398911502 | AP27: 0.003697085859 | AQ27: 0.003791793407 | AR27: =(AJ27*((cT2D+cLifestyleTx)))*'Time Discounting'!C24 -> 927.605781 | AS27: 934.5809582 | AT27: 934.5809582 | AU27: =(AJ27*(vQoLT2D))*'Time Discounting'!E24 -> 0.07893461364 | AV27: 0.07952816635 | AW27: 0.07952816635 | AX27: =(AJ27*(1))*'Time Discounting'!G24 -> 0.1069574711 | AY27: 0.107761743 | AZ27: 0.107761743 | BA27: =0 + '1. Strategy Calcs'!V26 + '1. Strategy Calcs'!AM26 + BC26 + '1. Strategy Calcs'!BU26 + '1. Strategy Calcs'!CL26 -> 0.1274342927 | BB27: 0.1231864476 | BC27: 0.1074514915 | BD27: 0.0007761978063 | BE27: 0.00502695167 | BF27: 0.009387445714 | BG27: 0.0005443609119 | BH27: 0.004247845154 | BI27: =(BA27*((cLifestyleTx+cIFG)))*'Time Discounting'!C24 -> 534.3294408 | BJ27: 530.594668 | BK27: 530.594668 | BL27: =(BA27*(vQoLIFG))*'Time Discounting'!E24 -> 0.09672262819 | BM27: 0.09604657142 | BN27: 0.09604657142 | BO27: =(BA27*(1))*'Time Discounting'!G24 -> 0.1274342927 | BP27: 0.1265435724 | BQ27: 0.1265435724 | BR27: =0 -> 0 | BS27: 0 | BT27: 0 | BU27: 0 | BV27: 0 | BW27: 0 | BX27: 0 | BY27: 0 | BZ27: =(BR27*((cLifestyleTx+cIGT)))*'Time Discounting'!C24 -> 0 | CA27: 0 | CB27: 0 | CC27: =(BR27*(vQoLIGT))*'Time Discounting'!E24 -> 0 | CD27: 0 | CE27: 0 | CF27: =(BR27*(1))*'Time Discounting'!G24 -> 0 | CG27: 0 | CH27: 0 | CI27: =0 + '1. Strategy Calcs'!W26 + '1. Strategy Calcs'!AN26 + '1. Strategy Calcs'!BD26 + '1. Strategy Calcs'!BV26 + CK26 -> 0.02478602478 | CJ27: 0.02395981706 | CK27: 0.02189058149 | CL27: 0.0003011509407 | CM27: 0.000580644049 | CN27: 0.000977744263 | CO27: 0.000209696319 | CP27: 0.0008262077103 | CQ27: =(CI27*((cLifestyleTx+cCombined)))*'Time Discounting'!C24 -> 103.9273062 | CR27: 104.2861515 | CS27: 104.2861515 | CT27: =(CI27*(vQoLCombined))*'Time Discounting'!E24 -> 0.01846558846 | CU27: 0.01852934735 | CV27: 0.01852934735 | CW27: =(CI27*(1))*'Time Discounting'!G24 -> 0.02478602478 | CX27: 0.02487160717 | CY27: 0.02487160717 | CZ27: =0 + '1. Strategy Calcs'!Z26 + '1. Strategy Calcs'!AQ26 + '1. Strategy Calcs'!BH26 + '1. Strategy Calcs'!BY26 + '1. Strategy Calcs'!CP26 + DA26 -> 0.2010171996 | DA27: 0.2010171996 | DB27: =(CZ27*(vQoLDeath))*'Time Discounting'!E24 -> 0 | DC27: 0 | DD27: 0 | DF27: 1.4937 | DG27: 1.5886 | DH27: 0.03333361109 | DI27: 0.03333361109 | DJ27: 0.07620518245 | DK27: 0.03333361109 | DL27: 0.01075342105 | DM27: 0.003948539113 | DN27: 0.02231613516 | DO27: 0.02219064326 | DP27: 0.01170307995 | DQ27: 0.03545141232
B28: 20 | D28: ='1. Strategy Calcs'!S28 -> 0.518894536 | E28: ='1. Strategy Calcs'!AJ28 -> 0.108566015 | F28: ='1. Strategy Calcs'!BA28 -> 0.125652852 | G28: ='1. Strategy Calcs'!BR28 -> 0 | H28: ='1. Strategy Calcs'!CI28 -> 0.02495718957 | I28: ='1. Strategy Calcs'!CZ28 -> 0.2219294075 | J28: ='1. Strategy Calcs'!AC28 + '1. Strategy Calcs'!AT28 + '1. Strategy Calcs'!BK28 + '1. Strategy Calcs'!CB28 + '1. Strategy Calcs'!CS28 -> 3293.551112 | K28: 76169.53927 | L28: ='1. Strategy Calcs'!AF28 + '1. Strategy Calcs'!AW28 + '1. Strategy Calcs'!BN28 + '1. Strategy Calcs'!CE28 + '1. Strategy Calcs'!CV28 + '1. Strategy Calcs'!DD28 -> 0.5842514144 | M28: 14.64041802 | N28: ='1. Strategy Calcs'!AI28 + '1. Strategy Calcs'!AZ28 + '1. Strategy Calcs'!BQ28 + '1. Strategy Calcs'!CH28 + '1. Strategy Calcs'!CY28 -> 0.7672212618 | O28: 19.17060019 | Q28: 1 | S28: =0 + U27 + '1. Strategy Calcs'!AO27 + '1. Strategy Calcs'!BF27 + '1. Strategy Calcs'!BW27 + '1. Strategy Calcs'!CN27 -> 0.518894536 | T28: 0.506516438 | U28: 0.4852365333 | V28: 0.01133986904 | W28: 0.002079800308 | X28: 0.001589955099 | Y28: 0.006270280256 | Z28: 0.01237809797 | AA28: =(S28*(cNGT))*'Time Discounting'!C25 -> 1754.304592 | AB28: 1718.591241 | AC28: 1718.591241 | AD28: =(S28*(vQoLNGT))*'Time Discounting'!E25 -> 0.3985110036 | AE28: 0.3903982941 | AF28: 0.3903982941 | AG28: =(S28*(1))*'Time Discounting'!G25 -> 0.518894536 | AH28: 0.5083311122 | AI28: 0.5083311122 | AJ28: =0 + '1. Strategy Calcs'!X27 + '1. Strategy Calcs'!Y27 + AL27 + AP27 + '1. Strategy Calcs'!BE27 + '1. Strategy Calcs'!BG27 + '1. Strategy Calcs'!BT27 + '1. Strategy Calcs'!BX27 + '1. Strategy Calcs'!CM27 + '1. Strategy Calcs'!CO27 -> 0.108566015 | AK28: 0.1045189113 | AL28: 0.09186362242 | AM28: 0.006270086045 | AN28: 0.0002092437359 | AO28: 0.002430378245 | AP28: 0.003745580874 | AQ28: 0.004047103651 | AR28: =(AJ28*((cT2D+cLifestyleTx)))*'Time Discounting'!C25 -> 941.5561354 | AS28: 947.5531766 | AT28: 947.5531766 | AU28: =(AJ28*(vQoLT2D))*'Time Discounting'!E25 -> 0.08012171905 | AV28: 0.08063203727 | AW28: 0.08063203727 | AX28: =(AJ28*(1))*'Time Discounting'!G25 -> 0.108566015 | AY28: 0.1092575031 | AZ28: 0.1092575031 | BA28: =0 + '1. Strategy Calcs'!V27 + '1. Strategy Calcs'!AM27 + BC27 + '1. Strategy Calcs'!BU27 + '1. Strategy Calcs'!CL27 -> 0.125652852 | BB28: 0.1212532433 | BC28: 0.105686097 | BD28: 0.0007640166858 | BE28: 0.005149319579 | BF28: 0.009117991906 | BG28: 0.000535818082 | BH28: 0.004399608698 | BI28: =(BA28*((cLifestyleTx+cIFG)))*'Time Discounting'!C25 -> 526.8598952 | BJ28: 522.5535027 | BK28: 522.5535027 | BL28: =(BA28*(vQoLIFG))*'Time Discounting'!E25 -> 0.09537051464 | BM28: 0.09459098506 | BN28: 0.09459098506 | BO28: =(BA28*(1))*'Time Discounting'!G25 -> 0.125652852 | BP28: 0.1246258038 | BQ28: 0.1246258038 | BR28: =0 -> 0 | BS28: 0 | BT28: 0 | BU28: 0 | BV28: 0 | BW28: 0 | BX28: 0 | BY28: 0 | BZ28: =(BR28*((cLifestyleTx+cIGT)))*'Time Discounting'!C25 -> 0 | CA28: 0 | CB28: 0 | CC28: =(BR28*(vQoLIGT))*'Time Discounting'!E25 -> 0 | CD28: 0 | CE28: 0 | CF28: =(BR28*(1))*'Time Discounting'!G25 -> 0 | CG28: 0 | CH28: 0 | CI28: =0 + '1. Strategy Calcs'!W27 + '1. Strategy Calcs'!AN27 + '1. Strategy Calcs'!BD27 + '1. Strategy Calcs'!BV27 + CK27 -> 0.02495718957 | CJ28: 0.02408333859 | CK28: 0.02200343536 | CL28: 0.0003027034827 | CM28: 0.0005836374791 | CN28: 0.0009827848885 | CO28: 0.0002107773793 | CP28: 0.000873850984 | CQ28: =(CI28*((cLifestyleTx+cCombined)))*'Time Discounting'!C25 -> 104.6449967 | CR28: 104.8531919 | CS28: 104.8531919 | CT28: =(CI28*(vQoLCombined))*'Time Discounting'!E25 -> 0.01859310623 | CU28: 0.01863009791 | CV28: 0.01863009791 | CW28: =(CI28*(1))*'Time Discounting'!G25 -> 0.02495718957 | CX28: 0.02500684283 | CY28: 0.02500684283 | CZ28: =0 + '1. Strategy Calcs'!Z27 + '1. Strategy Calcs'!AQ27 + '1. Strategy Calcs'!BH27 + '1. Strategy Calcs'!BY27 + '1. Strategy Calcs'!CP27 + DA27 -> 0.2219294075 | DA28: 0.2219294075 | DB28: =(CZ28*(vQoLDeath))*'Time Discounting'!E25 -> 0 | DC28: 0 | DD28: 0 | DF28: 1.4678 | DG28: 1.5627 | DH28: =IF(rGender=1,INDEX(HazardRatioIGTToDeath_1,cycle+1)*(InterpolateTable(tMortalityWithoutDiabetes,rAge+cycle,1)),INDEX(HazardRatioIGTToDeath_1,cycle+1)*(InterpolateTable(tMortalityWithoutDiabetes,rAge+cycle,2))) -> 0.03501399793 | DI28: 0.03501399793 | DJ28: 0.07519792181 | DK28: 0.03501399793 | DL28: 0.01006543878 | DM28: 0.0041060865 | DN28: 0.02385474719 | DO28: 0.02238795859 | DP28: 0.01237922363 | DQ28: 0.03727781343
B29: 21 | D29: ='1. Strategy Calcs'!S29 -> 0.4977676883 | E29: ='1. Strategy Calcs'!AJ29 -> 0.1099489912 | F29: ='1. Strategy Calcs'!BA29 -> 0.1235987556 | G29: ='1. Strategy Calcs'!BR29 -> 0 | H29: ='1. Strategy Calcs'!CI29 -> 0.02505649609 | I29: ='1. Strategy Calcs'!CZ29 -> 0.2436280688 | J29: ='1. Strategy Calcs'!AC29 + '1. Strategy Calcs'!AT29 + '1. Strategy Calcs'!BK29 + '1. Strategy Calcs'!CB29 + '1. Strategy Calcs'!CS29 -> 3222.824777 | K29: 79392.36405 | L29: ='1. Strategy Calcs'!AF29 + '1. Strategy Calcs'!AW29 + '1. Strategy Calcs'!BN29 + '1. Strategy Calcs'!CE29 + '1. Strategy Calcs'!CV29 + '1. Strategy Calcs'!DD29 -> 0.5671035561 | M29: 15.20752157 | N29: ='1. Strategy Calcs'!AI29 + '1. Strategy Calcs'!AZ29 + '1. Strategy Calcs'!BQ29 + '1. Strategy Calcs'!CH29 + '1. Strategy Calcs'!CY29 -> 0.7449164219 | O29: 19.91551661 | Q29: 1 | S29: =0 + U28 + '1. Strategy Calcs'!AO28 + '1. Strategy Calcs'!BF28 + '1. Strategy Calcs'!BW28 + '1. Strategy Calcs'!CN28 -> 0.4977676883 | T29: 0.484822597 | U29: 0.4639329327 | V29: 0.01095059747 | W29: 0.00207008237 | X29: 0.001521858132 | Y29: 0.006347126308 | Z29: 0.01294509134 | AA29: =(S29*(cNGT))*'Time Discounting'!C26 -> 1682.877889 | AB29: 1646.417072 | AC29: 1646.417072 | AD29: =(S29*(vQoLNGT))*'Time Discounting'!E26 -> 0.3822855847 | AE29: 0.3740030794 | AF29: 0.3740030794 | AG29: =(S29*(1))*'Time Discounting'!G26 -> 0.4977676883 | AH29: 0.4869831763 | AI29: 0.4869831763 | AJ29: =0 + '1. Strategy Calcs'!X28 + '1. Strategy Calcs'!Y28 + AL28 + AP28 + '1. Strategy Calcs'!BE28 + '1. Strategy Calcs'!BG28 + '1. Strategy Calcs'!BT28 + '1. Strategy Calcs'!BX28 + '1. Strategy Calcs'!CM28 + '1. Strategy Calcs'!CO28 -> 0.1099489912 | AK29: 0.1055558621 | AL29: 0.0927750178 | AM29: 0.006332292687 | AN29: 0.0002113196803 | AO29: 0.002454490461 | AP29: 0.003782741449 | AQ29: 0.004393129089 | AR29: =(AJ29*((cT2D+cLifestyleTx)))*'Time Discounting'!C26 -> 953.5502178 | AS29: 958.1239579 | AT29: 958.1239579 | AU29: =(AJ29*(vQoLT2D))*'Time Discounting'!E26 -> 0.08114235548 | AV29: 0.0815315579 | AW29: 0.0815315579 | AX29: =(AJ29*(1))*'Time Discounting'!G26 -> 0.1099489912 | AY29: 0.1104763657 | AZ29: 0.1104763657 | BA29: =0 + '1. Strategy Calcs'!V28 + '1. Strategy Calcs'!AM28 + BC28 + '1. Strategy Calcs'!BU28 + '1. Strategy Calcs'!CL28 -> 0.1235987556 | BB29: 0.118965277 | BC29: 0.1036071359 | BD29: 0.0007496002102 | BE29: 0.005255757963 | BF29: 0.008827075349 | BG29: 0.0005257075589 | BH29: 0.004633478609 | BI29: =(BA29*((cLifestyleTx+cIFG)))*'Time Discounting'!C26 -> 518.2471102 | BJ29: 513.2037923 | BK29: 513.2037923 | BL29: =(BA29*(vQoLIFG))*'Time Discounting'!E26 -> 0.09381145549 | BM29: 0.09289853001 | BN29: 0.09289853001 | BO29: =(BA29*(1))*'Time Discounting'!G26 -> 0.1235987556 | BP29: 0.1223959552 | BQ29: 0.1223959552 | BR29: =0 -> 0 | BS29: 0 | BT29: 0 | BU29: 0 | BV29: 0 | BW29: 0 | BX29: 0 | BY29: 0 | BZ29: =(BR29*((cLifestyleTx+cIGT)))*'Time Discounting'!C26 -> 0 | CA29: 0 | CB29: 0 | CC29: =(BR29*(vQoLIGT))*'Time Discounting'!E26 -> 0 | CD29: 0 | CE29: 0 | CF29: =(BR29*(1))*'Time Discounting'!G26 -> 0 | CG29: 0 | CH29: 0 | CI29: =0 + '1. Strategy Calcs'!W28 + '1. Strategy Calcs'!AN28 + '1. Strategy Calcs'!BD28 + '1. Strategy Calcs'!BV28 + CK28 -> 0.02505649609 | CJ29: 0.02411717645 | CK29: 0.02203435089 | CL29: 0.0003031287908 | CM29: 0.0005844575084 | CN29: 0.0009841657326 | CO29: 0.0002110735283 | CP29: 0.0009393196405 | CQ29: =(CI29*((cLifestyleTx+cCombined)))*'Time Discounting'!C26 -> 105.061387 | CR29: 105.0799557 | CS29: 105.0799557 | CT29: =(CI29*(vQoLCombined))*'Time Discounting'!E26 -> 0.01866708959 | CU29: 0.01867038884 | CV29: 0.01867038884 | CW29: =(CI29*(1))*'Time Discounting'!G26 -> 0.02505649609 | CX29: 0.02506092462 | CY29: 0.02506092462 | CZ29: =0 + '1. Strategy Calcs'!Z28 + '1. Strategy Calcs'!AQ28 + '1. Strategy Calcs'!BH28 + '1. Strategy Calcs'!BY28 + '1. Strategy Calcs'!CP28 + DA28 -> 0.2436280688 | DA29: 0.2436280688 | DB29: =(CZ29*(vQoLDeath))*'Time Discounting'!E26 -> 0 | DC29: 0 | DD29: 0 | DF29: 1.4415 | DG29: 1.5364 | DH29: 0.03748806845 | DI29: 0.03748806845 | DJ29: 0.07419875424 | DK29: 0.03748806845 | DL29: 0.009419195306 | DM29: 0.004269772867 | DN29: 0.02600629098 | DO29: 0.02258681327 | DP29: 0.01309164702 | DQ29: 0.03995606546
B30: 22 | D30: ='1. Strategy Calcs'!S30 -> 0.4761986643 | E30: ='1. Strategy Calcs'!AJ30 -> 0.1110037403 | F30: ='1. Strategy Calcs'!BA30 -> 0.1211931548 | G30: ='1. Strategy Calcs'!BR30 -> 0 | H30: ='1. Strategy Calcs'!CI30 -> 0.02506535315 | I30: ='1. Strategy Calcs'!CZ30 -> 0.2665390875 | J30: ='1. Strategy Calcs'!AC30 + '1. Strategy Calcs'!AT30 + '1. Strategy Calcs'!BK30 + '1. Strategy Calcs'!CB30 + '1. Strategy Calcs'!CS30 -> 3147.074687 | K30: 82539.43874 | L30: ='1. Strategy Calcs'!AF30 + '1. Strategy Calcs'!AW30 + '1. Strategy Calcs'!BN30 + '1. Strategy Calcs'!CE30 + '1. Strategy Calcs'!CV30 + '1. Strategy Calcs'!DD30 -> 0.5492428004 | M30: 15.75676437 | N30: ='1. Strategy Calcs'!AI30 + '1. Strategy Calcs'!AZ30 + '1. Strategy Calcs'!BQ30 + '1. Strategy Calcs'!CH30 + '1. Strategy Calcs'!CY30 -> 0.7216662341 | O30: 20.63718284 | Q30: 1 | S30: =0 + U29 + '1. Strategy Calcs'!AO29 + '1. Strategy Calcs'!BF29 + '1. Strategy Calcs'!BW29 + '1. Strategy Calcs'!CN29 -> 0.4761986643 | T30: 0.4629941027 | U30: 0.4425260484 | V30: 0.0105503465 | W30: 0.002055613082 | X30: 0.001453338488 | Y30: 0.006408756159 | Z30: 0.01320456159 | AA30: =(S30*(cNGT))*'Time Discounting'!C27 -> 1609.956254 | AB30: 1573.286601 | AC30: 1573.286601 | AD30: =(S30*(vQoLNGT))*'Time Discounting'!E27 -> 0.3657205742 | AE30: 0.3573906295 | AF30: 0.3573906295 | AG30: =(S30*(1))*'Time Discounting'!G27 -> 0.4761986643 | AH30: 0.4653523822 | AI30: 0.4653523822 | AJ30: =0 + '1. Strategy Calcs'!X29 + '1. Strategy Calcs'!Y29 + AL29 + AP29 + '1. Strategy Calcs'!BE29 + '1. Strategy Calcs'!BG29 + '1. Strategy Calcs'!BT29 + '1. Strategy Calcs'!BX29 + '1. Strategy Calcs'!CM29 + '1. Strategy Calcs'!CO29 -> 0.1110037403 | AK30: 0.1063568322 | AL30: 0.09347900538 | AM30: 0.006380342857 | AN30: 0.0002129231985 | AO30: 0.002473115419 | AP30: 0.003811445329 | AQ30: 0.004646908074 | AR30: =(AJ30*((cT2D+cLifestyleTx)))*'Time Discounting'!C27 -> 962.6976979 | AS30: 966.1979777 | AT30: 966.1979777 | AU30: =(AJ30*(vQoLT2D))*'Time Discounting'!E27 -> 0.08192076031 | AV30: 0.08221861661 | AW30: 0.08221861661 | AX30: =(AJ30*(1))*'Time Discounting'!G27 -> 0.1110037403 | AY30: 0.1114073396 | AZ30: 0.1114073396 | BA30: =0 + '1. Strategy Calcs'!V29 + '1. Strategy Calcs'!AM29 + BC29 + '1. Strategy Calcs'!BU29 + '1. Strategy Calcs'!CL29 -> 0.1211931548 | BB30: 0.1164386099 | BC30: 0.1013167022 | BD30: 0.000733679681 | BE30: 0.005349480279 | BF30: 0.008524205505 | BG30: 0.0005145422172 | BH30: 0.004754544931 | BI30: =(BA30*((cLifestyleTx+cIFG)))*'Time Discounting'!C27 -> 508.1604744 | BJ30: 502.619291 | BK30: 502.619291 | BL30: =(BA30*(vQoLIFG))*'Time Discounting'!E27 -> 0.09198560452 | BM30: 0.09098255701 | BN30: 0.09098255701 | BO30: =(BA30*(1))*'Time Discounting'!G27 -> 0.1211931548 | BP30: 0.1198716166 | BQ30: 0.1198716166 | BR30: =0 -> 0 | BS30: 0 | BT30: 0 | BU30: 0 | BV30: 0 | BW30: 0 | BX30: 0 | BY30: 0 | BZ30: =(BR30*((cLifestyleTx+cIGT)))*'Time Discounting'!C27 -> 0 | CA30: 0 | CB30: 0 | CC30: =(BR30*(vQoLIGT))*'Time Discounting'!E27 -> 0 | CD30: 0 | CE30: 0 | CF30: =(BR30*(1))*'Time Discounting'!G27 -> 0 | CG30: 0 | CH30: 0 | CI30: =0 + '1. Strategy Calcs'!W29 + '1. Strategy Calcs'!AN29 + '1. Strategy Calcs'!BD29 + '1. Strategy Calcs'!BV29 + CK29 -> 0.02506535315 | CJ30: 0.02408201092 | CK30: 0.02200222235 | CL30: 0.0003026867952 | CM30: 0.0005836053042 | CN30: 0.0009827307091 | CO30: 0.0002107657595 | CP30: 0.0009833422351 | CQ30: =(CI30*((cLifestyleTx+cCombined)))*'Time Discounting'!C27 -> 105.0985245 | CR30: 104.9708171 | CS30: 104.9708171 | CT30: =(CI30*(vQoLCombined))*'Time Discounting'!E27 -> 0.0186736881 | CU30: 0.01865099732 | CV30: 0.01865099732 | CW30: =(CI30*(1))*'Time Discounting'!G27 -> 0.02506535315 | CX30: 0.02503489573 | CY30: 0.02503489573 | CZ30: =0 + '1. Strategy Calcs'!Z29 + '1. Strategy Calcs'!AQ29 + '1. Strategy Calcs'!BH29 + '1. Strategy Calcs'!BY29 + '1. Strategy Calcs'!CP29 + DA29 -> 0.2665390875 | DA30: 0.2665390875 | DB30: =(CZ30*(vQoLDeath))*'Time Discounting'!E27 -> 0 | DC30: 0 | DD30: 0 | DF30: 1.4148 | DG30: 1.5097 | DH30: 0.03923113427 | DI30: 0.03923113427 | DJ30: 0.07320772303 | DK30: 0.03923113427 | DL30: 0.008812435066 | DM30: 0.004439825627 | DN30: 0.02772910254 | DO30: 0.02278721573 | DP30: 0.01384198227 | DQ30: 0.0418626261
B31: 23 | D31: ='1. Strategy Calcs'!S31 -> 0.4545061001 | E31: ='1. Strategy Calcs'!AJ31 -> 0.1118109389 | F31: ='1. Strategy Calcs'!BA31 -> 0.1185500784 | G31: ='1. Strategy Calcs'!BR31 -> 0 | H31: ='1. Strategy Calcs'!CI31 -> 0.02500443831 | I31: ='1. Strategy Calcs'!CZ31 -> 0.2901284443 | J31: ='1. Strategy Calcs'!AC31 + '1. Strategy Calcs'!AT31 + '1. Strategy Calcs'!BK31 + '1. Strategy Calcs'!CB31 + '1. Strategy Calcs'!CS31 -> 3065.485562 | K31: 85604.9243 | L31: ='1. Strategy Calcs'!AF31 + '1. Strategy Calcs'!AW31 + '1. Strategy Calcs'!BN31 + '1. Strategy Calcs'!CE31 + '1. Strategy Calcs'!CV31 + '1. Strategy Calcs'!DD31 -> 0.5305588756 | M31: 16.28732325 | N31: ='1. Strategy Calcs'!AI31 + '1. Strategy Calcs'!AZ31 + '1. Strategy Calcs'!BQ31 + '1. Strategy Calcs'!CH31 + '1. Strategy Calcs'!CY31 -> 0.6973244226 | O31: 21.33450726 | Q31: 1 | S31: =0 + U30 + '1. Strategy Calcs'!AO30 + '1. Strategy Calcs'!BF30 + '1. Strategy Calcs'!BW30 + '1. Strategy Calcs'!CN30 -> 0.4545061001 | T31: 0.4405882604 | U31: 0.4205958832 | V31: 0.01012876036 | W31: 0.002033966753 | X31: 0.001383006549 | Y31: 0.006446643562 | Z31: 0.01391783969 | AA31: =(S31*(cNGT))*'Time Discounting'!C28 -> 1536.616948 | AB31: 1499.00012 | AC31: 1499.00012 | AD31: =(S31*(vQoLNGT))*'Time Discounting'!E28 -> 0.3490606849 | AE31: 0.340515578 | AF31: 0.340515578 | AG31: =(S31*(1))*'Time Discounting'!G28 -> 0.4545061001 | AH31: 0.4433796589 | AI31: 0.4433796589 | AJ31: =0 + '1. Strategy Calcs'!X30 + '1. Strategy Calcs'!Y30 + AL30 + AP30 + '1. Strategy Calcs'!BE30 + '1. Strategy Calcs'!BG30 + '1. Strategy Calcs'!BT30 + '1. Strategy Calcs'!BX30 + '1. Strategy Calcs'!CM30 + '1. Strategy Calcs'!CO30 -> 0.1118109389 | AK31: 0.1067347193 | AL31: 0.09381113741 | AM31: 0.006403012292 | AN31: 0.0002136797172 | AO31: 0.002481902428 | AP31: 0.003824987441 | AQ31: 0.005076219624 | AR31: =(AJ31*((cT2D+cLifestyleTx)))*'Time Discounting'!C28 -> 969.6982575 | AS31: 971.2913919 | AT31: 971.2913919 | AU31: =(AJ31*(vQoLT2D))*'Time Discounting'!E28 -> 0.08251647292 | AV31: 0.08265204069 | AW31: 0.08265204069 | AX31: =(AJ31*(1))*'Time Discounting'!G28 -> 0.1118109389 | AY31: 0.1119946351 | AZ31: 0.1119946351 | BA31: =0 + '1. Strategy Calcs'!V30 + '1. Strategy Calcs'!AM30 + BC30 + '1. Strategy Calcs'!BU30 + '1. Strategy Calcs'!CL30 -> 0.1185500784 | BB31: 0.1135124103 | BC31: 0.09867594264 | BD31: 0.0007152416975 | BE31: 0.00542119562 | BF31: 0.008198419026 | BG31: 0.0005016113412 | BH31: 0.005037668054 | BI31: =(BA31*((cLifestyleTx+cIFG)))*'Time Discounting'!C28 -> 497.0781076 | BJ31: 490.7017646 | BK31: 490.7017646 | BL31: =(BA31*(vQoLIFG))*'Time Discounting'!E28 -> 0.08997950949 | BM31: 0.08882528401 | BN31: 0.08882528401 | BO31: =(BA31*(1))*'Time Discounting'!G28 -> 0.1185500784 | BP31: 0.1170293597 | BQ31: 0.1170293597 | BR31: =0 -> 0 | BS31: 0 | BT31: 0 | BU31: 0 | BV31: 0 | BW31: 0 | BX31: 0 | BY31: 0 | BZ31: =(BR31*((cLifestyleTx+cIGT)))*'Time Discounting'!C28 -> 0 | CA31: 0 | CB31: 0 | CC31: =(BR31*(vQoLIGT))*'Time Discounting'!E28 -> 0 | CD31: 0 | CE31: 0 | CF31: =(BR31*(1))*'Time Discounting'!G28 -> 0 | CG31: 0 | CH31: 0 | CI31: =0 + '1. Strategy Calcs'!W30 + '1. Strategy Calcs'!AN30 + '1. Strategy Calcs'!BD30 + '1. Strategy Calcs'!BV30 + CK30 -> 0.02500443831 | CJ31: 0.02394189949 | CK31: 0.02187421133 | CL31: 0.0003009257347 | CM31: 0.0005802098332 | CN31: 0.0009770130887 | CO31: 0.0002095395044 | CP31: 0.001062538817 | CQ31: =(CI31*((cLifestyleTx+cCombined)))*'Time Discounting'!C28 -> 104.8431097 | CR31: 104.4922856 | CS31: 104.4922856 | CT31: =(CI31*(vQoLCombined))*'Time Discounting'!E28 -> 0.01862830654 | CU31: 0.01856597283 | CV31: 0.01856597283 | CW31: =(CI31*(1))*'Time Discounting'!G28 -> 0.02500443831 | CX31: 0.0249207689 | CY31: 0.0249207689 | CZ31: =0 + '1. Strategy Calcs'!Z30 + '1. Strategy Calcs'!AQ30 + '1. Strategy Calcs'!BH30 + '1. Strategy Calcs'!BY30 + '1. Strategy Calcs'!CP30 + DA30 -> 0.2901284443 | DA31: 0.2901284443 | DB31: =(CZ31*(vQoLDeath))*'Time Discounting'!E28 -> 0 | DC31: 0 | DD31: 0 | DF31: 1.3877 | DG31: 1.4826 | DH31: 0.04249400863 | DI31: 0.04249400863 | DJ31: 0.07222486953 | DK31: 0.04249400863 | DL31: 0.008242990938 | DM31: 0.004616479684 | DN31: 0.03062189856 | DO31: 0.0229891744 | DP31: 0.01463190044 | DQ31: 0.04540002681
B32: 24 | D32: ='1. Strategy Calcs'!S32 -> 0.4322532177 | E32: ='1. Strategy Calcs'!AJ32 -> 0.1121783313 | F32: ='1. Strategy Calcs'!BA32 -> 0.115508641 | G32: ='1. Strategy Calcs'!BR32 -> 0 | H32: ='1. Strategy Calcs'!CI32 -> 0.0248370995 | I32: ='1. Strategy Calcs'!CZ32 -> 0.3152227105 | J32: ='1. Strategy Calcs'!AC32 + '1. Strategy Calcs'!AT32 + '1. Strategy Calcs'!BK32 + '1. Strategy Calcs'!CB32 + '1. Strategy Calcs'!CS32 -> 2978.20242 | K32: 88583.12672 | L32: ='1. Strategy Calcs'!AF32 + '1. Strategy Calcs'!AW32 + '1. Strategy Calcs'!BN32 + '1. Strategy Calcs'!CE32 + '1. Strategy Calcs'!CV32 + '1. Strategy Calcs'!DD32 -> 0.511097511 | M32: 16.79842076 | N32: ='1. Strategy Calcs'!AI32 + '1. Strategy Calcs'!AZ32 + '1. Strategy Calcs'!BQ32 + '1. Strategy Calcs'!CH32 + '1. Strategy Calcs'!CY32 -> 0.6719502399 | O32: 22.0064575 | Q32: 1 | S32: =0 + U31 + '1. Strategy Calcs'!AO31 + '1. Strategy Calcs'!BF31 + '1. Strategy Calcs'!BW31 + '1. Strategy Calcs'!CN31 -> 0.4322532177 | T32: 0.4181518467 | U32: 0.3986681518 | V32: 0.009698069366 | W32: 0.002007119497 | X32: 0.001312578647 | Y32: 0.00646592743 | Z32: 0.01410137101 | AA32: =(S32*(cNGT))*'Time Discounting'!C29 -> 1461.383291 | AB32: 1423.74257 | AC32: 1423.74257 | AD32: =(S32*(vQoLNGT))*'Time Discounting'!E29 -> 0.3319704712 | AE32: 0.3234199369 | AF32: 0.3234199369 | AG32: =(S32*(1))*'Time Discounting'!G29 -> 0.4322532177 | AH32: 0.4211197095 | AI32: 0.4211197095 | AJ32: =0 + '1. Strategy Calcs'!X31 + '1. Strategy Calcs'!Y31 + AL31 + AP31 + '1. Strategy Calcs'!BE31 + '1. Strategy Calcs'!BG31 + '1. Strategy Calcs'!BT31 + '1. Strategy Calcs'!BX31 + '1. Strategy Calcs'!CM31 + '1. Strategy Calcs'!CO31 -> 0.1121783313 | AK32: 0.1068532662 | AL32: 0.09391533049 | AM32: 0.006410123916 | AN32: 0.0002139170445 | AO32: 0.002484658998 | AP32: 0.003829235734 | AQ32: 0.005325065085 | AR32: =(AJ32*((cT2D+cLifestyleTx)))*'Time Discounting'!C29 -> 972.8845264 | AS32: 973.2899748 | AT32: 973.2899748 | AU32: =(AJ32*(vQoLT2D))*'Time Discounting'!E29 -> 0.08278760847 | AV32: 0.0828221101 | AW32: 0.0828221101 | AX32: =(AJ32*(1))*'Time Discounting'!G29 -> 0.1121783313 | AY32: 0.1122250814 | AZ32: 0.1122250814 | BA32: =0 + '1. Strategy Calcs'!V31 + '1. Strategy Calcs'!AM31 + BC31 + '1. Strategy Calcs'!BU31 + '1. Strategy Calcs'!CL31 -> 0.115508641 | BB32: 0.1103830925 | BC32: 0.09585691229 | BD32: 0.0006955238659 | BE32: 0.00547805239 | BF32: 0.007864821068 | BG32: 0.0004877828858 | BH32: 0.005125548521 | BI32: =(BA32*((cLifestyleTx+cIFG)))*'Time Discounting'!C29 -> 484.3254216 | BJ32: 477.5218704 | BK32: 477.5218704 | BL32: =(BA32*(vQoLIFG))*'Time Discounting'!E29 -> 0.08767105854 | BM32: 0.08643950118 | BN32: 0.08643950118 | BO32: =(BA32*(1))*'Time Discounting'!G29 -> 0.115508641 | BP32: 0.1138860358 | BQ32: 0.1138860358 | BR32: =0 -> 0 | BS32: 0 | BT32: 0 | BU32: 0 | BV32: 0 | BW32: 0 | BX32: 0 | BY32: 0 | BZ32: =(BR32*((cLifestyleTx+cIGT)))*'Time Discounting'!C29 -> 0 | CA32: 0 | CB32: 0 | CC32: =(BR32*(vQoLIGT))*'Time Discounting'!E29 -> 0 | CD32: 0 | CE32: 0 | CF32: =(BR32*(1))*'Time Discounting'!G29 -> 0 | CG32: 0 | CH32: 0 | CI32: =0 + '1. Strategy Calcs'!W31 + '1. Strategy Calcs'!AN31 + '1. Strategy Calcs'!BD31 + '1. Strategy Calcs'!BV31 + CK31 -> 0.0248370995 | CJ32: 0.02373498491 | CK32: 0.02168516646 | CL32: 0.0002983250253 | CM32: 0.0005751954492 | CN32: 0.000968569387 | CO32: 0.0002077285879 | CP32: 0.001102114591 | CQ32: =(CI32*((cLifestyleTx+cCombined)))*'Time Discounting'!C29 -> 104.1414615 | CR32: 103.6480051 | CS32: 103.6480051 | CT32: =(CI32*(vQoLCombined))*'Time Discounting'!E29 -> 0.01850363913 | CU32: 0.01841596282 | CV32: 0.01841596282 | CW32: =(CI32*(1))*'Time Discounting'!G29 -> 0.0248370995 | CX32: 0.02471941318 | CY32: 0.02471941318 | CZ32: =0 + '1. Strategy Calcs'!Z31 + '1. Strategy Calcs'!AQ31 + '1. Strategy Calcs'!BH31 + '1. Strategy Calcs'!BY31 + '1. Strategy Calcs'!CP31 + DA31 -> 0.3152227105 | DA32: 0.3152227105 | DB32: =(CZ32*(vQoLDeath))*'Time Discounting'!E29 -> 0 | DC32: 0 | DD32: 0 | DF32: 1.3602 | DG32: 1.4551 | DH32: 0.0443737237 | DI32: 0.0443737237 | DJ32: 0.07125023307 | DK32: 0.0443737237 | DL32: 0.007708784971 | DM32: 0.004799977598 | DN32: 0.03262294052 | DO32: 0.02319269768 | DP32: 0.01546310863 | DQ32: 0.04746964075
B33: 25 | D33: ='1. Strategy Calcs'!S33 -> 0.4099862012 | E33: ='1. Strategy Calcs'!AJ33 -> 0.1122718316 | F33: ='1. Strategy Calcs'!BA33 -> 0.1122634306 | G33: ='1. Strategy Calcs'!BR33 -> 0 | H33: ='1. Strategy Calcs'!CI33 -> 0.02460172687 | I33: ='1. Strategy Calcs'!CZ33 -> 0.3408768097 | J33: ='1. Strategy Calcs'!AC33 + '1. Strategy Calcs'!AT33 + '1. Strategy Calcs'!BK33 + '1. Strategy Calcs'!CB33 + '1. Strategy Calcs'!CS33 -> 2884.857131 | K33: 91467.98385 | L33: ='1. Strategy Calcs'!AF33 + '1. Strategy Calcs'!AW33 + '1. Strategy Calcs'!BN33 + '1. Strategy Calcs'!CE33 + '1. Strategy Calcs'!CV33 + '1. Strategy Calcs'!DD33 -> 0.490827256 | M33: 17.28924802 | N33: ='1. Strategy Calcs'!AI33 + '1. Strategy Calcs'!AZ33 + '1. Strategy Calcs'!BQ33 + '1. Strategy Calcs'!CH33 + '1. Strategy Calcs'!CY33 -> 0.6455009597 | O33: 22.65195846 | Q33: 1 | S33: =0 + U32 + '1. Strategy Calcs'!AO32 + '1. Strategy Calcs'!BF32 + '1. Strategy Calcs'!BW32 + '1. Strategy Calcs'!CN32 -> 0.4099862012 | T33: 0.3951438445 | U33: 0.3762303989 | V33: 0.009245494269 | W33: 0.001971992921 | X33: 0.001240356528 | Y33: 0.0064556019 | Z33: 0.01484235672 | AA33: =(S33*(cNGT))*'Time Discounting'!C30 -> 1386.101848 | AB33: 1347.535184 | AC33: 1347.535184 | AD33: =(S33*(vQoLNGT))*'Time Discounting'!E30 -> 0.3148694025 | AE33: 0.3061085293 | AF33: 0.3061085293 | AG33: =(S33*(1))*'Time Discounting'!G30 -> 0.4099862012 | AH33: 0.3985788141 | AI33: 0.3985788141 | AJ33: =0 + '1. Strategy Calcs'!X32 + '1. Strategy Calcs'!Y32 + AL32 + AP32 + '1. Strategy Calcs'!BE32 + '1. Strategy Calcs'!BG32 + '1. Strategy Calcs'!BT32 + '1. Strategy Calcs'!BX32 + '1. Strategy Calcs'!CM32 + '1. Strategy Calcs'!CO32 -> 0.1122718316 | AK33: 0.1064710132 | AL33: 0.09357936121 | AM33: 0.006387192573 | AN33: 0.0002131517855 | AO33: 0.00247577047 | AP33: 0.003815537165 | AQ33: 0.005800818404 | AR33: =(AJ33*((cT2D+cLifestyleTx)))*'Time Discounting'!C30 -> 973.6954231 | AS33: 971.8377361 | AT33: 971.8377361 | AU33: =(AJ33*(vQoLT2D))*'Time Discounting'!E30 -> 0.08285661173 | AV33: 0.08269853185 | AW33: 0.08269853185 | AX33: =(AJ33*(1))*'Time Discounting'!G30 -> 0.1122718316 | AY33: 0.1120576312 | AZ33: 0.1120576312 | BA33: =0 + '1. Strategy Calcs'!V32 + '1. Strategy Calcs'!AM32 + BC32 + '1. Strategy Calcs'!BU32 + '1. Strategy Calcs'!CL32 -> 0.1122634306 | BB33: 0.1068487361 | BC33: 0.09268554092 | BD33: 0.0006732538859 | BE33: 0.005508036037 | BF33: 0.007509740645 | BG33: 0.0004721645646 | BH33: 0.005414694549 | BI33: =(BA33*((cLifestyleTx+cIFG)))*'Time Discounting'!C30 -> 470.7183192 | BJ33: 463.0642481 | BK33: 463.0642481 | BL33: =(BA33*(vQoLIFG))*'Time Discounting'!E30 -> 0.08520794383 | BM33: 0.08382242803 | BN33: 0.08382242803 | BO33: =(BA33*(1))*'Time Discounting'!G30 -> 0.1122634306 | BP33: 0.1104379816 | BQ33: 0.1104379816 | BR33: =0 -> 0 | BS33: 0 | BT33: 0 | BU33: 0 | BV33: 0 | BW33: 0 | BX33: 0 | BY33: 0 | BZ33: =(BR33*((cLifestyleTx+cIGT)))*'Time Discounting'!C30 -> 0 | CA33: 0 | CB33: 0 | CC33: =(BR33*(vQoLIGT))*'Time Discounting'!E30 -> 0 | CD33: 0 | CE33: 0 | CF33: =(BR33*(1))*'Time Discounting'!G30 -> 0 | CG33: 0 | CH33: 0 | CI33: =0 + '1. Strategy Calcs'!W32 + '1. Strategy Calcs'!AN32 + '1. Strategy Calcs'!BD32 + '1. Strategy Calcs'!BV32 + CK32 -> 0.02460172687 | CJ33: 0.02341513533 | CK33: 0.02139293997 | CL33: 0.000294304836 | CM33: 0.00056744419 | CN33: 0.0009555170716 | CO33: 0.0002049292644 | CP33: 0.001186591534 | CQ33: =(CI33*((cLifestyleTx+cCombined)))*'Time Discounting'!C30 -> 103.1545487 | CR33: 102.4199631 | CS33: 102.4199631 | CT33: =(CI33*(vQoLCombined))*'Time Discounting'!E30 -> 0.01832828652 | CU33: 0.01819776687 | CV33: 0.01819776687 | CW33: =(CI33*(1))*'Time Discounting'!G30 -> 0.02460172687 | CX33: 0.02442653271 | CY33: 0.02442653271 | CZ33: =0 + '1. Strategy Calcs'!Z32 + '1. Strategy Calcs'!AQ32 + '1. Strategy Calcs'!BH32 + '1. Strategy Calcs'!BY32 + '1. Strategy Calcs'!CP32 + DA32 -> 0.3408768097 | DA33: 0.3408768097 | DB33: =(CZ33*(vQoLDeath))*'Time Discounting'!E30 -> 0 | DC33: 0 | DD33: 0 | DF33: 1.3323 | DG33: 1.4272 | DH33: 0.04823204244 | DI33: 0.04823204244 | DJ33: 0.070283851 | DK33: 0.04823204244 | DL33: 0.007207828438 | DM33: 0.004990569759 | DN33: 0.03620208845 | DO33: 0.02339779399 | DP33: 0.01633734649 | DQ33: 0.05166762064
B34: 26 | D34: ='1. Strategy Calcs'!S34 -> 0.3871714271 | E34: ='1. Strategy Calcs'!AJ34 -> 0.1118434309 | F34: ='1. Strategy Calcs'!BA34 -> 0.1086125326 | G34: ='1. Strategy Calcs'!BR34 -> 0 | H34: ='1. Strategy Calcs'!CI34 -> 0.02425133856 | I34: ='1. Strategy Calcs'!CZ34 -> 0.3681212709 | J34: ='1. Strategy Calcs'!AC34 + '1. Strategy Calcs'!AT34 + '1. Strategy Calcs'!BK34 + '1. Strategy Calcs'!CB34 + '1. Strategy Calcs'!CS34 -> 2785.729498 | K34: 94253.71335 | L34: ='1. Strategy Calcs'!AF34 + '1. Strategy Calcs'!AW34 + '1. Strategy Calcs'!BN34 + '1. Strategy Calcs'!CE34 + '1. Strategy Calcs'!CV34 + '1. Strategy Calcs'!DD34 -> 0.4698177352 | M34: 17.75906575 | N34: ='1. Strategy Calcs'!AI34 + '1. Strategy Calcs'!AZ34 + '1. Strategy Calcs'!BQ34 + '1. Strategy Calcs'!CH34 + '1. Strategy Calcs'!CY34 -> 0.618067213 | O34: 23.27002568 | Q34: 1 | S34: =0 + U33 + '1. Strategy Calcs'!AO33 + '1. Strategy Calcs'!BF33 + '1. Strategy Calcs'!BW33 + '1. Strategy Calcs'!CN33 -> 0.3871714271 | T34: 0.3722528999 | U34: 0.3539423871 | V34: 0.008786833041 | W34: 0.001931439588 | X34: 0.001168501853 | Y34: 0.006423738354 | Z34: 0.01491852714 | AA34: =(S34*(cNGT))*'Time Discounting'!C31 -> 1308.968519 | AB34: 1270.634243 | AC34: 1270.634243 | AD34: =(S34*(vQoLNGT))*'Time Discounting'!E31 -> 0.297347656 | AE34: 0.2886395725 | AF34: 0.2886395725 | AG34: =(S34*(1))*'Time Discounting'!G31 -> 0.3871714271 | AH34: 0.3758327766 | AI34: 0.3758327766 | AJ34: =0 + '1. Strategy Calcs'!X33 + '1. Strategy Calcs'!Y33 + AL33 + AP33 + '1. Strategy Calcs'!BE33 + '1. Strategy Calcs'!BG33 + '1. Strategy Calcs'!BT33 + '1. Strategy Calcs'!BX33 + '1. Strategy Calcs'!CM33 + '1. Strategy Calcs'!CO33 -> 0.1118434309 | AK34: 0.1058147846 | AL34: 0.09300258965 | AM34: 0.006347825441 | AN34: 0.0002118380355 | AO34: 0.002460511187 | AP34: 0.003792020299 | AQ34: 0.006028646243 | AR34: =(AJ34*((cT2D+cLifestyleTx)))*'Time Discounting'!C31 -> 969.9800491 | AS34: 966.8598514 | AT34: 966.8598514 | AU34: =(AJ34*(vQoLT2D))*'Time Discounting'!E31 -> 0.08254045198 | AV34: 0.08227493876 | AW34: 0.08227493876 | AX34: =(AJ34*(1))*'Time Discounting'!G31 -> 0.1118434309 | AY34: 0.1114836569 | AZ34: 0.1114836569 | BA34: =0 + '1. Strategy Calcs'!V33 + '1. Strategy Calcs'!AM33 + BC33 + '1. Strategy Calcs'!BU33 + '1. Strategy Calcs'!CL33 -> 0.1086125326 | BB34: 0.103155203 | BC34: 0.08937663872 | BD34: 0.0006499809343 | BE34: 0.005521427824 | BF34: 0.007151312708 | BG34: 0.0004558428422 | BH34: 0.005457329567 | BI34: =(BA34*((cLifestyleTx+cIFG)))*'Time Discounting'!C31 -> 455.4101769 | BJ34: 447.4189105 | BK34: 447.4189105 | BL34: =(BA34*(vQoLIFG))*'Time Discounting'!E31 -> 0.08243691224 | BM34: 0.08099035843 | BN34: 0.08099035843 | BO34: =(BA34*(1))*'Time Discounting'!G31 -> 0.1086125326 | BP34: 0.1067066646 | BQ34: 0.1067066646 | BR34: =0 -> 0 | BS34: 0 | BT34: 0 | BU34: 0 | BV34: 0 | BW34: 0 | BX34: 0 | BY34: 0 | BZ34: =(BR34*((cLifestyleTx+cIGT)))*'Time Discounting'!C31 -> 0 | CA34: 0 | CB34: 0 | CC34: =(BR34*(vQoLIGT))*'Time Discounting'!E31 -> 0 | CD34: 0 | CE34: 0 | CF34: =(BR34*(1))*'Time Discounting'!G31 -> 0 | CG34: 0 | CH34: 0 | CI34: =0 + '1. Strategy Calcs'!W33 + '1. Strategy Calcs'!AN33 + '1. Strategy Calcs'!BD33 + '1. Strategy Calcs'!BV33 + CK33 -> 0.02425133856 | CJ34: 0.02303280932 | CK34: 0.02104363268 | CL34: 0.0002894993804 | CM34: 0.000558178872 | CN34: 0.0009399152387 | CO34: 0.0002015831472 | CP34: 0.001218529241 | CQ34: =(CI34*((cLifestyleTx+cCombined)))*'Time Discounting'!C31 -> 101.6853776 | CR34: 100.8164929 | CS34: 100.8164929 | CT34: =(CI34*(vQoLCombined))*'Time Discounting'!E31 -> 0.01806724723 | CU34: 0.0179128656 | CV34: 0.0179128656 | CW34: =(CI34*(1))*'Time Discounting'!G31 -> 0.02425133856 | CX34: 0.0240441149 | CY34: 0.0240441149 | CZ34: =0 + '1. Strategy Calcs'!Z33 + '1. Strategy Calcs'!AQ33 + '1. Strategy Calcs'!BH33 + '1. Strategy Calcs'!BY33 + '1. Strategy Calcs'!CP33 + DA33 -> 0.3681212709 | DA34: 0.3681212709 | DB34: =(CZ34*(vQoLDeath))*'Time Discounting'!E31 -> 0 | DC34: 0 | DD34: 0 | DF34: 1.304 | DG34: 1.3989 | DH34: 0.05024585502 | DI34: 0.05024585502 | DJ34: 0.06932575864 | DK34: 0.05024585502 | DL34: 0.00673822133 | DM34: 0.005188514552 | DN34: 0.03853209741 | DO34: 0.0236044717 | DP34: 0.0172563823 | DQ34: 0.05390255107
B35: 27 | D35: ='1. Strategy Calcs'!S35 -> 0.3644941262 | E35: ='1. Strategy Calcs'!AJ35 -> 0.1111238828 | F35: ='1. Strategy Calcs'!BA35 -> 0.1048007966 | G35: ='1. Strategy Calcs'!BR35 -> 0 | H35: ='1. Strategy Calcs'!CI35 -> 0.02383689124 | I35: ='1. Strategy Calcs'!CZ35 -> 0.3957443031 | J35: ='1. Strategy Calcs'!AC35 + '1. Strategy Calcs'!AT35 + '1. Strategy Calcs'!BK35 + '1. Strategy Calcs'!CB35 + '1. Strategy Calcs'!CS35 -> 2680.967777 | K35: 96934.68113 | L35: ='1. Strategy Calcs'!AF35 + '1. Strategy Calcs'!AW35 + '1. Strategy Calcs'!BN35 + '1. Strategy Calcs'!CE35 + '1. Strategy Calcs'!CV35 + '1. Strategy Calcs'!DD35 -> 0.4481232897 | M35: 18.20718904 | N35: ='1. Strategy Calcs'!AI35 + '1. Strategy Calcs'!AZ35 + '1. Strategy Calcs'!BQ35 + '1. Strategy Calcs'!CH35 + '1. Strategy Calcs'!CY35 -> 0.5897192096 | O35: 23.85974489 | Q35: 1 | S35: =0 + U34 + '1. Strategy Calcs'!AO34 + '1. Strategy Calcs'!BF34 + '1. Strategy Calcs'!BW34 + '1. Strategy Calcs'!CN34 -> 0.3644941262 | T35: 0.3489288965 | U35: 0.3312843207 | V35: 0.008308952807 | W35: 0.001882149867 | X35: 0.001095287806 | Y35: 0.006358185318 | Z35: 0.01556522969 | AA35: =(S35*(cNGT))*'Time Discounting'!C32 -> 1232.299967 | AB35: 1193.282123 | AC35: 1193.282123 | AD35: =(S35*(vQoLNGT))*'Time Discounting'!E32 -> 0.2799314889 | AE35: 0.2710681249 | AF35: 0.2710681249 | AG35: =(S35*(1))*'Time Discounting'!G32 -> 0.3644941262 | AH35: 0.3529532876 | AI35: 0.3529532876 | AJ35: =0 + '1. Strategy Calcs'!X34 + '1. Strategy Calcs'!Y34 + AL34 + AP34 + '1. Strategy Calcs'!BE34 + '1. Strategy Calcs'!BG34 + '1. Strategy Calcs'!BT34 + '1. Strategy Calcs'!BX34 + '1. Strategy Calcs'!CM34 + '1. Strategy Calcs'!CO34 -> 0.1111238828 | AK35: 0.104621742 | AL35: 0.09195400225 | AM35: 0.006276254856 | AN35: 0.0002094495999 | AO35: 0.002432769367 | AP35: 0.003749265955 | AQ35: 0.006502140818 | AR35: =(AJ35*((cT2D+cLifestyleTx)))*'Time Discounting'!C32 -> 963.7396538 | AS35: 958.1861281 | AT35: 958.1861281 | AU35: =(AJ35*(vQoLT2D))*'Time Discounting'!E32 -> 0.08200942554 | AV35: 0.08153684827 | AW35: 0.08153684827 | AX35: =(AJ35*(1))*'Time Discounting'!G32 -> 0.1111238828 | AY35: 0.1104835342 | AZ35: 0.1104835342 | BA35: =0 + '1. Strategy Calcs'!V34 + '1. Strategy Calcs'!AM34 + BC34 + '1. Strategy Calcs'!BU34 + '1. Strategy Calcs'!CL34 -> 0.1048007966 | BB35: 0.09909334885 | BC35: 0.08575037604 | BD35: 0.0006243871911 | BE35: 0.005505086358 | BF35: 0.006775605756 | BG35: 0.0004378935086 | BH35: 0.005707447734 | BI35: =(BA35*((cLifestyleTx+cIFG)))*'Time Discounting'!C32 -> 439.4276441 | BJ35: 430.6602832 | BK35: 430.6602832 | BL35: =(BA35*(vQoLIFG))*'Time Discounting'!E32 -> 0.07954380461 | BM35: 0.07795676463 | BN35: 0.07795676463 | BO35: =(BA35*(1))*'Time Discounting'!G32 -> 0.1048007966 | BP35: 0.1027098348 | BQ35: 0.1027098348 | BR35: =0 -> 0 | BS35: 0 | BT35: 0 | BU35: 0 | BV35: 0 | BW35: 0 | BX35: 0 | BY35: 0 | BZ35: =(BR35*((cLifestyleTx+cIGT)))*'Time Discounting'!C32 -> 0 | CA35: 0 | CB35: 0 | CC35: =(BR35*(vQoLIGT))*'Time Discounting'!E32 -> 0 | CD35: 0 | CE35: 0 | CF35: =(BR35*(1))*'Time Discounting'!G32 -> 0 | CG35: 0 | CH35: 0 | CI35: =0 + '1. Strategy Calcs'!W34 + '1. Strategy Calcs'!AN34 + '1. Strategy Calcs'!BD34 + '1. Strategy Calcs'!BV34 + CK34 -> 0.02383689124 | CJ35: 0.02253873497 | CK35: 0.02059222795 | CL35: 0.0002832893599 | CM35: 0.0005462054363 | CN35: 0.0009197532167 | CO35: 0.0001972590085 | CP35: 0.001298156267 | CQ35: =(CI35*((cLifestyleTx+cCombined)))*'Time Discounting'!C32 -> 99.94760823 | CR35: 98.83924296 | CS35: 98.83924296 | CT35: =(CI35*(vQoLCombined))*'Time Discounting'!E32 -> 0.01775848397 | CU35: 0.01756155193 | CV35: 0.01756155193 | CW35: =(CI35*(1))*'Time Discounting'!G32 -> 0.02383689124 | CX35: 0.02357255293 | CY35: 0.02357255293 | CZ35: =0 + '1. Strategy Calcs'!Z34 + '1. Strategy Calcs'!AQ34 + '1. Strategy Calcs'!BH34 + '1. Strategy Calcs'!BY34 + '1. Strategy Calcs'!CP34 + DA34 -> 0.3957443031 | DA35: 0.3957443031 | DB35: =(CZ35*(vQoLDeath))*'Time Discounting'!E32 -> 0 | DC35: 0 | DD35: 0 | DF35: 1.2753 | DG35: 1.3702 | DH35: 0.05445996519 | DI35: 0.05445996519 | DJ35: 0.06837598925 | DK35: 0.05445996519 | DL35: 0.00629815135 | DM35: 0.005394078522 | DN35: 0.04270365027 | DO35: 0.02381273918 | DP35: 0.0182220085 | DQ35: 0.0585125416
B36: 28 | D36: ='1. Strategy Calcs'!S36 -> 0.3414124491 | E36: ='1. Strategy Calcs'!AJ36 -> 0.1098431856 | F36: ='1. Strategy Calcs'!BA36 -> 0.1006188731 | G36: ='1. Strategy Calcs'!BR36 -> 0 | H36: ='1. Strategy Calcs'!CI36 -> 0.02330821461 | I36: ='1. Strategy Calcs'!CZ36 -> 0.4248172776 | J36: ='1. Strategy Calcs'!AC36 + '1. Strategy Calcs'!AT36 + '1. Strategy Calcs'!BK36 + '1. Strategy Calcs'!CB36 + '1. Strategy Calcs'!CS36 -> 2569.003936 | K36: 99503.68506 | L36: ='1. Strategy Calcs'!AF36 + '1. Strategy Calcs'!AW36 + '1. Strategy Calcs'!BN36 + '1. Strategy Calcs'!CE36 + '1. Strategy Calcs'!CV36 + '1. Strategy Calcs'!DD36 -> 0.4255233537 | M36: 18.63271239 | N36: ='1. Strategy Calcs'!AI36 + '1. Strategy Calcs'!AZ36 + '1. Strategy Calcs'!BQ36 + '1. Strategy Calcs'!CH36 + '1. Strategy Calcs'!CY36 -> 0.5601647827 | O36: 24.41990967 | Q36: 1 | S36: =0 + U35 + '1. Strategy Calcs'!AO35 + '1. Strategy Calcs'!BF35 + '1. Strategy Calcs'!BW35 + '1. Strategy Calcs'!CN35 -> 0.3414124491 | T36: 0.3254683513 | U36: 0.3085423118 | V36: 0.007818597579 | W36: 0.00182507567 | X36: 0.001021645155 | Y36: 0.006260721126 | Z36: 0.01594409775 | AA36: =(S36*(cNGT))*'Time Discounting'!C33 -> 1154.264278 | AB36: 1115.063631 | AC36: 1115.063631 | AD36: =(S36*(vQoLNGT))*'Time Discounting'!E33 -> 0.2622047609 | AE36: 0.253299871 | AF36: 0.253299871 | AG36: =(S36*(1))*'Time Discounting'!G33 -> 0.3414124491 | AH36: 0.3298175404 | AI36: 0.3298175404 | AJ36: =0 + '1. Strategy Calcs'!X35 + '1. Strategy Calcs'!Y35 + AL35 + AP35 + '1. Strategy Calcs'!BE35 + '1. Strategy Calcs'!BG35 + '1. Strategy Calcs'!BT35 + '1. Strategy Calcs'!BX35 + '1. Strategy Calcs'!CM35 + '1. Strategy Calcs'!CO35 -> 0.1098431856 | AK36: 0.1029637173 | AL36: 0.09049673335 | AM36: 0.006176790006 | AN36: 0.0002061302839 | AO36: 0.002394215318 | AP36: 0.003689848327 | AQ36: 0.00687946836 | AR36: =(AJ36*((cT2D+cLifestyleTx)))*'Time Discounting'!C33 -> 952.6326024 | AS36: 944.9594664 | AT36: 944.9594664 | AU36: =(AJ36*(vQoLT2D))*'Time Discounting'!E33 -> 0.081064271 | AV36: 0.0804113255 | AW36: 0.0804113255 | AX36: =(AJ36*(1))*'Time Discounting'!G33 -> 0.1098431856 | AY36: 0.1089584356 | AZ36: 0.1089584356 | BA36: =0 + '1. Strategy Calcs'!V35 + '1. Strategy Calcs'!AM35 + BC35 + '1. Strategy Calcs'!BU35 + '1. Strategy Calcs'!CL35 -> 0.1006188731 | BB36: 0.09476305208 | BC36: 0.08189500756 | BD36: 0.0005971019912 | BE36: 0.005461878553 | BF36: 0.006390306053 | BG36: 0.0004187579272 | BH36: 0.005855820979 | BI36: =(BA36*((cLifestyleTx+cIFG)))*'Time Discounting'!C33 -> 421.8929224 | BJ36: 412.5581608 | BK36: 412.5581608 | BL36: =(BA36*(vQoLIFG))*'Time Discounting'!E33 -> 0.07636972465 | BM36: 0.07467997558 | BN36: 0.07467997558 | BO36: =(BA36*(1))*'Time Discounting'!G33 -> 0.1006188731 | BP36: 0.0983925897 | BQ36: 0.0983925897 | BR36: =0 -> 0 | BS36: 0 | BT36: 0 | BU36: 0 | BV36: 0 | BW36: 0 | BX36: 0 | BY36: 0 | BZ36: =(BR36*((cLifestyleTx+cIGT)))*'Time Discounting'!C33 -> 0 | CA36: 0 | CB36: 0 | CC36: =(BR36*(vQoLIGT))*'Time Discounting'!E33 -> 0 | CD36: 0 | CE36: 0 | CF36: =(BR36*(1))*'Time Discounting'!G33 -> 0 | CG36: 0 | CH36: 0 | CI36: =0 + '1. Strategy Calcs'!W35 + '1. Strategy Calcs'!AN35 + '1. Strategy Calcs'!BD35 + '1. Strategy Calcs'!BV35 + CK35 -> 0.02330821461 | CJ36: 0.02195172225 | CK36: 0.02005591126 | CL36: 0.000275911197 | CM36: 0.000531979725 | CN36: 0.0008957985965 | CO36: 0.0001921214732 | CP36: 0.001356492355 | CQ36: =(CI36*((cLifestyleTx+cCombined)))*'Time Discounting'!C33 -> 97.73087769 | CR36: 96.42267757 | CS36: 96.42267757 | CT36: =(CI36*(vQoLCombined))*'Time Discounting'!E33 -> 0.01736461988 | CU36: 0.0171321816 | CV36: 0.0171321816 | CW36: =(CI36*(1))*'Time Discounting'!G33 -> 0.02330821461 | CX36: 0.02299621691 | CY36: 0.02299621691 | CZ36: =0 + '1. Strategy Calcs'!Z35 + '1. Strategy Calcs'!AQ35 + '1. Strategy Calcs'!BH35 + '1. Strategy Calcs'!BY35 + '1. Strategy Calcs'!CP35 + DA35 -> 0.4248172776 | DA36: 0.4248172776 | DB36: =(CZ36*(vQoLDeath))*'Time Discounting'!E33 -> 0 | DC36: 0 | DD36: 0 | DF36: 1.2462 | DG36: 1.3411 | DH36: 0.05819803781 | DI36: 0.05819803781 | DJ36: 0.06743457405 | DK36: 0.05819803781 | DL36: 0.005885892492 | DM36: 0.005607536531 | DN36: 0.04670039946 | DO36: 0.0240226048 | DP36: 0.01923603662 | DQ36: 0.06262990572
B37: 29 | D37: ='1. Strategy Calcs'!S37 -> 0.3182226318 | E37: ='1. Strategy Calcs'!AJ37 -> 0.1080736856 | F37: ='1. Strategy Calcs'!BA37 -> 0.09616630634 | G37: ='1. Strategy Calcs'!BR37 -> 0 | H37: ='1. Strategy Calcs'!CI37 -> 0.02268421921 | I37: ='1. Strategy Calcs'!CZ37 -> 0.4548531571 | J37: ='1. Strategy Calcs'!AC37 + '1. Strategy Calcs'!AT37 + '1. Strategy Calcs'!BK37 + '1. Strategy Calcs'!CB37 + '1. Strategy Calcs'!CS37 -> 2451.838149 | K37: 101955.5232 | L37: ='1. Strategy Calcs'!AF37 + '1. Strategy Calcs'!AW37 + '1. Strategy Calcs'!BN37 + '1. Strategy Calcs'!CE37 + '1. Strategy Calcs'!CV37 + '1. Strategy Calcs'!DD37 -> 0.4023654684 | M37: 19.03507786 | N37: ='1. Strategy Calcs'!AI37 + '1. Strategy Calcs'!AZ37 + '1. Strategy Calcs'!BQ37 + '1. Strategy Calcs'!CH37 + '1. Strategy Calcs'!CY37 -> 0.5298607823 | O37: 24.94977045 | Q37: 1 | S37: =0 + U36 + '1. Strategy Calcs'!AO36 + '1. Strategy Calcs'!BF36 + '1. Strategy Calcs'!BW36 + '1. Strategy Calcs'!CN36 -> 0.3182226318 | T37: 0.3021308309 | U37: 0.2859660639 | V37: 0.007321861787 | W37: 0.001761172553 | X37: 0.0009483886783 | Y37: 0.006133344011 | Z37: 0.01609180082 | AA37: =(S37*(cNGT))*'Time Discounting'!C34 -> 1075.862985 | AB37: 1036.916044 | AC37: 1036.916044 | AD37: =(S37*(vQoLNGT))*'Time Discounting'!E34 -> 0.2443949812 | AE37: 0.2355477237 | AF37: 0.2355477237 | AG37: =(S37*(1))*'Time Discounting'!G34 -> 0.3182226318 | AH37: 0.3067027653 | AI37: 0.3067027653 | AJ37: =0 + '1. Strategy Calcs'!X36 + '1. Strategy Calcs'!Y36 + AL36 + AP36 + '1. Strategy Calcs'!BE36 + '1. Strategy Calcs'!BG36 + '1. Strategy Calcs'!BT36 + '1. Strategy Calcs'!BX36 + '1. Strategy Calcs'!CM36 + '1. Strategy Calcs'!CO36 -> 0.1080736856 | AK37: 0.1009057358 | AL37: 0.08868793502 | AM37: 0.006053331766 | AN37: 0.0002020102666 | AO37: 0.002346361075 | AP37: 0.003616097693 | AQ37: 0.00716794981 | AR37: =(AJ37*((cT2D+cLifestyleTx)))*'Time Discounting'!C34 -> 937.2863304 | AS37: 927.7795548 | AT37: 927.7795548 | AU37: =(AJ37*(vQoLT2D))*'Time Discounting'!E34 -> 0.07975838 | AV37: 0.07894940093 | AW37: 0.07894940093 | AX37: =(AJ37*(1))*'Time Discounting'!G34 -> 0.1080736856 | AY37: 0.106977508 | AZ37: 0.106977508 | BA37: =0 + '1. Strategy Calcs'!V36 + '1. Strategy Calcs'!AM36 + BC36 + '1. Strategy Calcs'!BU36 + '1. Strategy Calcs'!CL36 -> 0.09616630634 | BB37: 0.09024959981 | BC37: 0.07788586039 | BD37: 0.0005686627284 | BE37: 0.005394526139 | BF37: 0.006001737569 | BG37: 0.0003988129816 | BH37: 0.005916706532 | BI37: =(BA37*((cLifestyleTx+cIFG)))*'Time Discounting'!C34 -> 403.2233992 | BJ37: 393.5005567 | BK37: 393.5005567 | BL37: =(BA37*(vQoLIFG))*'Time Discounting'!E34 -> 0.07299022651 | BM37: 0.07123022826 | BN37: 0.07123022826 | BO37: =(BA37*(1))*'Time Discounting'!G34 -> 0.09616630634 | BP37: 0.09384746807 | BQ37: 0.09384746807 | BR37: =0 -> 0 | BS37: 0 | BT37: 0 | BU37: 0 | BV37: 0 | BW37: 0 | BX37: 0 | BY37: 0 | BZ37: =(BR37*((cLifestyleTx+cIGT)))*'Time Discounting'!C34 -> 0 | CA37: 0 | CB37: 0 | CC37: =(BR37*(vQoLIGT))*'Time Discounting'!E34 -> 0 | CD37: 0 | CE37: 0 | CF37: =(BR37*(1))*'Time Discounting'!G34 -> 0 | CG37: 0 | CH37: 0 | CI37: =0 + '1. Strategy Calcs'!W36 + '1. Strategy Calcs'!AN36 + '1. Strategy Calcs'!BD36 + '1. Strategy Calcs'!BV36 + CK36 -> 0.02268421921 | CJ37: 0.02128855504 | CK37: 0.01945001699 | CL37: 0.0002675758483 | CM37: 0.0005159084797 | CN37: 0.0008687362888 | CO37: 0.0001863174337 | CP37: 0.001395664168 | CQ37: =(CI37*((cLifestyleTx+cCombined)))*'Time Discounting'!C34 -> 95.11447745 | CR37: 93.64199372 | CS37: 93.64199372 | CT37: =(CI37*(vQoLCombined))*'Time Discounting'!E34 -> 0.01689974331 | CU37: 0.01663811545 | CV37: 0.01663811545 | CW37: =(CI37*(1))*'Time Discounting'!G34 -> 0.02268421921 | CX37: 0.02233304087 | CY37: 0.02233304087 | CZ37: =0 + '1. Strategy Calcs'!Z36 + '1. Strategy Calcs'!AQ36 + '1. Strategy Calcs'!BH36 + '1. Strategy Calcs'!BY36 + '1. Strategy Calcs'!CP36 + DA36 -> 0.4548531571 | DA37: 0.4548531571 | DB37: =(CZ37*(vQoLDeath))*'Time Discounting'!E34 -> 0 | DC37: 0 | DD37: 0 | DF37: 1.2167 | DG37: 1.3116 | DH37: 0.06152577506 | DI37: 0.06152577506 | DJ37: 0.06650154219 | DK37: 0.06152577506 | DL37: 0.005499803264 | DM37: 0.005829171911 | DN37: 0.05056774477 | DO37: 0.02423407689 | DP37: 0.02030029174 | DQ37: 0.06632465404
B38: 30 | D38: ='1. Strategy Calcs'!S38 -> 0.2951828988 | E38: ='1. Strategy Calcs'!AJ38 -> 0.1058813304 | F38: ='1. Strategy Calcs'!BA38 -> 0.09152862979 | G38: ='1. Strategy Calcs'!BR38 -> 0 | H38: ='1. Strategy Calcs'!CI38 -> 0.02198186254 | I38: ='1. Strategy Calcs'!CZ38 -> 0.4854252784 | J38: ='1. Strategy Calcs'!AC38 + '1. Strategy Calcs'!AT38 + '1. Strategy Calcs'!BK38 + '1. Strategy Calcs'!CB38 + '1. Strategy Calcs'!CS38 -> 2327.00835 | K38: 104282.5316 | L38: ='1. Strategy Calcs'!AF38 + '1. Strategy Calcs'!AW38 + '1. Strategy Calcs'!BN38 + '1. Strategy Calcs'!CE38 + '1. Strategy Calcs'!CV38 + '1. Strategy Calcs'!DD38 -> 0.3782976318 | M38: 19.41337549 | N38: ='1. Strategy Calcs'!AI38 + '1. Strategy Calcs'!AZ38 + '1. Strategy Calcs'!BQ38 + '1. Strategy Calcs'!CH38 + '1. Strategy Calcs'!CY38 -> 0.4983412358 | O38: 25.44811169 | Q38: 1 | S38: =0 + U37 + '1. Strategy Calcs'!AO37 + '1. Strategy Calcs'!BF37 + '1. Strategy Calcs'!BW37 + '1. Strategy Calcs'!CN37 -> 0.2951828988 | T38: 0.2782387584 | U38: 0.2629183629 | V38: 0.006802148492 | W38: 0.001685925602 | X38: 0.0008733914627 | Y38: 0.005958929938 | Z38: 0.01694414042 | AA38: =(S38*(cNGT))*'Time Discounting'!C35 -> 997.9691035 | AB38: 958.152107 | AC38: 958.152107 | AD38: =(S38*(vQoLNGT))*'Time Discounting'!E35 -> 0.2267004663 | AE38: 0.2176555654 | AF38: 0.2176555654 | AG38: =(S38*(1))*'Time Discounting'!G35 -> 0.2951828988 | AH38: 0.2834056841 | AI38: 0.2834056841 | AJ38: =0 + '1. Strategy Calcs'!X37 + '1. Strategy Calcs'!Y37 + AL37 + AP37 + '1. Strategy Calcs'!BE37 + '1. Strategy Calcs'!BG37 + '1. Strategy Calcs'!BT37 + '1. Strategy Calcs'!BX37 + '1. Strategy Calcs'!CM37 + '1. Strategy Calcs'!CO37 -> 0.1058813304 | AK38: 0.09809139026 | AL38: 0.08621435417 | AM38: 0.005884499268 | AN38: 0.0001963760309 | AO38: 0.002280919098 | AP38: 0.003515241697 | AQ38: 0.007789940177 | AR38: =(AJ38*((cT2D+cLifestyleTx)))*'Time Discounting'!C35 -> 918.2727792 | AS38: 905.3428071 | AT38: 905.3428071 | AU38: =(AJ38*(vQoLT2D))*'Time Discounting'!E35 -> 0.07814042186 | AV38: 0.07704014589 | AW38: 0.07704014589 | AX38: =(AJ38*(1))*'Time Discounting'!G35 -> 0.1058813304 | AY38: 0.1043904416 | AZ38: 0.1043904416 | BA38: =0 + '1. Strategy Calcs'!V37 + '1. Strategy Calcs'!AM37 + BC37 + '1. Strategy Calcs'!BU37 + '1. Strategy Calcs'!CL37 -> 0.09152862979 | BB38: 0.08529325092 | BC38: 0.07350061227 | BD38: 0.0005374327741 | BE38: 0.005285026246 | BF38: 0.005593268753 | BG38: 0.0003769108758 | BH38: 0.006235378871 | BI38: =(BA38*((cLifestyleTx+cIFG)))*'Time Discounting'!C35 -> 383.7777141 | BJ38: 373.1193645 | BK38: 373.1193645 | BL38: =(BA38*(vQoLIFG))*'Time Discounting'!E35 -> 0.06947023001 | BM38: 0.06754088922 | BN38: 0.06754088922 | BO38: =(BA38*(1))*'Time Discounting'!G35 -> 0.09152862979 | BP38: 0.08898667881 | BQ38: 0.08898667881 | BR38: =0 -> 0 | BS38: 0 | BT38: 0 | BU38: 0 | BV38: 0 | BW38: 0 | BX38: 0 | BY38: 0 | BZ38: =(BR38*((cLifestyleTx+cIGT)))*'Time Discounting'!C35 -> 0 | CA38: 0 | CB38: 0 | CC38: =(BR38*(vQoLIGT))*'Time Discounting'!E35 -> 0 | CD38: 0 | CE38: 0 | CF38: =(BR38*(1))*'Time Discounting'!G35 -> 0 | CG38: 0 | CH38: 0 | CI38: =0 + '1. Strategy Calcs'!W37 + '1. Strategy Calcs'!AN37 + '1. Strategy Calcs'!BD37 + '1. Strategy Calcs'!BV37 + CK37 -> 0.02198186254 | CJ38: 0.02048435032 | CK38: 0.0187152656 | CL38: 0.0002574677992 | CM38: 0.0004964193207 | CN38: 0.0008359185696 | CO38: 0.000179279034 | CP38: 0.001497512216 | CQ38: =(CI38*((cLifestyleTx+cCombined)))*'Time Discounting'!C35 -> 92.16950998 | CR38: 90.39407115 | CS38: 90.39407115 | CT38: =(CI38*(vQoLCombined))*'Time Discounting'!E35 -> 0.01637648759 | CU38: 0.0160610313 | CV38: 0.0160610313 | CW38: =(CI38*(1))*'Time Discounting'!G35 -> 0.02198186254 | CX38: 0.02155843127 | CY38: 0.02155843127 | CZ38: =0 + '1. Strategy Calcs'!Z37 + '1. Strategy Calcs'!AQ37 + '1. Strategy Calcs'!BH37 + '1. Strategy Calcs'!BY37 + '1. Strategy Calcs'!CP37 + DA37 -> 0.4854252784 | DA38: 0.4854252784 | DB38: =(CZ38*(vQoLDeath))*'Time Discounting'!E35 -> 0 | DC38: 0 | DD38: 0 | DF38: 1.1868 | DG38: 1.2817 | DH38: 0.0681249013 | DI38: 0.0681249013 | DJ38: 0.06557692071 | DK38: 0.0681249013 | DL38: 0.005138324609 | DM38: 0.006059276614 | DN38: 0.05740217501 | DO38: 0.02444716376 | DP38: 0.02141660627 | DQ38: 0.07357236771
B39: 31 | D39: ='1. Strategy Calcs'!S39 -> 0.2716284693 | E39: ='1. Strategy Calcs'!AJ39 -> 0.1028995527 | F39: ='1. Strategy Calcs'!BA39 -> 0.08644472783 | G39: ='1. Strategy Calcs'!BR39 -> 0 | H39: ='1. Strategy Calcs'!CI39 -> 0.021135 | I39: ='1. Strategy Calcs'!CZ39 -> 0.5178922501 | J39: ='1. Strategy Calcs'!AC39 + '1. Strategy Calcs'!AT39 + '1. Strategy Calcs'!BK39 + '1. Strategy Calcs'!CB39 + '1. Strategy Calcs'!CS39 -> 2193.355036 | K39: 106475.8866 | L39: ='1. Strategy Calcs'!AF39 + '1. Strategy Calcs'!AW39 + '1. Strategy Calcs'!BN39 + '1. Strategy Calcs'!CE39 + '1. Strategy Calcs'!CV39 + '1. Strategy Calcs'!DD39 -> 0.3531744704 | M39: 19.76654997 | N39: ='1. Strategy Calcs'!AI39 + '1. Strategy Calcs'!AZ39 + '1. Strategy Calcs'!BQ39 + '1. Strategy Calcs'!CH39 + '1. Strategy Calcs'!CY39 -> 0.4654126283 | O39: 25.91352432 | Q39: 1 | S39: =0 + U38 + '1. Strategy Calcs'!AO38 + '1. Strategy Calcs'!BF38 + '1. Strategy Calcs'!BW38 + '1. Strategy Calcs'!CN38 -> 0.2716284693 | T39: 0.2543466147 | U39: 0.2399287636 | V39: 0.006272664094 | W39: 0.001601913475 | X39: 0.0007983940236 | Y39: 0.005744879494 | Z39: 0.01728185461 | AA39: =(S39*(cNGT))*'Time Discounting'!C36 -> 918.3351106 | AB39: 878.5760114 | AC39: 878.5760114 | AD39: =(S39*(vQoLNGT))*'Time Discounting'!E36 -> 0.2086106645 | AE39: 0.1995789156 | AF39: 0.1995789156 | AG39: =(S39*(1))*'Time Discounting'!G36 -> 0.2716284693 | AH39: 0.2598683797 | AI39: 0.2598683797 | AJ39: =0 + '1. Strategy Calcs'!X38 + '1. Strategy Calcs'!Y38 + AL38 + AP38 + '1. Strategy Calcs'!BE38 + '1. Strategy Calcs'!BG38 + '1. Strategy Calcs'!BT38 + '1. Strategy Calcs'!BX38 + '1. Strategy Calcs'!CM38 + '1. Strategy Calcs'!CO38 -> 0.1028995527 | AK39: 0.09470689714 | AL39: 0.08323965998 | AM39: 0.005681463638 | AN39: 0.0001896003768 | AO39: 0.002202219479 | AP39: 0.003393953669 | AQ39: 0.0081926556 | AR39: =(AJ39*((cT2D+cLifestyleTx)))*'Time Discounting'!C36 -> 892.4128351 | AS39: 876.8842424 | AT39: 876.8842424 | AU39: =(AJ39*(vQoLT2D))*'Time Discounting'!E36 -> 0.07593986992 | AV39: 0.07461846434 | AW39: 0.07461846434 | AX39: =(AJ39*(1))*'Time Discounting'!G36 -> 0.1028995527 | AY39: 0.1011090303 | AZ39: 0.1011090303 | BA39: =0 + '1. Strategy Calcs'!V38 + '1. Strategy Calcs'!AM38 + BC38 + '1. Strategy Calcs'!BU38 + '1. Strategy Calcs'!CL38 -> 0.08644472783 | BB39: 0.08008411137 | BC39: 0.06890544682 | BD39: 0.0005046099857 | BE39: 0.005141865399 | BF39: 0.00517829747 | BG39: 0.0003538916881 | BH39: 0.006360616466 | BI39: =(BA39*((cLifestyleTx+cIFG)))*'Time Discounting'!C36 -> 362.4610149 | BJ39: 351.2677422 | BK39: 351.2677422 | BL39: =(BA39*(vQoLIFG))*'Time Discounting'!E36 -> 0.06561154842 | BM39: 0.06358537754 | BN39: 0.06358537754 | BO39: =(BA39*(1))*'Time Discounting'!G36 -> 0.08644472783 | BP39: 0.08377520097 | BQ39: 0.08377520097 | BR39: =0 -> 0 | BS39: 0 | BT39: 0 | BU39: 0 | BV39: 0 | BW39: 0 | BX39: 0 | BY39: 0 | BZ39: =(BR39*((cLifestyleTx+cIGT)))*'Time Discounting'!C36 -> 0 | CA39: 0 | CB39: 0 | CC39: =(BR39*(vQoLIGT))*'Time Discounting'!E36 -> 0 | CD39: 0 | CE39: 0 | CF39: =(BR39*(1))*'Time Discounting'!G36 -> 0 | CG39: 0 | CH39: 0 | CI39: =0 + '1. Strategy Calcs'!W38 + '1. Strategy Calcs'!AN38 + '1. Strategy Calcs'!BD38 + '1. Strategy Calcs'!BV38 + CK38 -> 0.021135 | CJ39: 0.01957988343 | CK39: 0.01788891095 | CL39: 0.0002460995548 | CM39: 0.0004745004005 | CN39: 0.0007990093849 | CO39: 0.0001713631398 | CP39: 0.001555116575 | CQ39: =(CI39*((cLifestyleTx+cCombined)))*'Time Discounting'!C36 -> 88.61863232 | CR39: 86.62703974 | CS39: 86.62703974 | CT39: =(CI39*(vQoLCombined))*'Time Discounting'!E36 -> 0.015745575 | CU39: 0.01539171296 | CV39: 0.01539171296 | CW39: =(CI39*(1))*'Time Discounting'!G36 -> 0.021135 | CX39: 0.0206600174 | CY39: 0.0206600174 | CZ39: =0 + '1. Strategy Calcs'!Z38 + '1. Strategy Calcs'!AQ38 + '1. Strategy Calcs'!BH38 + '1. Strategy Calcs'!BY38 + '1. Strategy Calcs'!CP38 + DA38 -> 0.5178922501 | DA39: 0.5178922501 | DB39: =(CZ39*(vQoLDeath))*'Time Discounting'!E36 -> 0 | DC39: 0 | DD39: 0 | DF39: 1.1565 | DG39: 1.2514 | DH39: 0.07358015492 | DI39: 0.07358015492 | DJ39: 0.06466073459 | DK39: 0.07358015492 | DL39: 0.004799977598 | DM39: 0.00629815135 | DN39: 0.06362313439 | DO39: 0.02466187372 | DP39: 0.02258681327 | DQ39: 0.07961799038
B40: 32 | D40: ='1. Strategy Calcs'!S40 -> 0.24810829 | E40: ='1. Strategy Calcs'!AJ40 -> 0.09931850779 | F40: ='1. Strategy Calcs'!BA40 -> 0.08110567411 | G40: ='1. Strategy Calcs'!BR40 -> 0 | H40: ='1. Strategy Calcs'!CI40 -> 0.02018503479 | I40: ='1. Strategy Calcs'!CZ40 -> 0.5512824933 | J40: ='1. Strategy Calcs'!AC40 + '1. Strategy Calcs'!AT40 + '1. Strategy Calcs'!BK40 + '1. Strategy Calcs'!CB40 + '1. Strategy Calcs'!CS40 -> 2052.838674 | K40: 108528.7253 | L40: ='1. Strategy Calcs'!AF40 + '1. Strategy Calcs'!AW40 + '1. Strategy Calcs'!BN40 + '1. Strategy Calcs'!CE40 + '1. Strategy Calcs'!CV40 + '1. Strategy Calcs'!DD40 -> 0.3273396054 | M40: 20.09388957 | N40: ='1. Strategy Calcs'!AI40 + '1. Strategy Calcs'!AZ40 + '1. Strategy Calcs'!BQ40 + '1. Strategy Calcs'!CH40 + '1. Strategy Calcs'!CY40 -> 0.4315265175 | O40: 26.34505083 | Q40: =SUM(D40:I40) -> 1 | S40: =0 + U39 + '1. Strategy Calcs'!AO39 + '1. Strategy Calcs'!BF39 + '1. Strategy Calcs'!BW39 + '1. Strategy Calcs'!CN39 -> 0.24810829 | T40: =S40*(1-(INDEX(pNGTToDeath_1,cycle+1))) -> 0.2304607597 | U40: =T40*(1-(INDEX(pNGTToIFG_1,cycle+1))-(INDEX(pNGTToCombined_1,cycle+1))-(pNGTToT2D)-(INDEX(pNGTToIGT_1,cycle+1))) -> 0.2170073686 | V40: =T40*(INDEX(pNGTToIFG_1,cycle+1)) -> 0.005733452339 | W40: =T40*(INDEX(pNGTToCombined_1,cycle+1)) -> 0.001508620497 | X40: =T40*(pNGTToT2D) -> 0.0007234163248 | Y40: =T40*(INDEX(pNGTToIGT_1,cycle+1)) -> 0.005487901964 | Z40: =S40*(INDEX(pNGTToDeath_1,cycle+1)) -> 0.01764753025 | AA40: =(S40*(cNGT))*'Time Discounting'!C37 -> 838.8169122 | AB40: =(AA40 + AA41)/2 -> 799.1298463 | AC40: =SUM(AB40:AB40) -> 799.1298463 | AD40: =(S40*(vQoLNGT))*'Time Discounting'!E37 -> 0.1905471667 | AE40: =(AD40 + AD41)/2 -> 0.181531781 | AF40: =SUM(AE40:AE40) -> 0.181531781 | AG40: =(S40*(1))*'Time Discounting'!G37 -> 0.24810829 | AH40: =(AG40 + AG41)/2 -> 0.2363695066 | AI40: =SUM(AH40:AH40) -> 0.2363695066 | AJ40: =0 + '1. Strategy Calcs'!X39 + '1. Strategy Calcs'!Y39 + AL39 + AP39 + '1. Strategy Calcs'!BE39 + '1. Strategy Calcs'!BG39 + '1. Strategy Calcs'!BT39 + '1. Strategy Calcs'!BX39 + '1. Strategy Calcs'!CM39 + '1. Strategy Calcs'!CO39 -> 0.09931850779 | AK40: =AJ40*(1-(INDEX(pT2DToDeath_1,cycle+1))) -> 0.09069504309 | AL40: =AK40*(1-((1-EXP((-(-LN(1-(1/(1+EXP((-1)*((((-0.34)+(0.57*rBMI))-(0.68*rBloodPressure))-(0.385*rSmoking))))))))/10)))-((1-EXP((-(-LN(1-(1/(1+EXP((-1)*(((((-6.8)+(1.22*rGender))+(1.49*rPhysicalActivity))+(0.63*rEducation))-(1.07*rPerceivedHealth))))))))/10)))-(pT2DToNGTDefault)-((1-EXP((-(-LN(1-(1/(1+EXP((-1)*(((-3.37)+(1.42*rHeredity))+(1.13*rPerceivedHealth))))))))/10)))) -> 0.07971356656 | AM40: =AK40*((1-EXP((-(-LN(1-(1/(1+EXP((-1)*((((-0.34)+(0.57*rBMI))-(0.68*rBloodPressure))-(0.385*rSmoking))))))))/10))) -> 0.005440792646 | AN40: =AK40*((1-EXP((-(-LN(1-(1/(1+EXP((-1)*(((((-6.8)+(1.22*rGender))+(1.49*rPhysicalActivity))+(0.63*rEducation))-(1.07*rPerceivedHealth))))))))/10))) -> 0.000181568765 | AO40: =AK40*(pT2DToNGTDefault) -> 0.002108931837 | AP40: =AK40*((1-EXP((-(-LN(1-(1/(1+EXP((-1)*(((-3.37)+(1.42*rHeredity))+(1.13*rPerceivedHealth))))))))/10))) -> 0.003250183287 | AQ40: =AJ40*(INDEX(pT2DToDeath_1,cycle+1)) -> 0.008623464701 | AR40: =(AJ40*((cT2D+cLifestyleTx)))*'Time Discounting'!C37 -> 861.3556498 | AS40: =(AR40 + AR41)/2 -> 842.971881 | AT40: =SUM(AS40:AS40) -> 842.971881 | AU40: =(AJ40*(vQoLT2D))*'Time Discounting'!E37 -> 0.07329705875 | AV40: =(AU40 + AU41)/2 -> 0.07173269195 | AW40: =SUM(AV40:AV40) -> 0.07173269195 | AX40: =(AJ40*(1))*'Time Discounting'!G37 -> 0.09931850779 | AY40: =(AX40 + AX41)/2 -> 0.09719876958 | AZ40: =SUM(AY40:AY40) -> 0.09719876958 | BA40: =0 + '1. Strategy Calcs'!V39 + '1. Strategy Calcs'!AM39 + BC39 + '1. Strategy Calcs'!BU39 + '1. Strategy Calcs'!CL39 -> 0.08110567411 | BB40: =BA40*(1-(INDEX(pIFGToDeath_1,cycle+1))) -> 0.07461103322 | BC40: =BB40*(1-(pIFGToCombined)-(((1-EXP((-(-LN(1-(1/(1+EXP((-1)*(((((((((-6.98)+(0.44*rGender))+(0.05*(rAge+cycle)))+(0.48*rHeredity))+(0.36*rMaritalStatus))+(0.51*rFiveADay))+(0.3*rTriglyceride))+(0.61*rBloodPressure))+(0.57*rBMI))))))))/10))*(InterpolateTable(tFactorsIntervention,2,1))))-(INDEX(pIFGToNGT_1,cycle+1))-(pIFGToIGT)) -> 0.06409277648 | BD40: =BB40*(pIFGToCombined) -> 0.0004701241203 | BE40: =BB40*(((1-EXP((-(-LN(1-(1/(1+EXP((-1)*(((((((((-6.98)+(0.44*rGender))+(0.05*(rAge+cycle)))+(0.48*rHeredity))+(0.36*rMaritalStatus))+(0.51*rFiveADay))+(0.3*rTriglyceride))+(0.61*rBloodPressure))+(0.57*rBMI))))))))/10))*(InterpolateTable(tFactorsIntervention,2,1)))) -> 0.004961748774 | BF40: =BB40*(INDEX(pIFGToNGT_1,cycle+1)) -> 0.004756677699 | BG40: =BB40*(pIFGToIGT) -> 0.0003297061558 | BH40: =BA40*(INDEX(pIFGToDeath_1,cycle+1)) -> 0.006494640884 | BI40: =(BA40*((cLifestyleTx+cIFG)))*'Time Discounting'!C37 -> 340.0744694 | BJ40: =(BI40 + BI41)/2 -> 328.3230921 | BK40: =SUM(BJ40:BJ40) -> 328.3230921 | BL40: =(BA40*(vQoLIFG))*'Time Discounting'!E37 -> 0.06155920665 | BM40: =(BL40 + BL41)/2 -> 0.05943200943 | BN40: =SUM(BM40:BM40) -> 0.05943200943 | BO40: =(BA40*(1))*'Time Discounting'!G37 -> 0.08110567411 | BP40: =(BO40 + BO41)/2 -> 0.07830304273 | BQ40: =SUM(BP40:BP40) -> 0.07830304273 | BR40: =0 -> 0 | BS40: =BR40*(1-(INDEX(pIGTToDeath_1,cycle+1))) -> 0 | BT40: =BS40*(1-(pIGTToIFG)-(pIGTToCombined)-(INDEX(pIGTToNGT_1,cycle+1))-(((1-EXP((-(-LN(1-(1/(1+EXP((-1)*(((((((-6.54)+(0.75*rGender))+(0.07*(rAge+cycle)))+(0.87*rFiveADay))+(0.56*rTriglyceride))+(0.35*rBloodPressure))+(0.35*rBMI))))))))/10))*(InterpolateTable(tFactorsIntervention,2,1))))) -> 0 | BU40: =BS40*(pIGTToIFG) -> 0 | BV40: =BS40*(pIGTToCombined) -> 0 | BW40: =BS40*(INDEX(pIGTToNGT_1,cycle+1)) -> 0 | BX40: =BS40*(((1-EXP((-(-LN(1-(1/(1+EXP((-1)*(((((((-6.54)+(0.75*rGender))+(0.07*(rAge+cycle)))+(0.87*rFiveADay))+(0.56*rTriglyceride))+(0.35*rBloodPressure))+(0.35*rBMI))))))))/10))*(InterpolateTable(tFactorsIntervention,2,1)))) -> 0 | BY40: =BR40*(INDEX(pIGTToDeath_1,cycle+1)) -> 0 | BZ40: =(BR40*((cLifestyleTx+cIGT)))*'Time Discounting'!C37 -> 0 | CA40: =(BZ40 + BZ41)/2 -> 0 | CB40: =SUM(CA40:CA40) -> 0 | CC40: =(BR40*(vQoLIGT))*'Time Discounting'!E37 -> 0 | CD40: =(CC40 + CC41)/2 -> 0 | CE40: =SUM(CD40:CD40) -> 0 | CF40: =(BR40*(1))*'Time Discounting'!G37 -> 0 | CG40: =(CF40 + CF41)/2 -> 0 | CH40: =SUM(CG40:CG40) -> 0 | CI40: =0 + '1. Strategy Calcs'!W39 + '1. Strategy Calcs'!AN39 + '1. Strategy Calcs'!BD39 + '1. Strategy Calcs'!BV39 + CK39 -> 0.02018503479 | CJ40: =CI40*(1-(INDEX(pCombinedToDeath_1,cycle+1))) -> 0.01856869224 | CK40: =CJ40*(1-(pCombinedToIFG)-(((1-EXP((-(-LN(1-(1/(1+EXP((-1)*((((((-0.55)-(0.61*rGender))+(0.71*rBMI))+(0.87*rHeredity))-(1.06*rFiveADay))+(0.42*rSmoking))))))))/10))*(InterpolateTable(tFactorsIntervention,2,1))))-((1-EXP((-(-LN(1-(1/(1+EXP((-1)*(((((-0.61)+(0.81*rGender))+(1.15*rSnus))-(1.24*rSmoking))-(0.77*rBMI))))))))/10)))-(pCombinedToIGT)) -> 0.016965049 | CL40: =CJ40*(pCombinedToIFG) -> 0.0002333898927 | CM40: =CJ40*(((1-EXP((-(-LN(1-(1/(1+EXP((-1)*((((((-0.55)-(0.61*rGender))+(0.71*rBMI))+(0.87*rHeredity))-(1.06*rFiveADay))+(0.42*rSmoking))))))))/10))*(InterpolateTable(tFactorsIntervention,2,1)))) -> 0.0004499951154 | CN40: =CJ40*((1-EXP((-(-LN(1-(1/(1+EXP((-1)*(((((-0.61)+(0.81*rGender))+(1.15*rSnus))-(1.24*rSmoking))-(0.77*rBMI))))))))/10))) -> 0.0007577450302 | CO40: =CJ40*(pCombinedToIGT) -> 0.0001625131945 | CP40: =CI40*(INDEX(pCombinedToDeath_1,cycle+1)) -> 0.001616342551 | CQ40: =(CI40*((cLifestyleTx+cCombined)))*'Time Discounting'!C37 -> 84.63544716 | CR40: =(CQ40 + CQ41)/2 -> 82.41385457 | CS40: =SUM(CR40:CR40) -> 82.41385457 | CT40: =(CI40*(vQoLCombined))*'Time Discounting'!E37 -> 0.01503785092 | CU40: =(CT40 + CT41)/2 -> 0.01464312295 | CV40: =SUM(CU40:CU40) -> 0.01464312295 | CW40: =(CI40*(1))*'Time Discounting'!G37 -> 0.02018503479 | CX40: =(CW40 + CW41)/2 -> 0.01965519859 | CY40: =SUM(CX40:CX40) -> 0.01965519859 | CZ40: =0 + '1. Strategy Calcs'!Z39 + '1. Strategy Calcs'!AQ39 + '1. Strategy Calcs'!BH39 + '1. Strategy Calcs'!BY39 + '1. Strategy Calcs'!CP39 + DA39 -> 0.5512824933 | DA40: =CZ40*(1) -> 0.5512824933 | DB40: =(CZ40*(vQoLDeath))*'Time Discounting'!E37 -> 0 | DC40: =(DB40 + DB41)/2 -> 0 | DD40: =SUM(DC40:DC40) -> 0 | DF40: =IF(cycle<50,(((-0.0002)*((rAge+cycle)^2))+(0.0019*(rAge+cycle)))+2.3148,1.14) -> 1.1258 | DG40: =IF(cycle<50,(((-0.0002)*((rAge+cycle)^2))+(0.0019*(rAge+cycle)))+2.4097,1.19) -> 1.2207 | DH40: 0.08007628265 | DI40: 0.08007628265 | DJ40: =1-EXP((-(-LN(1-(1/(1+EXP((-1)*((((((2.84-(0.43*rHeredity))-(0.02*(rAge+cycle)))-(0.23*rEducation))-(0.25*rBloodPressure))-(0.38*rBMI))-(0.26*rTriglyceride))))))))/10) -> 0.06375300667 | DK40: =IF(rGender=1,INDEX(HazardRatioIGTToDeath_1,cycle+1)*(InterpolateTable(tMortalityWithoutDiabetes,rAge+cycle,1)),INDEX(HazardRatioIGTToDeath_1,cycle+1)*(InterpolateTable(tMortalityWithoutDiabetes,rAge+cycle,2))) -> 0.08007628265 | DL40: =1-EXP((-(-LN(1-(1/(1+EXP((-1)*((((((3.06+(0.72*rGender))-(0.07*(rAge+cycle)))-(0.23*rEducation))-(0.37*rBMI))-(0.29*rPerceivedHealth))-(0.49*rTriglyceride))))))))/10) -> 0.004483360927 | DM40: =1-EXP((-(-LN(1-(1/(1+EXP((-1)*((((((((((-6.2)+(0.16*rGender))+(0.04*(rAge+cycle)))-(0.24*rSnus))+(0.32*rHeredity))+(0.15*rPhysicalActivity))+(0.2*rTriglyceride))+(0.6*rBloodPressure))+(0.5*rBMI))-(0.33*rFiveADay))))))))/10) -> 0.006546105718 | DN40: =IF(rGender=1,InterpolateTable(tMortalityWithoutDiabetes,rAge+cycle,1),InterpolateTable(tMortalityWithoutDiabetes,rAge+cycle,2)) -> 0.07112833776 | DO40: =1-EXP((-(-LN(1-(1/(1+EXP((-1)*((((((((((-3.07)+(0.29*rGender))+(0.01*(rAge+cycle)))+(0.11*rEducation))+(0.19*rHeredity))-(0.09*rSnus))+(0.15*rTriglyceride))+(0.12*rBloodPressure))+(0.16*rBMI))+(0.23*rSmoking))))))))/10) -> 0.02487821504 | DP40: =1-EXP((-(-LN(1-(1/(1+EXP((-1)*((((((((((-7.29)+(0.51*rGender))+(0.06*(rAge+cycle)))+(0.09*rEducation))+(0.14*rPhysicalActivity))+(0.15*rHeredity))+(0.41*rTriglyceride))+(0.34*rBloodPressure))+(0.21*rBMI))-(0.12*rSmoking))))))))/10) -> 0.02381273918 | DQ40: =IF(rGender=1,INDEX(HazardRatioT2DToDeath_1,cycle+1)*(InterpolateTable(tMortalityWithoutDiabetes,rAge+cycle,1)),INDEX(HazardRatioT2DToDeath_1,cycle+1)*(InterpolateTable(tMortalityWithoutDiabetes,rAge+cycle,2))) -> 0.0868263619
B41: 33 | D41: ='1. Strategy Calcs'!S41 -> 0.2246307232 | E41: ='1. Strategy Calcs'!AJ41 -> 0.09507903137 | F41: ='1. Strategy Calcs'!BA41 -> 0.07550041135 | G41: ='1. Strategy Calcs'!BR41 -> 0 | H41: ='1. Strategy Calcs'!CI41 -> 0.01912536239 | I41: ='1. Strategy Calcs'!CZ41 -> 0.5856644717 | J41: ='1. Strategy Calcs'!AC41 + '1. Strategy Calcs'!AT41 + '1. Strategy Calcs'!BK41 + '1. Strategy Calcs'!CB41 + '1. Strategy Calcs'!CS41 -> 1905.40358 | K41: =K40 + J41 -> 110434.1289 | L41: ='1. Strategy Calcs'!AF41 + '1. Strategy Calcs'!AW41 + '1. Strategy Calcs'!BN41 + '1. Strategy Calcs'!CE41 + '1. Strategy Calcs'!CV41 + '1. Strategy Calcs'!DD41 -> 0.3008203982 | M41: =M40 + L41 -> 20.39470997 | N41: ='1. Strategy Calcs'!AI41 + '1. Strategy Calcs'!AZ41 + '1. Strategy Calcs'!BQ41 + '1. Strategy Calcs'!CH41 + '1. Strategy Calcs'!CY41 -> 0.3967172674 | O41: =O40 + N41 -> 26.7417681 | Q41: 1 | S41: =0 + U40 + '1. Strategy Calcs'!AO40 + '1. Strategy Calcs'!BF40 + '1. Strategy Calcs'!BW40 + '1. Strategy Calcs'!CN40 -> 0.2246307232 | T41: 0.2066955712 | U41: 0.1942659639 | V41: 0.005187272563 | W41: 0.001406244707 | X41: 0.0006488173979 | Y41: 0.005187272563 | Z41: 0.01793515199 | AA41: =(S41*(cNGT))*'Time Discounting'!C38 -> 759.4427804 | AB41: 720.0205127 | AC41: 720.0205127 | AD41: =(S41*(vQoLNGT))*'Time Discounting'!E38 -> 0.1725163954 | AE41: 0.1635611618 | AF41: 0.1635611618 | AG41: =(S41*(1))*'Time Discounting'!G38 -> 0.2246307232 | AH41: 0.2129702627 | AI41: 0.2129702627 | AJ41: =0 + '1. Strategy Calcs'!X40 + '1. Strategy Calcs'!Y40 + AL40 + AP40 + '1. Strategy Calcs'!BE40 + '1. Strategy Calcs'!BG40 + '1. Strategy Calcs'!BT40 + '1. Strategy Calcs'!BX40 + '1. Strategy Calcs'!CM40 + '1. Strategy Calcs'!CO40 -> 0.09507903137 | AK41: 0.08604832731 | AL41: 0.07562948131 | AM41: 0.005162036319 | AN41: 0.0001722661789 | AO41: 0.002000881755 | AP41: 0.00308366175 | AQ41: 0.009030704057 | AR41: =(AJ41*((cT2D+cLifestyleTx)))*'Time Discounting'!C38 -> 824.5881122 | AS41: 803.3151838 | AT41: 803.3151838 | AU41: =(AJ41*(vQoLT2D))*'Time Discounting'!E38 -> 0.07016832515 | AV41: 0.06835810531 | AW41: 0.06835810531 | AX41: =(AJ41*(1))*'Time Discounting'!G38 -> 0.09507903137 | AY41: 0.09262615896 | AZ41: 0.09262615896 | BA41: =0 + '1. Strategy Calcs'!V40 + '1. Strategy Calcs'!AM40 + BC40 + '1. Strategy Calcs'!BU40 + '1. Strategy Calcs'!CL40 -> 0.07550041135 | BB41: 0.06890137772 | BC41: 0.05908819619 | BD41: 0.000434147581 | BE41: 0.004743848251 | BF41: 0.004330710501 | BG41: 0.0003044751881 | BH41: 0.006599033637 | BI41: =(BA41*((cLifestyleTx+cIFG)))*'Time Discounting'!C38 -> 316.5717148 | BJ41: 304.3208119 | BK41: 304.3208119 | BL41: =(BA41*(vQoLIFG))*'Time Discounting'!E38 -> 0.05730481222 | BM41: 0.05508719245 | BN41: 0.05508719245 | BO41: =(BA41*(1))*'Time Discounting'!G38 -> 0.07550041135 | BP41: 0.07257864618 | BQ41: 0.07257864618 | BR41: =0 -> 0 | BS41: 0 | BT41: 0 | BU41: 0 | BV41: 0 | BW41: 0 | BX41: 0 | BY41: 0 | BZ41: =(BR41*((cLifestyleTx+cIGT)))*'Time Discounting'!C38 -> 0 | CA41: 0 | CB41: 0 | CC41: =(BR41*(vQoLIGT))*'Time Discounting'!E38 -> 0 | CD41: 0 | CE41: 0 | CF41: =(BR41*(1))*'Time Discounting'!G38 -> 0 | CG41: 0 | CH41: 0 | CI41: =0 + '1. Strategy Calcs'!W40 + '1. Strategy Calcs'!AN40 + '1. Strategy Calcs'!BD40 + '1. Strategy Calcs'!BV40 + CK40 -> 0.01912536239 | CJ41: 0.01745373031 | CK41: 0.01594637825 | CL41: 0.0002193759362 | CM41: 0.0004229750422 | CN41: 0.0007122460338 | CO41: 0.0001527550476 | CP41: 0.001671632081 | CQ41: =(CI41*((cLifestyleTx+cCombined)))*'Time Discounting'!C38 -> 80.19226198 | CR41: 77.74707187 | CS41: 77.74707187 | CT41: =(CI41*(vQoLCombined))*'Time Discounting'!E38 -> 0.01424839498 | CU41: 0.01381393866 | CV41: 0.01381393866 | CW41: =(CI41*(1))*'Time Discounting'!G38 -> 0.01912536239 | CX41: 0.01854219955 | CY41: 0.01854219955 | CZ41: =0 + '1. Strategy Calcs'!Z40 + '1. Strategy Calcs'!AQ40 + '1. Strategy Calcs'!BH40 + '1. Strategy Calcs'!BY40 + '1. Strategy Calcs'!CP40 + DA40 -> 0.5856644717 | DA41: 0.5856644717 | DB41: =(CZ41*(vQoLDeath))*'Time Discounting'!E38 -> 0 | DC41: 0 | DD41: 0 | DF41: 1.0947 | DG41: 1.1896 | DH41: 0.08740394283 | DI41: 0.08740394283 | DJ41: 0.06285375771 | DK41: 0.08740394283 | DL41: 0.004187148271 | DM41: 0.006803458336 | DN41: 0.0798428271 | DO41: 0.02509619598 | DP41: 0.02509619598 | DQ41: 0.09498102712
B42: 34 | D42: ='1. Strategy Calcs'!S42 -> 0.2013098022 | E42: ='1. Strategy Calcs'!AJ42 -> 0.09017328655 | F42: ='1. Strategy Calcs'!BA42 -> 0.06965688101 | G42: ='1. Strategy Calcs'!BR42 -> 0 | H42: ='1. Strategy Calcs'!CI42 -> 0.01795903671 | I42: ='1. Strategy Calcs'!CZ42 -> 0.6209009935 | J42: ='1. Strategy Calcs'!AC42 + '1. Strategy Calcs'!AT42 + '1. Strategy Calcs'!BK42 + '1. Strategy Calcs'!CB42 + '1. Strategy Calcs'!CS42 -> 1751.63219 | K42: 112185.761 | L42: ='1. Strategy Calcs'!AF42 + '1. Strategy Calcs'!AW42 + '1. Strategy Calcs'!BN42 + '1. Strategy Calcs'!CE42 + '1. Strategy Calcs'!CV42 + '1. Strategy Calcs'!DD42 -> 0.2737418384 | M42: 20.66845181 | N42: ='1. Strategy Calcs'!AI42 + '1. Strategy Calcs'!AZ42 + '1. Strategy Calcs'!BQ42 + '1. Strategy Calcs'!CH42 + '1. Strategy Calcs'!CY42 -> 0.3611481414 | O42: 27.10291624 | Q42: 1 | S42: =0 + U41 + '1. Strategy Calcs'!AO41 + '1. Strategy Calcs'!BF41 + '1. Strategy Calcs'!BW41 + '1. Strategy Calcs'!CN41 -> 0.2013098022 | T42: 0.1831912212 | U42: 0.1718398991 | V42: 0.004637636857 | W42: 0.001295260298 | X42: 0.0005750372435 | Y42: 0.004843387733 | Z42: 0.01811858099 | AA42: =(S42*(cNGT))*'Time Discounting'!C39 -> 680.5982449 | AB42: 641.6748702 | AC42: 641.6748702 | AD42: =(S42*(vQoLNGT))*'Time Discounting'!E39 -> 0.1546059281 | AE42: 0.1457640239 | AF42: 0.1457640239 | AG42: =(S42*(1))*'Time Discounting'!G39 -> 0.2013098022 | AH42: 0.1897969062 | AI42: 0.1897969062 | AJ42: =0 + '1. Strategy Calcs'!X41 + '1. Strategy Calcs'!Y41 + AL41 + AP41 + '1. Strategy Calcs'!BE41 + '1. Strategy Calcs'!BG41 + '1. Strategy Calcs'!BT41 + '1. Strategy Calcs'!BX41 + '1. Strategy Calcs'!CM41 + '1. Strategy Calcs'!CO41 -> 0.09017328655 | AK42: 0.08077425257 | AL42: 0.07099399855 | AM42: 0.004845644749 | AN42: 0.0001617076389 | AO42: 0.001878243695 | AP42: 0.00289465793 | AQ42: 0.009399033982 | AR42: =(AJ42*((cT2D+cLifestyleTx)))*'Time Discounting'!C39 -> 782.0422553 | AS42: 757.9149524 | AT42: 757.9149524 | AU42: =(AJ42*(vQoLT2D))*'Time Discounting'!E39 -> 0.06654788547 | AV42: 0.06449477264 | AW42: 0.06449477264 | AX42: =(AJ42*(1))*'Time Discounting'!G39 -> 0.09017328655 | AY42: 0.08739129084 | AZ42: 0.08739129084 | BA42: =0 + '1. Strategy Calcs'!V41 + '1. Strategy Calcs'!AM41 + BC41 + '1. Strategy Calcs'!BU41 + '1. Strategy Calcs'!CL41 -> 0.06965688101 | BB42: 0.06299129631 | BC42: 0.05392475498 | BD42: 0.000396908158 | BE42: 0.004488144543 | BF42: 0.003903130091 | BG42: 0.0002783585384 | BH42: 0.006665584706 | BI42: =(BA42*((cLifestyleTx+cIFG)))*'Time Discounting'!C39 -> 292.069909 | BJ42: 279.3972191 | BK42: 279.3972191 | BL42: =(BA42*(vQoLIFG))*'Time Discounting'!E39 -> 0.05286957269 | BM42: 0.05057560239 | BN42: 0.05057560239 | BO42: =(BA42*(1))*'Time Discounting'!G39 -> 0.06965688101 | BP42: 0.06663452226 | BQ42: 0.06663452226 | BR42: =0 -> 0 | BS42: 0 | BT42: 0 | BU42: 0 | BV42: 0 | BW42: 0 | BX42: 0 | BY42: 0 | BZ42: =(BR42*((cLifestyleTx+cIGT)))*'Time Discounting'!C39 -> 0 | CA42: 0 | CB42: 0 | CC42: =(BR42*(vQoLIGT))*'Time Discounting'!E39 -> 0 | CD42: 0 | CE42: 0 | CF42: =(BR42*(1))*'Time Discounting'!G39 -> 0 | CG42: 0 | CH42: 0 | CI42: =0 + '1. Strategy Calcs'!W41 + '1. Strategy Calcs'!AN41 + '1. Strategy Calcs'!BD41 + '1. Strategy Calcs'!BV41 + CK41 -> 0.01795903671 | CJ42: 0.01624050613 | CK42: 0.01483793144 | CL42: 0.0002041269215 | CM42: 0.0003935736742 | CN42: 0.0006627371842 | CO42: 0.0001421369096 | CP42: 0.001718530585 | CQ42: =(CI42*((cLifestyleTx+cCombined)))*'Time Discounting'!C39 -> 75.30188175 | CR42: 72.64514845 | CS42: 72.64514845 | CT42: =(CI42*(vQoLCombined))*'Time Discounting'!E39 -> 0.01337948235 | CU42: 0.01290743948 | CV42: 0.01290743948 | CW42: =(CI42*(1))*'Time Discounting'!G39 -> 0.01795903671 | CX42: 0.01732542212 | CY42: 0.01732542212 | CZ42: =0 + '1. Strategy Calcs'!Z41 + '1. Strategy Calcs'!AQ41 + '1. Strategy Calcs'!BH41 + '1. Strategy Calcs'!BY41 + '1. Strategy Calcs'!CP41 + DA41 -> 0.6209009935 | DA42: 0.6209009935 | DB42: =(CZ42*(vQoLDeath))*'Time Discounting'!E39 -> 0 | DC42: 0 | DD42: 0 | DF42: 1.0632 | DG42: 1.1581 | DH42: 0.0956916906 | DI42: 0.0956916906 | DJ42: 0.06196300632 | DK42: 0.0956916906 | DL42: 0.003910085531 | DM42: 0.007070536946 | DN42: 0.09000347122 | DO42: 0.02531582477 | DP42: 0.02643897289 | DQ42: 0.10423302
B43: 35 | D43: ='1. Strategy Calcs'!S43 -> 0.1782840101 | E43: ='1. Strategy Calcs'!AJ43 -> 0.08460929513 | F43: ='1. Strategy Calcs'!BA43 -> 0.0636121635 | G43: ='1. Strategy Calcs'!BR43 -> 0 | H43: ='1. Strategy Calcs'!CI43 -> 0.01669180753 | I43: ='1. Strategy Calcs'!CZ43 -> 0.6568027238 | J43: ='1. Strategy Calcs'!AC43 + '1. Strategy Calcs'!AT43 + '1. Strategy Calcs'!BK43 + '1. Strategy Calcs'!CB43 + '1. Strategy Calcs'!CS43 -> 1591.494733 | K43: 113777.2558 | L43: ='1. Strategy Calcs'!AF43 + '1. Strategy Calcs'!AW43 + '1. Strategy Calcs'!BN43 + '1. Strategy Calcs'!CE43 + '1. Strategy Calcs'!CV43 + '1. Strategy Calcs'!DD43 -> 0.2461349441 | M43: 20.91458675 | N43: ='1. Strategy Calcs'!AI43 + '1. Strategy Calcs'!AZ43 + '1. Strategy Calcs'!BQ43 + '1. Strategy Calcs'!CH43 + '1. Strategy Calcs'!CY43 -> 0.3248583417 | O43: 27.42777458 | Q43: 1 | S43: =0 + U42 + '1. Strategy Calcs'!AO42 + '1. Strategy Calcs'!BF42 + '1. Strategy Calcs'!BW42 + '1. Strategy Calcs'!CN42 -> 0.1782840101 | T43: 0.159935837 | U43: 0.1497212763 | V43: 0.004084299003 | W43: 0.001175157114 | X43: 0.0005020385923 | Y43: 0.004453065938 | Z43: 0.01834817309 | AA43: =(S43*(cNGT))*'Time Discounting'!C40 -> 602.7514955 | AB43: 564.3088678 | AC43: 564.3088678 | AD43: =(S43*(vQoLNGT))*'Time Discounting'!E40 -> 0.1369221197 | AE43: 0.1281894229 | AF43: 0.1281894229 | AG43: =(S43*(1))*'Time Discounting'!G40 -> 0.1782840101 | AH43: 0.1669133111 | AI43: 0.1669133111 | AJ43: =0 + '1. Strategy Calcs'!X42 + '1. Strategy Calcs'!Y42 + AL42 + AP42 + '1. Strategy Calcs'!BE42 + '1. Strategy Calcs'!BG42 + '1. Strategy Calcs'!BT42 + '1. Strategy Calcs'!BX42 + '1. Strategy Calcs'!CM42 + '1. Strategy Calcs'!CO42 -> 0.08460929513 | AK43: 0.07480279509 | AL43: 0.06574557309 | AM43: 0.004487417212 | AN43: 0.0001497529596 | AO43: 0.001739389394 | AP43: 0.002680662428 | AQ43: 0.00980650004 | AR43: =(AJ43*((cT2D+cLifestyleTx)))*'Time Discounting'!C40 -> 733.7876495 | AS43: 706.4957488 | AT43: 706.4957488 | AU43: =(AJ43*(vQoLT2D))*'Time Discounting'!E40 -> 0.0624416598 | AV43: 0.06011925552 | AW43: 0.06011925552 | AX43: =(AJ43*(1))*'Time Discounting'!G40 -> 0.08460929513 | AY43: 0.08146240586 | AZ43: 0.08146240586 | BA43: =0 + '1. Strategy Calcs'!V42 + '1. Strategy Calcs'!AM42 + BC42 + '1. Strategy Calcs'!BU42 + '1. Strategy Calcs'!CL42 -> 0.0636121635 | BB43: 0.05686058038 | BC43: 0.04858719604 | BD43: 0.000358278517 | BE43: 0.004190750946 | BF43: 0.003473087977 | BG43: 0.0002512669047 | BH43: 0.006751583121 | BI43: =(BA43*((cLifestyleTx+cIFG)))*'Time Discounting'!C40 -> 266.7245293 | BJ43: 253.5885114 | BK43: 253.5885114 | BL43: =(BA43*(vQoLIFG))*'Time Discounting'!E40 -> 0.0482816321 | BM43: 0.04590379162 | BN43: 0.04590379162 | BO43: =(BA43*(1))*'Time Discounting'!G40 -> 0.0636121635 | BP43: 0.06047930384 | BQ43: 0.06047930384 | BR43: =0 -> 0 | BS43: 0 | BT43: 0 | BU43: 0 | BV43: 0 | BW43: 0 | BX43: 0 | BY43: 0 | BZ43: =(BR43*((cLifestyleTx+cIGT)))*'Time Discounting'!C40 -> 0 | CA43: 0 | CB43: 0 | CC43: =(BR43*(vQoLIGT))*'Time Discounting'!E40 -> 0 | CD43: 0 | CE43: 0 | CF43: =(BR43*(1))*'Time Discounting'!G40 -> 0 | CG43: 0 | CH43: 0 | CI43: =0 + '1. Strategy Calcs'!W42 + '1. Strategy Calcs'!AN42 + '1. Strategy Calcs'!BD42 + '1. Strategy Calcs'!BV42 + CK42 -> 0.01669180753 | CJ43: 0.01492019469 | CK43: 0.01363164572 | CL43: 0.000187531927 | CM43: 0.0003615771453 | CN43: 0.0006088583531 | CO43: 0.0001305815439 | CP43: 0.001771612846 | CQ43: =(CI43*((cLifestyleTx+cCombined)))*'Time Discounting'!C40 -> 69.98841515 | CR43: 67.10160456 | CS43: 67.10160456 | CT43: =(CI43*(vQoLCombined))*'Time Discounting'!E40 -> 0.01243539661 | CU43: 0.01192247409 | CV43: 0.01192247409 | CW43: =(CI43*(1))*'Time Discounting'!G40 -> 0.01669180753 | CX43: 0.01600332092 | CY43: 0.01600332092 | CZ43: =0 + '1. Strategy Calcs'!Z42 + '1. Strategy Calcs'!AQ42 + '1. Strategy Calcs'!BH42 + '1. Strategy Calcs'!BY42 + '1. Strategy Calcs'!CP42 + DA42 -> 0.6568027238 | DA43: 0.6568027238 | DB43: =(CZ43*(vQoLDeath))*'Time Discounting'!E40 -> 0 | DC43: 0 | DD43: 0 | DF43: 1.0313 | DG43: 1.1262 | DH43: 0.1061366687 | DI43: 0.1061366687 | DJ43: 0.06108076902 | DK43: 0.1061366687 | DL43: 0.003650988014 | DM43: 0.007347678519 | DN43: 0.1029154161 | DO43: 0.02553710963 | DP43: 0.02784282761 | DQ43: 0.1159033417
B44: 36 | D44: ='1. Strategy Calcs'!S44 -> 0.1555426121 | E44: ='1. Strategy Calcs'!AJ44 -> 0.07831551659 | F44: ='1. Strategy Calcs'!BA44 -> 0.05734644418 | G44: ='1. Strategy Calcs'!BR44 -> 0 | H44: ='1. Strategy Calcs'!CI44 -> 0.01531483431 | I44: ='1. Strategy Calcs'!CZ44 -> 0.6934805928 | J44: ='1. Strategy Calcs'!AC44 + '1. Strategy Calcs'!AT44 + '1. Strategy Calcs'!BK44 + '1. Strategy Calcs'!CB44 + '1. Strategy Calcs'!CS44 -> 1424.007227 | K44: 115201.263 | L44: ='1. Strategy Calcs'!AF44 + '1. Strategy Calcs'!AW44 + '1. Strategy Calcs'!BN44 + '1. Strategy Calcs'!CE44 + '1. Strategy Calcs'!CV44 + '1. Strategy Calcs'!DD44 -> 0.2178877545 | M44: 21.13247451 | N44: ='1. Strategy Calcs'!AI44 + '1. Strategy Calcs'!AZ44 + '1. Strategy Calcs'!BQ44 + '1. Strategy Calcs'!CH44 + '1. Strategy Calcs'!CY44 -> 0.2876981383 | O44: 27.71547272 | Q44: 1 | S44: =0 + U43 + '1. Strategy Calcs'!AO43 + '1. Strategy Calcs'!BF43 + '1. Strategy Calcs'!BW43 + '1. Strategy Calcs'!CN43 -> 0.1555426121 | T44: 0.1368842056 | U44: 0.1278712341 | V44: 0.003526145175 | W44: 0.001045142304 | X44: 0.0004296795214 | Y44: 0.004012004488 | Z44: 0.01865840645 | AA44: =(S44*(cNGT))*'Time Discounting'!C41 -> 525.86624 | AB44: 487.8311772 | AC44: 487.8311772 | AD44: =(S44*(vQoLNGT))*'Time Discounting'!E41 -> 0.1194567261 | AE44: 0.1108166124 | AF44: 0.1108166124 | AG44: =(S44*(1))*'Time Discounting'!G41 -> 0.1555426121 | AH44: 0.1442924641 | AI44: 0.1442924641 | AJ44: =0 + '1. Strategy Calcs'!X43 + '1. Strategy Calcs'!Y43 + AL43 + AP43 + '1. Strategy Calcs'!BE43 + '1. Strategy Calcs'!BG43 + '1. Strategy Calcs'!BT43 + '1. Strategy Calcs'!BX43 + '1. Strategy Calcs'!CM43 + '1. Strategy Calcs'!CO43 -> 0.07831551659 | AK44: 0.06803888942 | AL44: 0.05980065013 | AM44: 0.004081650734 | AN44: 0.0001362118226 | AO44: 0.001582108296 | AP44: 0.00243826844 | AQ44: 0.01027662717 | AR44: =(AJ44*((cT2D+cLifestyleTx)))*'Time Discounting'!C41 -> 679.2038481 | AS44: 648.325564 | AT44: 648.325564 | AU44: =(AJ44*(vQoLT2D))*'Time Discounting'!E41 -> 0.05779685124 | AV44: 0.05516926367 | AW44: 0.05516926367 | AX44: =(AJ44*(1))*'Time Discounting'!G41 -> 0.07831551659 | AY44: 0.07475509982 | AZ44: 0.07475509982 | BA44: =0 + '1. Strategy Calcs'!V43 + '1. Strategy Calcs'!AM43 + BC43 + '1. Strategy Calcs'!BU43 + '1. Strategy Calcs'!CL43 -> 0.05734644418 | BB44: 0.05047422276 | BC44: 0.04304783717 | BD44: 0.0003180380776 | BE44: 0.003846397354 | BF44: 0.003038904568 | BG44: 0.0002230455904 | BH44: 0.006872221422 | BI44: =(BA44*((cLifestyleTx+cIFG)))*'Time Discounting'!C41 -> 240.4524935 | BJ44: 226.7804717 | BK44: 226.7804717 | BL44: =(BA44*(vQoLIFG))*'Time Discounting'!E41 -> 0.04352595113 | BM44: 0.04105108491 | BN44: 0.04105108491 | BO44: =(BA44*(1))*'Time Discounting'!G41 -> 0.05734644418 | BP44: 0.05408575087 | BQ44: 0.05408575087 | BR44: =0 -> 0 | BS44: 0 | BT44: 0 | BU44: 0 | BV44: 0 | BW44: 0 | BX44: 0 | BY44: 0 | BZ44: =(BR44*((cLifestyleTx+cIGT)))*'Time Discounting'!C41 -> 0 | CA44: 0 | CB44: 0 | CC44: =(BR44*(vQoLIGT))*'Time Discounting'!E41 -> 0 | CD44: 0 | CE44: 0 | CF44: =(BR44*(1))*'Time Discounting'!G41 -> 0 | CG44: 0 | CH44: 0 | CI44: =0 + '1. Strategy Calcs'!W43 + '1. Strategy Calcs'!AN43 + '1. Strategy Calcs'!BD43 + '1. Strategy Calcs'!BV43 + CK43 -> 0.01531483431 | CJ44: 0.01347955169 | CK44: 0.0123154206 | CL44: 0.0001694244852 | CM44: 0.000326664492 | CN44: 0.0005500690717 | CO44: 0.0001179730364 | CP44: 0.001835282622 | CQ44: =(CI44*((cLifestyleTx+cCombined)))*'Time Discounting'!C41 -> 64.21479396 | CR44: 61.07001388 | CS44: 61.07001388 | CT44: =(CI44*(vQoLCombined))*'Time Discounting'!E41 -> 0.01140955156 | CU44: 0.01085079355 | CV44: 0.01085079355 | CW44: =(CI44*(1))*'Time Discounting'!G41 -> 0.01531483431 | CX44: 0.01456482356 | CY44: 0.01456482356 | CZ44: =0 + '1. Strategy Calcs'!Z43 + '1. Strategy Calcs'!AQ43 + '1. Strategy Calcs'!BH43 + '1. Strategy Calcs'!BY43 + '1. Strategy Calcs'!CP43 + DA43 -> 0.6934805928 | DA44: 0.6934805928 | DB44: =(CZ44*(vQoLDeath))*'Time Discounting'!E41 -> 0 | DC44: 0 | DD44: 0 | DF44: 0.999 | DG44: 1.0939 | DH44: 0.1198369231 | DI44: 0.1198369231 | DJ44: 0.06020706019 | DK44: 0.1198369231 | DL44: 0.003408737572 | DM44: 0.007635229345 | DN44: 0.11995688 | DO44: 0.02576005872 | DP44: 0.02930947708 | DQ44: 0.131220831
B45: 37 | D45: ='1. Strategy Calcs'!S45 -> 0.1330423161 | E45: ='1. Strategy Calcs'!AJ45 -> 0.07119468305 | F45: ='1. Strategy Calcs'!BA45 -> 0.05082505756 | G45: ='1. Strategy Calcs'!BR45 -> 0 | H45: ='1. Strategy Calcs'!CI45 -> 0.01381481281 | I45: ='1. Strategy Calcs'!CZ45 -> 0.7311231305 | J45: ='1. Strategy Calcs'!AC45 + '1. Strategy Calcs'!AT45 + '1. Strategy Calcs'!BK45 + '1. Strategy Calcs'!CB45 + '1. Strategy Calcs'!CS45 -> 1254.594575 | K45: 116455.8576 | L45: ='1. Strategy Calcs'!AF45 + '1. Strategy Calcs'!AW45 + '1. Strategy Calcs'!BN45 + '1. Strategy Calcs'!CE45 + '1. Strategy Calcs'!CV45 + '1. Strategy Calcs'!DD45 -> 0.1898436921 | M45: 21.3223182 | N45: ='1. Strategy Calcs'!AI45 + '1. Strategy Calcs'!AZ45 + '1. Strategy Calcs'!BQ45 + '1. Strategy Calcs'!CH45 + '1. Strategy Calcs'!CY45 -> 0.2507804251 | O45: 27.96625315 | Q45: 1 | S45: =0 + U44 + '1. Strategy Calcs'!AO44 + '1. Strategy Calcs'!BF44 + '1. Strategy Calcs'!BW44 + '1. Strategy Calcs'!CN44 -> 0.1330423161 | T45: 0.115277749 | U45: 0.1074506419 | V45: 0.002995455444 | W45: 0.0009145612216 | X45: 0.0003618568542 | Y45: 0.003555233563 | Z45: 0.01776456705 | AA45: =(S45*(cNGT))*'Time Discounting'!C42 -> 449.7961143 | AB45: 414.2078587 | AC45: 414.2078587 | AD45: =(S45*(vQoLNGT))*'Time Discounting'!E42 -> 0.1021764987 | AE45: 0.09409220625 | AF45: 0.09409220625 | AG45: =(S45*(1))*'Time Discounting'!G42 -> 0.1330423161 | AH45: 0.1225158935 | AI45: 0.1225158935 | AJ45: =0 + '1. Strategy Calcs'!X44 + '1. Strategy Calcs'!Y44 + AL44 + AP44 + '1. Strategy Calcs'!BE44 + '1. Strategy Calcs'!BG44 + '1. Strategy Calcs'!BT44 + '1. Strategy Calcs'!BX44 + '1. Strategy Calcs'!CM44 + '1. Strategy Calcs'!CO44 -> 0.07119468305 | AK45: 0.06110657714 | AL45: 0.05370771144 | AM45: 0.003665781548 | AN45: 0.0001223335407 | AO45: 0.001420911238 | AP45: 0.002189839367 | AQ45: 0.01008810591 | AR45: =(AJ45*((cT2D+cLifestyleTx)))*'Time Discounting'!C42 -> 617.4472799 | AS45: 585.7872989 | AT45: 585.7872989 | AU45: =(AJ45*(vQoLT2D))*'Time Discounting'!E42 -> 0.05254167609 | AV45: 0.04984757002 | AW45: 0.04984757002 | AX45: =(AJ45*(1))*'Time Discounting'!G42 -> 0.07119468305 | AY45: 0.06754413282 | AZ45: 0.06754413282 | BA45: =0 + '1. Strategy Calcs'!V44 + '1. Strategy Calcs'!AM44 + BC44 + '1. Strategy Calcs'!BU44 + '1. Strategy Calcs'!CL44 -> 0.05082505756 | BB45: 0.04426731008 | BC45: 0.0376794343 | BD45: 0.0002789283208 | BE45: 0.003486424271 | BF45: 0.002626905938 | BG45: 0.0001956172432 | BH45: 0.006557747486 | BI45: =(BA45*((cLifestyleTx+cIFG)))*'Time Discounting'!C42 -> 213.1084499 | BJ45: 199.8310606 | BK45: 199.8310606 | BL45: =(BA45*(vQoLIFG))*'Time Discounting'!E42 -> 0.03857621869 | BM45: 0.03617278761 | BN45: 0.03617278761 | BO45: =(BA45*(1))*'Time Discounting'!G42 -> 0.05082505756 | BP45: 0.0476584817 | BQ45: 0.0476584817 | BR45: =0 -> 0 | BS45: 0 | BT45: 0 | BU45: 0 | BV45: 0 | BW45: 0 | BX45: 0 | BY45: 0 | BZ45: =(BR45*((cLifestyleTx+cIGT)))*'Time Discounting'!C42 -> 0 | CA45: 0 | CB45: 0 | CC45: =(BR45*(vQoLIGT))*'Time Discounting'!E42 -> 0 | CD45: 0 | CE45: 0 | CF45: =(BR45*(1))*'Time Discounting'!G42 -> 0 | CG45: 0 | CH45: 0 | CI45: =0 + '1. Strategy Calcs'!W44 + '1. Strategy Calcs'!AN44 + '1. Strategy Calcs'!BD44 + '1. Strategy Calcs'!BV44 + CK44 -> 0.01381481281 | CJ45: 0.01203234451 | CK45: 0.01099319821 | CL45: 0.0001512345381 | CM45: 0.0002915927619 | CN45: 0.0004910119213 | CO45: 0.0001053070791 | CP45: 0.0017824683 | CQ45: =(CI45*((cLifestyleTx+cCombined)))*'Time Discounting'!C42 -> 57.9252338 | CR45: 54.76835694 | CS45: 54.76835694 | CT45: =(CI45*(vQoLCombined))*'Time Discounting'!E42 -> 0.01029203554 | CU45: 0.0097311282 | CV45: 0.0097311282 | CW45: =(CI45*(1))*'Time Discounting'!G42 -> 0.01381481281 | CX45: 0.01306191705 | CY45: 0.01306191705 | CZ45: =0 + '1. Strategy Calcs'!Z44 + '1. Strategy Calcs'!AQ44 + '1. Strategy Calcs'!BH44 + '1. Strategy Calcs'!BY44 + '1. Strategy Calcs'!CP44 + DA44 -> 0.7311231305 | DA45: 0.7311231305 | DB45: =(CZ45*(vQoLDeath))*'Time Discounting'!E42 -> 0 | DC45: 0 | DD45: 0 | DF45: 0.9663 | DG45: 1.0612 | DH45: 0.1290258742 | DI45: 0.1290258742 | DJ45: 0.05934189209 | DK45: 0.1290258742 | DL45: 0.00318227972 | DM45: 0.007933545106 | DN45: 0.13352569 | DO45: 0.02598468022 | DP45: 0.030840588 | DQ45: 0.1416974622
B46: 38 | D46: ='1. Strategy Calcs'!S46 -> 0.111989471 | E46: ='1. Strategy Calcs'!AJ46 -> 0.06389358258 | F46: ='1. Strategy Calcs'!BA46 -> 0.04449190583 | G46: ='1. Strategy Calcs'!BR46 -> 0 | H46: ='1. Strategy Calcs'!CI46 -> 0.01230902129 | I46: ='1. Strategy Calcs'!CZ46 -> 0.7673160193 | J46: ='1. Strategy Calcs'!AC46 + '1. Strategy Calcs'!AT46 + '1. Strategy Calcs'!BK46 + '1. Strategy Calcs'!CB46 + '1. Strategy Calcs'!CS46 -> 1089.919146 | K46: 117545.7767 | L46: ='1. Strategy Calcs'!AF46 + '1. Strategy Calcs'!AW46 + '1. Strategy Calcs'!BN46 + '1. Strategy Calcs'!CE46 + '1. Strategy Calcs'!CV46 + '1. Strategy Calcs'!DD46 -> 0.1630121546 | M46: 21.48533035 | N46: ='1. Strategy Calcs'!AI46 + '1. Strategy Calcs'!AZ46 + '1. Strategy Calcs'!BQ46 + '1. Strategy Calcs'!CH46 + '1. Strategy Calcs'!CY46 -> 0.2154384041 | O46: 28.18169155 | Q46: 1 | S46: =0 + U45 + '1. Strategy Calcs'!AO45 + '1. Strategy Calcs'!BF45 + '1. Strategy Calcs'!BW45 + '1. Strategy Calcs'!CN45 -> 0.111989471 | T46: 0.09524523312 | U46: 0.08857513896 | V46: 0.002496471114 | W46: 0.0007851055936 | X46: 0.0002989747868 | Y46: 0.00308954267 | Z46: 0.01674423791 | AA46: =(S46*(cNGT))*'Time Discounting'!C43 -> 378.6196031 | AB46: 345.6804426 | AC46: 345.6804426 | AD46: =(S46*(vQoLNGT))*'Time Discounting'!E43 -> 0.08600791375 | AE46: 0.07852539447 | AF46: 0.07852539447 | AG46: =(S46*(1))*'Time Discounting'!G43 -> 0.111989471 | AH46: 0.1022466074 | AI46: 0.1022466074 | AJ46: =0 + '1. Strategy Calcs'!X45 + '1. Strategy Calcs'!Y45 + AL45 + AP45 + '1. Strategy Calcs'!BE45 + '1. Strategy Calcs'!BG45 + '1. Strategy Calcs'!BT45 + '1. Strategy Calcs'!BX45 + '1. Strategy Calcs'!CM45 + '1. Strategy Calcs'!CO45 -> 0.06389358258 | AK46: 0.05407201539 | AL46: 0.0475249038 | AM46: 0.003243778421 | AN46: 0.0001082505584 | AO46: 0.001257336574 | AP46: 0.001937746041 | AQ46: 0.00982156719 | AR46: =(AJ46*((cT2D+cLifestyleTx)))*'Time Discounting'!C43 -> 554.1273179 | AS46: 521.9993217 | AT46: 521.9993217 | AU46: =(AJ46*(vQoLT2D))*'Time Discounting'!E43 -> 0.04715346395 | AV46: 0.04441953212 | AW46: 0.04441953212 | AX46: =(AJ46*(1))*'Time Discounting'!G43 -> 0.06389358258 | AY46: 0.06018906791 | AZ46: 0.06018906791 | BA46: =0 + '1. Strategy Calcs'!V45 + '1. Strategy Calcs'!AM45 + BC45 + '1. Strategy Calcs'!BU45 + '1. Strategy Calcs'!CL45 -> 0.04449190583 | BB46: 0.03828401699 | BC46: 0.03251972627 | BD46: 0.000241227591 | BE46: 0.003114834795 | BF46: 0.002239051257 | BG46: 0.0001691770711 | BH46: 0.006207888846 | BI46: =(BA46*((cLifestyleTx+cIFG)))*'Time Discounting'!C43 -> 186.5536713 | BJ46: 173.7675883 | BK46: 173.7675883 | BL46: =(BA46*(vQoLIFG))*'Time Discounting'!E43 -> 0.03376935653 | BM46: 0.03145486015 | BN46: 0.03145486015 | BO46: =(BA46*(1))*'Time Discounting'!G43 -> 0.04449190583 | BP46: 0.04144250349 | BQ46: 0.04144250349 | BR46: =0 -> 0 | BS46: 0 | BT46: 0 | BU46: 0 | BV46: 0 | BW46: 0 | BX46: 0 | BY46: 0 | BZ46: =(BR46*((cLifestyleTx+cIGT)))*'Time Discounting'!C43 -> 0 | CA46: 0 | CB46: 0 | CC46: =(BR46*(vQoLIGT))*'Time Discounting'!E43 -> 0 | CD46: 0 | CE46: 0 | CF46: =(BR46*(1))*'Time Discounting'!G43 -> 0 | CG46: 0 | CH46: 0 | CI46: =0 + '1. Strategy Calcs'!W45 + '1. Strategy Calcs'!AN45 + '1. Strategy Calcs'!BD45 + '1. Strategy Calcs'!BV45 + CK45 -> 0.01230902129 | CJ46: 0.01059156202 | CK46: 0.009676845652 | CL46: 0.0001331253431 | CM46: 0.0002566767284 | CN46: 0.0004322169479 | CO46: 9.269735082e-05 | CP46: 0.001717459267 | CQ46: =(CI46*((cLifestyleTx+cCombined)))*'Time Discounting'!C43 -> 51.61148008 | CR46: 48.47179365 | CS46: 48.47179365 | CT46: =(CI46*(vQoLCombined))*'Time Discounting'!E43 -> 0.00917022086 | CU46: 0.008612367879 | CV46: 0.008612367879 | CW46: =(CI46*(1))*'Time Discounting'!G43 -> 0.01230902129 | CX46: 0.01156022534 | CY46: 0.01156022534 | CZ46: =0 + '1. Strategy Calcs'!Z45 + '1. Strategy Calcs'!AQ45 + '1. Strategy Calcs'!BH45 + '1. Strategy Calcs'!BY45 + '1. Strategy Calcs'!CP45 + DA45 -> 0.7673160193 | DA46: 0.7673160193 | DB46: =(CZ46*(vQoLDeath))*'Time Discounting'!E43 -> 0 | DC46: 0 | DD46: 0 | DF46: 0.9332 | DG46: 1.0281 | DH46: 0.1395284992 | DI46: 0.1395284992 | DJ46: 0.05848527487 | DK46: 0.1395284992 | DL46: 0.002970620776 | DM46: 0.008242990938 | DN46: 0.14951618 | DO46: 0.02621098224 | DP46: 0.0324377669 | DQ46: 0.1537175847
B47: 39 | D47: ='1. Strategy Calcs'!S47 -> 0.09250374374 | E47: ='1. Strategy Calcs'!AJ47 -> 0.05648455324 | F47: ='1. Strategy Calcs'!BA47 -> 0.03839310115 | G47: ='1. Strategy Calcs'!BR47 -> 0 | H47: ='1. Strategy Calcs'!CI47 -> 0.01081142939 | I47: ='1. Strategy Calcs'!CZ47 -> 0.8018071725 | J47: ='1. Strategy Calcs'!AC47 + '1. Strategy Calcs'!AT47 + '1. Strategy Calcs'!BK47 + '1. Strategy Calcs'!CB47 + '1. Strategy Calcs'!CS47 -> 933.5659351 | K47: 118479.3427 | L47: ='1. Strategy Calcs'!AF47 + '1. Strategy Calcs'!AW47 + '1. Strategy Calcs'!BN47 + '1. Strategy Calcs'!CE47 + '1. Strategy Calcs'!CV47 + '1. Strategy Calcs'!DD47 -> 0.1379163092 | M47: 21.62324666 | N47: ='1. Strategy Calcs'!AI47 + '1. Strategy Calcs'!AZ47 + '1. Strategy Calcs'!BQ47 + '1. Strategy Calcs'!CH47 + '1. Strategy Calcs'!CY47 -> 0.1823640925 | O47: 28.36405564 | Q47: 1 | S47: =0 + U46 + '1. Strategy Calcs'!AO46 + '1. Strategy Calcs'!BF46 + '1. Strategy Calcs'!BW46 + '1. Strategy Calcs'!CN46 -> 0.09250374374 | T47: 0.07732678031 | U47: 0.07174034847 | V47: 0.002044440648 | W47: 0.0006622220208 | X47: 0.0002427287634 | Y47: 0.002637040405 | Z47: 0.01517696343 | AA47: =(S47*(cNGT))*'Time Discounting'!C44 -> 312.741282 | AB47: 283.3245031 | AC47: 283.3245031 | AD47: =(S47*(vQoLNGT))*'Time Discounting'!E44 -> 0.07104287519 | AE47: 0.0643605065 | AF47: 0.0643605065 | AG47: =(S47*(1))*'Time Discounting'!G44 -> 0.09250374374 | AH47: 0.08380274283 | AI47: 0.08380274283 | AJ47: =0 + '1. Strategy Calcs'!X46 + '1. Strategy Calcs'!Y46 + AL46 + AP46 + '1. Strategy Calcs'!BE46 + '1. Strategy Calcs'!BG46 + '1. Strategy Calcs'!BT46 + '1. Strategy Calcs'!BX46 + '1. Strategy Calcs'!CM46 + '1. Strategy Calcs'!CO46 -> 0.05648455324 | AK47: 0.04726725307 | AL47: 0.04154407115 | AM47: 0.002835560954 | AN47: 9.46276276e-05 | AO47: 0.001099105436 | AP47: 0.001693887898 | AQ47: 0.009217300175 | AR47: =(AJ47*((cT2D+cLifestyleTx)))*'Time Discounting'!C44 -> 489.8713255 | AS47: 458.7848605 | AT47: 458.7848605 | AU47: =(AJ47*(vQoLT2D))*'Time Discounting'!E44 -> 0.04168560029 | AV47: 0.03904029756 | AW47: 0.03904029756 | AX47: =(AJ47*(1))*'Time Discounting'!G44 -> 0.05648455324 | AY47: 0.0529001322 | AZ47: 0.0529001322 | BA47: =0 + '1. Strategy Calcs'!V46 + '1. Strategy Calcs'!AM46 + BC46 + '1. Strategy Calcs'!BU46 + '1. Strategy Calcs'!CL46 -> 0.03839310115 | BB47: 0.03272579738 | BC47: 0.0277393694 | BD47: 0.0002062052493 | BE47: 0.00274938356 | BF47: 0.00188622387 | BG47: 0.0001446152986 | BH47: 0.005667303771 | BI47: =(BA47*((cLifestyleTx+cIFG)))*'Time Discounting'!C44 -> 160.9815053 | BJ47: 149.1197741 | BK47: 149.1197741 | BL47: =(BA47*(vQoLIFG))*'Time Discounting'!E44 -> 0.02914036377 | BM47: 0.02699319065 | BN47: 0.02699319065 | BO47: =(BA47*(1))*'Time Discounting'!G44 -> 0.03839310115 | BP47: 0.03556415106 | BQ47: 0.03556415106 | BR47: =0 -> 0 | BS47: 0 | BT47: 0 | BU47: 0 | BV47: 0 | BW47: 0 | BX47: 0 | BY47: 0 | BZ47: =(BR47*((cLifestyleTx+cIGT)))*'Time Discounting'!C44 -> 0 | CA47: 0 | CB47: 0 | CC47: =(BR47*(vQoLIGT))*'Time Discounting'!E44 -> 0 | CD47: 0 | CE47: 0 | CF47: =(BR47*(1))*'Time Discounting'!G44 -> 0 | CG47: 0 | CH47: 0 | CI47: =0 + '1. Strategy Calcs'!W46 + '1. Strategy Calcs'!AN46 + '1. Strategy Calcs'!BD46 + '1. Strategy Calcs'!BV46 + CK46 -> 0.01081142939 | CJ47: 0.009215526674 | CK47: 0.008419648494 | CL47: 0.0001158299548 | CM47: 0.000223329782 | CN47: 0.0003760641541 | CO47: 8.065428945e-05 | CP47: 0.001595902721 | CQ47: =(CI47*((cLifestyleTx+cCombined)))*'Time Discounting'!C44 -> 45.33210722 | CR47: 42.33679744 | CS47: 42.33679744 | CT47: =(CI47*(vQoLCombined))*'Time Discounting'!E44 -> 0.008054514899 | CU47: 0.007522314463 | CV47: 0.007522314463 | CW47: =(CI47*(1))*'Time Discounting'!G44 -> 0.01081142939 | CX47: 0.01009706639 | CY47: 0.01009706639 | CZ47: =0 + '1. Strategy Calcs'!Z46 + '1. Strategy Calcs'!AQ46 + '1. Strategy Calcs'!BH46 + '1. Strategy Calcs'!BY46 + '1. Strategy Calcs'!CP46 + DA46 -> 0.8018071725 | DA47: 0.8018071725 | DB47: =(CZ47*(vQoLDeath))*'Time Discounting'!E44 -> 0 | DC47: 0 | DD47: 0 | DF47: 0.8997 | DG47: 0.9946 | DH47: 0.1476125554 | DI47: 0.1476125554 | DJ47: 0.05763721654 | DK47: 0.1476125554 | DL47: 0.002772825018 | DM47: 0.008563941472 | DN47: 0.16406864 | DO47: 0.02643897289 | DP47: 0.03410255017 | DQ47: 0.1631826693
B48: 40 | D48: ='1. Strategy Calcs'!S48 -> 0.07510174193 | E48: ='1. Strategy Calcs'!AJ48 -> 0.04931571115 | F48: ='1. Strategy Calcs'!BA48 -> 0.03273520096 | G48: ='1. Strategy Calcs'!BR48 -> 0 | H48: ='1. Strategy Calcs'!CI48 -> 0.009382703391 | I48: ='1. Strategy Calcs'!CZ48 -> 0.8334646426 | J48: ='1. Strategy Calcs'!AC48 + '1. Strategy Calcs'!AT48 + '1. Strategy Calcs'!BK48 + '1. Strategy Calcs'!CB48 + '1. Strategy Calcs'!CS48 -> 788.0476343 | K48: 119267.3903 | L48: ='1. Strategy Calcs'!AF48 + '1. Strategy Calcs'!AW48 + '1. Strategy Calcs'!BN48 + '1. Strategy Calcs'!CE48 + '1. Strategy Calcs'!CV48 + '1. Strategy Calcs'!DD48 -> 0.1149058941 | M48: 21.73815256 | N48: ='1. Strategy Calcs'!AI48 + '1. Strategy Calcs'!AZ48 + '1. Strategy Calcs'!BQ48 + '1. Strategy Calcs'!CH48 + '1. Strategy Calcs'!CY48 -> 0.1520210221 | O48: 28.51607667 | Q48: 1 | S48: =0 + U47 + '1. Strategy Calcs'!AO47 + '1. Strategy Calcs'!BF47 + '1. Strategy Calcs'!BW47 + '1. Strategy Calcs'!CN47 -> 0.07510174193 | T48: 0.06138565545 | U48: 0.05680991744 | V48: 0.001637073189 | W48: 0.0005461347245 | X48: 0.0001926895725 | Y48: 0.002199840527 | Z48: 0.01371608647 | AA48: =(S48*(cNGT))*'Time Discounting'!C45 -> 253.9077242 | AB48: 227.7760219 | AC48: 227.7760219 | AD48: =(S48*(vQoLNGT))*'Time Discounting'!E45 -> 0.0576781378 | AE48: 0.05174201306 | AF48: 0.05174201306 | AG48: =(S48*(1))*'Time Discounting'!G45 -> 0.07510174193 | AH48: 0.06737241283 | AI48: 0.06737241283 | AJ48: =0 + '1. Strategy Calcs'!X47 + '1. Strategy Calcs'!Y47 + AL47 + AP47 + '1. Strategy Calcs'!BE47 + '1. Strategy Calcs'!BG47 + '1. Strategy Calcs'!BT47 + '1. Strategy Calcs'!BX47 + '1. Strategy Calcs'!CM47 + '1. Strategy Calcs'!CO47 -> 0.04931571115 | AK48: 0.0406629783 | AL48: 0.03573945077 | AM48: 0.002439370728 | AN48: 8.140606695e-05 | AO48: 0.0009455362345 | AP48: 0.001457214507 | AQ48: 0.008652732848 | AR48: =(AJ48*((cT2D+cLifestyleTx)))*'Time Discounting'!C45 -> 427.6983955 | AS48: 397.5414836 | AT48: 397.5414836 | AU48: =(AJ48*(vQoLT2D))*'Time Discounting'!E45 -> 0.03639499483 | AV48: 0.03382879243 | AW48: 0.03382879243 | AX48: =(AJ48*(1))*'Time Discounting'!G45 -> 0.04931571115 | AY48: 0.04583847212 | AZ48: 0.04583847212 | BA48: =0 + '1. Strategy Calcs'!V47 + '1. Strategy Calcs'!AM47 + BC47 + '1. Strategy Calcs'!BU47 + '1. Strategy Calcs'!CL47 -> 0.03273520096 | BB48: 0.02755898012 | BC48: 0.02330856536 | BD48: 0.0001736491337 | BE48: 0.002389695168 | BF48: 0.00156528732 | BG48: 0.0001217831331 | BH48: 0.005176220842 | BI48: =(BA48*((cLifestyleTx+cIFG)))*'Time Discounting'!C45 -> 137.2580429 | BJ48: 126.2495663 | BK48: 126.2495663 | BL48: =(BA48*(vQoLIFG))*'Time Discounting'!E45 -> 0.02484601753 | BM48: 0.02285329785 | BN48: 0.02285329785 | BO48: =(BA48*(1))*'Time Discounting'!G45 -> 0.03273520096 | BP48: 0.03010974684 | BQ48: 0.03010974684 | BR48: =0 -> 0 | BS48: 0 | BT48: 0 | BU48: 0 | BV48: 0 | BW48: 0 | BX48: 0 | BY48: 0 | BZ48: =(BR48*((cLifestyleTx+cIGT)))*'Time Discounting'!C45 -> 0 | CA48: 0 | CB48: 0 | CC48: =(BR48*(vQoLIGT))*'Time Discounting'!E45 -> 0 | CD48: 0 | CE48: 0 | CF48: =(BR48*(1))*'Time Discounting'!G45 -> 0 | CG48: 0 | CH48: 0 | CI48: =0 + '1. Strategy Calcs'!W47 + '1. Strategy Calcs'!AN47 + '1. Strategy Calcs'!BD47 + '1. Strategy Calcs'!BV47 + CK47 -> 0.009382703391 | CJ48: 0.007899072822 | CK48: 0.00721688721 | CL48: 9.92834463e-05 | CM48: 0.0001914267381 | CN48: 0.0003223427422 | CO48: 6.913268534e-05 | CP48: 0.00148363057 | CQ48: =(CI48*((cLifestyleTx+cCombined)))*'Time Discounting'!C45 -> 39.34148767 | CR48: 36.48056237 | CS48: 36.48056237 | CT48: =(CI48*(vQoLCombined))*'Time Discounting'!E45 -> 0.006990114027 | CU48: 0.006481790746 | CV48: 0.006481790746 | CW48: =(CI48*(1))*'Time Discounting'!G45 -> 0.009382703391 | CX48: 0.008700390263 | CY48: 0.008700390263 | CZ48: =0 + '1. Strategy Calcs'!Z47 + '1. Strategy Calcs'!AQ47 + '1. Strategy Calcs'!BH47 + '1. Strategy Calcs'!BY47 + '1. Strategy Calcs'!CP47 + DA47 -> 0.8334646426 | DA48: 0.8334646426 | DB48: =(CZ48*(vQoLDeath))*'Time Discounting'!E45 -> 0 | DC48: 0 | DD48: 0 | DF48: 0.8658 | DG48: 0.9607 | DH48: =IF(rGender=1,INDEX(HazardRatioIGTToDeath_1,cycle+1)*(InterpolateTable(tMortalityWithoutDiabetes,rAge+cycle,1)),INDEX(HazardRatioIGTToDeath_1,cycle+1)*(InterpolateTable(tMortalityWithoutDiabetes,rAge+cycle,2))) -> 0.1581239977 | DI48: 0.1581239977 | DJ48: 0.05679772303 | DK48: 0.1581239977 | DL48: 0.002588011887 | DM48: 0.008896780859 | DN48: 0.1826334 | DO48: 0.02666866024 | DP48: 0.03583639387 | DQ48: 0.1754559074
B49: 41 | D49: ='1. Strategy Calcs'!S49 -> 0.05964308374 | E49: ='1. Strategy Calcs'!AJ49 -> 0.0423612331 | F49: ='1. Strategy Calcs'!BA49 -> 0.02748429273 | G49: ='1. Strategy Calcs'!BR49 -> 0 | H49: ='1. Strategy Calcs'!CI49 -> 0.008018077135 | I49: ='1. Strategy Calcs'!CZ49 -> 0.8624933133 | J49: ='1. Strategy Calcs'!AC49 + '1. Strategy Calcs'!AT49 + '1. Strategy Calcs'!BK49 + '1. Strategy Calcs'!CB49 + '1. Strategy Calcs'!CS49 -> 654.2483717 | K49: 119921.6387 | L49: ='1. Strategy Calcs'!AF49 + '1. Strategy Calcs'!AW49 + '1. Strategy Calcs'!BN49 + '1. Strategy Calcs'!CE49 + '1. Strategy Calcs'!CV49 + '1. Strategy Calcs'!DD49 -> 0.09407602011 | M49: 21.83222858 | N49: ='1. Strategy Calcs'!AI49 + '1. Strategy Calcs'!AZ49 + '1. Strategy Calcs'!BQ49 + '1. Strategy Calcs'!CH49 + '1. Strategy Calcs'!CY49 -> 0.1245368338 | O49: 28.6406135 | Q49: 1 | S49: =0 + U48 + '1. Strategy Calcs'!AO48 + '1. Strategy Calcs'!BF48 + '1. Strategy Calcs'!BW48 + '1. Strategy Calcs'!CN48 -> 0.05964308374 | T49: 0.04759446451 | U49: 0.04393342126 | V49: 0.001280293586 | W49: 0.0004398634136 | X49: 0.0001493990241 | Y49: 0.001791487227 | Z49: 0.01204861923 | AA49: =(S49*(cNGT))*'Time Discounting'!C46 -> 201.6443197 | AB49: 179.0654661 | AC49: 179.0654661 | AD49: =(S49*(vQoLNGT))*'Time Discounting'!E46 -> 0.04580588831 | AE49: 0.04067683511 | AF49: 0.04067683511 | AG49: =(S49*(1))*'Time Discounting'!G46 -> 0.05964308374 | AH49: 0.05296462904 | AI49: 0.05296462904 | AJ49: =0 + '1. Strategy Calcs'!X48 + '1. Strategy Calcs'!Y48 + AL48 + AP48 + '1. Strategy Calcs'!BE48 + '1. Strategy Calcs'!BG48 + '1. Strategy Calcs'!BT48 + '1. Strategy Calcs'!BX48 + '1. Strategy Calcs'!CM48 + '1. Strategy Calcs'!CO48 -> 0.0423612331 | AK49: 0.03443358562 | AL49: 0.03026432124 | AM49: 0.002065669666 | AN49: 6.893500903e-05 | AO49: 0.0008006841665 | AP49: 0.001233975537 | AQ49: 0.007927647475 | AR49: =(AJ49*((cT2D+cLifestyleTx)))*'Time Discounting'!C46 -> 367.3845718 | AS49: 338.958893 | AT49: 338.958893 | AU49: =(AJ49*(vQoLT2D))*'Time Discounting'!E46 -> 0.03126259003 | AV49: 0.0288437069 | AW49: 0.0288437069 | AX49: =(AJ49*(1))*'Time Discounting'!G46 -> 0.0423612331 | AY49: 0.03908361368 | AZ49: 0.03908361368 | BA49: =0 + '1. Strategy Calcs'!V48 + '1. Strategy Calcs'!AM48 + BC48 + '1. Strategy Calcs'!BU48 + '1. Strategy Calcs'!CL48 -> 0.02748429273 | BB49: 0.022867674 | BC49: 0.01929700165 | BD49: 0.0001440892139 | BE49: 0.002045700392 | BF49: 0.001279830495 | BG49: 0.0001010522514 | BH49: 0.004616618726 | BI49: =(BA49*((cLifestyleTx+cIFG)))*'Time Discounting'!C46 -> 115.2410897 | BJ49: 105.2670872 | BK49: 105.2670872 | BL49: =(BA49*(vQoLIFG))*'Time Discounting'!E46 -> 0.02086057818 | BM49: 0.01905511573 | BN49: 0.01905511573 | BO49: =(BA49*(1))*'Time Discounting'!G46 -> 0.02748429273 | BP49: 0.02510555433 | BQ49: 0.02510555433 | BR49: =0 -> 0 | BS49: 0 | BT49: 0 | BU49: 0 | BV49: 0 | BW49: 0 | BX49: 0 | BY49: 0 | BZ49: =(BR49*((cLifestyleTx+cIGT)))*'Time Discounting'!C46 -> 0 | CA49: 0 | CB49: 0 | CC49: =(BR49*(vQoLIGT))*'Time Discounting'!E46 -> 0 | CD49: 0 | CE49: 0 | CF49: =(BR49*(1))*'Time Discounting'!G46 -> 0 | CG49: 0 | CH49: 0 | CI49: =0 + '1. Strategy Calcs'!W48 + '1. Strategy Calcs'!AN48 + '1. Strategy Calcs'!BD48 + '1. Strategy Calcs'!BV48 + CK48 -> 0.008018077135 | CJ49: 0.006671256774 | CK49: 0.006095108726 | CL49: 8.385102639e-05 | CM49: 0.0001616717496 | CN49: 0.0002722384324 | CO49: 5.838683929e-05 | CP49: 0.001346820361 | CQ49: =(CI49*((cLifestyleTx+cCombined)))*'Time Discounting'!C46 -> 33.61963707 | CR49: 30.95692543 | CS49: 30.95692543 | CT49: =(CI49*(vQoLCombined))*'Time Discounting'!E46 -> 0.005973467466 | CU49: 0.005500362378 | CV49: 0.005500362378 | CW49: =(CI49*(1))*'Time Discounting'!G46 -> 0.008018077135 | CX49: 0.007383036749 | CY49: 0.007383036749 | CZ49: =0 + '1. Strategy Calcs'!Z48 + '1. Strategy Calcs'!AQ48 + '1. Strategy Calcs'!BH48 + '1. Strategy Calcs'!BY48 + '1. Strategy Calcs'!CP48 + DA48 -> 0.8624933133 | DA49: 0.8624933133 | DB49: =(CZ49*(vQoLDeath))*'Time Discounting'!E46 -> 0 | DC49: 0 | DD49: 0 | DF49: 0.8315 | DG49: 0.9264 | DH49: 0.1679729863 | DI49: 0.1679729863 | DJ49: 0.05596679813 | DK49: 0.1679729863 | DL49: 0.002415353253 | DM49: 0.009241902775 | DN49: 0.20201201 | DO49: 0.02690005232 | DP49: 0.03764066358 | DQ49: 0.1871439261
B50: 42 | D50: ='1. Strategy Calcs'!S50 -> 0.04628617435 | E50: ='1. Strategy Calcs'!AJ50 -> 0.03580599426 | F50: ='1. Strategy Calcs'!BA50 -> 0.02272681593 | G50: ='1. Strategy Calcs'!BR50 -> 0 | H50: ='1. Strategy Calcs'!CI50 -> 0.006747996363 | I50: ='1. Strategy Calcs'!CZ50 -> 0.8884330191 | J50: ='1. Strategy Calcs'!AC50 + '1. Strategy Calcs'!AT50 + '1. Strategy Calcs'!BK50 + '1. Strategy Calcs'!CB50 + '1. Strategy Calcs'!CS50 -> 533.3071131 | K50: 120454.9458 | L50: ='1. Strategy Calcs'!AF50 + '1. Strategy Calcs'!AW50 + '1. Strategy Calcs'!BN50 + '1. Strategy Calcs'!CE50 + '1. Strategy Calcs'!CV50 + '1. Strategy Calcs'!DD50 -> 0.07555091447 | M50: 21.90777949 | N50: ='1. Strategy Calcs'!AI50 + '1. Strategy Calcs'!AZ50 + '1. Strategy Calcs'!BQ50 + '1. Strategy Calcs'!CH50 + '1. Strategy Calcs'!CY50 -> 0.1000781129 | O50: 28.74069161 | Q50: 1 | S50: =0 + U49 + '1. Strategy Calcs'!AO49 + '1. Strategy Calcs'!BF49 + '1. Strategy Calcs'!BW49 + '1. Strategy Calcs'!CN49 -> 0.04628617435 | T50: 0.03582843164 | U50: 0.03298406649 | V50: 0.0009721384661 | W50: 0.000343942568 | X50: 0.0001124654469 | Y50: 0.001415818672 | Z50: 0.01045774271 | AA50: =(S50*(cNGT))*'Time Discounting'!C47 -> 156.4866126 | AB50: 137.243122 | AC50: 137.243122 | AD50: =(S50*(vQoLNGT))*'Time Discounting'!E47 -> 0.0355477819 | AE50: 0.03117639578 | AF50: 0.03117639578 | AG50: =(S50*(1))*'Time Discounting'!G47 -> 0.04628617435 | AH50: 0.04059426534 | AI50: 0.04059426534 | AJ50: =0 + '1. Strategy Calcs'!X49 + '1. Strategy Calcs'!Y49 + AL49 + AP49 + '1. Strategy Calcs'!BE49 + '1. Strategy Calcs'!BG49 + '1. Strategy Calcs'!BT49 + '1. Strategy Calcs'!BX49 + '1. Strategy Calcs'!CM49 + '1. Strategy Calcs'!CO49 -> 0.03580599426 | AK50: 0.02859224289 | AL50: 0.02513025606 | AM50: 0.001715247708 | AN50: 5.72408155e-05 | AO50: 0.0006648554238 | AP50: 0.001024642878 | AQ50: 0.007213751378 | AR50: =(AJ50*((cT2D+cLifestyleTx)))*'Time Discounting'!C47 -> 310.5332142 | AS50: 283.9132378 | AT50: 283.9132378 | AU50: =(AJ50*(vQoLT2D))*'Time Discounting'!E47 -> 0.02642482377 | AV50: 0.02415959689 | AW50: 0.02415959689 | AX50: =(AJ50*(1))*'Time Discounting'!G47 -> 0.03580599426 | AY50: 0.03273658115 | AZ50: 0.03273658115 | BA50: =0 + '1. Strategy Calcs'!V49 + '1. Strategy Calcs'!AM49 + BC49 + '1. Strategy Calcs'!BU49 + '1. Strategy Calcs'!CL49 -> 0.02272681593 | BB50: 0.01863539101 | BC50: 0.01568886405 | BD50: 0.0001174215987 | BE50: 0.001719117297 | BF50: 0.001027638268 | BG50: 8.234979287e-05 | BH50: 0.004091424917 | BI50: =(BA50*((cLifestyleTx+cIFG)))*'Time Discounting'!C47 -> 95.29308464 | BJ50: 86.31797077 | BK50: 86.31797077 | BL50: =(BA50*(vQoLIFG))*'Time Discounting'!E47 -> 0.01724965329 | BM50: 0.01562500651 | BN50: 0.01562500651 | BO50: =(BA50*(1))*'Time Discounting'!G47 -> 0.02272681593 | BP50: 0.02058630634 | BQ50: 0.02058630634 | BR50: =0 -> 0 | BS50: 0 | BT50: 0 | BU50: 0 | BV50: 0 | BW50: 0 | BX50: 0 | BY50: 0 | BZ50: =(BR50*((cLifestyleTx+cIGT)))*'Time Discounting'!C47 -> 0 | CA50: 0 | CB50: 0 | CC50: =(BR50*(vQoLIGT))*'Time Discounting'!E47 -> 0 | CD50: 0 | CE50: 0 | CF50: =(BR50*(1))*'Time Discounting'!G47 -> 0 | CG50: 0 | CH50: 0 | CI50: =0 + '1. Strategy Calcs'!W49 + '1. Strategy Calcs'!AN49 + '1. Strategy Calcs'!BD49 + '1. Strategy Calcs'!BV49 + CK49 -> 0.006747996363 | CJ50: 0.005533179446 | CK50: 0.00505531888 | CL50: 6.954653245e-05 | CM50: 0.0001340914961 | CN50: 0.0002257961505 | CO50: 4.842638651e-05 | CP50: 0.001214816917 | CQ50: =(CI50*((cLifestyleTx+cCombined)))*'Time Discounting'!C47 -> 28.29421379 | CR50: 25.83278253 | CS50: 25.83278253 | CT50: =(CI50*(vQoLCombined))*'Time Discounting'!E47 -> 0.00502725729 | CU50: 0.004589915284 | CV50: 0.004589915284 | CW50: =(CI50*(1))*'Time Discounting'!G47 -> 0.006747996363 | CX50: 0.006160960113 | CY50: 0.006160960113 | CZ50: =0 + '1. Strategy Calcs'!Z49 + '1. Strategy Calcs'!AQ49 + '1. Strategy Calcs'!BH49 + '1. Strategy Calcs'!BY49 + '1. Strategy Calcs'!CP49 + DA49 -> 0.8884330191 | DA50: 0.8884330191 | DB50: =(CZ50*(vQoLDeath))*'Time Discounting'!E47 -> 0 | DC50: 0 | DD50: 0 | DF50: 0.7968 | DG50: 0.8917 | DH50: 0.1800263148 | DI50: 0.1800263148 | DJ50: 0.05514444357 | DK50: 0.1800263148 | DL50: 0.002254070737 | DM50: 0.009599710404 | DN50: 0.22593664 | DO50: 0.02713315715 | DP50: 0.0395166243 | DQ50: 0.2014677019
B51: 43 | D51: ='1. Strategy Calcs'!S51 -> 0.03490235633 | E51: ='1. Strategy Calcs'!AJ51 -> 0.02966716803 | F51: ='1. Strategy Calcs'!BA51 -> 0.01844579676 | G51: ='1. Strategy Calcs'!BR51 -> 0 | H51: ='1. Strategy Calcs'!CI51 -> 0.005573923862 | I51: ='1. Strategy Calcs'!CZ51 -> 0.911410755 | J51: ='1. Strategy Calcs'!AC51 + '1. Strategy Calcs'!AT51 + '1. Strategy Calcs'!BK51 + '1. Strategy Calcs'!CB51 + '1. Strategy Calcs'!CS51 -> 427.4459362 | K51: 120882.3917 | L51: ='1. Strategy Calcs'!AF51 + '1. Strategy Calcs'!AW51 + '1. Strategy Calcs'!BN51 + '1. Strategy Calcs'!CE51 + '1. Strategy Calcs'!CV51 + '1. Strategy Calcs'!DD51 -> 0.05959487566 | M51: 21.96737437 | N51: ='1. Strategy Calcs'!AI51 + '1. Strategy Calcs'!AZ51 + '1. Strategy Calcs'!BQ51 + '1. Strategy Calcs'!CH51 + '1. Strategy Calcs'!CY51 -> 0.07899767323 | O51: 28.81968929 | Q51: 1 | S51: =0 + U50 + '1. Strategy Calcs'!AO50 + '1. Strategy Calcs'!BF50 + '1. Strategy Calcs'!BW50 + '1. Strategy Calcs'!CN50 -> 0.03490235633 | T51: 0.02638527497 | U51: 0.0242231856 | V51: 0.0007221117486 | W51: 0.0002630774554 | X51: 8.282337813e-05 | Y51: 0.001094076789 | Z51: 0.008517081359 | AA51: =(S51*(cNGT))*'Time Discounting'!C48 -> 117.9996314 | AB51: 102.561914 | AC51: 102.561914 | AD51: =(S51*(vQoLNGT))*'Time Discounting'!E48 -> 0.02680500966 | AE51: 0.02329814985 | AF51: 0.02329814985 | AG51: =(S51*(1))*'Time Discounting'!G48 -> 0.03490235633 | AH51: 0.03033613262 | AI51: 0.03033613262 | AJ51: =0 + '1. Strategy Calcs'!X50 + '1. Strategy Calcs'!Y50 + AL50 + AP50 + '1. Strategy Calcs'!BE50 + '1. Strategy Calcs'!BG50 + '1. Strategy Calcs'!BT50 + '1. Strategy Calcs'!BX50 + '1. Strategy Calcs'!CM50 + '1. Strategy Calcs'!CO50 -> 0.02966716803 | AK51: 0.0234657614 | AL51: 0.02062449578 | AM51: 0.001407710253 | AN51: 4.697775282e-05 | AO51: 0.0005456493498 | AP51: 0.0008409282681 | AQ51: 0.00620140663 | AR51: =(AJ51*((cT2D+cLifestyleTx)))*'Time Discounting'!C48 -> 257.2932615 | AS51: 233.9600804 | AT51: 233.9600804 | AU51: =(AJ51*(vQoLT2D))*'Time Discounting'!E48 -> 0.02189437001 | AV51: 0.01990883297 | AW51: 0.01990883297 | AX51: =(AJ51*(1))*'Time Discounting'!G48 -> 0.02966716803 | AY51: 0.02697673844 | AZ51: 0.02697673844 | BA51: =0 + '1. Strategy Calcs'!V50 + '1. Strategy Calcs'!AM50 + BC50 + '1. Strategy Calcs'!BU50 + '1. Strategy Calcs'!CL50 -> 0.01844579676 | BB51: 0.01501719201 | BC51: 0.01261237674 | BD51: 9.462332685e-05 | BE51: 0.001427937034 | BF51: 0.0008158939377 | BG51: 6.636097149e-05 | BH51: 0.00342860475 | BI51: =(BA51*((cLifestyleTx+cIFG)))*'Time Discounting'!C48 -> 77.3428569 | BJ51: 69.6978772 | BK51: 69.6978772 | BL51: =(BA51*(vQoLIFG))*'Time Discounting'!E48 -> 0.01400035974 | BM51: 0.01261648965 | BN51: 0.01261648965 | BO51: =(BA51*(1))*'Time Discounting'!G48 -> 0.01844579676 | BP51: 0.01662251601 | BQ51: 0.01662251601 | BR51: =0 -> 0 | BS51: 0 | BT51: 0 | BU51: 0 | BV51: 0 | BW51: 0 | BX51: 0 | BY51: 0 | BZ51: =(BR51*((cLifestyleTx+cIGT)))*'Time Discounting'!C48 -> 0 | CA51: 0 | CB51: 0 | CC51: =(BR51*(vQoLIGT))*'Time Discounting'!E48 -> 0 | CD51: 0 | CE51: 0 | CF51: =(BR51*(1))*'Time Discounting'!G48 -> 0 | CG51: 0 | CH51: 0 | CI51: =0 + '1. Strategy Calcs'!W50 + '1. Strategy Calcs'!AN50 + '1. Strategy Calcs'!BD50 + '1. Strategy Calcs'!BV50 + CK50 -> 0.005573923862 | CJ51: 0.004537873098 | CK51: 0.004145969921 | CL51: 5.703652697e-05 | CM51: 0.0001099711656 | CN51: 0.0001851800194 | CO51: 3.971546535e-05 | CP51: 0.001036050764 | CQ51: =(CI51*((cLifestyleTx+cCombined)))*'Time Discounting'!C48 -> 23.37135128 | CR51: 21.22606462 | CS51: 21.22606462 | CT51: =(CI51*(vQoLCombined))*'Time Discounting'!E48 -> 0.004152573278 | CU51: 0.003771403189 | CV51: 0.003771403189 | CW51: =(CI51*(1))*'Time Discounting'!G48 -> 0.005573923862 | CX51: 0.005062286159 | CY51: 0.005062286159 | CZ51: =0 + '1. Strategy Calcs'!Z50 + '1. Strategy Calcs'!AQ50 + '1. Strategy Calcs'!BH50 + '1. Strategy Calcs'!BY50 + '1. Strategy Calcs'!CP50 + DA50 -> 0.911410755 | DA51: 0.911410755 | DB51: =(CZ51*(vQoLDeath))*'Time Discounting'!E48 -> 0 | DC51: 0 | DD51: 0 | DF51: 0.7617 | DG51: 0.8566 | DH51: 0.1858745813 | DI51: 0.1858745813 | DJ51: 0.05433065897 | DK51: 0.1858745813 | DL51: 0.002103433123 | DM51: 0.009970616402 | DN51: 0.24402597 | DO51: 0.02736798269 | DP51: 0.04146543062 | DQ51: 0.2090326459
B52: 44 | D52: ='1. Strategy Calcs'!S52 -> 0.02576990891 | E52: ='1. Strategy Calcs'!AJ52 -> 0.02428630885 | F52: ='1. Strategy Calcs'!BA52 -> 0.01479923527 | G52: ='1. Strategy Calcs'!BR52 -> 0 | H52: ='1. Strategy Calcs'!CI52 -> 0.004550648456 | I52: ='1. Strategy Calcs'!CZ52 -> 0.9305938985 | J52: ='1. Strategy Calcs'!AC52 + '1. Strategy Calcs'!AT52 + '1. Strategy Calcs'!BK52 + '1. Strategy Calcs'!CB52 + '1. Strategy Calcs'!CS52 -> 337.1881282 | K52: 121219.5798 | L52: ='1. Strategy Calcs'!AF52 + '1. Strategy Calcs'!AW52 + '1. Strategy Calcs'!BN52 + '1. Strategy Calcs'!CE52 + '1. Strategy Calcs'!CV52 + '1. Strategy Calcs'!DD52 -> 0.04621835214 | M52: 22.01359272 | N52: ='1. Strategy Calcs'!AI52 + '1. Strategy Calcs'!AZ52 + '1. Strategy Calcs'!BQ52 + '1. Strategy Calcs'!CH52 + '1. Strategy Calcs'!CY52 -> 0.06131291441 | O52: 28.8810022 | Q52: 1 | S52: =0 + U51 + '1. Strategy Calcs'!AO51 + '1. Strategy Calcs'!BF51 + '1. Strategy Calcs'!BW51 + '1. Strategy Calcs'!CN51 -> 0.02576990891 | T52: 0.01879034941 | U52: 0.01720093582 | V52: 0.0005186988932 | W52: 0.0001945748729 | X52: 5.898290681e-05 | Y52: 0.0008171569171 | Z52: 0.006979559495 | AA52: =(S52*(cNGT))*'Time Discounting'!C49 -> 87.12419653 | AB52: 74.7091718 | AC52: 74.7091718 | AD52: =(S52*(vQoLNGT))*'Time Discounting'!E49 -> 0.01979129004 | AE52: 0.01697107057 | AF52: 0.01697107057 | AG52: =(S52*(1))*'Time Discounting'!G49 -> 0.02576990891 | AH52: 0.02209774814 | AI52: 0.02209774814 | AJ52: =0 + '1. Strategy Calcs'!X51 + '1. Strategy Calcs'!Y51 + AL51 + AP51 + '1. Strategy Calcs'!BE51 + '1. Strategy Calcs'!BG51 + '1. Strategy Calcs'!BT51 + '1. Strategy Calcs'!BX51 + '1. Strategy Calcs'!CM51 + '1. Strategy Calcs'!CO51 -> 0.02428630885 | AK52: 0.01888532727 | AL52: 0.01659866671 | AM52: 0.00113293016 | AN52: 3.780786062e-05 | AO52: 0.000439140515 | AP52: 0.0006767820265 | AQ52: 0.005400981578 | AR52: =(AJ52*((cT2D+cLifestyleTx)))*'Time Discounting'!C49 -> 210.6268993 | AS52: 189.8258514 | AT52: 189.8258514 | AU52: =(AJ52*(vQoLT2D))*'Time Discounting'!E49 -> 0.01792329593 | AV52: 0.01615323076 | AW52: 0.01615323076 | AX52: =(AJ52*(1))*'Time Discounting'!G49 -> 0.02428630885 | AY52: 0.02188784656 | AZ52: 0.02188784656 | BA52: =0 + '1. Strategy Calcs'!V51 + '1. Strategy Calcs'!AM51 + BC51 + '1. Strategy Calcs'!BU51 + '1. Strategy Calcs'!CL51 -> 0.01479923527 | BB52: 0.01188844678 | BC52: 0.00995999162 | BD52: 7.490910314e-05 | BE52: 0.00116467664 | BF52: 0.0006363343669 | BG52: 5.253504631e-05 | BH52: 0.002910788491 | BI52: =(BA52*((cLifestyleTx+cIFG)))*'Time Discounting'!C49 -> 62.05289749 | BJ52: 55.4664234 | BK52: 55.4664234 | BL52: =(BA52*(vQoLIFG))*'Time Discounting'!E49 -> 0.01123261957 | BM52: 0.01004035682 | BN52: 0.01004035682 | BO52: =(BA52*(1))*'Time Discounting'!G49 -> 0.01479923527 | BP52: 0.01322840161 | BQ52: 0.01322840161 | BR52: =0 -> 0 | BS52: 0 | BT52: 0 | BU52: 0 | BV52: 0 | BW52: 0 | BX52: 0 | BY52: 0 | BZ52: =(BR52*((cLifestyleTx+cIGT)))*'Time Discounting'!C49 -> 0 | CA52: 0 | CB52: 0 | CC52: =(BR52*(vQoLIGT))*'Time Discounting'!E49 -> 0 | CD52: 0 | CE52: 0 | CF52: =(BR52*(1))*'Time Discounting'!G49 -> 0 | CG52: 0 | CH52: 0 | CI52: =0 + '1. Strategy Calcs'!W51 + '1. Strategy Calcs'!AN51 + '1. Strategy Calcs'!BD51 + '1. Strategy Calcs'!BV51 + CK51 -> 0.004550648456 | CJ52: 0.003655603887 | CK52: 0.0033398959 | CL52: 4.594728525e-05 | CM52: 8.859018567e-05 | CN52: 0.0001491766702 | CO52: 3.199384522e-05 | CP52: 0.0008950445691 | CQ52: =(CI52*((cLifestyleTx+cCombined)))*'Time Discounting'!C49 -> 19.08077796 | CR52: 17.1866816 | CS52: 17.1866816 | CT52: =(CI52*(vQoLCombined))*'Time Discounting'!E49 -> 0.0033902331 | CU52: 0.003053693982 | CV52: 0.003053693982 | CW52: =(CI52*(1))*'Time Discounting'!G49 -> 0.004550648456 | CX52: 0.004098918096 | CY52: 0.004098918096 | CZ52: =0 + '1. Strategy Calcs'!Z51 + '1. Strategy Calcs'!AQ51 + '1. Strategy Calcs'!BH51 + '1. Strategy Calcs'!BY51 + '1. Strategy Calcs'!CP51 + DA51 -> 0.9305938985 | DA52: 0.9305938985 | DB52: =(CZ52*(vQoLDeath))*'Time Discounting'!E49 -> 0 | DC52: 0 | DD52: 0 | DF52: 0.7262 | DG52: 0.8211 | DH52: 0.196685061 | DI52: 0.196685061 | DJ52: 0.05352544187 | DK52: 0.196685061 | DL52: 0.001962753844 | DM52: 0.01035504283 | DN52: 0.27084145 | DO52: 0.02760453687 | DP52: 0.04348811718 | DQ52: 0.2223879146
B53: 45 | D53: ='1. Strategy Calcs'!S53 -> 0.01842558737 | E53: ='1. Strategy Calcs'!AJ53 -> 0.01948938427 | F53: ='1. Strategy Calcs'!BA53 -> 0.01165756796 | G53: ='1. Strategy Calcs'!BR53 -> 0 | H53: ='1. Strategy Calcs'!CI53 -> 0.003647187737 | I53: ='1. Strategy Calcs'!CZ53 -> 0.9467802727 | J53: ='1. Strategy Calcs'!AC53 + '1. Strategy Calcs'!AT53 + '1. Strategy Calcs'!BK53 + '1. Strategy Calcs'!CB53 + '1. Strategy Calcs'!CS53 -> 261.3915138 | K53: 121480.9714 | L53: ='1. Strategy Calcs'!AF53 + '1. Strategy Calcs'!AW53 + '1. Strategy Calcs'!BN53 + '1. Strategy Calcs'!CE53 + '1. Strategy Calcs'!CV53 + '1. Strategy Calcs'!DD53 -> 0.03518599638 | M53: 22.04877871 | N53: ='1. Strategy Calcs'!AI53 + '1. Strategy Calcs'!AZ53 + '1. Strategy Calcs'!BQ53 + '1. Strategy Calcs'!CH53 + '1. Strategy Calcs'!CY53 -> 0.04671628517 | O53: 28.92771849 | Q53: 1 | S53: =0 + U52 + '1. Strategy Calcs'!AO52 + '1. Strategy Calcs'!BF52 + '1. Strategy Calcs'!BW52 + '1. Strategy Calcs'!CN52 -> 0.01842558737 | T53: 0.01301487587 | U53: 0.011878406 | V53: 0.0003623709452 | W53: 0.0001399544401 | X53: 4.085369535e-05 | Y53: 0.0005932907903 | Z53: 0.005410711505 | AA53: =(S53*(cNGT))*'Time Discounting'!C50 -> 62.29414707 | AB53: 52.8451142 | AC53: 52.8451142 | AD53: =(S53*(vQoLNGT))*'Time Discounting'!E50 -> 0.0141508511 | AE53: 0.01200439171 | AF53: 0.01200439171 | AG53: =(S53*(1))*'Time Discounting'!G50 -> 0.01842558737 | AH53: 0.01563071837 | AI53: 0.01563071837 | AJ53: =0 + '1. Strategy Calcs'!X52 + '1. Strategy Calcs'!Y52 + AL52 + AP52 + '1. Strategy Calcs'!BE52 + '1. Strategy Calcs'!BG52 + '1. Strategy Calcs'!BT52 + '1. Strategy Calcs'!BX52 + '1. Strategy Calcs'!CM52 + '1. Strategy Calcs'!CO52 -> 0.01948938427 | AK53: 0.014995608 | AL53: 0.01317991983 | AM53: 0.0008995860299 | AN53: 3.002075893e-05 | AO53: 0.0003486928729 | AP53: 0.0005373885148 | AQ53: 0.004493776271 | AR53: =(AJ53*((cT2D+cLifestyleTx)))*'Time Discounting'!C50 -> 169.0248034 | AS53: 151.4053356 | AT53: 151.4053356 | AU53: =(AJ53*(vQoLT2D))*'Time Discounting'!E50 -> 0.01438316559 | AV53: 0.01288383699 | AW53: 0.01288383699 | AX53: =(AJ53*(1))*'Time Discounting'!G50 -> 0.01948938427 | AY53: 0.0174577737 | AZ53: 0.0174577737 | BA53: =0 + '1. Strategy Calcs'!V52 + '1. Strategy Calcs'!AM52 + BC52 + '1. Strategy Calcs'!BU52 + '1. Strategy Calcs'!CL52 -> 0.01165756796 | BB53: 0.009294485555 | BC53: 0.007767043095 | BD53: 5.856455348e-05 | BE53: 0.0009377186187 | BF53: 0.0004900869564 | BG53: 4.107233167e-05 | BH53: 0.002363082404 | BI53: =(BA53*((cLifestyleTx+cIFG)))*'Time Discounting'!C50 -> 48.8799493 | BJ53: 43.44580775 | BK53: 43.44580775 | BL53: =(BA53*(vQoLIFG))*'Time Discounting'!E50 -> 0.008848094081 | BM53: 0.007864422936 | BN53: 0.007864422936 | BO53: =(BA53*(1))*'Time Discounting'!G50 -> 0.01165756796 | BP53: 0.01036155855 | BQ53: 0.01036155855 | BR53: =0 -> 0 | BS53: 0 | BT53: 0 | BU53: 0 | BV53: 0 | BW53: 0 | BX53: 0 | BY53: 0 | BZ53: =(BR53*((cLifestyleTx+cIGT)))*'Time Discounting'!C50 -> 0 | CA53: 0 | CB53: 0 | CC53: =(BR53*(vQoLIGT))*'Time Discounting'!E50 -> 0 | CD53: 0 | CE53: 0 | CF53: =(BR53*(1))*'Time Discounting'!G50 -> 0 | CG53: 0 | CH53: 0 | CI53: =0 + '1. Strategy Calcs'!W52 + '1. Strategy Calcs'!AN52 + '1. Strategy Calcs'!BD52 + '1. Strategy Calcs'!BV52 + CK52 -> 0.003647187737 | CJ53: 0.002907873568 | CK53: 0.002656741625 | CL53: 3.654906288e-05 | CM53: 7.046963164e-05 | CN53: 0.0001186635395 | CO53: 2.544970947e-05 | CP53: 0.0007393141687 | CQ53: =(CI53*((cLifestyleTx+cCombined)))*'Time Discounting'!C50 -> 15.29258524 | CR53: 13.69525617 | CS53: 13.69525617 | CT53: =(CI53*(vQoLCombined))*'Time Discounting'!E50 -> 0.002717154864 | CU53: 0.002433344745 | CV53: 0.002433344745 | CW53: =(CI53*(1))*'Time Discounting'!G50 -> 0.003647187737 | CX53: 0.003266234557 | CY53: 0.003266234557 | CZ53: =0 + '1. Strategy Calcs'!Z52 + '1. Strategy Calcs'!AQ52 + '1. Strategy Calcs'!BH52 + '1. Strategy Calcs'!BY52 + '1. Strategy Calcs'!CP52 + DA52 -> 0.9467802727 | DA53: 0.9467802727 | DB53: =(CZ53*(vQoLDeath))*'Time Discounting'!E50 -> 0 | DC53: 0 | DD53: 0 | DF53: 0.6903 | DG53: 0.7852 | DH53: 0.2027080101 | DI53: 0.2027080101 | DJ53: 0.05272878778 | DK53: 0.2027080101 | DL53: 0.001831388557 | DM53: 0.01075342105 | DN53: 0.29365205 | DO53: 0.02784282761 | DP53: 0.04558558961 | DQ53: 0.2305755897
B54: 46 | D54: ='1. Strategy Calcs'!S54 -> 0.01283584937 | E54: ='1. Strategy Calcs'!AJ54 -> 0.01542616312 | F54: ='1. Strategy Calcs'!BA54 -> 0.009065549133 | G54: ='1. Strategy Calcs'!BR54 -> 0 | H54: ='1. Strategy Calcs'!CI54 -> 0.002885281377 | I54: ='1. Strategy Calcs'!CZ54 -> 0.959787157 | J54: ='1. Strategy Calcs'!AC54 + '1. Strategy Calcs'!AT54 + '1. Strategy Calcs'!BK54 + '1. Strategy Calcs'!CB54 + '1. Strategy Calcs'!CS54 -> 200.2755948 | K54: 121681.2469 | L54: ='1. Strategy Calcs'!AF54 + '1. Strategy Calcs'!AW54 + '1. Strategy Calcs'!BN54 + '1. Strategy Calcs'!CE54 + '1. Strategy Calcs'!CV54 + '1. Strategy Calcs'!DD54 -> 0.02645394751 | M54: 22.07523266 | N54: ='1. Strategy Calcs'!AI54 + '1. Strategy Calcs'!AZ54 + '1. Strategy Calcs'!BQ54 + '1. Strategy Calcs'!CH54 + '1. Strategy Calcs'!CY54 -> 0.03515388771 | O54: 28.96287237 | Q54: 1 | S54: =0 + U53 + '1. Strategy Calcs'!AO53 + '1. Strategy Calcs'!BF53 + '1. Strategy Calcs'!BW53 + '1. Strategy Calcs'!CN53 -> 0.01283584937 | T54: 0.008803102494 | U54: 0.008009532114 | V54: 0.0002472163191 | W54: 9.829712946e-05 | X54: 2.763293873e-05 | Y54: 0.0004204239919 | Z54: 0.004032746874 | AA54: =(S54*(cNGT))*'Time Discounting'!C51 -> 43.39608133 | AB54: 36.49180591 | AC54: 36.49180591 | AD54: =(S54*(vQoLNGT))*'Time Discounting'!E51 -> 0.009857932314 | AE54: 0.008289544623 | AF54: 0.008289544623 | AG54: =(S54*(1))*'Time Discounting'!G51 -> 0.01283584937 | AH54: 0.01079367789 | AI54: 0.01079367789 | AJ54: =0 + '1. Strategy Calcs'!X53 + '1. Strategy Calcs'!Y53 + AL53 + AP53 + '1. Strategy Calcs'!BE53 + '1. Strategy Calcs'!BG53 + '1. Strategy Calcs'!BT53 + '1. Strategy Calcs'!BX53 + '1. Strategy Calcs'!CM53 + '1. Strategy Calcs'!CO53 -> 0.01542616312 | AK54: 0.01179656868 | AL54: 0.01036822444 | AM54: 0.0007076757661 | AN54: 2.361637784e-05 | AO54: 0.0002743056114 | AP54: 0.0004227464815 | AQ54: 0.003629594442 | AR54: =(AJ54*((cT2D+cLifestyleTx)))*'Time Discounting'!C51 -> 133.7858678 | AS54: 119.3387434 | AT54: 119.3387434 | AU54: =(AJ54*(vQoLT2D))*'Time Discounting'!E51 -> 0.01138450838 | AV54: 0.01015513033 | AW54: 0.01015513033 | AX54: =(AJ54*(1))*'Time Discounting'!G51 -> 0.01542616312 | AY54: 0.0137603392 | AZ54: 0.0137603392 | BA54: =0 + '1. Strategy Calcs'!V53 + '1. Strategy Calcs'!AM53 + BC53 + '1. Strategy Calcs'!BU53 + '1. Strategy Calcs'!CL53 -> 0.009065549133 | BB54: 0.007202826396 | BC54: 0.006003452611 | BD54: 4.538500912e-05 | BE54: 0.0007480397124 | BF54: 0.000374119774 | BG54: 3.182928985e-05 | BH54: 0.001862722737 | BI54: =(BA54*((cLifestyleTx+cIFG)))*'Time Discounting'!C51 -> 38.0116662 | BJ54: 33.65434063 | BK54: 33.65434063 | BL54: =(BA54*(vQoLIFG))*'Time Discounting'!E51 -> 0.006880751792 | BM54: 0.006092002475 | BN54: 0.006092002475 | BO54: =(BA54*(1))*'Time Discounting'!G51 -> 0.009065549133 | BP54: 0.008026353721 | BQ54: 0.008026353721 | BR54: =0 -> 0 | BS54: 0 | BT54: 0 | BU54: 0 | BV54: 0 | BW54: 0 | BX54: 0 | BY54: 0 | BZ54: =(BR54*((cLifestyleTx+cIGT)))*'Time Discounting'!C51 -> 0 | CA54: 0 | CB54: 0 | CC54: =(BR54*(vQoLIGT))*'Time Discounting'!E51 -> 0 | CD54: 0 | CE54: 0 | CF54: =(BR54*(1))*'Time Discounting'!G51 -> 0 | CG54: 0 | CH54: 0 | CI54: =0 + '1. Strategy Calcs'!W53 + '1. Strategy Calcs'!AN53 + '1. Strategy Calcs'!BD53 + '1. Strategy Calcs'!BV53 + CK53 -> 0.002885281377 | CJ54: 0.002292434861 | CK54: 0.002094453894 | CL54: 2.881361377e-05 | CM54: 5.555504268e-05 | CN54: 9.3548921e-05 | CO54: 2.00633899e-05 | CP54: 0.0005928465164 | CQ54: =(CI54*((cLifestyleTx+cCombined)))*'Time Discounting'!C51 -> 12.09792711 | CR54: 10.79070487 | CS54: 10.79070487 | CT54: =(CI54*(vQoLCombined))*'Time Discounting'!E51 -> 0.002149534626 | CU54: 0.001917270086 | CV54: 0.001917270086 | CW54: =(CI54*(1))*'Time Discounting'!G51 -> 0.002885281377 | CX54: 0.002573516894 | CY54: 0.002573516894 | CZ54: =0 + '1. Strategy Calcs'!Z53 + '1. Strategy Calcs'!AQ53 + '1. Strategy Calcs'!BH53 + '1. Strategy Calcs'!BY53 + '1. Strategy Calcs'!CP53 + DA53 -> 0.959787157 | DA54: 0.959787157 | DB54: =(CZ54*(vQoLDeath))*'Time Discounting'!E51 -> 0 | DC54: 0 | DD54: 0 | DF54: 0.654 | DG54: 0.7489 | DH54: 0.2054726867 | DI54: 0.2054726867 | DJ54: 0.05194069014 | DK54: 0.2054726867 | DL54: 0.001708732816 | DM54: 0.01116619164 | DN54: 0.31417842 | DO54: 0.02808286275 | DP54: 0.04775861604 | DQ54: 0.2352882187
B55: 47 | D55: ='1. Strategy Calcs'!S55 -> 0.008751506421 | E55: ='1. Strategy Calcs'!AJ55 -> 0.01209451529 | F55: ='1. Strategy Calcs'!BA55 -> 0.00698715831 | G55: ='1. Strategy Calcs'!BR55 -> 0 | H55: ='1. Strategy Calcs'!CI55 -> 0.00226175241 | I55: ='1. Strategy Calcs'!CZ55 -> 0.9699050676 | J55: ='1. Strategy Calcs'!AC55 + '1. Strategy Calcs'!AT55 + '1. Strategy Calcs'!BK55 + '1. Strategy Calcs'!CB55 + '1. Strategy Calcs'!CS55 -> 152.4462634 | K55: 121833.6932 | L55: ='1. Strategy Calcs'!AF55 + '1. Strategy Calcs'!AW55 + '1. Strategy Calcs'!BN55 + '1. Strategy Calcs'!CE55 + '1. Strategy Calcs'!CV55 + '1. Strategy Calcs'!DD55 -> 0.0197509553 | M55: 22.09498362 | N55: ='1. Strategy Calcs'!AI55 + '1. Strategy Calcs'!AZ55 + '1. Strategy Calcs'!BQ55 + '1. Strategy Calcs'!CH55 + '1. Strategy Calcs'!CY55 -> 0.0262706493 | O55: 28.98914302 | Q55: 1 | S55: =0 + U54 + '1. Strategy Calcs'!AO54 + '1. Strategy Calcs'!BF54 + '1. Strategy Calcs'!BW54 + '1. Strategy Calcs'!CN54 -> 0.008751506421 | T55: 0.005850630323 | U55: 0.005306139811 | V55: 0.000165717057 | W55: 6.783106245e-05 | X55: 1.836512858e-05 | Y55: 0.0002925772638 | Z55: 0.002900876098 | AA55: =(S55*(cNGT))*'Time Discounting'!C52 -> 29.58753048 | AB55: 24.7312989 | AC55: 24.7312989 | AD55: =(S55*(vQoLNGT))*'Time Discounting'!E52 -> 0.006721156931 | AE55: 0.005618006583 | AF55: 0.005618006583 | AG55: =(S55*(1))*'Time Discounting'!G52 -> 0.008751506421 | AH55: 0.007315112739 | AI55: 0.007315112739 | AJ55: =0 + '1. Strategy Calcs'!X54 + '1. Strategy Calcs'!Y54 + AL54 + AP54 + '1. Strategy Calcs'!BE54 + '1. Strategy Calcs'!BG54 + '1. Strategy Calcs'!BT54 + '1. Strategy Calcs'!BX54 + '1. Strategy Calcs'!CM54 + '1. Strategy Calcs'!CO54 -> 0.01209451529 | AK55: 0.009239313537 | AL55: 0.008120605157 | AM55: 0.0005542661146 | AN55: 1.84968295e-05 | AO55: 0.0002148417577 | AP55: 0.0003311036791 | AQ55: 0.002855201749 | AR55: =(AJ55*((cT2D+cLifestyleTx)))*'Time Discounting'!C52 -> 104.8916189 | AS55: 93.38252663 | AT55: 93.38252663 | AU55: =(AJ55*(vQoLT2D))*'Time Discounting'!E52 -> 0.008925752282 | AV55: 0.007946386075 | AW55: 0.007946386075 | AX55: =(AJ55*(1))*'Time Discounting'!G52 -> 0.01209451529 | AY55: 0.01076746081 | AZ55: 0.01076746081 | BA55: =0 + '1. Strategy Calcs'!V54 + '1. Strategy Calcs'!AM54 + BC54 + '1. Strategy Calcs'!BU54 + '1. Strategy Calcs'!CL54 -> 0.00698715831 | BB55: 0.005557463883 | BC55: 0.004619705598 | BD55: 3.501757993e-05 | BE55: 0.000593856083 | BF55: 0.0002843261899 | BG55: 2.45584329e-05 | BH55: 0.001429694427 | BI55: =(BA55*((cLifestyleTx+cIFG)))*'Time Discounting'!C52 -> 29.29701505 | BJ55: 25.8905156 | BK55: 25.8905156 | BL55: =(BA55*(vQoLIFG))*'Time Discounting'!E52 -> 0.005303253157 | BM55: 0.004686619382 | BN55: 0.004686619382 | BO55: =(BA55*(1))*'Time Discounting'!G52 -> 0.00698715831 | BP55: 0.006174729094 | BQ55: 0.006174729094 | BR55: =0 -> 0 | BS55: 0 | BT55: 0 | BU55: 0 | BV55: 0 | BW55: 0 | BX55: 0 | BY55: 0 | BZ55: =(BR55*((cLifestyleTx+cIGT)))*'Time Discounting'!C52 -> 0 | CA55: 0 | CB55: 0 | CC55: =(BR55*(vQoLIGT))*'Time Discounting'!E52 -> 0 | CD55: 0 | CE55: 0 | CF55: =(BR55*(1))*'Time Discounting'!G52 -> 0 | CG55: 0 | CH55: 0 | CI55: =0 + '1. Strategy Calcs'!W54 + '1. Strategy Calcs'!AN54 + '1. Strategy Calcs'!BD54 + '1. Strategy Calcs'!BV54 + CK54 -> 0.00226175241 | CJ55: 0.001798958428 | CK55: 0.00164359544 | CL55: 2.261110849e-05 | CM55: 4.359609687e-05 | CN55: 7.341129851e-05 | CO55: 1.574448416e-05 | CP55: 0.0004627939817 | CQ55: =(CI55*((cLifestyleTx+cCombined)))*'Time Discounting'!C52 -> 9.48348262 | CR55: 8.441922283 | CS55: 8.441922283 | CT55: =(CI55*(vQoLCombined))*'Time Discounting'!E52 -> 0.001685005545 | CU55: 0.001499943263 | CV55: 0.001499943263 | CW55: =(CI55*(1))*'Time Discounting'!G52 -> 0.00226175241 | CX55: 0.002013346661 | CY55: 0.002013346661 | CZ55: =0 + '1. Strategy Calcs'!Z54 + '1. Strategy Calcs'!AQ54 + '1. Strategy Calcs'!BH54 + '1. Strategy Calcs'!BY54 + '1. Strategy Calcs'!CP54 + DA54 -> 0.9699050676 | DA55: 0.9699050676 | DB55: =(CZ55*(vQoLDeath))*'Time Discounting'!E52 -> 0 | DC55: 0 | DD55: 0 | DF55: 0.6173 | DG55: 0.7122 | DH55: 0.2046174372 | DI55: 0.2046174372 | DJ55: 0.05116114037 | DK55: 0.2046174372 | DL55: 0.001594219827 | DM55: 0.01159380421 | DN55: 0.33147163 | DO55: 0.02832465014 | DP55: 0.05000781928 | DQ55: 0.2360740949
B56: 48 | D56: ='1. Strategy Calcs'!S56 -> 0.005878719057 | E56: ='1. Strategy Calcs'!AJ56 -> 0.009440406325 | F56: ='1. Strategy Calcs'!BA56 -> 0.005362299878 | G56: ='1. Strategy Calcs'!BR56 -> 0 | H56: ='1. Strategy Calcs'!CI56 -> 0.001764940912 | I56: ='1. Strategy Calcs'!CZ56 -> 0.9775536338 | J56: ='1. Strategy Calcs'!AC56 + '1. Strategy Calcs'!AT56 + '1. Strategy Calcs'!BK56 + '1. Strategy Calcs'!CB56 + '1. Strategy Calcs'!CS56 -> 115.8091394 | K56: 121949.5024 | L56: ='1. Strategy Calcs'!AF56 + '1. Strategy Calcs'!AW56 + '1. Strategy Calcs'!BN56 + '1. Strategy Calcs'!CE56 + '1. Strategy Calcs'!CV56 + '1. Strategy Calcs'!DD56 -> 0.01471849382 | M56: 22.10970211 | N56: ='1. Strategy Calcs'!AI56 + '1. Strategy Calcs'!AZ56 + '1. Strategy Calcs'!BQ56 + '1. Strategy Calcs'!CH56 + '1. Strategy Calcs'!CY56 -> 0.01959525013 | O56: 29.00873827 | Q56: 1 | S56: =0 + U55 + '1. Strategy Calcs'!AO55 + '1. Strategy Calcs'!BF55 + '1. Strategy Calcs'!BW55 + '1. Strategy Calcs'!CN55 -> 0.005878719057 | T56: 0.003833104361 | U56: 0.003464828952 | V56: 0.0001095048826 | W56: 4.613799334e-05 | X56: 1.203211459e-05 | Y56: 0.0002006004183 | Z56: 0.002045614696 | AA56: =(S56*(cNGT))*'Time Discounting'!C53 -> 19.87506732 | AB56: 16.54019088 | AC56: 16.54019088 | AD56: =(S56*(vQoLNGT))*'Time Discounting'!E53 -> 0.004514856236 | AE56: 0.003757299672 | AF56: 0.003757299672 | AG56: =(S56*(1))*'Time Discounting'!G53 -> 0.005878719057 | AH56: 0.004892317281 | AI56: 0.004892317281 | AJ56: =0 + '1. Strategy Calcs'!X55 + '1. Strategy Calcs'!Y55 + AL55 + AP55 + '1. Strategy Calcs'!BE55 + '1. Strategy Calcs'!BG55 + '1. Strategy Calcs'!BT55 + '1. Strategy Calcs'!BX55 + '1. Strategy Calcs'!CM55 + '1. Strategy Calcs'!CO55 -> 0.009440406325 | AK56: 0.007222720991 | AL56: 0.00634818432 | AM56: 0.0004332907942 | AN56: 1.44596715e-05 | AO56: 0.0001679499312 | AP56: 0.0002588362743 | AQ56: 0.002217685334 | AR56: =(AJ56*((cT2D+cLifestyleTx)))*'Time Discounting'!C53 -> 81.87343432 | AS56: 72.83201611 | AT56: 72.83201611 | AU56: =(AJ56*(vQoLT2D))*'Time Discounting'!E53 -> 0.006967019868 | AV56: 0.006197640388 | AW56: 0.006197640388 | AX56: =(AJ56*(1))*'Time Discounting'!G53 -> 0.009440406325 | AY56: 0.008397886705 | AZ56: 0.008397886705 | BA56: =0 + '1. Strategy Calcs'!V55 + '1. Strategy Calcs'!AM55 + BC55 + '1. Strategy Calcs'!BU55 + '1. Strategy Calcs'!CL55 -> 0.005362299878 | BB56: 0.004279695071 | BC56: 0.003547825012 | BD56: 2.696635864e-05 | BE56: 0.0004703373454 | BF56: 0.0002156543819 | BG56: 1.891197252e-05 | BH56: 0.001082604807 | BI56: =(BA56*((cLifestyleTx+cIFG)))*'Time Discounting'!C53 -> 22.48401614 | BJ56: 19.85507151 | BK56: 19.85507151 | BL56: =(BA56*(vQoLIFG))*'Time Discounting'!E53 -> 0.004069985607 | BM56: 0.003594102351 | BN56: 0.003594102351 | BO56: =(BA56*(1))*'Time Discounting'!G53 -> 0.005362299878 | BP56: 0.004735312716 | BQ56: 0.004735312716 | BR56: =0 -> 0 | BS56: 0 | BT56: 0 | BU56: 0 | BV56: 0 | BW56: 0 | BX56: 0 | BY56: 0 | BZ56: =(BR56*((cLifestyleTx+cIGT)))*'Time Discounting'!C53 -> 0 | CA56: 0 | CB56: 0 | CC56: =(BR56*(vQoLIGT))*'Time Discounting'!E53 -> 0 | CD56: 0 | CE56: 0 | CF56: =(BR56*(1))*'Time Discounting'!G53 -> 0 | CG56: 0 | CH56: 0 | CI56: =0 + '1. Strategy Calcs'!W55 + '1. Strategy Calcs'!AN55 + '1. Strategy Calcs'!BD55 + '1. Strategy Calcs'!BV55 + CK55 -> 0.001764940912 | CJ56: 0.001408613672 | CK56: 0.001286961929 | CL56: 1.770486524e-05 | CM56: 3.413645204e-05 | CN56: 5.748223924e-05 | CO56: 1.232818686e-05 | CP56: 0.0003563272401 | CQ56: =(CI56*((cLifestyleTx+cCombined)))*'Time Discounting'!C53 -> 7.400361946 | CR56: 6.581860886 | CS56: 6.581860886 | CT56: =(CI56*(vQoLCombined))*'Time Discounting'!E53 -> 0.00131488098 | CU56: 0.001169451407 | CV56: 0.001169451407 | CW56: =(CI56*(1))*'Time Discounting'!G53 -> 0.001764940912 | CX56: 0.001569733432 | CY56: 0.001569733432 | CZ56: =0 + '1. Strategy Calcs'!Z55 + '1. Strategy Calcs'!AQ55 + '1. Strategy Calcs'!BH55 + '1. Strategy Calcs'!BY55 + '1. Strategy Calcs'!CP55 + DA55 -> 0.9775536338 | DA56: 0.9775536338 | DB56: =(CZ56*(vQoLDeath))*'Time Discounting'!E53 -> 0 | DC56: 0 | DD56: 0 | DF56: 0.5802 | DG56: 0.6751 | DH56: 0.2018918807 | DI56: 0.2018918807 | DJ56: 0.05039012789 | DK56: 0.2018918807 | DL56: 0.001487318311 | DM56: 0.01203671724 | DN56: 0.34796946 | DO56: 0.02856819754 | DP56: 0.05233366989 | DQ56: 0.2349141824
B57: 49 | D57: ='1. Strategy Calcs'!S57 -> 0.003905915505 | E57: ='1. Strategy Calcs'!AJ57 -> 0.007355367084 | F57: ='1. Strategy Calcs'!BA57 -> 0.004108325554 | G57: ='1. Strategy Calcs'!BR57 -> 0 | H57: ='1. Strategy Calcs'!CI57 -> 0.001374525952 | I57: ='1. Strategy Calcs'!CZ57 -> 0.9832558659 | J57: ='1. Strategy Calcs'!AC57 + '1. Strategy Calcs'!AT57 + '1. Strategy Calcs'!BK57 + '1. Strategy Calcs'!CB57 + '1. Strategy Calcs'!CS57 -> 87.89223275 | K57: 122037.3946 | L57: ='1. Strategy Calcs'!AF57 + '1. Strategy Calcs'!AW57 + '1. Strategy Calcs'!BN57 + '1. Strategy Calcs'!CE57 + '1. Strategy Calcs'!CV57 + '1. Strategy Calcs'!DD57 -> 0.010962816 | M57: 22.12066493 | N57: ='1. Strategy Calcs'!AI57 + '1. Strategy Calcs'!AZ57 + '1. Strategy Calcs'!BQ57 + '1. Strategy Calcs'!CH57 + '1. Strategy Calcs'!CY57 -> 0.0146086932 | O57: 29.02334697 | Q57: 1 | S57: =0 + U56 + '1. Strategy Calcs'!AO56 + '1. Strategy Calcs'!BF56 + '1. Strategy Calcs'!BW56 + '1. Strategy Calcs'!CN56 -> 0.003905915505 | T57: 0.002464263457 | U57: 0.002219846988 | V57: 7.100408644e-05 | W57: 3.079195232e-05 | X57: 7.735322992e-06 | Y57: 0.0001348851078 | Z57: 0.001441652047 | AA57: =(S57*(cNGT))*'Time Discounting'!C54 -> 13.20531443 | AB57: 10.92766573 | AC57: 10.92766573 | AD57: =(S57*(vQoLNGT))*'Time Discounting'!E54 -> 0.002999743108 | AE57: 0.002482348309 | AF57: 0.002482348309 | AG57: =(S57*(1))*'Time Discounting'!G54 -> 0.003905915505 | AH57: 0.003232224361 | AI57: 0.003232224361 | AJ57: =0 + '1. Strategy Calcs'!X56 + '1. Strategy Calcs'!Y56 + AL56 + AP56 + '1. Strategy Calcs'!BE56 + '1. Strategy Calcs'!BG56 + '1. Strategy Calcs'!BT56 + '1. Strategy Calcs'!BX56 + '1. Strategy Calcs'!CM56 + '1. Strategy Calcs'!CO56 -> 0.007355367084 | AK57: 0.005624394181 | AL57: 0.004943385048 | AM57: 0.0003374072216 | AN57: 1.125986901e-05 | AO57: 0.0001307840379 | AP57: 0.0002015580052 | AQ57: 0.001730972903 | AR57: =(AJ57*((cT2D+cLifestyleTx)))*'Time Discounting'!C54 -> 63.7905979 | AS57: 56.65366957 | AT57: 56.65366957 | AU57: =(AJ57*(vQoLT2D))*'Time Discounting'!E54 -> 0.005428260908 | AV57: 0.004820943994 | AW57: 0.004820943994 | AX57: =(AJ57*(1))*'Time Discounting'!G54 -> 0.007355367084 | AY57: 0.006532444437 | AZ57: 0.006532444437 | BA57: =0 + '1. Strategy Calcs'!V56 + '1. Strategy Calcs'!AM56 + BC56 + '1. Strategy Calcs'!BU56 + '1. Strategy Calcs'!CL56 -> 0.004108325554 | BB57: 0.003285396716 | BC57: 0.002715948869 | BD57: 2.070128471e-05 | BE57: 0.000371181909 | BF57: 0.0001630464859 | BG57: 1.451816809e-05 | BH57: 0.0008229288376 | BI57: =(BA57*((cLifestyleTx+cIFG)))*'Time Discounting'!C54 -> 17.22612688 | BJ57: 15.19221803 | BK57: 15.19221803 | BL57: =(BA57*(vQoLIFG))*'Time Discounting'!E54 -> 0.003118219095 | BM57: 0.002750047338 | BN57: 0.002750047338 | BO57: =(BA57*(1))*'Time Discounting'!G54 -> 0.004108325554 | BP57: 0.003623250775 | BQ57: 0.003623250775 | BR57: =0 -> 0 | BS57: 0 | BT57: 0 | BU57: 0 | BV57: 0 | BW57: 0 | BX57: 0 | BY57: 0 | BZ57: =(BR57*((cLifestyleTx+cIGT)))*'Time Discounting'!C54 -> 0 | CA57: 0 | CB57: 0 | CC57: =(BR57*(vQoLIGT))*'Time Discounting'!E54 -> 0 | CD57: 0 | CE57: 0 | CF57: =(BR57*(1))*'Time Discounting'!G54 -> 0 | CG57: 0 | CH57: 0 | CI57: =0 + '1. Strategy Calcs'!W56 + '1. Strategy Calcs'!AN56 + '1. Strategy Calcs'!BD56 + '1. Strategy Calcs'!BV56 + CK56 -> 0.001374525952 | CJ57: 0.001099197956 | CK57: 0.001004268203 | CL57: 1.38158191e-05 | CM57: 2.663804777e-05 | CN57: 4.485570537e-05 | CO57: 9.620180507e-06 | CP57: 0.0002753279966 | CQ57: =(CI57*((cLifestyleTx+cCombined)))*'Time Discounting'!C54 -> 5.763359827 | CR57: 5.118679417 | CS57: 5.118679417 | CT57: =(CI57*(vQoLCombined))*'Time Discounting'!E54 -> 0.001024021834 | CU57: 0.0009094763548 | CV57: 0.0009094763548 | CW57: =(CI57*(1))*'Time Discounting'!G54 -> 0.001374525952 | CX57: 0.001220773631 | CY57: 0.001220773631 | CZ57: =0 + '1. Strategy Calcs'!Z56 + '1. Strategy Calcs'!AQ56 + '1. Strategy Calcs'!BH56 + '1. Strategy Calcs'!BY56 + '1. Strategy Calcs'!CP56 + DA56 -> 0.9832558659 | DA57: 0.9832558659 | DB57: =(CZ57*(vQoLDeath))*'Time Discounting'!E54 -> 0 | DC57: 0 | DD57: 0 | DF57: 0.5427 | DG57: 0.6376 | DH57: 0.2003076014 | DI57: 0.2003076014 | DJ57: 0.04962764011 | DK57: 0.2003076014 | DL57: 0.001387530456 | DM57: 0.01249539786 | DN57: 0.36909453 | DO57: 0.02881351271 | DP57: 0.05473648013 | DQ57: 0.2353346723
B58: 50 | D58: ='1. Strategy Calcs'!S58 -> 0.002558533217 | E58: ='1. Strategy Calcs'!AJ58 -> 0.005709521789 | F58: ='1. Strategy Calcs'!BA58 -> 0.003138175996 | G58: ='1. Strategy Calcs'!BR58 -> 0 | H58: ='1. Strategy Calcs'!CI58 -> 0.001067021309 | I58: ='1. Strategy Calcs'!CZ58 -> 0.9875267477 | J58: ='1. Strategy Calcs'!AC58 + '1. Strategy Calcs'!AT58 + '1. Strategy Calcs'!BK58 + '1. Strategy Calcs'!CB58 + '1. Strategy Calcs'!CS58 -> 58.8473857 | K58: 122096.242 | L58: ='1. Strategy Calcs'!AF58 + '1. Strategy Calcs'!AW58 + '1. Strategy Calcs'!BN58 + '1. Strategy Calcs'!CE58 + '1. Strategy Calcs'!CV58 + '1. Strategy Calcs'!DD58 -> 0.007289279902 | M58: 22.12795421 | N58: ='1. Strategy Calcs'!AI58 + '1. Strategy Calcs'!AZ58 + '1. Strategy Calcs'!BQ58 + '1. Strategy Calcs'!CH58 + '1. Strategy Calcs'!CY58 -> 0.009716638276 | O58: 29.0330636 | Q58: 1 | S58: =0 + U57 + '1. Strategy Calcs'!AO57 + '1. Strategy Calcs'!BF57 + '1. Strategy Calcs'!BW57 + '1. Strategy Calcs'!CN57 -> 0.002558533217 | T58: 0.001561432244 | U58: 0.001401562937 | V58: 4.537616308e-05 | W58: 2.025227835e-05 | X58: 4.901335814e-06 | Y58: 8.933953012e-05 | Z58: 0.000997100973 | AA58: =(S58*(cNGT))*'Time Discounting'!C55 -> 8.650017026 | AB58: 6.999577263 | AC58: 6.999577263 | AD58: =(S58*(vQoLNGT))*'Time Discounting'!E55 -> 0.001964953511 | AE58: 0.001590036629 | AF58: 0.001590036629 | AG58: =(S58*(1))*'Time Discounting'!G55 -> 0.002558533217 | AH58: 0.002070360194 | AI58: 0.002070360194 | AJ58: =0 + '1. Strategy Calcs'!X57 + '1. Strategy Calcs'!Y57 + AL57 + AP57 + '1. Strategy Calcs'!BE57 + '1. Strategy Calcs'!BG57 + '1. Strategy Calcs'!BT57 + '1. Strategy Calcs'!BX57 + '1. Strategy Calcs'!CM57 + '1. Strategy Calcs'!CO57 -> 0.005709521789 | AK58: 0.003061663268 | AL58: 0.002690953004 | AM58: 0.0001836690785 | AN58: 6.129358335e-06 | AO58: 7.119285597e-05 | AP58: 0.0001097189708 | AQ58: 0.002647858521 | AR58: =(AJ58*((cT2D+cLifestyleTx)))*'Time Discounting'!C55 -> 49.51674124 | AS58: 38.3078571 | AT58: 38.3078571 | AU58: =(AJ58*(vQoLT2D))*'Time Discounting'!E55 -> 0.00421362708 | AV58: 0.003259807088 | AW58: 0.003259807088 | AX58: =(AJ58*(1))*'Time Discounting'!G55 -> 0.005709521789 | AY58: 0.004417082775 | AZ58: 0.004417082775 | BA58: =0 + '1. Strategy Calcs'!V57 + '1. Strategy Calcs'!AM57 + BC57 + '1. Strategy Calcs'!BU57 + '1. Strategy Calcs'!CL57 -> 0.003138175996 | BB58: 0.001743959465 | BC58: 0.0014375659 | BD58: 1.098868859e-05 | BE58: 0.000202464633 | BF58: 8.52336863e-05 | BG58: 7.706556875e-06 | BH58: 0.001394216531 | BI58: =(BA58*((cLifestyleTx+cIFG)))*'Time Discounting'!C55 -> 13.15830919 | BJ58: 10.08881339 | BK58: 10.08881339 | BL58: =(BA58*(vQoLIFG))*'Time Discounting'!E55 -> 0.002381875581 | BM58: 0.001826245144 | BN58: 0.001826245144 | BO58: =(BA58*(1))*'Time Discounting'!G55 -> 0.003138175996 | BP58: 0.002406120084 | BQ58: 0.002406120084 | BR58: =0 -> 0 | BS58: 0 | BT58: 0 | BU58: 0 | BV58: 0 | BW58: 0 | BX58: 0 | BY58: 0 | BZ58: =(BR58*((cLifestyleTx+cIGT)))*'Time Discounting'!C55 -> 0 | CA58: 0 | CB58: 0 | CC58: =(BR58*(vQoLIGT))*'Time Discounting'!E55 -> 0 | CD58: 0 | CE58: 0 | CF58: =(BR58*(1))*'Time Discounting'!G55 -> 0 | CG58: 0 | CH58: 0 | CI58: =0 + '1. Strategy Calcs'!W57 + '1. Strategy Calcs'!AN57 + '1. Strategy Calcs'!BD57 + '1. Strategy Calcs'!BV57 + CK57 -> 0.001067021309 | CJ58: 0.0005929692641 | CK58: 0.0005417588107 | CL58: 7.45303068e-06 | CM58: 1.437006274e-05 | CN58: 2.419769293e-05 | CO58: 5.189666999e-06 | CP58: 0.0004740520448 | CQ58: =(CI58*((cLifestyleTx+cCombined)))*'Time Discounting'!C55 -> 4.473999008 | CR58: 3.451137946 | CS58: 3.451137946 | CT58: =(CI58*(vQoLCombined))*'Time Discounting'!E55 -> 0.0007949308751 | CU58: 0.0006131910407 | CV58: 0.0006131910407 | CW58: =(CI58*(1))*'Time Discounting'!G55 -> 0.001067021309 | CX58: 0.0008230752224 | CY58: 0.0008230752224 | CZ58: =0 + '1. Strategy Calcs'!Z57 + '1. Strategy Calcs'!AQ57 + '1. Strategy Calcs'!BH57 + '1. Strategy Calcs'!BY57 + '1. Strategy Calcs'!CP57 + DA57 -> 0.9875267477 | DA58: 0.9875267477 | DB58: =(CZ58*(vQoLDeath))*'Time Discounting'!E55 -> 0 | DC58: 0 | DD58: 0 | DF58: 1.14 | DG58: 1.19 | DH58: 0.4442760804 | DI58: 0.4442760804 | DJ58: 0.0488736625 | DK58: 0.4442760804 | DL58: 0.001294389958 | DM58: 0.0129703216 | DN58: 0.38971586 | DO58: 0.02906060334 | DP58: 0.0572163989 | DQ58: 0.4637618734
B59: 51 | D59: ='1. Strategy Calcs'!S59 -> 0.001582187172 | E59: ='1. Strategy Calcs'!AJ59 -> 0.003124643761 | F59: ='1. Strategy Calcs'!BA59 -> 0.001674064172 | G59: ='1. Strategy Calcs'!BR59 -> 0 | H59: ='1. Strategy Calcs'!CI59 -> 0.000579129136 | I59: ='1. Strategy Calcs'!CZ59 -> 0.9930399758 | J59: ='1. Strategy Calcs'!AC59 + '1. Strategy Calcs'!AT59 + '1. Strategy Calcs'!BK59 + '1. Strategy Calcs'!CB59 + '1. Strategy Calcs'!CS59 -> 32.5706865 | K59: 122128.8127 | L59: ='1. Strategy Calcs'!AF59 + '1. Strategy Calcs'!AW59 + '1. Strategy Calcs'!BN59 + '1. Strategy Calcs'!CE59 + '1. Strategy Calcs'!CV59 + '1. Strategy Calcs'!DD59 -> 0.004073147201 | M59: 22.13202735 | N59: ='1. Strategy Calcs'!AI59 + '1. Strategy Calcs'!AZ59 + '1. Strategy Calcs'!BQ59 + '1. Strategy Calcs'!CH59 + '1. Strategy Calcs'!CY59 -> 0.005426657256 | O59: 29.03849026 | Q59: 1 | S59: =0 + U58 + '1. Strategy Calcs'!AO58 + '1. Strategy Calcs'!BF58 + '1. Strategy Calcs'!BW58 + '1. Strategy Calcs'!CN58 -> 0.001582187172 | T59: 0.0009655837374 | U59: 0.0008635371238 | V59: 2.830075443e-05 | W59: 1.299866134e-05 | X59: 3.030967352e-06 | Y59: 5.771623057e-05 | Z59: 0.0006166034343 | AA59: =(S59*(cNGT))*'Time Discounting'!C56 -> 5.3491375 | AB59: 4.298064111 | AC59: 4.298064111 | AD59: =(S59*(vQoLNGT))*'Time Discounting'!E56 -> 0.001215119748 | AE59: 0.0009763560162 | AF59: 0.0009763560162 | AG59: =(S59*(1))*'Time Discounting'!G56 -> 0.001582187172 | AH59: 0.001271296896 | AI59: 0.001271296896 | AJ59: =0 + '1. Strategy Calcs'!X58 + '1. Strategy Calcs'!Y58 + AL58 + AP58 + '1. Strategy Calcs'!BE58 + '1. Strategy Calcs'!BG58 + '1. Strategy Calcs'!BT58 + '1. Strategy Calcs'!BX58 + '1. Strategy Calcs'!CM58 + '1. Strategy Calcs'!CO58 -> 0.003124643761 | AK59: 0.001675553117 | AL59: 0.001472674915 | AM59: 0.0001005163762 | AN59: 3.354407249e-06 | AO59: 3.896163662e-05 | AP59: 6.004578144e-05 | AQ59: 0.001449090644 | AR59: =(AJ59*((cT2D+cLifestyleTx)))*'Time Discounting'!C56 -> 27.09897296 | AS59: 21.00420397 | AT59: 21.00420397 | AU59: =(AJ59*(vQoLT2D))*'Time Discounting'!E56 -> 0.002305987095 | AV59: 0.00178735273 | AW59: 0.00178735273 | AX59: =(AJ59*(1))*'Time Discounting'!G56 -> 0.003124643761 | AY59: 0.002421887168 | AZ59: 0.002421887168 | BA59: =0 + '1. Strategy Calcs'!V58 + '1. Strategy Calcs'!AM58 + BC58 + '1. Strategy Calcs'!BU58 + '1. Strategy Calcs'!CL58 -> 0.001674064172 | BB59: 0.0009303175035 | BC59: 0.0007646345089 | BD59: 5.86193059e-06 | BE59: 0.000110935504 | BF59: 4.477448693e-05 | BG59: 4.111073048e-06 | BH59: 0.0007437466688 | BI59: =(BA59*((cLifestyleTx+cIFG)))*'Time Discounting'!C56 -> 7.019317593 | BJ59: 5.391251853 | BK59: 5.391251853 | BL59: =(BA59*(vQoLIFG))*'Time Discounting'!E56 -> 0.001270614707 | BM59: 0.0009759073872 | BN59: 0.0009759073872 | BO59: =(BA59*(1))*'Time Discounting'!G56 -> 0.001674064172 | BP59: 0.001285780484 | BQ59: 0.001285780484 | BR59: =0 -> 0 | BS59: 0 | BT59: 0 | BU59: 0 | BV59: 0 | BW59: 0 | BX59: 0 | BY59: 0 | BZ59: =(BR59*((cLifestyleTx+cIGT)))*'Time Discounting'!C56 -> 0 | CA59: 0 | CB59: 0 | CC59: =(BR59*(vQoLIGT))*'Time Discounting'!E56 -> 0 | CD59: 0 | CE59: 0 | CF59: =(BR59*(1))*'Time Discounting'!G56 -> 0 | CG59: 0 | CH59: 0 | CI59: =0 + '1. Strategy Calcs'!W58 + '1. Strategy Calcs'!AN58 + '1. Strategy Calcs'!BD58 + '1. Strategy Calcs'!BV58 + CK58 -> 0.000579129136 | CJ59: 0.0003218359134 | CK59: 0.0002940412805 | CL59: 4.045155596e-06 | CM59: 7.799396271e-06 | CN59: 1.313337314e-05 | CO59: 2.816707914e-06 | CP59: 0.0002572932226 | CQ59: =(CI59*((cLifestyleTx+cCombined)))*'Time Discounting'!C56 -> 2.428276885 | CR59: 1.87716657 | CS59: 1.87716657 | CT59: =(CI59*(vQoLCombined))*'Time Discounting'!E56 -> 0.0004314512063 | CU59: 0.0003335310673 | CV59: 0.0003335310673 | CW59: =(CI59*(1))*'Time Discounting'!G56 -> 0.000579129136 | CX59: 0.0004476927078 | CY59: 0.0004476927078 | CZ59: =0 + '1. Strategy Calcs'!Z58 + '1. Strategy Calcs'!AQ58 + '1. Strategy Calcs'!BH58 + '1. Strategy Calcs'!BY58 + '1. Strategy Calcs'!CP58 + DA58 -> 0.9930399758 | DA59: 0.9930399758 | DB59: =(CZ59*(vQoLDeath))*'Time Discounting'!E56 -> 0 | DC59: 0 | DD59: 0 | DF59: 1.14 | DG59: 1.19 | DH59: 0.4442760804 | DI59: 0.4442760804 | DJ59: 0.04812817856 | DK59: 0.4442760804 | DL59: 0.001207460171 | DM59: 0.0134619721 | DN59: 0.38971586 | DO59: 0.02930947708 | DP59: 0.05977340786 | DQ59: 0.4637618734
B60: 52 | D60: ='1. Strategy Calcs'!S60 -> 0.0009604066205 | E60: ='1. Strategy Calcs'!AJ60 -> 0.001719130576 | F60: ='1. Strategy Calcs'!BA60 -> 0.0008974967952 | G60: ='1. Strategy Calcs'!BR60 -> 0 | H60: ='1. Strategy Calcs'!CI60 -> 0.0003162562797 | I60: ='1. Strategy Calcs'!CZ60 -> 0.9961067097 | J60: ='1. Strategy Calcs'!AC60 + '1. Strategy Calcs'!AT60 + '1. Strategy Calcs'!BK60 + '1. Strategy Calcs'!CB60 + '1. Strategy Calcs'!CS60 -> 18.0947096 | K60: 122146.9074 | L60: ='1. Strategy Calcs'!AF60 + '1. Strategy Calcs'!AW60 + '1. Strategy Calcs'!BN60 + '1. Strategy Calcs'!CE60 + '1. Strategy Calcs'!CV60 + '1. Strategy Calcs'!DD60 -> 0.002281203733 | M60: 22.13430856 | N60: ='1. Strategy Calcs'!AI60 + '1. Strategy Calcs'!AZ60 + '1. Strategy Calcs'!BQ60 + '1. Strategy Calcs'!CH60 + '1. Strategy Calcs'!CY60 -> 0.003037893087 | O60: 29.04152815 | Q60: 1 | S60: =0 + U59 + '1. Strategy Calcs'!AO59 + '1. Strategy Calcs'!BF59 + '1. Strategy Calcs'!BW59 + '1. Strategy Calcs'!CN59 -> 0.0009604066205 | T60: 0.0005861209284 | U60: 0.0005221884394 | V60: 1.732581762e-05 | W60: 8.188602186e-06 | X60: 1.839833594e-06 | Y60: 3.65782356e-05 | Z60: 0.000374285692 | AA60: =(S60*(cNGT))*'Time Discounting'!C57 -> 3.246990723 | AB60: 2.594531882 | AC60: 2.594531882 | AD60: =(S60*(vQoLNGT))*'Time Discounting'!E57 -> 0.0007375922845 | AE60: 0.0005893785542 | AF60: 0.0005893785542 | AG60: =(S60*(1))*'Time Discounting'!G57 -> 0.0009604066205 | AH60: 0.0007674199925 | AI60: 0.0007674199925 | AJ60: =0 + '1. Strategy Calcs'!X59 + '1. Strategy Calcs'!Y59 + AL59 + AP59 + '1. Strategy Calcs'!BE59 + '1. Strategy Calcs'!BG59 + '1. Strategy Calcs'!BT59 + '1. Strategy Calcs'!BX59 + '1. Strategy Calcs'!CM59 + '1. Strategy Calcs'!CO59 -> 0.001719130576 | AK60: 0.0009218633592 | AL60: 0.0008102429167 | AM60: 5.530255253e-05 | AN60: 1.845542886e-06 | AO60: 2.143608869e-05 | AP60: 3.303625844e-05 | AQ60: 0.0007972672163 | AR60: =(AJ60*((cT2D+cLifestyleTx)))*'Time Discounting'!C57 -> 14.90943498 | AS60: 11.57752995 | AT60: 11.57752995 | AU60: =(AJ60*(vQoLT2D))*'Time Discounting'!E57 -> 0.001268718365 | AV60: 0.0009851899073 | AW60: 0.0009851899073 | AX60: =(AJ60*(1))*'Time Discounting'!G57 -> 0.001719130576 | AY60: 0.001334945674 | AZ60: 0.001334945674 | BA60: =0 + '1. Strategy Calcs'!V59 + '1. Strategy Calcs'!AM59 + BC59 + '1. Strategy Calcs'!BU59 + '1. Strategy Calcs'!CL59 -> 0.0008974967952 | BB60: 0.0004987604369 | BC60: 0.0004087147208 | BD60: 3.142689513e-06 | BE60: 6.106216355e-05 | BF60: 2.363684059e-05 | BG60: 2.20402237e-06 | BH60: 0.0003987363583 | BI60: =(BA60*((cLifestyleTx+cIFG)))*'Time Discounting'!C57 -> 3.763186112 | BJ60: 2.895355214 | BK60: 2.895355214 | BL60: =(BA60*(vQoLIFG))*'Time Discounting'!E57 -> 0.0006812000676 | BM60: 0.0005241080586 | BN60: 0.0005241080586 | BO60: =(BA60*(1))*'Time Discounting'!G57 -> 0.0008974967952 | BP60: 0.0006905244514 | BQ60: 0.0006905244514 | BR60: =0 -> 0 | BS60: 0 | BT60: 0 | BU60: 0 | BV60: 0 | BW60: 0 | BX60: 0 | BY60: 0 | BZ60: =(BR60*((cLifestyleTx+cIGT)))*'Time Discounting'!C57 -> 0 | CA60: 0 | CB60: 0 | CC60: =(BR60*(vQoLIGT))*'Time Discounting'!E57 -> 0 | CD60: 0 | CE60: 0 | CF60: =(BR60*(1))*'Time Discounting'!G57 -> 0 | CG60: 0 | CH60: 0 | CI60: =0 + '1. Strategy Calcs'!W59 + '1. Strategy Calcs'!AN59 + '1. Strategy Calcs'!BD59 + '1. Strategy Calcs'!BV59 + CK59 -> 0.0003162562797 | CJ60: 0.0001757511793 | CK60: 0.000160572825 | CL60: 2.209016573e-06 | CM60: 4.259167593e-06 | CN60: 7.171995798e-06 | CO60: 1.538174322e-06 | CP60: 0.0001405051003 | CQ60: =(CI60*((cLifestyleTx+cCombined)))*'Time Discounting'!C57 -> 1.326056255 | CR60: 1.027292552 | CS60: 1.027292552 | CT60: =(CI60*(vQoLCombined))*'Time Discounting'!E57 -> 0.0002356109283 | CU60: 0.0001825272124 | CV60: 0.0001825272124 | CW60: =(CI60*(1))*'Time Discounting'!G57 -> 0.0003162562797 | CX60: 0.0002450029696 | CY60: 0.0002450029696 | CZ60: =0 + '1. Strategy Calcs'!Z59 + '1. Strategy Calcs'!AQ59 + '1. Strategy Calcs'!BH59 + '1. Strategy Calcs'!BY59 + '1. Strategy Calcs'!CP59 + DA59 -> 0.9961067097 | DA60: 0.9961067097 | DB60: =(CZ60*(vQoLDeath))*'Time Discounting'!E57 -> 0 | DC60: 0 | DD60: 0 | DF60: 1.14 | DG60: 1.19 | DH60: 0.4442760804 | DI60: 0.4442760804 | DJ60: 0.04739116988 | DK60: 0.4442760804 | DL60: 0.00112633233 | DM60: 0.01397084081 | DN60: 0.38971586 | DO60: 0.02956014156 | DP60: 0.06240731873 | DQ60: 0.4637618734
B61: 53 | D61: ='1. Strategy Calcs'!S61 -> 0.0005744333645 | E61: ='1. Strategy Calcs'!AJ61 -> 0.0009507607721 | F61: ='1. Strategy Calcs'!BA61 -> 0.0004835521076 | G61: ='1. Strategy Calcs'!BR61 -> 0 | H61: ='1. Strategy Calcs'!CI61 -> 0.0001737496596 | I61: ='1. Strategy Calcs'!CZ61 -> 0.9978175041 | J61: ='1. Strategy Calcs'!AC61 + '1. Strategy Calcs'!AT61 + '1. Strategy Calcs'!BK61 + '1. Strategy Calcs'!CB61 + '1. Strategy Calcs'!CS61 -> 10.08728202 | K61: 122156.9946 | L61: ='1. Strategy Calcs'!AF61 + '1. Strategy Calcs'!AW61 + '1. Strategy Calcs'!BN61 + '1. Strategy Calcs'!CE61 + '1. Strategy Calcs'!CV61 + '1. Strategy Calcs'!DD61 -> 0.001280095282 | M61: 22.13558865 | N61: ='1. Strategy Calcs'!AI61 + '1. Strategy Calcs'!AZ61 + '1. Strategy Calcs'!BQ61 + '1. Strategy Calcs'!CH61 + '1. Strategy Calcs'!CY61 -> 0.001704087983 | O61: 29.04323224 | Q61: 1 | S61: =0 + U60 + '1. Strategy Calcs'!AO60 + '1. Strategy Calcs'!BF60 + '1. Strategy Calcs'!BW60 + '1. Strategy Calcs'!CN60 -> 0.0005744333645 | T61: 0.0003505675718 | U61: 0.0003111053012 | V61: 1.045133231e-05 | W61: 5.082327633e-06 | X61: 1.100431608e-06 | Y61: 2.282817913e-05 | Z61: 0.0002238657927 | AA61: =(S61*(cNGT))*'Time Discounting'!C58 -> 1.94207304 | AB61: 1.544834351 | AC61: 1.544834351 | AD61: =(S61*(vQoLNGT))*'Time Discounting'!E58 -> 0.0004411648239 | AE61: 0.000350927365 | AF61: 0.000350927365 | AG61: =(S61*(1))*'Time Discounting'!G58 -> 0.0005744333645 | AH61: 0.0004569366731 | AI61: 0.0004569366731 | AJ61: =0 + '1. Strategy Calcs'!X60 + '1. Strategy Calcs'!Y60 + AL60 + AP60 + '1. Strategy Calcs'!BE60 + '1. Strategy Calcs'!BG60 + '1. Strategy Calcs'!BT60 + '1. Strategy Calcs'!BX60 + '1. Strategy Calcs'!CM60 + '1. Strategy Calcs'!CO60 -> 0.0009507607721 | AK61: 0.0005098341753 | AL61: 0.0004481027748 | AM61: 3.058493537e-05 | AN61: 1.020672778e-06 | AO61: 1.185517408e-05 | AP61: 1.827061832e-05 | AQ61: 0.0004409265968 | AR61: =(AJ61*((cT2D+cLifestyleTx)))*'Time Discounting'!C58 -> 8.245624918 | AS61: 6.414291294 | AT61: 6.414291294 | AU61: =(AJ61*(vQoLT2D))*'Time Discounting'!E58 -> 0.0007016614498 | AV61: 0.0005458241157 | AW61: 0.0005458241157 | AX61: =(AJ61*(1))*'Time Discounting'!G58 -> 0.0009507607721 | AY61: 0.0007395990728 | AZ61: 0.0007395990728 | BA61: =0 + '1. Strategy Calcs'!V60 + '1. Strategy Calcs'!AM60 + BC60 + '1. Strategy Calcs'!BU60 + '1. Strategy Calcs'!CL60 -> 0.0004835521076 | BB61: 0.0002687214725 | BC61: 0.0002195386734 | BD61: 1.693213998e-06 | BE61: 3.376285798e-05 | BF61: 1.253924693e-05 | BG61: 1.187480187e-06 | BH61: 0.000214830635 | BI61: =(BA61*((cLifestyleTx+cIFG)))*'Time Discounting'!C58 -> 2.027524316 | BJ61: 1.562599265 | BK61: 1.562599265 | BL61: =(BA61*(vQoLIFG))*'Time Discounting'!E58 -> 0.0003670160496 | BM61: 0.0002828567849 | BN61: 0.0002828567849 | BO61: =(BA61*(1))*'Time Discounting'!G58 -> 0.0004835521076 | BP61: 0.0003726703358 | BQ61: 0.0003726703358 | BR61: =0 -> 0 | BS61: 0 | BT61: 0 | BU61: 0 | BV61: 0 | BW61: 0 | BX61: 0 | BY61: 0 | BZ61: =(BR61*((cLifestyleTx+cIGT)))*'Time Discounting'!C58 -> 0 | CA61: 0 | CB61: 0 | CC61: =(BR61*(vQoLIGT))*'Time Discounting'!E58 -> 0 | CD61: 0 | CE61: 0 | CF61: =(BR61*(1))*'Time Discounting'!G58 -> 0 | CG61: 0 | CH61: 0 | CI61: =0 + '1. Strategy Calcs'!W60 + '1. Strategy Calcs'!AN60 + '1. Strategy Calcs'!BD60 + '1. Strategy Calcs'!BV60 + CK60 -> 0.0001737496596 | CJ61: 9.655684188e-05 | CK61: 8.821792797e-05 | CL61: 1.213622946e-06 | CM61: 2.33996593e-06 | CN61: 3.940259558e-06 | CO61: 8.450654801e-07 | CP61: 7.719281775e-05 | CQ61: =(CI61*((cLifestyleTx+cCombined)))*'Time Discounting'!C58 -> 0.7285288478 | CR61: 0.5655571133 | CS61: 0.5655571133 | CT61: =(CI61*(vQoLCombined))*'Time Discounting'!E58 -> 0.0001294434964 | CU61: 0.0001004870162 | CV61: 0.0001004870162 | CW61: =(CI61*(1))*'Time Discounting'!G58 -> 0.0001737496596 | CX61: 0.000134881901 | CY61: 0.000134881901 | CZ61: =0 + '1. Strategy Calcs'!Z60 + '1. Strategy Calcs'!AQ60 + '1. Strategy Calcs'!BH60 + '1. Strategy Calcs'!BY60 + '1. Strategy Calcs'!CP60 + DA60 -> 0.9978175041 | DA61: 0.9978175041 | DB61: =(CZ61*(vQoLDeath))*'Time Discounting'!E58 -> 0 | DC61: 0 | DD61: 0 | DF61: 1.14 | DG61: 1.19 | DH61: 0.4442760804 | DI61: 0.4442760804 | DJ61: 0.04666261616 | DK61: 0.4442760804 | DL61: 0.00105062388 | DM61: 0.01449742658 | DN61: 0.38971586 | DO61: 0.02981260434 | DP61: 0.06511777175 | DQ61: 0.4637618734
B62: 54 | D62: ='1. Strategy Calcs'!S62 -> 0.0003394399817 | E62: ='1. Strategy Calcs'!AJ62 -> 0.0005284373734 | F62: ='1. Strategy Calcs'!BA62 -> 0.0002617885641 | G62: ='1. Strategy Calcs'!BR62 -> 0 | H62: ='1. Strategy Calcs'!CI62 -> 9.601414237e-05 | I62: ='1. Strategy Calcs'!CZ62 -> 0.9987743199 | J62: ='1. Strategy Calcs'!AC62 + '1. Strategy Calcs'!AT62 + '1. Strategy Calcs'!BK62 + '1. Strategy Calcs'!CB62 + '1. Strategy Calcs'!CS62 -> 5.640966017 | K62: 122162.6356 | L62: ='1. Strategy Calcs'!AF62 + '1. Strategy Calcs'!AW62 + '1. Strategy Calcs'!BN62 + '1. Strategy Calcs'!CE62 + '1. Strategy Calcs'!CV62 + '1. Strategy Calcs'!DD62 -> 0.0007194871157 | M62: 22.13630814 | N62: ='1. Strategy Calcs'!AI62 + '1. Strategy Calcs'!AZ62 + '1. Strategy Calcs'!BQ62 + '1. Strategy Calcs'!CH62 + '1. Strategy Calcs'!CY62 -> 0.0009575213442 | O62: 29.04418976 | Q62: 1 | S62: =0 + U61 + '1. Strategy Calcs'!AO61 + '1. Strategy Calcs'!BF61 + '1. Strategy Calcs'!BW61 + '1. Strategy Calcs'!CN61 -> 0.0003394399817 | T62: 0.0002071548373 | U62: 0.0001830933175 | V62: 6.22849817e-06 | W62: 3.116071802e-06 | X62: 6.502590344e-07 | Y62: 1.406669086e-05 | Z62: 0.0001322851444 | AA62: =(S62*(cNGT))*'Time Discounting'!C59 -> 1.147595662 | AB62: 0.9094210361 | AC62: 0.9094210361 | AD62: =(S62*(vQoLNGT))*'Time Discounting'!E59 -> 0.000260689906 | AE62: 0.0002065857272 | AF62: 0.0002065857272 | AG62: =(S62*(1))*'Time Discounting'!G59 -> 0.0003394399817 | AH62: 0.0002689918323 | AI62: 0.0002689918323 | AJ62: =0 + '1. Strategy Calcs'!X61 + '1. Strategy Calcs'!Y61 + AL61 + AP61 + '1. Strategy Calcs'!BE61 + '1. Strategy Calcs'!BG61 + '1. Strategy Calcs'!BT61 + '1. Strategy Calcs'!BX61 + '1. Strategy Calcs'!CM61 + '1. Strategy Calcs'!CO61 -> 0.0005284373734 | AK62: 0.0002833682671 | AL62: 0.0002490576602 | AM62: 1.6999253e-05 | AN62: 5.672947996e-07 | AO62: 6.589162316e-06 | AP62: 1.015489683e-05 | AQ62: 0.0002450691063 | AR62: =(AJ62*((cT2D+cLifestyleTx)))*'Time Discounting'!C59 -> 4.582957671 | AS62: 3.571057328 | AT62: 3.571057328 | AU62: =(AJ62*(vQoLT2D))*'Time Discounting'!E59 -> 0.0003899867816 | AV62: 0.0003038791222 | AW62: 0.0003038791222 | AX62: =(AJ62*(1))*'Time Discounting'!G59 -> 0.0005284373734 | AY62: 0.0004117603282 | AZ62: 0.0004117603282 | BA62: =0 + '1. Strategy Calcs'!V61 + '1. Strategy Calcs'!AM61 + BC61 + '1. Strategy Calcs'!BU61 + '1. Strategy Calcs'!CL61 -> 0.0002617885641 | BB62: 0.0001454821669 | BC62: 0.0001184879437 | BD62: 9.166831339e-07 | BE62: 1.875084068e-05 | BF62: 6.683813759e-06 | BG62: 6.428856957e-07 | BH62: 0.0001163063971 | BI62: =(BA62*((cLifestyleTx+cIFG)))*'Time Discounting'!C59 -> 1.097674213 | BJ62: 0.8473486519 | BK62: 0.8473486519 | BL62: =(BA62*(vQoLIFG))*'Time Discounting'!E59 -> 0.0001986975201 | BM62: 0.0001533843774 | BN62: 0.0001533843774 | BO62: =(BA62*(1))*'Time Discounting'!G59 -> 0.0002617885641 | BP62: 0.0002020874538 | BQ62: 0.0002020874538 | BR62: =0 -> 0 | BS62: 0 | BT62: 0 | BU62: 0 | BV62: 0 | BW62: 0 | BX62: 0 | BY62: 0 | BZ62: =(BR62*((cLifestyleTx+cIGT)))*'Time Discounting'!C59 -> 0 | CA62: 0 | CB62: 0 | CC62: =(BR62*(vQoLIGT))*'Time Discounting'!E59 -> 0 | CD62: 0 | CE62: 0 | CF62: =(BR62*(1))*'Time Discounting'!G59 -> 0 | CG62: 0 | CH62: 0 | CI62: =0 + '1. Strategy Calcs'!W61 + '1. Strategy Calcs'!AN61 + '1. Strategy Calcs'!BD61 + '1. Strategy Calcs'!BV61 + CK61 -> 9.601414237e-05 | CJ62: 5.335735554e-05 | CK62: 4.874926785e-05 | CL62: 6.706486017e-07 | CM62: 1.293066257e-06 | CN62: 2.177389257e-06 | CO62: 4.669835757e-07 | CP62: 4.265678684e-05 | CQ62: =(CI62*((cLifestyleTx+cCombined)))*'Time Discounting'!C59 -> 0.4025853787 | CR62: 0.3131390002 | CS62: 0.3131390002 | CT62: =(CI62*(vQoLCombined))*'Time Discounting'!E59 -> 7.153053607e-05 | CU62: 5.563788883e-05 | CV62: 5.563788883e-05 | CW62: =(CI62*(1))*'Time Discounting'!G59 -> 9.601414237e-05 | CX62: 7.468172998e-05 | CY62: 7.468172998e-05 | CZ62: =0 + '1. Strategy Calcs'!Z61 + '1. Strategy Calcs'!AQ61 + '1. Strategy Calcs'!BH61 + '1. Strategy Calcs'!BY61 + '1. Strategy Calcs'!CP61 + DA61 -> 0.9987743199 | DA62: 0.9987743199 | DB62: =(CZ62*(vQoLDeath))*'Time Discounting'!E59 -> 0 | DC62: 0 | DD62: 0 | DF62: 1.14 | DG62: 1.19 | DH62: 0.4442760804 | DI62: 0.4442760804 | DJ62: 0.04594249522 | DK62: 0.4442760804 | DL62: 0.0009799768844 | DM62: 0.01504223528 | DN62: 0.38971586 | DO62: 0.03006687293 | DP62: 0.06790423551 | DQ62: 0.4637618734
B63: 55 | D63: ='1. Strategy Calcs'!S63 -> 0.0001985436828 | E63: ='1. Strategy Calcs'!AJ63 -> 0.0002950832831 | F63: ='1. Strategy Calcs'!BA63 -> 0.0001423863434 | G63: ='1. Strategy Calcs'!BR63 -> 0 | H63: ='1. Strategy Calcs'!CI63 -> 5.334931758e-05 | I63: ='1. Strategy Calcs'!CZ63 -> 0.9993106374 | J63: ='1. Strategy Calcs'!AC63 + '1. Strategy Calcs'!AT63 + '1. Strategy Calcs'!BK63 + '1. Strategy Calcs'!CB63 + '1. Strategy Calcs'!CS63 -> 3.163288938 | K63: 122165.7989 | L63: ='1. Strategy Calcs'!AF63 + '1. Strategy Calcs'!AW63 + '1. Strategy Calcs'!BN63 + '1. Strategy Calcs'!CE63 + '1. Strategy Calcs'!CV63 + '1. Strategy Calcs'!DD63 -> 0.0004049201419 | M63: 22.13671306 | N63: ='1. Strategy Calcs'!AI63 + '1. Strategy Calcs'!AZ63 + '1. Strategy Calcs'!BQ63 + '1. Strategy Calcs'!CH63 + '1. Strategy Calcs'!CY63 -> 0.0005387702917 | O63: 29.04472853 | Q63: 1 | S63: =0 + U62 + '1. Strategy Calcs'!AO62 + '1. Strategy Calcs'!BF62 + '1. Strategy Calcs'!BW62 + '1. Strategy Calcs'!CN62 -> 0.0001985436828 | T63: 0.0001211680607 | U63: 0.0001066480386 | V63: 3.674173627e-06 | W63: 1.890922019e-06 | X63: 3.803465426e-07 | Y63: 8.574579951e-06 | Z63: 7.737562209e-05 | AA63: =(S63*(cNGT))*'Time Discounting'!C60 -> 0.67124641 | AB63: 0.5302187077 | AC63: 0.5302187077 | AD63: =(S63*(vQoLNGT))*'Time Discounting'!E60 -> 0.0001524815484 | AE63: 0.0001204454405 | AF63: 0.0001204454405 | AG63: =(S63*(1))*'Time Discounting'!G60 -> 0.0001985436828 | AH63: 0.0001568300007 | AI63: 0.0001568300007 | AJ63: =0 + '1. Strategy Calcs'!X62 + '1. Strategy Calcs'!Y62 + AL62 + AP62 + '1. Strategy Calcs'!BE62 + '1. Strategy Calcs'!BG62 + '1. Strategy Calcs'!BT62 + '1. Strategy Calcs'!BX62 + '1. Strategy Calcs'!CM62 + '1. Strategy Calcs'!CO62 -> 0.0002950832831 | AK63: 0.0001582349069 | AL63: 0.0001390756138 | AM63: 9.492506851e-06 | AN63: 3.167815533e-07 | AO63: 3.679436291e-06 | AP63: 5.670568449e-06 | AQ63: 0.0001368483762 | AR63: =(AJ63*((cT2D+cLifestyleTx)))*'Time Discounting'!C60 -> 2.559156986 | AS63: 1.997181804 | AT63: 1.997181804 | AU63: =(AJ63*(vQoLT2D))*'Time Discounting'!E60 -> 0.0002177714629 | AV63: 0.000169950185 | AW63: 0.000169950185 | AX63: =(AJ63*(1))*'Time Discounting'!G60 -> 0.0002950832831 | AY63: 0.0002302848035 | AZ63: 0.0002302848035 | BA63: =0 + '1. Strategy Calcs'!V62 + '1. Strategy Calcs'!AM62 + BC62 + '1. Strategy Calcs'!BU62 + '1. Strategy Calcs'!CL62 -> 0.0001423863434 | BB63: 7.912749688e-05 | BC63: 6.42426551e-05 | BD63: 4.985823578e-07 | BE63: 1.045759637e-05 | BF63: 3.578998645e-06 | BG63: 3.496644087e-07 | BH63: 6.325884657e-05 | BI63: =(BA63*((cLifestyleTx+cIFG)))*'Time Discounting'!C60 -> 0.5970230903 | BJ63: 0.4615806777 | BK63: 0.4615806777 | BL63: =(BA63*(vQoLIFG))*'Time Discounting'!E60 -> 0.0001080712347 | BM63: 8.355387681e-05 | BN63: 8.355387681e-05 | BO63: =(BA63*(1))*'Time Discounting'!G60 -> 0.0001423863434 | BP63: 0.0001100841592 | BQ63: 0.0001100841592 | BR63: =0 -> 0 | BS63: 0 | BT63: 0 | BU63: 0 | BV63: 0 | BW63: 0 | BX63: 0 | BY63: 0 | BZ63: =(BR63*((cLifestyleTx+cIGT)))*'Time Discounting'!C60 -> 0 | CA63: 0 | CB63: 0 | CC63: =(BR63*(vQoLIGT))*'Time Discounting'!E60 -> 0 | CD63: 0 | CE63: 0 | CF63: =(BR63*(1))*'Time Discounting'!G60 -> 0 | CG63: 0 | CH63: 0 | CI63: =0 + '1. Strategy Calcs'!W62 + '1. Strategy Calcs'!AN62 + '1. Strategy Calcs'!BD62 + '1. Strategy Calcs'!BV62 + CK62 -> 5.334931758e-05 | CJ63: 2.964749187e-05 | CK63: 2.708705309e-05 | CL63: 3.726393254e-07 | CM63: 7.184795976e-07 | CN63: 1.209845009e-06 | CO63: 2.594748489e-07 | CP63: 2.370182571e-05 | CQ63: =(CI63*((cLifestyleTx+cCombined)))*'Time Discounting'!C60 -> 0.2236926216 | CR63: 0.1743077481 | CS63: 0.1743077481 | CT63: =(CI63*(vQoLCombined))*'Time Discounting'!E60 -> 3.97452416e-05 | CU63: 3.097063959e-05 | CV63: 3.097063959e-05 | CW63: =(CI63*(1))*'Time Discounting'!G60 -> 5.334931758e-05 | CX63: 4.15713283e-05 | CY63: 4.15713283e-05 | CZ63: =0 + '1. Strategy Calcs'!Z62 + '1. Strategy Calcs'!AQ62 + '1. Strategy Calcs'!BH62 + '1. Strategy Calcs'!BY62 + '1. Strategy Calcs'!CP62 + DA62 -> 0.9993106374 | DA63: 0.9993106374 | DB63: =(CZ63*(vQoLDeath))*'Time Discounting'!E60 -> 0 | DC63: 0 | DD63: 0 | DF63: 1.14 | DG63: 1.19 | DH63: 0.4442760804 | DI63: 0.4442760804 | DJ63: 0.04523078306 | DK63: 0.4442760804 | DL63: 0.0009140565181 | DM63: 0.01560577935 | DN63: 0.38971586 | DO63: 0.03032295479 | DP63: 0.07076600798 | DQ63: 0.4637618734
B64: 56 | D64: ='1. Strategy Calcs'!S64 -> 0.0001151163185 | E64: ='1. Strategy Calcs'!AJ64 -> 0.0001654863239 | F64: ='1. Strategy Calcs'!BA64 -> 7.77819749e-05 | G64: ='1. Strategy Calcs'!BR64 -> 0 | H64: ='1. Strategy Calcs'!CI64 -> 2.979333902e-05 | I64: ='1. Strategy Calcs'!CZ64 -> 0.999611822 | J64: ='1. Strategy Calcs'!AC64 + '1. Strategy Calcs'!AT64 + '1. Strategy Calcs'!BK64 + '1. Strategy Calcs'!CB64 + '1. Strategy Calcs'!CS64 -> 1.778173619 | K64: 122167.5771 | L64: ='1. Strategy Calcs'!AF64 + '1. Strategy Calcs'!AW64 + '1. Strategy Calcs'!BN64 + '1. Strategy Calcs'!CE64 + '1. Strategy Calcs'!CV64 + '1. Strategy Calcs'!DD64 -> 0.000228113661 | M64: 22.13694117 | N64: ='1. Strategy Calcs'!AI64 + '1. Strategy Calcs'!AZ64 + '1. Strategy Calcs'!BQ64 + '1. Strategy Calcs'!CH64 + '1. Strategy Calcs'!CY64 -> 0.0003034769356 | O64: 29.04503201 | Q64: 1 | S64: =0 + U63 + '1. Strategy Calcs'!AO63 + '1. Strategy Calcs'!BF63 + '1. Strategy Calcs'!BW63 + '1. Strategy Calcs'!CN63 -> 0.0001151163185 | T64: 7.025366344e-05 | U64: 6.156956219e-05 | V64: 2.148417261e-06 | W64: 1.13730686e-06 | X64: 2.205262495e-07 | Y64: 5.177850886e-06 | Z64: 4.486265507e-05 | AA64: =(S64*(cNGT))*'Time Discounting'!C61 -> 0.3891910054 | AB64: 0.3065580898 | AC64: 0.3065580898 | AD64: =(S64*(vQoLNGT))*'Time Discounting'!E61 -> 8.840933262e-05 | AE64: 6.963829007e-05 | AF64: 6.963829007e-05 | AG64: =(S64*(1))*'Time Discounting'!G61 -> 0.0001151163185 | AH64: 9.067485686e-05 | AI64: 9.067485686e-05 | AJ64: =0 + '1. Strategy Calcs'!X63 + '1. Strategy Calcs'!Y63 + AL63 + AP63 + '1. Strategy Calcs'!BE63 + '1. Strategy Calcs'!BG63 + '1. Strategy Calcs'!BT63 + '1. Strategy Calcs'!BX63 + '1. Strategy Calcs'!CM63 + '1. Strategy Calcs'!CO63 -> 0.0001654863239 | AK64: 8.874007633e-05 | AL64: 7.799530977e-05 | AM64: 5.323514254e-06 | AN64: 1.7765498e-07 | AO64: 2.063472995e-06 | AP64: 3.180124328e-06 | AQ64: 7.674624762e-05 | AR64: =(AJ64*((cT2D+cLifestyleTx)))*'Time Discounting'!C61 -> 1.435206622 | AS64: 1.121603473 | AT64: 1.121603473 | AU64: =(AJ64*(vQoLT2D))*'Time Discounting'!E61 -> 0.0001221289071 | AV64: 9.544284717e-05 | AW64: 9.544284717e-05 | AX64: =(AJ64*(1))*'Time Discounting'!G61 -> 0.0001654863239 | AY64: 0.0001293263512 | AZ64: 0.0001293263512 | BA64: =0 + '1. Strategy Calcs'!V63 + '1. Strategy Calcs'!AM63 + BC63 + '1. Strategy Calcs'!BU63 + '1. Strategy Calcs'!CL63 -> 7.77819749e-05 | BB64: 4.322530397e-05 | BC64: 3.498180765e-05 | BD64: 2.723626403e-07 | BE64: 5.855408332e-06 | BF64: 1.924712727e-06 | BG64: 1.910126182e-07 | BH64: 3.455667094e-05 | BI64: =(BA64*((cLifestyleTx+cIFG)))*'Time Discounting'!C61 -> 0.3261382651 | BJ64: 0.2525092587 | BK64: 0.2525092587 | BL64: =(BA64*(vQoLIFG))*'Time Discounting'!E61 -> 5.903651895e-05 | BM64: 4.57084287e-05 | BN64: 4.57084287e-05 | BO64: =(BA64*(1))*'Time Discounting'!G61 -> 7.77819749e-05 | BP64: 6.022190869e-05 | BQ64: 6.022190869e-05 | BR64: =0 -> 0 | BS64: 0 | BT64: 0 | BU64: 0 | BV64: 0 | BW64: 0 | BX64: 0 | BY64: 0 | BZ64: =(BR64*((cLifestyleTx+cIGT)))*'Time Discounting'!C61 -> 0 | CA64: 0 | CB64: 0 | CC64: =(BR64*(vQoLIGT))*'Time Discounting'!E61 -> 0 | CD64: 0 | CE64: 0 | CF64: =(BR64*(1))*'Time Discounting'!G61 -> 0 | CG64: 0 | CH64: 0 | CI64: =0 + '1. Strategy Calcs'!W63 + '1. Strategy Calcs'!AN63 + '1. Strategy Calcs'!BD63 + '1. Strategy Calcs'!BV63 + CK63 -> 2.979333902e-05 | CJ64: 1.655687114e-05 | CK64: 1.51269743e-05 | CL64: 2.081033134e-07 | CM64: 4.012404882e-07 | CN64: 6.756473026e-07 | CO64: 1.449057362e-07 | CP64: 1.323646788e-05 | CQ64: =(CI64*((cLifestyleTx+cCombined)))*'Time Discounting'!C61 -> 0.1249228747 | CR64: 0.09750279758 | CS64: 0.09750279758 | CT64: =(CI64*(vQoLCombined))*'Time Discounting'!E61 -> 2.219603757e-05 | CU64: 1.732409508e-05 | CV64: 1.732409508e-05 | CW64: =(CI64*(1))*'Time Discounting'!G61 -> 2.979333902e-05 | CX64: 2.32538189e-05 | CY64: 2.32538189e-05 | CZ64: =0 + '1. Strategy Calcs'!Z63 + '1. Strategy Calcs'!AQ63 + '1. Strategy Calcs'!BH63 + '1. Strategy Calcs'!BY63 + '1. Strategy Calcs'!CP63 + DA63 -> 0.999611822 | DA64: 0.999611822 | DB64: =(CZ64*(vQoLDeath))*'Time Discounting'!E61 -> 0 | DC64: 0 | DD64: 0 | DF64: 1.14 | DG64: 1.19 | DH64: 0.4442760804 | DI64: 0.4442760804 | DJ64: 0.04452745384 | DK64: 0.4442760804 | DL64: 0.0008525496443 | DM64: 0.01618857729 | DN64: 0.38971586 | DO64: 0.03058085736 | DP64: 0.07370221896 | DQ64: 0.4637618734
B65: 57 | D65: ='1. Strategy Calcs'!S65 -> 6.623339521e-05 | E65: ='1. Strategy Calcs'!AJ65 -> 9.316637841e-05 | F65: ='1. Strategy Calcs'!BA65 -> 4.266184248e-05 | G65: ='1. Strategy Calcs'!BR65 -> 0 | H65: ='1. Strategy Calcs'!CI65 -> 1.671429878e-05 | I65: ='1. Strategy Calcs'!CZ65 -> 0.9997812241 | J65: ='1. Strategy Calcs'!AC65 + '1. Strategy Calcs'!AT65 + '1. Strategy Calcs'!BK65 + '1. Strategy Calcs'!CB65 + '1. Strategy Calcs'!CS65 -> 1.001617167 | K65: 122168.5787 | L65: ='1. Strategy Calcs'!AF65 + '1. Strategy Calcs'!AW65 + '1. Strategy Calcs'!BN65 + '1. Strategy Calcs'!CE65 + '1. Strategy Calcs'!CV65 + '1. Strategy Calcs'!DD65 -> 0.0001286017488 | M65: 22.13706978 | N65: ='1. Strategy Calcs'!AI65 + '1. Strategy Calcs'!AZ65 + '1. Strategy Calcs'!BQ65 + '1. Strategy Calcs'!CH65 + '1. Strategy Calcs'!CY65 -> 0.0001710766058 | O65: 29.04520309 | Q65: 1 | S65: =0 + U64 + '1. Strategy Calcs'!AO64 + '1. Strategy Calcs'!BF64 + '1. Strategy Calcs'!BW64 + '1. Strategy Calcs'!CN64 -> 6.623339521e-05 | T65: 4.042119064e-05 | U65: 3.526819318e-05 | V65: 1.246613287e-06 | W65: 6.787184018e-07 | X65: 1.268821174e-07 | Y65: 3.100783651e-06 | Z65: 2.581220458e-05 | AA65: =(S65*(cNGT))*'Time Discounting'!C62 -> 0.2239251742 | AB65: 0.1759420143 | AC65: 0.1759420143 | AD65: =(S65*(vQoLNGT))*'Time Discounting'!E62 -> 5.086724752e-05 | AE65: 3.996730615e-05 | AF65: 3.996730615e-05 | AG65: =(S65*(1))*'Time Discounting'!G62 -> 6.623339521e-05 | AH65: 5.204076322e-05 | AI65: 5.204076322e-05 | AJ65: =0 + '1. Strategy Calcs'!X64 + '1. Strategy Calcs'!Y64 + AL64 + AP64 + '1. Strategy Calcs'!BE64 + '1. Strategy Calcs'!BG64 + '1. Strategy Calcs'!BT64 + '1. Strategy Calcs'!BX64 + '1. Strategy Calcs'!CM64 + '1. Strategy Calcs'!CO64 -> 9.316637841e-05 | AK65: 4.995936422e-05 | AL65: 4.391021791e-05 | AM65: 2.997060613e-06 | AN65: 1.000171537e-07 | AO65: 1.161705096e-06 | AP65: 1.790363454e-06 | AQ65: 4.320701419e-05 | AR65: =(AJ65*((cT2D+cLifestyleTx)))*'Time Discounting'!C62 -> 0.8080003234 | AS65: 0.6322205994 | AT65: 0.6322205994 | AU65: =(AJ65*(vQoLT2D))*'Time Discounting'!E62 -> 6.875678727e-05 | AV65: 5.379881171e-05 | AW65: 5.379881171e-05 | AX65: =(AJ65*(1))*'Time Discounting'!G62 -> 9.316637841e-05 | AY65: 7.289811885e-05 | AZ65: 7.289811885e-05 | BA65: =0 + '1. Strategy Calcs'!V64 + '1. Strategy Calcs'!AM64 + BC64 + '1. Strategy Calcs'!BU64 + '1. Strategy Calcs'!CL64 -> 4.266184248e-05 | BB65: 2.370820632e-05 | BC65: 1.912441162e-05 | BD65: 1.49385408e-07 | BE65: 3.290453248e-06 | BF65: 1.039189479e-06 | BG65: 1.047665637e-07 | BH65: 1.895363616e-05 | BI65: =(BA65*((cLifestyleTx+cIFG)))*'Time Discounting'!C62 -> 0.1788802523 | BJ65: 0.1386758439 | BK65: 0.1386758439 | BL65: =(BA65*(vQoLIFG))*'Time Discounting'!E62 -> 3.238033844e-05 | BM65: 2.510266339e-05 | BN65: 2.510266339e-05 | BO65: =(BA65*(1))*'Time Discounting'!G62 -> 4.266184248e-05 | BP65: 3.30733378e-05 | BQ65: 3.30733378e-05 | BR65: =0 -> 0 | BS65: 0 | BT65: 0 | BU65: 0 | BV65: 0 | BW65: 0 | BX65: 0 | BY65: 0 | BZ65: =(BR65*((cLifestyleTx+cIGT)))*'Time Discounting'!C62 -> 0 | CA65: 0 | CB65: 0 | CC65: =(BR65*(vQoLIGT))*'Time Discounting'!E62 -> 0 | CD65: 0 | CE65: 0 | CF65: =(BR65*(1))*'Time Discounting'!G62 -> 0 | CG65: 0 | CH65: 0 | CI65: =0 + '1. Strategy Calcs'!W64 + '1. Strategy Calcs'!AN64 + '1. Strategy Calcs'!BD64 + '1. Strategy Calcs'!BV64 + CK64 -> 1.671429878e-05 | CJ65: 9.288535632e-06 | CK65: 8.486352197e-06 | CL65: 1.167476044e-07 | CM65: 2.250990867e-07 | CN65: 3.790434794e-07 | CO65: 8.129326385e-08 | CP65: 7.425763149e-06 | CQ65: =(CI65*((cLifestyleTx+cCombined)))*'Time Discounting'!C62 -> 0.0700827205 | CR65: 0.05477870909 | CS65: 0.05477870909 | CT65: =(CI65*(vQoLCombined))*'Time Discounting'!E62 -> 1.245215259e-05 | CU65: 9.732967548e-06 | CV65: 9.732967548e-06 | CW65: =(CI65*(1))*'Time Discounting'!G62 -> 1.671429878e-05 | CX65: 1.306438597e-05 | CY65: 1.306438597e-05 | CZ65: =0 + '1. Strategy Calcs'!Z64 + '1. Strategy Calcs'!AQ64 + '1. Strategy Calcs'!BH64 + '1. Strategy Calcs'!BY64 + '1. Strategy Calcs'!CP64 + DA64 -> 0.9997812241 | DA65: 0.9997812241 | DB65: =(CZ65*(vQoLDeath))*'Time Discounting'!E62 -> 0 | DC65: 0 | DD65: 0 | DF65: 1.14 | DG65: 1.19 | DH65: 0.4442760804 | DI65: 0.4442760804 | DJ65: 0.04383247997 | DK65: 0.4442760804 | DL65: 0.0007951634698 | DM65: 0.01679115313 | DN65: 0.38971586 | DO65: 0.030840588 | DP65: 0.07671183362 | DQ65: 0.4637618734
B66: 58 | D66: ='1. Strategy Calcs'!S66 -> 3.784813123e-05 | E66: ='1. Strategy Calcs'!AJ66 -> 5.262985929e-05 | F66: ='1. Strategy Calcs'!BA66 -> 2.348483313e-05 | G66: ='1. Strategy Calcs'!BR66 -> 0 | H66: ='1. Strategy Calcs'!CI66 -> 9.414473161e-06 | I66: ='1. Strategy Calcs'!CZ66 -> 0.9998766227 | J66: ='1. Strategy Calcs'!AC66 + '1. Strategy Calcs'!AT66 + '1. Strategy Calcs'!BK66 + '1. Strategy Calcs'!CB66 + '1. Strategy Calcs'!CS66 -> 0.5651529808 | K66: 122169.1438 | L66: ='1. Strategy Calcs'!AF66 + '1. Strategy Calcs'!AW66 + '1. Strategy Calcs'!BN66 + '1. Strategy Calcs'!CE66 + '1. Strategy Calcs'!CV66 + '1. Strategy Calcs'!DD66 -> 7.253429184e-05 | M66: 22.13714231 | N66: ='1. Strategy Calcs'!AI66 + '1. Strategy Calcs'!AZ66 + '1. Strategy Calcs'!BQ66 + '1. Strategy Calcs'!CH66 + '1. Strategy Calcs'!CY66 -> 9.649023981e-05 | O66: 29.04529958 | Q66: 1 | S66: =0 + U65 + '1. Strategy Calcs'!AO65 + '1. Strategy Calcs'!BF65 + '1. Strategy Calcs'!BW65 + '1. Strategy Calcs'!CN65 -> 3.784813123e-05 | T66: 2.309811422e-05 | U66: 2.006189373e-05 | V66: 7.184011059e-07 | W66: 4.022313889e-07 | X66: 7.250498054e-08 | Y66: 1.843083012e-06 | Z66: 1.475001701e-05 | AA66: =(S66*(cNGT))*'Time Discounting'!C63 -> 0.1279588545 | AB66: 0.1003146773 | AC66: 0.1003146773 | AD66: =(S66*(vQoLNGT))*'Time Discounting'!E63 -> 2.906736479e-05 | AE66: 2.27876635e-05 | AF66: 2.27876635e-05 | AG66: =(S66*(1))*'Time Discounting'!G63 -> 3.784813123e-05 | AH66: 2.967143685e-05 | AI66: 2.967143685e-05 | AJ66: =0 + '1. Strategy Calcs'!X65 + '1. Strategy Calcs'!Y65 + AL65 + AP65 + '1. Strategy Calcs'!BE65 + '1. Strategy Calcs'!BG65 + '1. Strategy Calcs'!BT65 + '1. Strategy Calcs'!BX65 + '1. Strategy Calcs'!CM65 + '1. Strategy Calcs'!CO65 -> 5.262985929e-05 | AK66: 2.822213715e-05 | AL66: 2.480496322e-05 | AM66: 1.693045077e-06 | AN66: 5.649987488e-08 | AO66: 6.562493551e-07 | AP66: 1.011379623e-06 | AQ66: 2.440772214e-05 | AR66: =(AJ66*((cT2D+cLifestyleTx)))*'Time Discounting'!C63 -> 0.4564408755 | AS66: 0.357518001 | AT66: 0.357518001 | AU66: =(AJ66*(vQoLT2D))*'Time Discounting'!E63 -> 3.884083616e-05 | AV66: 3.042299418e-05 | AW66: 3.042299418e-05 | AX66: =(AJ66*(1))*'Time Discounting'!G63 -> 5.262985929e-05 | AY66: 4.122356935e-05 | AZ66: 4.122356935e-05 | BA66: =0 + '1. Strategy Calcs'!V65 + '1. Strategy Calcs'!AM65 + BC65 + '1. Strategy Calcs'!BU65 + '1. Strategy Calcs'!CL65 -> 2.348483313e-05 | BB66: 1.305108352e-05 | BC66: 1.049297834e-05 | BD66: 8.223487723e-08 | BE66: 1.855097699e-06 | BF66: 5.63099858e-07 | BG66: 5.767273805e-08 | BH66: 1.043374961e-05 | BI66: =(BA66*((cLifestyleTx+cIFG)))*'Time Discounting'!C63 -> 0.0984714356 | BJ66: 0.07642757806 | BK66: 0.07642757806 | BL66: =(BA66*(vQoLIFG))*'Time Discounting'!E63 -> 1.782498834e-05 | BM66: 1.383467886e-05 | BN66: 1.383467886e-05 | BO66: =(BA66*(1))*'Time Discounting'!G63 -> 2.348483313e-05 | BP66: 1.822750837e-05 | BQ66: 1.822750837e-05 | BR66: =0 -> 0 | BS66: 0 | BT66: 0 | BU66: 0 | BV66: 0 | BW66: 0 | BX66: 0 | BY66: 0 | BZ66: =(BR66*((cLifestyleTx+cIGT)))*'Time Discounting'!C63 -> 0 | CA66: 0 | CB66: 0 | CC66: =(BR66*(vQoLIGT))*'Time Discounting'!E63 -> 0 | CD66: 0 | CE66: 0 | CF66: =(BR66*(1))*'Time Discounting'!G63 -> 0 | CG66: 0 | CH66: 0 | CI66: =0 + '1. Strategy Calcs'!W65 + '1. Strategy Calcs'!AN65 + '1. Strategy Calcs'!BD65 + '1. Strategy Calcs'!BV65 + CK65 -> 9.414473161e-06 | CJ66: 5.231847926e-06 | CK66: 4.780011178e-06 | CL66: 6.575909658e-08 | CM66: 1.267890049e-07 | CN66: 2.134995138e-07 | CO66: 4.578913305e-08 | CP66: 4.182625235e-06 | CQ66: =(CI66*((cLifestyleTx+cCombined)))*'Time Discounting'!C63 -> 0.03947469767 | CR66: 0.03089272458 | CS66: 0.03089272458 | CT66: =(CI66*(vQoLCombined))*'Time Discounting'!E63 -> 7.013782505e-06 | CU66: 5.488955304e-06 | CV66: 5.488955304e-06 | CW66: =(CI66*(1))*'Time Discounting'!G63 -> 9.414473161e-06 | CX66: 7.36772524e-06 | CY66: 7.36772524e-06 | CZ66: =0 + '1. Strategy Calcs'!Z65 + '1. Strategy Calcs'!AQ65 + '1. Strategy Calcs'!BH65 + '1. Strategy Calcs'!BY65 + '1. Strategy Calcs'!CP65 + DA65 -> 0.9998766227 | DA66: 0.9998766227 | DB66: =(CZ66*(vQoLDeath))*'Time Discounting'!E63 -> 0 | DC66: 0 | DD66: 0 | DF66: 1.14 | DG66: 1.19 | DH66: 0.4442760804 | DI66: 0.4442760804 | DJ66: 0.04314583209 | DK66: 0.4442760804 | DL66: 0.0007416242755 | DM66: 0.01741403584 | DN66: 0.38971586 | DO66: 0.03110215401 | DP66: 0.07979365739 | DQ66: 0.4637618734
B67: 59 | D67: ='1. Strategy Calcs'!S67 -> 2.149474246e-05 | E67: ='1. Strategy Calcs'!AJ67 -> 2.981727941e-05 | F67: ='1. Strategy Calcs'!BA67 -> 1.297018362e-05 | G67: ='1. Strategy Calcs'!BR67 -> 0 | H67: ='1. Strategy Calcs'!CI67 -> 5.320977319e-06 | I67: ='1. Strategy Calcs'!CZ67 -> 0.9999303968 | J67: ='1. Strategy Calcs'!AC67 + '1. Strategy Calcs'!AT67 + '1. Strategy Calcs'!BK67 + '1. Strategy Calcs'!CB67 + '1. Strategy Calcs'!CS67 -> 0.3193127382 | K67: 122169.4632 | L67: ='1. Strategy Calcs'!AF67 + '1. Strategy Calcs'!AW67 + '1. Strategy Calcs'!BN67 + '1. Strategy Calcs'!CE67 + '1. Strategy Calcs'!CV67 + '1. Strategy Calcs'!DD67 -> 4.092020115e-05 | M67: 22.13718323 | N67: ='1. Strategy Calcs'!AI67 + '1. Strategy Calcs'!AZ67 + '1. Strategy Calcs'!BQ67 + '1. Strategy Calcs'!CH67 + '1. Strategy Calcs'!CY67 -> 5.443754046e-05 | O67: 29.04535402 | Q67: 1 | S67: =0 + U66 + '1. Strategy Calcs'!AO66 + '1. Strategy Calcs'!BF66 + '1. Strategy Calcs'!BW66 + '1. Strategy Calcs'!CN66 -> 2.149474246e-05 | T67: 1.311790042e-05 | U67: 1.134031126e-05 | V67: 4.114503275e-07 | W67: 2.368798801e-07 | X67: 4.117708941e-08 | Y67: 1.088081854e-06 | Z67: 8.376842043e-06 | AA67: =(S67*(cNGT))*'Time Discounting'!C64 -> 0.07267050004 | AB67: 0.05685510635 | AC67: 0.05685510635 | AD67: =(S67*(vQoLNGT))*'Time Discounting'!E64 -> 1.650796221e-05 | AE67: 1.291530878e-05 | AF67: 1.291530878e-05 | AG67: =(S67*(1))*'Time Discounting'!G64 -> 2.149474246e-05 | AH67: 1.68168083e-05 | AI67: 1.68168083e-05 | AJ67: =0 + '1. Strategy Calcs'!X66 + '1. Strategy Calcs'!Y66 + AL66 + AP66 + '1. Strategy Calcs'!BE66 + '1. Strategy Calcs'!BG66 + '1. Strategy Calcs'!BT66 + '1. Strategy Calcs'!BX66 + '1. Strategy Calcs'!CM66 + '1. Strategy Calcs'!CO66 -> 2.981727941e-05 | AK67: 1.598916205e-05 | AL67: 1.405317303e-05 | AM67: 9.591893044e-07 | AN67: 3.200982443e-08 | AO67: 3.717959852e-07 | AP67: 5.72993909e-07 | AQ67: 1.382811736e-05 | AR67: =(AJ67*((cT2D+cLifestyleTx)))*'Time Discounting'!C64 -> 0.2585951264 | AS67: 0.2027275596 | AT67: 0.2027275596 | AU67: =(AJ67*(vQoLT2D))*'Time Discounting'!E64 -> 2.20051522e-05 | AV67: 1.725110162e-05 | AW67: 1.725110162e-05 | AX67: =(AJ67*(1))*'Time Discounting'!G64 -> 2.981727941e-05 | AY67: 2.337547645e-05 | AZ67: 2.337547645e-05 | BA67: =0 + '1. Strategy Calcs'!V66 + '1. Strategy Calcs'!AM66 + BC66 + '1. Strategy Calcs'!BU66 + '1. Strategy Calcs'!CL66 -> 1.297018362e-05 | BB67: 7.207841281e-06 | BC67: 5.775617861e-06 | BD67: 4.541660791e-08 | BE67: 1.048856512e-06 | BF67: 3.060988493e-07 | BG67: 3.185145062e-08 | BH67: 5.762342342e-06 | BI67: =(BA67*((cLifestyleTx+cIFG)))*'Time Discounting'!C64 -> 0.05438372053 | BJ67: 0.04225183675 | BK67: 0.04225183675 | BL67: =(BA67*(vQoLIFG))*'Time Discounting'!E64 -> 9.84436937e-06 | BM67: 7.648294076e-06 | BN67: 7.648294076e-06 | BO67: =(BA67*(1))*'Time Discounting'!G64 -> 1.297018362e-05 | BP67: 1.007680379e-05 | BQ67: 1.007680379e-05 | BR67: =0 -> 0 | BS67: 0 | BT67: 0 | BU67: 0 | BV67: 0 | BW67: 0 | BX67: 0 | BY67: 0 | BZ67: =(BR67*((cLifestyleTx+cIGT)))*'Time Discounting'!C64 -> 0 | CA67: 0 | CB67: 0 | CC67: =(BR67*(vQoLIGT))*'Time Discounting'!E64 -> 0 | CD67: 0 | CE67: 0 | CF67: =(BR67*(1))*'Time Discounting'!G64 -> 0 | CG67: 0 | CH67: 0 | CI67: =0 + '1. Strategy Calcs'!W66 + '1. Strategy Calcs'!AN66 + '1. Strategy Calcs'!BD66 + '1. Strategy Calcs'!BV66 + CK66 -> 5.320977319e-06 | CJ67: 2.956994372e-06 | CK67: 2.701620221e-06 | CL67: 3.716646226e-08 | CM67: 7.166002896e-08 | CN67: 1.20668045e-07 | CO67: 2.587961474e-08 | CP67: 2.363982947e-06 | CQ67: =(CI67*((cLifestyleTx+cCombined)))*'Time Discounting'!C64 -> 0.02231075148 | CR67: 0.01747823556 | CS67: 0.01747823556 | CT67: =(CI67*(vQoLCombined))*'Time Discounting'!E64 -> 3.964128102e-06 | CU67: 3.105496685e-06 | CV67: 3.105496685e-06 | CW67: =(CI67*(1))*'Time Discounting'!G64 -> 5.320977319e-06 | CX67: 4.168451926e-06 | CY67: 4.168451926e-06 | CZ67: =0 + '1. Strategy Calcs'!Z66 + '1. Strategy Calcs'!AQ66 + '1. Strategy Calcs'!BH66 + '1. Strategy Calcs'!BY66 + '1. Strategy Calcs'!CP66 + DA66 -> 0.9999303968 | DA67: 0.9999303968 | DB67: =(CZ67*(vQoLDeath))*'Time Discounting'!E64 -> 0 | DC67: 0 | DD67: 0 | DF67: 1.14 | DG67: 1.19 | DH67: 0.4442760804 | DI67: 0.4442760804 | DJ67: 0.04246747914 | DK67: 0.4442760804 | DL67: 0.0006916762191 | DM67: 0.01805775868 | DN67: 0.38971586 | DO67: 0.03136556267 | DP67: 0.082946342 | DQ67: 0.4637618734
B68: 60 | D68: ='1. Strategy Calcs'!S68 -> 1.213887414e-05 | E68: ='1. Strategy Calcs'!AJ68 -> 1.693367349e-05 | F68: ='1. Strategy Calcs'!BA68 -> 7.183423955e-06 | G68: ='1. Strategy Calcs'!BR68 -> 0 | H68: ='1. Strategy Calcs'!CI68 -> 3.015926533e-06 | I68: ='1. Strategy Calcs'!CZ68 -> 0.9999607281 | J68: ='1. Strategy Calcs'!AC68 + '1. Strategy Calcs'!AT68 + '1. Strategy Calcs'!BK68 + '1. Strategy Calcs'!CB68 + '1. Strategy Calcs'!CS68 -> 0.1805963501 | K68: 122169.6438 | L68: ='1. Strategy Calcs'!AF68 + '1. Strategy Calcs'!AW68 + '1. Strategy Calcs'!BN68 + '1. Strategy Calcs'!CE68 + '1. Strategy Calcs'!CV68 + '1. Strategy Calcs'!DD68 -> 2.308537499e-05 | M68: 22.13720632 | N68: ='1. Strategy Calcs'!AI68 + '1. Strategy Calcs'!AZ68 + '1. Strategy Calcs'!BQ68 + '1. Strategy Calcs'!CH68 + '1. Strategy Calcs'!CY68 -> 3.071428243e-05 | O68: 29.04538473 | Q68: 1 | S68: =0 + U67 + '1. Strategy Calcs'!AO67 + '1. Strategy Calcs'!BF67 + '1. Strategy Calcs'!BW67 + '1. Strategy Calcs'!CN67 -> 1.213887414e-05 | T68: 7.408162368e-06 | U68: 6.373530469e-06 | V68: 2.34326259e-07 | W68: 1.387019758e-07 | X68: 2.325422167e-08 | Y68: 6.383494427e-07 | Z68: 4.730711777e-06 | AA68: =(S68*(cNGT))*'Time Discounting'!C65 -> 0.04103971265 | AB68: 0.03204843424 | AC68: 0.03204843424 | AD68: =(S68*(vQoLNGT))*'Time Discounting'!E65 -> 9.322655343e-06 | AE68: 7.28018028e-06 | AF68: 7.28018028e-06 | AG68: =(S68*(1))*'Time Discounting'!G65 -> 1.213887414e-05 | AH68: 9.479401406e-06 | AI68: 9.479401406e-06 | AJ68: =0 + '1. Strategy Calcs'!X67 + '1. Strategy Calcs'!Y67 + AL67 + AP67 + '1. Strategy Calcs'!BE67 + '1. Strategy Calcs'!BG67 + '1. Strategy Calcs'!BT67 + '1. Strategy Calcs'!BX67 + '1. Strategy Calcs'!CM67 + '1. Strategy Calcs'!CO67 -> 1.693367349e-05 | AK68: 9.080481347e-06 | AL68: 7.981004579e-06 | AM68: 5.447377767e-07 | AN68: 1.81788522e-08 | AO68: 2.111484328e-07 | AP68: 3.254117061e-07 | AQ68: 7.85319214e-06 | AR68: =(AJ68*((cT2D+cLifestyleTx)))*'Time Discounting'!C65 -> 0.1468599927 | AS68: 0.1152122914 | AT68: 0.1152122914 | AU68: =(AJ68*(vQoLT2D))*'Time Discounting'!E65 -> 1.249705103e-05 | AV68: 9.803989903e-06 | AW68: 9.803989903e-06 | AX68: =(AJ68*(1))*'Time Discounting'!G65 -> 1.693367349e-05 | AY68: 1.328453916e-05 | AZ68: 1.328453916e-05 | BA68: =0 + '1. Strategy Calcs'!V67 + '1. Strategy Calcs'!AM67 + BC67 + '1. Strategy Calcs'!BU67 + '1. Strategy Calcs'!CL67 -> 7.183423955e-06 | BB68: 3.992000516e-06 | BC68: 3.187892241e-06 | BD68: 2.515359525e-08 | BE68: 5.944588334e-07 | BF68: 1.66855196e-07 | BG68: 1.764065028e-08 | BH68: 3.191423439e-06 | BI68: =(BA68*((cLifestyleTx+cIFG)))*'Time Discounting'!C65 -> 0.03011995297 | BJ68: 0.02342082516 | BK68: 0.02342082516 | BL68: =(BA68*(vQoLIFG))*'Time Discounting'!E65 -> 5.452218782e-06 | BM68: 4.239563817e-06 | BN68: 4.239563817e-06 | BO68: =(BA68*(1))*'Time Discounting'!G65 -> 7.183423955e-06 | BP68: 5.58572308e-06 | BQ68: 5.58572308e-06 | BR68: =0 -> 0 | BS68: 0 | BT68: 0 | BU68: 0 | BV68: 0 | BW68: 0 | BX68: 0 | BY68: 0 | BZ68: =(BR68*((cLifestyleTx+cIGT)))*'Time Discounting'!C65 -> 0 | CA68: 0 | CB68: 0 | CC68: =(BR68*(vQoLIGT))*'Time Discounting'!E65 -> 0 | CD68: 0 | CE68: 0 | CF68: =(BR68*(1))*'Time Discounting'!G65 -> 0 | CG68: 0 | CH68: 0 | CI68: =0 + '1. Strategy Calcs'!W67 + '1. Strategy Calcs'!AN67 + '1. Strategy Calcs'!BD67 + '1. Strategy Calcs'!BV67 + CK67 -> 3.015926533e-06 | CJ68: 1.676022514e-06 | CK68: 1.531276609e-06 | CL68: 2.106592698e-08 | CM68: 4.061685848e-08 | CN68: 6.839457052e-08 | CO68: 1.466854904e-08 | CP68: 1.339904019e-06 | CQ68: =(CI68*((cLifestyleTx+cCombined)))*'Time Discounting'!C65 -> 0.01264571963 | CR68: 0.009914799264 | CS68: 0.009914799264 | CT68: =(CI68*(vQoLCombined))*'Time Discounting'!E65 -> 2.246865267e-06 | CU68: 1.761640993e-06 | CV68: 1.761640993e-06 | CW68: =(CI68*(1))*'Time Discounting'!G65 -> 3.015926533e-06 | CX68: 2.364618783e-06 | CY68: 2.364618783e-06 | CZ68: =0 + '1. Strategy Calcs'!Z67 + '1. Strategy Calcs'!AQ67 + '1. Strategy Calcs'!BH67 + '1. Strategy Calcs'!BY67 + '1. Strategy Calcs'!CP67 + DA67 -> 0.9999607281 | DA68: 0.9999607281 | DB68: =(CZ68*(vQoLDeath))*'Time Discounting'!E65 -> 0 | DC68: 0 | DD68: 0 | DF68: 1.14 | DG68: 1.19 | DH68: =IF(rGender=1,INDEX(HazardRatioIGTToDeath_1,cycle+1)*(InterpolateTable(tMortalityWithoutDiabetes,rAge+cycle,1)),INDEX(HazardRatioIGTToDeath_1,cycle+1)*(InterpolateTable(tMortalityWithoutDiabetes,rAge+cycle,2))) -> 0.4442760804 | DI68: 0.4442760804 | DJ68: 0.04179738837 | DK68: 0.4442760804 | DL68: 0.0006450802072 | DM68: 0.0187228585 | DN68: 0.38971586 | DO68: 0.03163082116 | DP68: 0.08616839251 | DQ68: 0.4637618734
B69: 61 | D69: ='1. Strategy Calcs'!S69 -> 6.819928668e-06 | E69: ='1. Strategy Calcs'!AJ69 -> 9.635404841e-06 | F69: ='1. Strategy Calcs'!BA69 -> 3.988022204e-06 | G69: ='1. Strategy Calcs'!BR69 -> 0 | H69: ='1. Strategy Calcs'!CI69 -> 1.713311032e-06 | I69: ='1. Strategy Calcs'!CZ69 -> 0.9999778433 | J69: ='1. Strategy Calcs'!AC69 + '1. Strategy Calcs'!AT69 + '1. Strategy Calcs'!BK69 + '1. Strategy Calcs'!CB69 + '1. Strategy Calcs'!CS69 -> 0.102213849 | K69: 122169.746 | L69: ='1. Strategy Calcs'!AF69 + '1. Strategy Calcs'!AW69 + '1. Strategy Calcs'!BN69 + '1. Strategy Calcs'!CE69 + '1. Strategy Calcs'!CV69 + '1. Strategy Calcs'!DD69 -> 1.302140111e-05 | M69: 22.13721934 | N69: ='1. Strategy Calcs'!AI69 + '1. Strategy Calcs'!AZ69 + '1. Strategy Calcs'!BQ69 + '1. Strategy Calcs'!CH69 + '1. Strategy Calcs'!CY69 -> 1.732699987e-05 | O69: 29.04540206 | Q69: 1 | S69: =0 + U68 + '1. Strategy Calcs'!AO68 + '1. Strategy Calcs'!BF68 + '1. Strategy Calcs'!BW68 + '1. Strategy Calcs'!CN68 -> 6.819928668e-06 | T69: 4.162094302e-06 | U69: 3.563148175e-06 | V69: 1.327622204e-07 | W69: 8.078573039e-08 | X69: 1.306481401e-08 | Y69: 3.723333622e-07 | Z69: 2.657834366e-06 | AA69: =(S69*(cNGT))*'Time Discounting'!C66 -> 0.02305715584 | AB69: 0.01797469877 | AC69: 0.01797469877 | AD69: =(S69*(vQoLNGT))*'Time Discounting'!E66 -> 5.237705217e-06 | AE69: 4.083165079e-06 | AF69: 4.083165079e-06 | AG69: =(S69*(1))*'Time Discounting'!G66 -> 6.819928668e-06 | AH69: 5.316621197e-06 | AI69: 5.316621197e-06 | AJ69: =0 + '1. Strategy Calcs'!X68 + '1. Strategy Calcs'!Y68 + AL68 + AP68 + '1. Strategy Calcs'!BE68 + '1. Strategy Calcs'!BG68 + '1. Strategy Calcs'!BT68 + '1. Strategy Calcs'!BX68 + '1. Strategy Calcs'!CM68 + '1. Strategy Calcs'!CO68 -> 9.635404841e-06 | AK69: 5.166871441e-06 | AL69: 4.54125977e-06 | AM69: 3.099604474e-07 | AN69: 1.034392216e-08 | AO69: 1.201452616e-07 | AP69: 1.851620401e-07 | AQ69: 4.4685334e-06 | AR69: =(AJ69*((cT2D+cLifestyleTx)))*'Time Discounting'!C66 -> 0.08356459015 | AS69: 0.06559142986 | AT69: 0.06559142986 | AU69: =(AJ69*(vQoLT2D))*'Time Discounting'!E66 -> 7.110928773e-06 | AV69: 5.581502703e-06 | AW69: 5.581502703e-06 | AX69: =(AJ69*(1))*'Time Discounting'!G66 -> 9.635404841e-06 | AY69: 7.563011793e-06 | AZ69: 7.563011793e-06 | BA69: =0 + '1. Strategy Calcs'!V68 + '1. Strategy Calcs'!AM68 + BC68 + '1. Strategy Calcs'!BU68 + '1. Strategy Calcs'!CL68 -> 3.988022204e-06 | BB69: 2.216239331e-06 | BC69: 1.763716843e-06 | BD69: 1.396452402e-08 | BE69: 3.375982329e-07 | BF69: 9.116616925e-08 | BG69: 9.793561603e-09 | BH69: 1.771782873e-06 | BI69: =(BA69*((cLifestyleTx+cIFG)))*'Time Discounting'!C66 -> 0.01672169734 | BJ69: 0.01301171636 | BK69: 0.01301171636 | BL69: =(BA69*(vQoLIFG))*'Time Discounting'!E66 -> 3.026908853e-06 | BM69: 2.35533981e-06 | BN69: 2.35533981e-06 | BO69: =(BA69*(1))*'Time Discounting'!G66 -> 3.988022204e-06 | BP69: 3.103214505e-06 | BQ69: 3.103214505e-06 | BR69: =0 -> 0 | BS69: 0 | BT69: 0 | BU69: 0 | BV69: 0 | BW69: 0 | BX69: 0 | BY69: 0 | BZ69: =(BR69*((cLifestyleTx+cIGT)))*'Time Discounting'!C66 -> 0 | CA69: 0 | CB69: 0 | CC69: =(BR69*(vQoLIGT))*'Time Discounting'!E66 -> 0 | CD69: 0 | CE69: 0 | CF69: =(BR69*(1))*'Time Discounting'!G66 -> 0 | CG69: 0 | CH69: 0 | CI69: =0 + '1. Strategy Calcs'!W68 + '1. Strategy Calcs'!AN68 + '1. Strategy Calcs'!BD68 + '1. Strategy Calcs'!BV68 + CK68 -> 1.713311032e-06 | CJ69: 9.521279224e-07 | CK69: 8.698995414e-07 | CL69: 1.196729586e-08 | CM69: 2.307394128e-08 | CN69: 3.885412027e-08 | CO69: 8.333023577e-09 | CP69: 7.6118311e-07 | CQ69: =(CI69*((cLifestyleTx+cCombined)))*'Time Discounting'!C66 -> 0.007183878893 | CR69: 0.005636004026 | CS69: 0.005636004026 | CT69: =(CI69*(vQoLCombined))*'Time Discounting'!E66 -> 1.276416719e-06 | CU69: 1.00139352e-06 | CV69: 1.00139352e-06 | CW69: =(CI69*(1))*'Time Discounting'!G66 -> 1.713311032e-06 | CX69: 1.344152375e-06 | CY69: 1.344152375e-06 | CZ69: =0 + '1. Strategy Calcs'!Z68 + '1. Strategy Calcs'!AQ68 + '1. Strategy Calcs'!BH68 + '1. Strategy Calcs'!BY68 + '1. Strategy Calcs'!CP68 + DA68 -> 0.9999778433 | DA69: 0.9999778433 | DB69: =(CZ69*(vQoLDeath))*'Time Discounting'!E66 -> 0 | DC69: 0 | DD69: 0 | DF69: 1.14 | DG69: 1.19 | DH69: 0.4442760804 | DI69: 0.4442760804 | DJ69: 0.04113552539 | DK69: 0.4442760804 | DL69: 0.0006016128335 | DM69: 0.01940987506 | DN69: 0.38971586 | DO69: 0.03189793665 | DP69: 0.08945817542 | DQ69: 0.4637618734
B70: 62 | D70: ='1. Strategy Calcs'!S70 -> 3.813313726e-06 | E70: ='1. Strategy Calcs'!AJ70 -> 5.490618745e-06 | F70: ='1. Strategy Calcs'!BA70 -> 2.218406807e-06 | G70: ='1. Strategy Calcs'!BR70 -> 0 | H70: ='1. Strategy Calcs'!CI70 -> 9.74993718e-07 | I70: ='1. Strategy Calcs'!CZ70 -> 0.9999875027 | J70: ='1. Strategy Calcs'!AC70 + '1. Strategy Calcs'!AT70 + '1. Strategy Calcs'!BK70 + '1. Strategy Calcs'!CB70 + '1. Strategy Calcs'!CS70 -> 0.05787544143 | K70: 122169.8038 | L70: ='1. Strategy Calcs'!AF70 + '1. Strategy Calcs'!AW70 + '1. Strategy Calcs'!BN70 + '1. Strategy Calcs'!CE70 + '1. Strategy Calcs'!CV70 + '1. Strategy Calcs'!DD70 -> 7.342206914e-06 | M70: 22.13722668 | N70: ='1. Strategy Calcs'!AI70 + '1. Strategy Calcs'!AZ70 + '1. Strategy Calcs'!BQ70 + '1. Strategy Calcs'!CH70 + '1. Strategy Calcs'!CY70 -> 9.771733025e-06 | O70: 29.04541183 | Q70: 1 | S70: =0 + U69 + '1. Strategy Calcs'!AO69 + '1. Strategy Calcs'!BF69 + '1. Strategy Calcs'!BW69 + '1. Strategy Calcs'!CN69 -> 3.813313726e-06 | T70: 2.327204888e-06 | U70: 1.982221911e-06 | V70: 7.485900465e-08 | W70: 4.682185008e-08 | X70: 7.305096143e-09 | Y70: 2.15997026e-07 | Z70: 1.486108838e-06 | AA70: =(S70*(cNGT))*'Time Discounting'!C67 -> 0.01289224171 | AB70: 0.01003439082 | AC70: 0.01003439082 | AD70: =(S70*(vQoLNGT))*'Time Discounting'!E67 -> 2.928624942e-06 | AE70: 2.279430366e-06 | AF70: 2.279430366e-06 | AG70: =(S70*(1))*'Time Discounting'!G67 -> 3.813313726e-06 | AH70: 2.968008289e-06 | AI70: 2.968008289e-06 | AJ70: =0 + '1. Strategy Calcs'!X69 + '1. Strategy Calcs'!Y69 + AL69 + AP69 + '1. Strategy Calcs'!BE69 + '1. Strategy Calcs'!BG69 + '1. Strategy Calcs'!BT69 + '1. Strategy Calcs'!BX69 + '1. Strategy Calcs'!CM69 + '1. Strategy Calcs'!CO69 -> 5.490618745e-06 | AK70: 2.94427911e-06 | AL70: 2.587781876e-06 | AM70: 1.766272068e-07 | AN70: 5.89435876e-09 | AO70: 6.846332214e-08 | AP70: 1.055123459e-07 | AQ70: 2.546339635e-06 | AR70: =(AJ70*((cT2D+cLifestyleTx)))*'Time Discounting'!C67 -> 0.04761826957 | AS70: 0.03739029284 | AT70: 0.03739029284 | AU70: =(AJ70*(vQoLT2D))*'Time Discounting'!E67 -> 4.052076634e-06 | AV70: 3.181726958e-06 | AW70: 3.181726958e-06 | AX70: =(AJ70*(1))*'Time Discounting'!G67 -> 5.490618745e-06 | AY70: 4.311283141e-06 | AZ70: 4.311283141e-06 | BA70: =0 + '1. Strategy Calcs'!V69 + '1. Strategy Calcs'!AM69 + BC69 + '1. Strategy Calcs'!BU69 + '1. Strategy Calcs'!CL69 -> 2.218406807e-06 | BB70: 1.232821726e-06 | BC70: 9.776683733e-07 | BD70: 7.768009694e-09 | BE70: 1.920305943e-07 | BF70: 4.990690933e-08 | BG70: 5.447839206e-09 | BH70: 9.855850808e-07 | BI70: =(BA70*((cLifestyleTx+cIFG)))*'Time Discounting'!C67 -> 0.009301735372 | BJ70: 0.007242055556 | BK70: 0.007242055556 | BL70: =(BA70*(vQoLIFG))*'Time Discounting'!E67 -> 1.683770766e-06 | BM70: 1.310934029e-06 | BN70: 1.310934029e-06 | BO70: =(BA70*(1))*'Time Discounting'!G67 -> 2.218406807e-06 | BP70: 1.72718581e-06 | BQ70: 1.72718581e-06 | BR70: =0 -> 0 | BS70: 0 | BT70: 0 | BU70: 0 | BV70: 0 | BW70: 0 | BX70: 0 | BY70: 0 | BZ70: =(BR70*((cLifestyleTx+cIGT)))*'Time Discounting'!C67 -> 0 | CA70: 0 | CB70: 0 | CC70: =(BR70*(vQoLIGT))*'Time Discounting'!E67 -> 0 | CD70: 0 | CE70: 0 | CF70: =(BR70*(1))*'Time Discounting'!G67 -> 0 | CG70: 0 | CH70: 0 | CI70: =0 + '1. Strategy Calcs'!W69 + '1. Strategy Calcs'!AN69 + '1. Strategy Calcs'!BD69 + '1. Strategy Calcs'!BV69 + CK69 -> 9.74993718e-07 | CJ70: 5.418273306e-07 | CK70: 4.95033635e-07 | CL70: 6.810227718e-09 | CM70: 1.313068519e-08 | CN70: 2.211070988e-08 | CO70: 4.742072797e-09 | CP70: 4.331663875e-07 | CQ70: =(CI70*((cLifestyleTx+cCombined)))*'Time Discounting'!C67 -> 0.00408812916 | CR70: 0.003208702205 | CS70: 0.003208702205 | CT70: =(CI70*(vQoLCombined))*'Time Discounting'!E67 -> 7.263703199e-07 | CU70: 5.701155604e-07 | CV70: 5.701155604e-07 | CW70: =(CI70*(1))*'Time Discounting'!G67 -> 9.74993718e-07 | CX70: 7.652557858e-07 | CY70: 7.652557858e-07 | CZ70: =0 + '1. Strategy Calcs'!Z69 + '1. Strategy Calcs'!AQ69 + '1. Strategy Calcs'!BH69 + '1. Strategy Calcs'!BY69 + '1. Strategy Calcs'!CP69 + DA69 -> 0.9999875027 | DA70: 0.9999875027 | DB70: =(CZ70*(vQoLDeath))*'Time Discounting'!E67 -> 0 | DC70: 0 | DD70: 0 | DF70: 1.14 | DG70: 1.19 | DH70: 0.4442760804 | DI70: 0.4442760804 | DJ70: 0.04048185417 | DK70: 0.4442760804 | DL70: 0.0005610653797 | DM70: 0.02011935018 | DN70: 0.38971586 | DO70: 0.03216691622 | DP70: 0.0928139276 | DQ70: 0.4637618734
